Workbook

Sheet B
D1: TOTAL | E1: ACTIVIDADES | I1: INTERVENCIONES QUIRÚRGICAS | P1: INTERVENCIONES QUIRÚRGICAS MAYORES NO AMBULATORIAS ELECTIVAS | S1: INTERVENCIONES QUIRÚRGICAS MAYORES AMBULATORIAS ELECTIVA | V1: INTERVENCIONES QUIRÚRGICAS MAYORES AMBULATORIAS URGENCIA | Y1: INTERVENCIONES QUIRÚRGICAS MAYORES NO AMBULATORIAS URGENCIA | AB1: PROCEDENCIA | AE1: PRODUCCION INTRA HOSPITAL | AH1: OPERATIVO | AI1: COMPRAS REALIZADAS | AK1: VENTAS DE SERVICIOS | AL1: TRANSFERENCIA 2022 | AM1: TOTAL FACTURADO
B2: CÓDIGO | C2: GLOSA | E2: TOTAL BENEFI-CIARIOS | F2: BENEFICIARIOS | H2: NO BENEFI-CIARIOS | I2: TOTAL BENEFI- CIARIOS | J2: PRINCIPAL | M2: SECUNDARIA | S2: < 15 AÑOS | V2: < 15 AÑOS | Y2: < 15 AÑOS
F3: MAI | G3: MLE | J3: MAI | K3: MLE | L3: NO BENEFI-CIARIO | M3: MAI | N3: MLE | O3: NO BENEFI-CIARIO | P3: TOTAL | Q3: < 15 AÑOS | R3: 15 AÑOS Y MÁS | S3: TOTAL | T3: < 15 AÑOS | U3: 15 AÑOS Y MÁS | V3: TOTAL | W3: < 15 AÑOS | X3: 15 AÑOS Y MÁS | Y3: TOTAL | Z3: < 15 AÑOS | AA3: 15 AÑOS Y MÁS | AB3: ATENCION CERRADA | AC3: ATENCION ABIERTA | AD3: EMERGENCIA | AE3: POR HONO- RARIOS | AF3: POR CONVENIOS | AG3: POR CONSULTO- RES DE LLAMADA | AI3: AL SISTEMA | AJ3: EXTRA-SISTEMA
C4: CONSULTAS Y ATENCION MEDICA
C5: CONSULTAS DE ESPECIALIDADES MEDICAS
A6: 01014275 | B6: 0101201 | C6: Consulta Médica de Especialidad en Dermatología | D6: =IFERROR(VLOOKUP($A6,Filtro!$A$5:$AK$2953,2,FALSE),0) -> 6580 | E6: =IFERROR(VLOOKUP($A6,Filtro!$A$5:$AK$2953,3,FALSE),0) -> 6580 | F6: =IFERROR(VLOOKUP($A6,Filtro!$A$5:$AK$2953,4,FALSE),0) -> 6580 | G6: =IFERROR(VLOOKUP($A6,Filtro!$A$5:$AK$2953,5,FALSE),0) -> 0 | H6: =IFERROR(VLOOKUP($A6,Filtro!$A$5:$AK$2953,6,FALSE),0) -> 0 | AB6: =IFERROR(VLOOKUP($A6,Filtro!$A$5:$AK$2953,26,FALSE),0) -> 0 | AC6: =IFERROR(VLOOKUP($A6,Filtro!$A$5:$AK$2953,27,FALSE),0) -> 6580 | AD6: =IFERROR(VLOOKUP($A6,Filtro!$A$5:$AK$2953,28,FALSE),0) -> 0 | AE6: =IFERROR(VLOOKUP($A6,Filtro!$A$5:$AK$2953,29,FALSE),0) -> 0 | AF6: =IFERROR(VLOOKUP($A6,Filtro!$A$5:$AK$2953,30,FALSE),0) -> 0 | AG6: =IFERROR(VLOOKUP($A6,Filtro!$A$5:$AK$2953,31,FALSE),0) -> 0 | AH6: =IFERROR(VLOOKUP($A6,Filtro!$A$5:$AK$2953,32,FALSE),0) -> 45 | AI6: =IFERROR(VLOOKUP($A6,Filtro!$A$5:$AK$2953,33,FALSE),0) -> 0 | AJ6: =IFERROR(VLOOKUP($A6,Filtro!$A$5:$AK$2953,34,FALSE),0) -> 0 | AK6: =IFERROR(VLOOKUP($A6,Filtro!$A$5:$AK$2953,35,FALSE),0) -> 0 | AL6: 9,620 | AM6: =IFERROR(VLOOKUP($A6,Filtro!$A$5:$AK$2953,37,FALSE),0) -> 63,299,600
A7: 01014276 | B7: 0101202 | C7: Consulta Médica de Especialidad en Geriatría | D7: =IFERROR(VLOOKUP($A7,Filtro!$A$5:$AK$2953,2,FALSE),0) -> 1475 | E7: =IFERROR(VLOOKUP($A7,Filtro!$A$5:$AK$2953,3,FALSE),0) -> 1475 | F7: =IFERROR(VLOOKUP($A7,Filtro!$A$5:$AK$2953,4,FALSE),0) -> 1475 | G7: =IFERROR(VLOOKUP($A7,Filtro!$A$5:$AK$2953,5,FALSE),0) -> 0 | H7: =IFERROR(VLOOKUP($A7,Filtro!$A$5:$AK$2953,6,FALSE),0) -> 0 | AB7: =IFERROR(VLOOKUP($A7,Filtro!$A$5:$AK$2953,26,FALSE),0) -> 0 | AC7: =IFERROR(VLOOKUP($A7,Filtro!$A$5:$AK$2953,27,FALSE),0) -> 1475 | AD7: =IFERROR(VLOOKUP($A7,Filtro!$A$5:$AK$2953,28,FALSE),0) -> 0 | AE7: =IFERROR(VLOOKUP($A7,Filtro!$A$5:$AK$2953,29,FALSE),0) -> 0 | AF7: =IFERROR(VLOOKUP($A7,Filtro!$A$5:$AK$2953,30,FALSE),0) -> 0 | AG7: =IFERROR(VLOOKUP($A7,Filtro!$A$5:$AK$2953,31,FALSE),0) -> 0 | AH7: =IFERROR(VLOOKUP($A7,Filtro!$A$5:$AK$2953,32,FALSE),0) -> 0 | AI7: =IFERROR(VLOOKUP($A7,Filtro!$A$5:$AK$2953,33,FALSE),0) -> 0 | AJ7: =IFERROR(VLOOKUP($A7,Filtro!$A$5:$AK$2953,34,FALSE),0) -> 0 | AK7: =IFERROR(VLOOKUP($A7,Filtro!$A$5:$AK$2953,35,FALSE),0) -> 0 | AL7: 9,620 | AM7: =IFERROR(VLOOKUP($A7,Filtro!$A$5:$AK$2953,37,FALSE),0) -> 14,189,500
A8: 01014277 | B8: 0101203 | C8: Consulta Médica de Especialidad en Neurocirugía | D8: =IFERROR(VLOOKUP($A8,Filtro!$A$5:$AK$2953,2,FALSE),0) -> 5661 | E8: =IFERROR(VLOOKUP($A8,Filtro!$A$5:$AK$2953,3,FALSE),0) -> 5661 | F8: =IFERROR(VLOOKUP($A8,Filtro!$A$5:$AK$2953,4,FALSE),0) -> 5661 | G8: =IFERROR(VLOOKUP($A8,Filtro!$A$5:$AK$2953,5,FALSE),0) -> 0 | H8: =IFERROR(VLOOKUP($A8,Filtro!$A$5:$AK$2953,6,FALSE),0) -> 0 | AB8: =IFERROR(VLOOKUP($A8,Filtro!$A$5:$AK$2953,26,FALSE),0) -> 0 | AC8: =IFERROR(VLOOKUP($A8,Filtro!$A$5:$AK$2953,27,FALSE),0) -> 5661 | AD8: =IFERROR(VLOOKUP($A8,Filtro!$A$5:$AK$2953,28,FALSE),0) -> 0 | AE8: =IFERROR(VLOOKUP($A8,Filtro!$A$5:$AK$2953,29,FALSE),0) -> 0 | AF8: =IFERROR(VLOOKUP($A8,Filtro!$A$5:$AK$2953,30,FALSE),0) -> 0 | AG8: =IFERROR(VLOOKUP($A8,Filtro!$A$5:$AK$2953,31,FALSE),0) -> 0 | AH8: =IFERROR(VLOOKUP($A8,Filtro!$A$5:$AK$2953,32,FALSE),0) -> 0 | AI8: =IFERROR(VLOOKUP($A8,Filtro!$A$5:$AK$2953,33,FALSE),0) -> 0 | AJ8: =IFERROR(VLOOKUP($A8,Filtro!$A$5:$AK$2953,34,FALSE),0) -> 0 | AK8: =IFERROR(VLOOKUP($A8,Filtro!$A$5:$AK$2953,35,FALSE),0) -> 0 | AL8: 9,620 | AM8: =IFERROR(VLOOKUP($A8,Filtro!$A$5:$AK$2953,37,FALSE),0) -> 54,458,820
A9: 01014278 | B9: 0101204 | C9: Consulta Médica de Especialidad en Oftalmología | D9: =IFERROR(VLOOKUP($A9,Filtro!$A$5:$AK$2953,2,FALSE),0) -> 19426 | E9: =IFERROR(VLOOKUP($A9,Filtro!$A$5:$AK$2953,3,FALSE),0) -> 19341 | F9: =IFERROR(VLOOKUP($A9,Filtro!$A$5:$AK$2953,4,FALSE),0) -> 19341 | G9: =IFERROR(VLOOKUP($A9,Filtro!$A$5:$AK$2953,5,FALSE),0) -> 0 | H9: =IFERROR(VLOOKUP($A9,Filtro!$A$5:$AK$2953,6,FALSE),0) -> 85 | AB9: =IFERROR(VLOOKUP($A9,Filtro!$A$5:$AK$2953,26,FALSE),0) -> 0 | AC9: =IFERROR(VLOOKUP($A9,Filtro!$A$5:$AK$2953,27,FALSE),0) -> 19426 | AD9: =IFERROR(VLOOKUP($A9,Filtro!$A$5:$AK$2953,28,FALSE),0) -> 0 | AE9: =IFERROR(VLOOKUP($A9,Filtro!$A$5:$AK$2953,29,FALSE),0) -> 337 | AF9: =IFERROR(VLOOKUP($A9,Filtro!$A$5:$AK$2953,30,FALSE),0) -> 3167 | AG9: =IFERROR(VLOOKUP($A9,Filtro!$A$5:$AK$2953,31,FALSE),0) -> 0 | AH9: =IFERROR(VLOOKUP($A9,Filtro!$A$5:$AK$2953,32,FALSE),0) -> 0 | AI9: =IFERROR(VLOOKUP($A9,Filtro!$A$5:$AK$2953,33,FALSE),0) -> 0 | AJ9: =IFERROR(VLOOKUP($A9,Filtro!$A$5:$AK$2953,34,FALSE),0) -> 0 | AK9: =IFERROR(VLOOKUP($A9,Filtro!$A$5:$AK$2953,35,FALSE),0) -> 0 | AL9: 9,620 | AM9: =IFERROR(VLOOKUP($A9,Filtro!$A$5:$AK$2953,37,FALSE),0) -> 186,060,420
A10: 01014279 | B10: 0101205 | C10: Consulta Médica de Especialidad en Otorrinolaringología | D10: =IFERROR(VLOOKUP($A10,Filtro!$A$5:$AK$2953,2,FALSE),0) -> 24267 | E10: =IFERROR(VLOOKUP($A10,Filtro!$A$5:$AK$2953,3,FALSE),0) -> 24213 | F10: =IFERROR(VLOOKUP($A10,Filtro!$A$5:$AK$2953,4,FALSE),0) -> 24213 | G10: =IFERROR(VLOOKUP($A10,Filtro!$A$5:$AK$2953,5,FALSE),0) -> 0 | H10: =IFERROR(VLOOKUP($A10,Filtro!$A$5:$AK$2953,6,FALSE),0) -> 54 | AB10: =IFERROR(VLOOKUP($A10,Filtro!$A$5:$AK$2953,26,FALSE),0) -> 0 | AC10: =IFERROR(VLOOKUP($A10,Filtro!$A$5:$AK$2953,27,FALSE),0) -> 24294 | AD10: =IFERROR(VLOOKUP($A10,Filtro!$A$5:$AK$2953,28,FALSE),0) -> 0 | AE10: =IFERROR(VLOOKUP($A10,Filtro!$A$5:$AK$2953,29,FALSE),0) -> 978 | AF10: =IFERROR(VLOOKUP($A10,Filtro!$A$5:$AK$2953,30,FALSE),0) -> 0 | AG10: =IFERROR(VLOOKUP($A10,Filtro!$A$5:$AK$2953,31,FALSE),0) -> 0 | AH10: =IFERROR(VLOOKUP($A10,Filtro!$A$5:$AK$2953,32,FALSE),0) -> 0 | AI10: =IFERROR(VLOOKUP($A10,Filtro!$A$5:$AK$2953,33,FALSE),0) -> 0 | AJ10: =IFERROR(VLOOKUP($A10,Filtro!$A$5:$AK$2953,34,FALSE),0) -> 0 | AK10: =IFERROR(VLOOKUP($A10,Filtro!$A$5:$AK$2953,35,FALSE),0) -> 0 | AL10: 9,620 | AM10: =IFERROR(VLOOKUP($A10,Filtro!$A$5:$AK$2953,37,FALSE),0) -> 232,929,060
A11: 01014280 | B11: 0101206 | C11: Consulta Médica de Especialidad en Reumatología | D11: =IFERROR(VLOOKUP($A11,Filtro!$A$5:$AK$2953,2,FALSE),0) -> 6040 | E11: =IFERROR(VLOOKUP($A11,Filtro!$A$5:$AK$2953,3,FALSE),0) -> 6008 | F11: =IFERROR(VLOOKUP($A11,Filtro!$A$5:$AK$2953,4,FALSE),0) -> 6008 | G11: =IFERROR(VLOOKUP($A11,Filtro!$A$5:$AK$2953,5,FALSE),0) -> 0 | H11: =IFERROR(VLOOKUP($A11,Filtro!$A$5:$AK$2953,6,FALSE),0) -> 32 | AB11: =IFERROR(VLOOKUP($A11,Filtro!$A$5:$AK$2953,26,FALSE),0) -> 0 | AC11: =IFERROR(VLOOKUP($A11,Filtro!$A$5:$AK$2953,27,FALSE),0) -> 6040 | AD11: =IFERROR(VLOOKUP($A11,Filtro!$A$5:$AK$2953,28,FALSE),0) -> 0 | AE11: =IFERROR(VLOOKUP($A11,Filtro!$A$5:$AK$2953,29,FALSE),0) -> 0 | AF11: =IFERROR(VLOOKUP($A11,Filtro!$A$5:$AK$2953,30,FALSE),0) -> 0 | AG11: =IFERROR(VLOOKUP($A11,Filtro!$A$5:$AK$2953,31,FALSE),0) -> 0 | AH11: =IFERROR(VLOOKUP($A11,Filtro!$A$5:$AK$2953,32,FALSE),0) -> 0 | AI11: =IFERROR(VLOOKUP($A11,Filtro!$A$5:$AK$2953,33,FALSE),0) -> 0 | AJ11: =IFERROR(VLOOKUP($A11,Filtro!$A$5:$AK$2953,34,FALSE),0) -> 0 | AK11: =IFERROR(VLOOKUP($A11,Filtro!$A$5:$AK$2953,35,FALSE),0) -> 0 | AL11: 9,620 | AM11: =IFERROR(VLOOKUP($A11,Filtro!$A$5:$AK$2953,37,FALSE),0) -> 57,796,960
A12: 01014281 | B12: 0101207 | C12: Consulta Médica de Especialidad en Endocrinología Adulto | D12: =IFERROR(VLOOKUP($A12,Filtro!$A$5:$AK$2953,2,FALSE),0) -> 5683 | E12: =IFERROR(VLOOKUP($A12,Filtro!$A$5:$AK$2953,3,FALSE),0) -> 5673 | F12: =IFERROR(VLOOKUP($A12,Filtro!$A$5:$AK$2953,4,FALSE),0) -> 5673 | G12: =IFERROR(VLOOKUP($A12,Filtro!$A$5:$AK$2953,5,FALSE),0) -> 0 | H12: =IFERROR(VLOOKUP($A12,Filtro!$A$5:$AK$2953,6,FALSE),0) -> 10 | AB12: =IFERROR(VLOOKUP($A12,Filtro!$A$5:$AK$2953,26,FALSE),0) -> 0 | AC12: =IFERROR(VLOOKUP($A12,Filtro!$A$5:$AK$2953,27,FALSE),0) -> 5683 | AD12: =IFERROR(VLOOKUP($A12,Filtro!$A$5:$AK$2953,28,FALSE),0) -> 0 | AE12: =IFERROR(VLOOKUP($A12,Filtro!$A$5:$AK$2953,29,FALSE),0) -> 0 | AF12: =IFERROR(VLOOKUP($A12,Filtro!$A$5:$AK$2953,30,FALSE),0) -> 0 | AG12: =IFERROR(VLOOKUP($A12,Filtro!$A$5:$AK$2953,31,FALSE),0) -> 0 | AH12: =IFERROR(VLOOKUP($A12,Filtro!$A$5:$AK$2953,32,FALSE),0) -> 0 | AI12: =IFERROR(VLOOKUP($A12,Filtro!$A$5:$AK$2953,33,FALSE),0) -> 0 | AJ12: =IFERROR(VLOOKUP($A12,Filtro!$A$5:$AK$2953,34,FALSE),0) -> 0 | AK12: =IFERROR(VLOOKUP($A12,Filtro!$A$5:$AK$2953,35,FALSE),0) -> 0 | AL12: 9,620 | AM12: =IFERROR(VLOOKUP($A12,Filtro!$A$5:$AK$2953,37,FALSE),0) -> 54,574,260
A13: 01014282 | B13: 0101208 | C13: Consulta Médica de Especialidad en Endocrinología Pediátrica | D13: =IFERROR(VLOOKUP($A13,Filtro!$A$5:$AK$2953,2,FALSE),0) -> 4743 | E13: =IFERROR(VLOOKUP($A13,Filtro!$A$5:$AK$2953,3,FALSE),0) -> 4736 | F13: =IFERROR(VLOOKUP($A13,Filtro!$A$5:$AK$2953,4,FALSE),0) -> 4736 | G13: =IFERROR(VLOOKUP($A13,Filtro!$A$5:$AK$2953,5,FALSE),0) -> 0 | H13: =IFERROR(VLOOKUP($A13,Filtro!$A$5:$AK$2953,6,FALSE),0) -> 7 | AB13: =IFERROR(VLOOKUP($A13,Filtro!$A$5:$AK$2953,26,FALSE),0) -> 0 | AC13: =IFERROR(VLOOKUP($A13,Filtro!$A$5:$AK$2953,27,FALSE),0) -> 4743 | AD13: =IFERROR(VLOOKUP($A13,Filtro!$A$5:$AK$2953,28,FALSE),0) -> 0 | AE13: =IFERROR(VLOOKUP($A13,Filtro!$A$5:$AK$2953,29,FALSE),0) -> 0 | AF13: =IFERROR(VLOOKUP($A13,Filtro!$A$5:$AK$2953,30,FALSE),0) -> 0 | AG13: =IFERROR(VLOOKUP($A13,Filtro!$A$5:$AK$2953,31,FALSE),0) -> 0 | AH13: =IFERROR(VLOOKUP($A13,Filtro!$A$5:$AK$2953,32,FALSE),0) -> 0 | AI13: =IFERROR(VLOOKUP($A13,Filtro!$A$5:$AK$2953,33,FALSE),0) -> 0 | AJ13: =IFERROR(VLOOKUP($A13,Filtro!$A$5:$AK$2953,34,FALSE),0) -> 0 | AK13: =IFERROR(VLOOKUP($A13,Filtro!$A$5:$AK$2953,35,FALSE),0) -> 0 | AL13: 9,620 | AM13: =IFERROR(VLOOKUP($A13,Filtro!$A$5:$AK$2953,37,FALSE),0) -> 45,560,320
A14: 01014283 | B14: 0101209 | C14: Consulta Médica de Especialidad en Neurología Adultos | D14: =IFERROR(VLOOKUP($A14,Filtro!$A$5:$AK$2953,2,FALSE),0) -> 8916 | E14: =IFERROR(VLOOKUP($A14,Filtro!$A$5:$AK$2953,3,FALSE),0) -> 8909 | F14: =IFERROR(VLOOKUP($A14,Filtro!$A$5:$AK$2953,4,FALSE),0) -> 8909 | G14: =IFERROR(VLOOKUP($A14,Filtro!$A$5:$AK$2953,5,FALSE),0) -> 0 | H14: =IFERROR(VLOOKUP($A14,Filtro!$A$5:$AK$2953,6,FALSE),0) -> 7 | AB14: =IFERROR(VLOOKUP($A14,Filtro!$A$5:$AK$2953,26,FALSE),0) -> 0 | AC14: =IFERROR(VLOOKUP($A14,Filtro!$A$5:$AK$2953,27,FALSE),0) -> 8916 | AD14: =IFERROR(VLOOKUP($A14,Filtro!$A$5:$AK$2953,28,FALSE),0) -> 0 | AE14: =IFERROR(VLOOKUP($A14,Filtro!$A$5:$AK$2953,29,FALSE),0) -> 248 | AF14: =IFERROR(VLOOKUP($A14,Filtro!$A$5:$AK$2953,30,FALSE),0) -> 83 | AG14: =IFERROR(VLOOKUP($A14,Filtro!$A$5:$AK$2953,31,FALSE),0) -> 0 | AH14: =IFERROR(VLOOKUP($A14,Filtro!$A$5:$AK$2953,32,FALSE),0) -> 34 | AI14: =IFERROR(VLOOKUP($A14,Filtro!$A$5:$AK$2953,33,FALSE),0) -> 0 | AJ14: =IFERROR(VLOOKUP($A14,Filtro!$A$5:$AK$2953,34,FALSE),0) -> 0 | AK14: =IFERROR(VLOOKUP($A14,Filtro!$A$5:$AK$2953,35,FALSE),0) -> 0 | AL14: 9,620 | AM14: =IFERROR(VLOOKUP($A14,Filtro!$A$5:$AK$2953,37,FALSE),0) -> 85,704,580
A15: 01014284 | B15: 0101210 | C15: Consulta Médica de Especialidad en Neurología Pediátrica | D15: =IFERROR(VLOOKUP($A15,Filtro!$A$5:$AK$2953,2,FALSE),0) -> 6563 | E15: =IFERROR(VLOOKUP($A15,Filtro!$A$5:$AK$2953,3,FALSE),0) -> 6551 | F15: =IFERROR(VLOOKUP($A15,Filtro!$A$5:$AK$2953,4,FALSE),0) -> 6551 | G15: =IFERROR(VLOOKUP($A15,Filtro!$A$5:$AK$2953,5,FALSE),0) -> 0 | H15: =IFERROR(VLOOKUP($A15,Filtro!$A$5:$AK$2953,6,FALSE),0) -> 12 | AB15: =IFERROR(VLOOKUP($A15,Filtro!$A$5:$AK$2953,26,FALSE),0) -> 0 | AC15: =IFERROR(VLOOKUP($A15,Filtro!$A$5:$AK$2953,27,FALSE),0) -> 6563 | AD15: =IFERROR(VLOOKUP($A15,Filtro!$A$5:$AK$2953,28,FALSE),0) -> 0 | AE15: =IFERROR(VLOOKUP($A15,Filtro!$A$5:$AK$2953,29,FALSE),0) -> 0 | AF15: =IFERROR(VLOOKUP($A15,Filtro!$A$5:$AK$2953,30,FALSE),0) -> 0 | AG15: =IFERROR(VLOOKUP($A15,Filtro!$A$5:$AK$2953,31,FALSE),0) -> 0 | AH15: =IFERROR(VLOOKUP($A15,Filtro!$A$5:$AK$2953,32,FALSE),0) -> 0 | AI15: =IFERROR(VLOOKUP($A15,Filtro!$A$5:$AK$2953,33,FALSE),0) -> 0 | AJ15: =IFERROR(VLOOKUP($A15,Filtro!$A$5:$AK$2953,34,FALSE),0) -> 0 | AK15: =IFERROR(VLOOKUP($A15,Filtro!$A$5:$AK$2953,35,FALSE),0) -> 0 | AL15: 9,620 | AM15: =IFERROR(VLOOKUP($A15,Filtro!$A$5:$AK$2953,37,FALSE),0) -> 63,020,620
A16: 01014285 | B16: 0101211 | C16: Consulta Médica de Especialidad en Oncología Médica | D16: =IFERROR(VLOOKUP($A16,Filtro!$A$5:$AK$2953,2,FALSE),0) -> 11601 | E16: =IFERROR(VLOOKUP($A16,Filtro!$A$5:$AK$2953,3,FALSE),0) -> 11568 | F16: =IFERROR(VLOOKUP($A16,Filtro!$A$5:$AK$2953,4,FALSE),0) -> 11568 | G16: =IFERROR(VLOOKUP($A16,Filtro!$A$5:$AK$2953,5,FALSE),0) -> 0 | H16: =IFERROR(VLOOKUP($A16,Filtro!$A$5:$AK$2953,6,FALSE),0) -> 33 | AB16: =IFERROR(VLOOKUP($A16,Filtro!$A$5:$AK$2953,26,FALSE),0) -> 0 | AC16: =IFERROR(VLOOKUP($A16,Filtro!$A$5:$AK$2953,27,FALSE),0) -> 11601 | AD16: =IFERROR(VLOOKUP($A16,Filtro!$A$5:$AK$2953,28,FALSE),0) -> 0 | AE16: =IFERROR(VLOOKUP($A16,Filtro!$A$5:$AK$2953,29,FALSE),0) -> 0 | AF16: =IFERROR(VLOOKUP($A16,Filtro!$A$5:$AK$2953,30,FALSE),0) -> 179 | AG16: =IFERROR(VLOOKUP($A16,Filtro!$A$5:$AK$2953,31,FALSE),0) -> 0 | AH16: =IFERROR(VLOOKUP($A16,Filtro!$A$5:$AK$2953,32,FALSE),0) -> 0 | AI16: =IFERROR(VLOOKUP($A16,Filtro!$A$5:$AK$2953,33,FALSE),0) -> 0 | AJ16: =IFERROR(VLOOKUP($A16,Filtro!$A$5:$AK$2953,34,FALSE),0) -> 0 | AK16: =IFERROR(VLOOKUP($A16,Filtro!$A$5:$AK$2953,35,FALSE),0) -> 0 | AL16: 9,620 | AM16: =IFERROR(VLOOKUP($A16,Filtro!$A$5:$AK$2953,37,FALSE),0) -> 111,284,160
A17: 01014286 | B17: 0101212 | C17: Consulta Médica de Especialidad en Psiquiatría adultos | D17: =IFERROR(VLOOKUP($A17,Filtro!$A$5:$AK$2953,2,FALSE),0) -> 19665 | E17: =IFERROR(VLOOKUP($A17,Filtro!$A$5:$AK$2953,3,FALSE),0) -> 19611 | F17: =IFERROR(VLOOKUP($A17,Filtro!$A$5:$AK$2953,4,FALSE),0) -> 19611 | G17: =IFERROR(VLOOKUP($A17,Filtro!$A$5:$AK$2953,5,FALSE),0) -> 0 | H17: =IFERROR(VLOOKUP($A17,Filtro!$A$5:$AK$2953,6,FALSE),0) -> 54 | AB17: =IFERROR(VLOOKUP($A17,Filtro!$A$5:$AK$2953,26,FALSE),0) -> 0 | AC17: =IFERROR(VLOOKUP($A17,Filtro!$A$5:$AK$2953,27,FALSE),0) -> 19570 | AD17: =IFERROR(VLOOKUP($A17,Filtro!$A$5:$AK$2953,28,FALSE),0) -> 0 | AE17: =IFERROR(VLOOKUP($A17,Filtro!$A$5:$AK$2953,29,FALSE),0) -> 0 | AF17: =IFERROR(VLOOKUP($A17,Filtro!$A$5:$AK$2953,30,FALSE),0) -> 0 | AG17: =IFERROR(VLOOKUP($A17,Filtro!$A$5:$AK$2953,31,FALSE),0) -> 0 | AH17: =IFERROR(VLOOKUP($A17,Filtro!$A$5:$AK$2953,32,FALSE),0) -> 0 | AI17: =IFERROR(VLOOKUP($A17,Filtro!$A$5:$AK$2953,33,FALSE),0) -> 0 | AJ17: =IFERROR(VLOOKUP($A17,Filtro!$A$5:$AK$2953,34,FALSE),0) -> 0 | AK17: =IFERROR(VLOOKUP($A17,Filtro!$A$5:$AK$2953,35,FALSE),0) -> 0 | AL17: 9,620 | AM17: =IFERROR(VLOOKUP($A17,Filtro!$A$5:$AK$2953,37,FALSE),0) -> 188,657,820
A18: 01014287 | B18: 0101213 | C18: Consulta Médica de Especialidad en Psiquiatría pediátrica y de la adolescencia | D18: =IFERROR(VLOOKUP($A18,Filtro!$A$5:$AK$2953,2,FALSE),0) -> 7310 | E18: =IFERROR(VLOOKUP($A18,Filtro!$A$5:$AK$2953,3,FALSE),0) -> 7283 | F18: =IFERROR(VLOOKUP($A18,Filtro!$A$5:$AK$2953,4,FALSE),0) -> 7283 | G18: =IFERROR(VLOOKUP($A18,Filtro!$A$5:$AK$2953,5,FALSE),0) -> 0 | H18: =IFERROR(VLOOKUP($A18,Filtro!$A$5:$AK$2953,6,FALSE),0) -> 27 | AB18: =IFERROR(VLOOKUP($A18,Filtro!$A$5:$AK$2953,26,FALSE),0) -> 0 | AC18: =IFERROR(VLOOKUP($A18,Filtro!$A$5:$AK$2953,27,FALSE),0) -> 7276 | AD18: =IFERROR(VLOOKUP($A18,Filtro!$A$5:$AK$2953,28,FALSE),0) -> 0 | AE18: =IFERROR(VLOOKUP($A18,Filtro!$A$5:$AK$2953,29,FALSE),0) -> 0 | AF18: =IFERROR(VLOOKUP($A18,Filtro!$A$5:$AK$2953,30,FALSE),0) -> 0 | AG18: =IFERROR(VLOOKUP($A18,Filtro!$A$5:$AK$2953,31,FALSE),0) -> 0 | AH18: =IFERROR(VLOOKUP($A18,Filtro!$A$5:$AK$2953,32,FALSE),0) -> 0 | AI18: =IFERROR(VLOOKUP($A18,Filtro!$A$5:$AK$2953,33,FALSE),0) -> 0 | AJ18: =IFERROR(VLOOKUP($A18,Filtro!$A$5:$AK$2953,34,FALSE),0) -> 0 | AK18: =IFERROR(VLOOKUP($A18,Filtro!$A$5:$AK$2953,35,FALSE),0) -> 0 | AL18: 9,620 | AM18: =IFERROR(VLOOKUP($A18,Filtro!$A$5:$AK$2953,37,FALSE),0) -> 70,062,460
A19: 01014288 | B19: 0101300 | C19: Consulta Médica otras Especialidades | D19: =IFERROR(VLOOKUP($A19,Filtro!$A$5:$AK$2953,2,FALSE),0) -> 10627 | E19: =IFERROR(VLOOKUP($A19,Filtro!$A$5:$AK$2953,3,FALSE),0) -> 10626 | F19: =IFERROR(VLOOKUP($A19,Filtro!$A$5:$AK$2953,4,FALSE),0) -> 10626 | G19: =IFERROR(VLOOKUP($A19,Filtro!$A$5:$AK$2953,5,FALSE),0) -> 0 | H19: =IFERROR(VLOOKUP($A19,Filtro!$A$5:$AK$2953,6,FALSE),0) -> 1 | AB19: =IFERROR(VLOOKUP($A19,Filtro!$A$5:$AK$2953,26,FALSE),0) -> 0 | AC19: =IFERROR(VLOOKUP($A19,Filtro!$A$5:$AK$2953,27,FALSE),0) -> 10627 | AD19: =IFERROR(VLOOKUP($A19,Filtro!$A$5:$AK$2953,28,FALSE),0) -> 0 | AE19: =IFERROR(VLOOKUP($A19,Filtro!$A$5:$AK$2953,29,FALSE),0) -> 0 | AF19: =IFERROR(VLOOKUP($A19,Filtro!$A$5:$AK$2953,30,FALSE),0) -> 0 | AG19: =IFERROR(VLOOKUP($A19,Filtro!$A$5:$AK$2953,31,FALSE),0) -> 0 | AH19: =IFERROR(VLOOKUP($A19,Filtro!$A$5:$AK$2953,32,FALSE),0) -> 0 | AI19: =IFERROR(VLOOKUP($A19,Filtro!$A$5:$AK$2953,33,FALSE),0) -> 0 | AJ19: =IFERROR(VLOOKUP($A19,Filtro!$A$5:$AK$2953,34,FALSE),0) -> 0 | AK19: =IFERROR(VLOOKUP($A19,Filtro!$A$5:$AK$2953,35,FALSE),0) -> 0 | AL19: 9,620 | AM19: =IFERROR(VLOOKUP($A19,Filtro!$A$5:$AK$2953,37,FALSE),0) -> 102,222,120
A20: 01014289 | B20: 0101301 | C20: Consulta Médica de Especialidad en Cardiología | D20: =IFERROR(VLOOKUP($A20,Filtro!$A$5:$AK$2953,2,FALSE),0) -> 12581 | E20: =IFERROR(VLOOKUP($A20,Filtro!$A$5:$AK$2953,3,FALSE),0) -> 12563 | F20: =IFERROR(VLOOKUP($A20,Filtro!$A$5:$AK$2953,4,FALSE),0) -> 12563 | G20: =IFERROR(VLOOKUP($A20,Filtro!$A$5:$AK$2953,5,FALSE),0) -> 0 | H20: =IFERROR(VLOOKUP($A20,Filtro!$A$5:$AK$2953,6,FALSE),0) -> 18 | AB20: =IFERROR(VLOOKUP($A20,Filtro!$A$5:$AK$2953,26,FALSE),0) -> 0 | AC20: =IFERROR(VLOOKUP($A20,Filtro!$A$5:$AK$2953,27,FALSE),0) -> 12581 | AD20: =IFERROR(VLOOKUP($A20,Filtro!$A$5:$AK$2953,28,FALSE),0) -> 0 | AE20: =IFERROR(VLOOKUP($A20,Filtro!$A$5:$AK$2953,29,FALSE),0) -> 48 | AF20: =IFERROR(VLOOKUP($A20,Filtro!$A$5:$AK$2953,30,FALSE),0) -> 256 | AG20: =IFERROR(VLOOKUP($A20,Filtro!$A$5:$AK$2953,31,FALSE),0) -> 0 | AH20: =IFERROR(VLOOKUP($A20,Filtro!$A$5:$AK$2953,32,FALSE),0) -> 0 | AI20: =IFERROR(VLOOKUP($A20,Filtro!$A$5:$AK$2953,33,FALSE),0) -> 0 | AJ20: =IFERROR(VLOOKUP($A20,Filtro!$A$5:$AK$2953,34,FALSE),0) -> 0 | AK20: =IFERROR(VLOOKUP($A20,Filtro!$A$5:$AK$2953,35,FALSE),0) -> 0 | AL20: 9,620 | AM20: =IFERROR(VLOOKUP($A20,Filtro!$A$5:$AK$2953,37,FALSE),0) -> 120,856,060
A21: 01014290 | B21: 0101302 | C21: Consulta Médica de Especialidad en Hematología | D21: =IFERROR(VLOOKUP($A21,Filtro!$A$5:$AK$2953,2,FALSE),0) -> 8386 | E21: =IFERROR(VLOOKUP($A21,Filtro!$A$5:$AK$2953,3,FALSE),0) -> 8349 | F21: =IFERROR(VLOOKUP($A21,Filtro!$A$5:$AK$2953,4,FALSE),0) -> 8349 | G21: =IFERROR(VLOOKUP($A21,Filtro!$A$5:$AK$2953,5,FALSE),0) -> 0 | H21: =IFERROR(VLOOKUP($A21,Filtro!$A$5:$AK$2953,6,FALSE),0) -> 37 | AB21: =IFERROR(VLOOKUP($A21,Filtro!$A$5:$AK$2953,26,FALSE),0) -> 0 | AC21: =IFERROR(VLOOKUP($A21,Filtro!$A$5:$AK$2953,27,FALSE),0) -> 8386 | AD21: =IFERROR(VLOOKUP($A21,Filtro!$A$5:$AK$2953,28,FALSE),0) -> 0 | AE21: =IFERROR(VLOOKUP($A21,Filtro!$A$5:$AK$2953,29,FALSE),0) -> 0 | AF21: =IFERROR(VLOOKUP($A21,Filtro!$A$5:$AK$2953,30,FALSE),0) -> 0 | AG21: =IFERROR(VLOOKUP($A21,Filtro!$A$5:$AK$2953,31,FALSE),0) -> 0 | AH21: =IFERROR(VLOOKUP($A21,Filtro!$A$5:$AK$2953,32,FALSE),0) -> 0 | AI21: =IFERROR(VLOOKUP($A21,Filtro!$A$5:$AK$2953,33,FALSE),0) -> 0 | AJ21: =IFERROR(VLOOKUP($A21,Filtro!$A$5:$AK$2953,34,FALSE),0) -> 0 | AK21: =IFERROR(VLOOKUP($A21,Filtro!$A$5:$AK$2953,35,FALSE),0) -> 0 | AL21: 9,620 | AM21: =IFERROR(VLOOKUP($A21,Filtro!$A$5:$AK$2953,37,FALSE),0) -> 80,317,380
A22: 01014291 | B22: 0101303 | C22: Consulta Médica de Especialidad en Infectología | D22: =IFERROR(VLOOKUP($A22,Filtro!$A$5:$AK$2953,2,FALSE),0) -> 5943 | E22: =IFERROR(VLOOKUP($A22,Filtro!$A$5:$AK$2953,3,FALSE),0) -> 5915 | F22: =IFERROR(VLOOKUP($A22,Filtro!$A$5:$AK$2953,4,FALSE),0) -> 5915 | G22: =IFERROR(VLOOKUP($A22,Filtro!$A$5:$AK$2953,5,FALSE),0) -> 0 | H22: =IFERROR(VLOOKUP($A22,Filtro!$A$5:$AK$2953,6,FALSE),0) -> 28 | AB22: =IFERROR(VLOOKUP($A22,Filtro!$A$5:$AK$2953,26,FALSE),0) -> 0 | AC22: =IFERROR(VLOOKUP($A22,Filtro!$A$5:$AK$2953,27,FALSE),0) -> 5943 | AD22: =IFERROR(VLOOKUP($A22,Filtro!$A$5:$AK$2953,28,FALSE),0) -> 0 | AE22: =IFERROR(VLOOKUP($A22,Filtro!$A$5:$AK$2953,29,FALSE),0) -> 0 | AF22: =IFERROR(VLOOKUP($A22,Filtro!$A$5:$AK$2953,30,FALSE),0) -> 0 | AG22: =IFERROR(VLOOKUP($A22,Filtro!$A$5:$AK$2953,31,FALSE),0) -> 0 | AH22: =IFERROR(VLOOKUP($A22,Filtro!$A$5:$AK$2953,32,FALSE),0) -> 0 | AI22: =IFERROR(VLOOKUP($A22,Filtro!$A$5:$AK$2953,33,FALSE),0) -> 0 | AJ22: =IFERROR(VLOOKUP($A22,Filtro!$A$5:$AK$2953,34,FALSE),0) -> 0 | AK22: =IFERROR(VLOOKUP($A22,Filtro!$A$5:$AK$2953,35,FALSE),0) -> 0 | AL22: 9,620 | AM22: =IFERROR(VLOOKUP($A22,Filtro!$A$5:$AK$2953,37,FALSE),0) -> 56,902,300
A23: 01014292 | B23: 0101304 | C23: Consulta Médica de Especialidad en Inmunología | D23: =IFERROR(VLOOKUP($A23,Filtro!$A$5:$AK$2953,2,FALSE),0) -> 1680 | E23: =IFERROR(VLOOKUP($A23,Filtro!$A$5:$AK$2953,3,FALSE),0) -> 1679 | F23: =IFERROR(VLOOKUP($A23,Filtro!$A$5:$AK$2953,4,FALSE),0) -> 1679 | G23: =IFERROR(VLOOKUP($A23,Filtro!$A$5:$AK$2953,5,FALSE),0) -> 0 | H23: =IFERROR(VLOOKUP($A23,Filtro!$A$5:$AK$2953,6,FALSE),0) -> 1 | AB23: =IFERROR(VLOOKUP($A23,Filtro!$A$5:$AK$2953,26,FALSE),0) -> 0 | AC23: =IFERROR(VLOOKUP($A23,Filtro!$A$5:$AK$2953,27,FALSE),0) -> 1680 | AD23: =IFERROR(VLOOKUP($A23,Filtro!$A$5:$AK$2953,28,FALSE),0) -> 0 | AE23: =IFERROR(VLOOKUP($A23,Filtro!$A$5:$AK$2953,29,FALSE),0) -> 0 | AF23: =IFERROR(VLOOKUP($A23,Filtro!$A$5:$AK$2953,30,FALSE),0) -> 0 | AG23: =IFERROR(VLOOKUP($A23,Filtro!$A$5:$AK$2953,31,FALSE),0) -> 0 | AH23: =IFERROR(VLOOKUP($A23,Filtro!$A$5:$AK$2953,32,FALSE),0) -> 0 | AI23: =IFERROR(VLOOKUP($A23,Filtro!$A$5:$AK$2953,33,FALSE),0) -> 0 | AJ23: =IFERROR(VLOOKUP($A23,Filtro!$A$5:$AK$2953,34,FALSE),0) -> 0 | AK23: =IFERROR(VLOOKUP($A23,Filtro!$A$5:$AK$2953,35,FALSE),0) -> 0 | AL23: 9,620 | AM23: =IFERROR(VLOOKUP($A23,Filtro!$A$5:$AK$2953,37,FALSE),0) -> 16,151,980
A24: 01014293 | B24: 0101305 | C24: Consulta Médica de Especialidad en Medicina Familiar | D24: =IFERROR(VLOOKUP($A24,Filtro!$A$5:$AK$2953,2,FALSE),0) -> 581 | E24: =IFERROR(VLOOKUP($A24,Filtro!$A$5:$AK$2953,3,FALSE),0) -> 581 | F24: =IFERROR(VLOOKUP($A24,Filtro!$A$5:$AK$2953,4,FALSE),0) -> 581 | G24: =IFERROR(VLOOKUP($A24,Filtro!$A$5:$AK$2953,5,FALSE),0) -> 0 | H24: =IFERROR(VLOOKUP($A24,Filtro!$A$5:$AK$2953,6,FALSE),0) -> 0 | AB24: =IFERROR(VLOOKUP($A24,Filtro!$A$5:$AK$2953,26,FALSE),0) -> 0 | AC24: =IFERROR(VLOOKUP($A24,Filtro!$A$5:$AK$2953,27,FALSE),0) -> 581 | AD24: =IFERROR(VLOOKUP($A24,Filtro!$A$5:$AK$2953,28,FALSE),0) -> 0 | AE24: =IFERROR(VLOOKUP($A24,Filtro!$A$5:$AK$2953,29,FALSE),0) -> 0 | AF24: =IFERROR(VLOOKUP($A24,Filtro!$A$5:$AK$2953,30,FALSE),0) -> 0 | AG24: =IFERROR(VLOOKUP($A24,Filtro!$A$5:$AK$2953,31,FALSE),0) -> 0 | AH24: =IFERROR(VLOOKUP($A24,Filtro!$A$5:$AK$2953,32,FALSE),0) -> 0 | AI24: =IFERROR(VLOOKUP($A24,Filtro!$A$5:$AK$2953,33,FALSE),0) -> 0 | AJ24: =IFERROR(VLOOKUP($A24,Filtro!$A$5:$AK$2953,34,FALSE),0) -> 0 | AK24: =IFERROR(VLOOKUP($A24,Filtro!$A$5:$AK$2953,35,FALSE),0) -> 0 | AL24: 9,620 | AM24: =IFERROR(VLOOKUP($A24,Filtro!$A$5:$AK$2953,37,FALSE),0) -> 5,589,220
A25: 01014294 | B25: 0101306 | C25: Consulta Médica de Especialidad en Medicina Física y Rehabilitación | D25: =IFERROR(VLOOKUP($A25,Filtro!$A$5:$AK$2953,2,FALSE),0) -> 7557 | E25: =IFERROR(VLOOKUP($A25,Filtro!$A$5:$AK$2953,3,FALSE),0) -> 7556 | F25: =IFERROR(VLOOKUP($A25,Filtro!$A$5:$AK$2953,4,FALSE),0) -> 7556 | G25: =IFERROR(VLOOKUP($A25,Filtro!$A$5:$AK$2953,5,FALSE),0) -> 0 | H25: =IFERROR(VLOOKUP($A25,Filtro!$A$5:$AK$2953,6,FALSE),0) -> 1 | AB25: =IFERROR(VLOOKUP($A25,Filtro!$A$5:$AK$2953,26,FALSE),0) -> 0 | AC25: =IFERROR(VLOOKUP($A25,Filtro!$A$5:$AK$2953,27,FALSE),0) -> 7557 | AD25: =IFERROR(VLOOKUP($A25,Filtro!$A$5:$AK$2953,28,FALSE),0) -> 0 | AE25: =IFERROR(VLOOKUP($A25,Filtro!$A$5:$AK$2953,29,FALSE),0) -> 0 | AF25: =IFERROR(VLOOKUP($A25,Filtro!$A$5:$AK$2953,30,FALSE),0) -> 0 | AG25: =IFERROR(VLOOKUP($A25,Filtro!$A$5:$AK$2953,31,FALSE),0) -> 0 | AH25: =IFERROR(VLOOKUP($A25,Filtro!$A$5:$AK$2953,32,FALSE),0) -> 0 | AI25: =IFERROR(VLOOKUP($A25,Filtro!$A$5:$AK$2953,33,FALSE),0) -> 0 | AJ25: =IFERROR(VLOOKUP($A25,Filtro!$A$5:$AK$2953,34,FALSE),0) -> 0 | AK25: =IFERROR(VLOOKUP($A25,Filtro!$A$5:$AK$2953,35,FALSE),0) -> 0 | AL25: 9,620 | AM25: =IFERROR(VLOOKUP($A25,Filtro!$A$5:$AK$2953,37,FALSE),0) -> 72,688,720
A26: 01014295 | B26: 0101307 | C26: Consulta Médica de Especialidad en Medicina Interna | D26: =IFERROR(VLOOKUP($A26,Filtro!$A$5:$AK$2953,2,FALSE),0) -> 38166 | E26: =IFERROR(VLOOKUP($A26,Filtro!$A$5:$AK$2953,3,FALSE),0) -> 37877 | F26: =IFERROR(VLOOKUP($A26,Filtro!$A$5:$AK$2953,4,FALSE),0) -> 37877 | G26: =IFERROR(VLOOKUP($A26,Filtro!$A$5:$AK$2953,5,FALSE),0) -> 0 | H26: =IFERROR(VLOOKUP($A26,Filtro!$A$5:$AK$2953,6,FALSE),0) -> 289 | AB26: =IFERROR(VLOOKUP($A26,Filtro!$A$5:$AK$2953,26,FALSE),0) -> 0 | AC26: =IFERROR(VLOOKUP($A26,Filtro!$A$5:$AK$2953,27,FALSE),0) -> 38166 | AD26: =IFERROR(VLOOKUP($A26,Filtro!$A$5:$AK$2953,28,FALSE),0) -> 0 | AE26: =IFERROR(VLOOKUP($A26,Filtro!$A$5:$AK$2953,29,FALSE),0) -> 518 | AF26: =IFERROR(VLOOKUP($A26,Filtro!$A$5:$AK$2953,30,FALSE),0) -> 0 | AG26: =IFERROR(VLOOKUP($A26,Filtro!$A$5:$AK$2953,31,FALSE),0) -> 0 | AH26: =IFERROR(VLOOKUP($A26,Filtro!$A$5:$AK$2953,32,FALSE),0) -> 61 | AI26: =IFERROR(VLOOKUP($A26,Filtro!$A$5:$AK$2953,33,FALSE),0) -> 0 | AJ26: =IFERROR(VLOOKUP($A26,Filtro!$A$5:$AK$2953,34,FALSE),0) -> 0 | AK26: =IFERROR(VLOOKUP($A26,Filtro!$A$5:$AK$2953,35,FALSE),0) -> 0 | AL26: 9,620 | AM26: =IFERROR(VLOOKUP($A26,Filtro!$A$5:$AK$2953,37,FALSE),0) -> 364,376,740
A27: 01012816 | B27: 0101308 | C27: Consulta Médica de Especialidad en Obstetricia y Ginecología | D27: =IFERROR(VLOOKUP($A27,Filtro!$A$5:$AK$2953,2,FALSE),0) -> 42568 | E27: =IFERROR(VLOOKUP($A27,Filtro!$A$5:$AK$2953,3,FALSE),0) -> 42527 | F27: =IFERROR(VLOOKUP($A27,Filtro!$A$5:$AK$2953,4,FALSE),0) -> 42527 | G27: =IFERROR(VLOOKUP($A27,Filtro!$A$5:$AK$2953,5,FALSE),0) -> 0 | H27: =IFERROR(VLOOKUP($A27,Filtro!$A$5:$AK$2953,6,FALSE),0) -> 41 | AB27: =IFERROR(VLOOKUP($A27,Filtro!$A$5:$AK$2953,26,FALSE),0) -> 0 | AC27: =IFERROR(VLOOKUP($A27,Filtro!$A$5:$AK$2953,27,FALSE),0) -> 42519 | AD27: =IFERROR(VLOOKUP($A27,Filtro!$A$5:$AK$2953,28,FALSE),0) -> 49 | AE27: =IFERROR(VLOOKUP($A27,Filtro!$A$5:$AK$2953,29,FALSE),0) -> 1682 | AF27: =IFERROR(VLOOKUP($A27,Filtro!$A$5:$AK$2953,30,FALSE),0) -> 137 | AG27: =IFERROR(VLOOKUP($A27,Filtro!$A$5:$AK$2953,31,FALSE),0) -> 0 | AH27: =IFERROR(VLOOKUP($A27,Filtro!$A$5:$AK$2953,32,FALSE),0) -> 30 | AI27: =IFERROR(VLOOKUP($A27,Filtro!$A$5:$AK$2953,33,FALSE),0) -> 0 | AJ27: =IFERROR(VLOOKUP($A27,Filtro!$A$5:$AK$2953,34,FALSE),0) -> 0 | AK27: =IFERROR(VLOOKUP($A27,Filtro!$A$5:$AK$2953,35,FALSE),0) -> 0 | AL27: 9,620 | AM27: =IFERROR(VLOOKUP($A27,Filtro!$A$5:$AK$2953,37,FALSE),0) -> 409,109,740
A28: 01014296 | B28: 0101309 | C28: Consulta Médica de Especialidad en Pediatría | D28: =IFERROR(VLOOKUP($A28,Filtro!$A$5:$AK$2953,2,FALSE),0) -> 15701 | E28: =IFERROR(VLOOKUP($A28,Filtro!$A$5:$AK$2953,3,FALSE),0) -> 15687 | F28: =IFERROR(VLOOKUP($A28,Filtro!$A$5:$AK$2953,4,FALSE),0) -> 15687 | G28: =IFERROR(VLOOKUP($A28,Filtro!$A$5:$AK$2953,5,FALSE),0) -> 0 | H28: =IFERROR(VLOOKUP($A28,Filtro!$A$5:$AK$2953,6,FALSE),0) -> 14 | AB28: =IFERROR(VLOOKUP($A28,Filtro!$A$5:$AK$2953,26,FALSE),0) -> 0 | AC28: =IFERROR(VLOOKUP($A28,Filtro!$A$5:$AK$2953,27,FALSE),0) -> 15701 | AD28: =IFERROR(VLOOKUP($A28,Filtro!$A$5:$AK$2953,28,FALSE),0) -> 0 | AE28: =IFERROR(VLOOKUP($A28,Filtro!$A$5:$AK$2953,29,FALSE),0) -> 0 | AF28: =IFERROR(VLOOKUP($A28,Filtro!$A$5:$AK$2953,30,FALSE),0) -> 0 | AG28: =IFERROR(VLOOKUP($A28,Filtro!$A$5:$AK$2953,31,FALSE),0) -> 0 | AH28: =IFERROR(VLOOKUP($A28,Filtro!$A$5:$AK$2953,32,FALSE),0) -> 0 | AI28: =IFERROR(VLOOKUP($A28,Filtro!$A$5:$AK$2953,33,FALSE),0) -> 0 | AJ28: =IFERROR(VLOOKUP($A28,Filtro!$A$5:$AK$2953,34,FALSE),0) -> 0 | AK28: =IFERROR(VLOOKUP($A28,Filtro!$A$5:$AK$2953,35,FALSE),0) -> 0 | AL28: 9,620 | AM28: =IFERROR(VLOOKUP($A28,Filtro!$A$5:$AK$2953,37,FALSE),0) -> 150,908,940
A29: 01014297 | B29: 0101310 | C29: Consulta Médica de Especialidad en Traumatología y Ortopedia | D29: =IFERROR(VLOOKUP($A29,Filtro!$A$5:$AK$2953,2,FALSE),0) -> 29188 | E29: =IFERROR(VLOOKUP($A29,Filtro!$A$5:$AK$2953,3,FALSE),0) -> 28887 | F29: =IFERROR(VLOOKUP($A29,Filtro!$A$5:$AK$2953,4,FALSE),0) -> 28887 | G29: =IFERROR(VLOOKUP($A29,Filtro!$A$5:$AK$2953,5,FALSE),0) -> 0 | H29: =IFERROR(VLOOKUP($A29,Filtro!$A$5:$AK$2953,6,FALSE),0) -> 301 | AB29: =IFERROR(VLOOKUP($A29,Filtro!$A$5:$AK$2953,26,FALSE),0) -> 0 | AC29: =IFERROR(VLOOKUP($A29,Filtro!$A$5:$AK$2953,27,FALSE),0) -> 29188 | AD29: =IFERROR(VLOOKUP($A29,Filtro!$A$5:$AK$2953,28,FALSE),0) -> 0 | AE29: =IFERROR(VLOOKUP($A29,Filtro!$A$5:$AK$2953,29,FALSE),0) -> 787 | AF29: =IFERROR(VLOOKUP($A29,Filtro!$A$5:$AK$2953,30,FALSE),0) -> 0 | AG29: =IFERROR(VLOOKUP($A29,Filtro!$A$5:$AK$2953,31,FALSE),0) -> 0 | AH29: =IFERROR(VLOOKUP($A29,Filtro!$A$5:$AK$2953,32,FALSE),0) -> 67 | AI29: =IFERROR(VLOOKUP($A29,Filtro!$A$5:$AK$2953,33,FALSE),0) -> 0 | AJ29: =IFERROR(VLOOKUP($A29,Filtro!$A$5:$AK$2953,34,FALSE),0) -> 0 | AK29: =IFERROR(VLOOKUP($A29,Filtro!$A$5:$AK$2953,35,FALSE),0) -> 0 | AL29: 9,620 | AM29: =IFERROR(VLOOKUP($A29,Filtro!$A$5:$AK$2953,37,FALSE),0) -> 277,892,940
A30: 01014298 | B30: 0101311 | C30: Consulta Médica de Especialidad en Urología | D30: =IFERROR(VLOOKUP($A30,Filtro!$A$5:$AK$2953,2,FALSE),0) -> 19384 | E30: =IFERROR(VLOOKUP($A30,Filtro!$A$5:$AK$2953,3,FALSE),0) -> 19378 | F30: =IFERROR(VLOOKUP($A30,Filtro!$A$5:$AK$2953,4,FALSE),0) -> 19378 | G30: =IFERROR(VLOOKUP($A30,Filtro!$A$5:$AK$2953,5,FALSE),0) -> 0 | H30: =IFERROR(VLOOKUP($A30,Filtro!$A$5:$AK$2953,6,FALSE),0) -> 6 | AB30: =IFERROR(VLOOKUP($A30,Filtro!$A$5:$AK$2953,26,FALSE),0) -> 0 | AC30: =IFERROR(VLOOKUP($A30,Filtro!$A$5:$AK$2953,27,FALSE),0) -> 19384 | AD30: =IFERROR(VLOOKUP($A30,Filtro!$A$5:$AK$2953,28,FALSE),0) -> 0 | AE30: =IFERROR(VLOOKUP($A30,Filtro!$A$5:$AK$2953,29,FALSE),0) -> 1772 | AF30: =IFERROR(VLOOKUP($A30,Filtro!$A$5:$AK$2953,30,FALSE),0) -> 1506 | AG30: =IFERROR(VLOOKUP($A30,Filtro!$A$5:$AK$2953,31,FALSE),0) -> 0 | AH30: =IFERROR(VLOOKUP($A30,Filtro!$A$5:$AK$2953,32,FALSE),0) -> 38 | AI30: =IFERROR(VLOOKUP($A30,Filtro!$A$5:$AK$2953,33,FALSE),0) -> 0 | AJ30: =IFERROR(VLOOKUP($A30,Filtro!$A$5:$AK$2953,34,FALSE),0) -> 0 | AK30: =IFERROR(VLOOKUP($A30,Filtro!$A$5:$AK$2953,35,FALSE),0) -> 0 | AL30: 9,620 | AM30: =IFERROR(VLOOKUP($A30,Filtro!$A$5:$AK$2953,37,FALSE),0) -> 186,416,360
A31: 01014299 | B31: 0101312 | C31: Consulta Médica de Especialidad en Cirugía General | D31: =IFERROR(VLOOKUP($A31,Filtro!$A$5:$AK$2953,2,FALSE),0) -> 25874 | E31: =IFERROR(VLOOKUP($A31,Filtro!$A$5:$AK$2953,3,FALSE),0) -> 25851 | F31: =IFERROR(VLOOKUP($A31,Filtro!$A$5:$AK$2953,4,FALSE),0) -> 25851 | G31: =IFERROR(VLOOKUP($A31,Filtro!$A$5:$AK$2953,5,FALSE),0) -> 0 | H31: =IFERROR(VLOOKUP($A31,Filtro!$A$5:$AK$2953,6,FALSE),0) -> 23 | AB31: =IFERROR(VLOOKUP($A31,Filtro!$A$5:$AK$2953,26,FALSE),0) -> 0 | AC31: =IFERROR(VLOOKUP($A31,Filtro!$A$5:$AK$2953,27,FALSE),0) -> 25874 | AD31: =IFERROR(VLOOKUP($A31,Filtro!$A$5:$AK$2953,28,FALSE),0) -> 0 | AE31: =IFERROR(VLOOKUP($A31,Filtro!$A$5:$AK$2953,29,FALSE),0) -> 3095 | AF31: =IFERROR(VLOOKUP($A31,Filtro!$A$5:$AK$2953,30,FALSE),0) -> 1283 | AG31: =IFERROR(VLOOKUP($A31,Filtro!$A$5:$AK$2953,31,FALSE),0) -> 0 | AH31: =IFERROR(VLOOKUP($A31,Filtro!$A$5:$AK$2953,32,FALSE),0) -> 0 | AI31: =IFERROR(VLOOKUP($A31,Filtro!$A$5:$AK$2953,33,FALSE),0) -> 0 | AJ31: =IFERROR(VLOOKUP($A31,Filtro!$A$5:$AK$2953,34,FALSE),0) -> 0 | AK31: =IFERROR(VLOOKUP($A31,Filtro!$A$5:$AK$2953,35,FALSE),0) -> 0 | AL31: 9,620 | AM31: =IFERROR(VLOOKUP($A31,Filtro!$A$5:$AK$2953,37,FALSE),0) -> 248,686,620
A32: 01014300 | B32: 0101313 | C32: Consulta Médica de Especialidad en Cirugía de Cabeza, Cuello y Maxilofacial | D32: =IFERROR(VLOOKUP($A32,Filtro!$A$5:$AK$2953,2,FALSE),0) -> 794 | E32: =IFERROR(VLOOKUP($A32,Filtro!$A$5:$AK$2953,3,FALSE),0) -> 794 | F32: =IFERROR(VLOOKUP($A32,Filtro!$A$5:$AK$2953,4,FALSE),0) -> 794 | G32: =IFERROR(VLOOKUP($A32,Filtro!$A$5:$AK$2953,5,FALSE),0) -> 0 | H32: =IFERROR(VLOOKUP($A32,Filtro!$A$5:$AK$2953,6,FALSE),0) -> 0 | AB32: =IFERROR(VLOOKUP($A32,Filtro!$A$5:$AK$2953,26,FALSE),0) -> 0 | AC32: =IFERROR(VLOOKUP($A32,Filtro!$A$5:$AK$2953,27,FALSE),0) -> 794 | AD32: =IFERROR(VLOOKUP($A32,Filtro!$A$5:$AK$2953,28,FALSE),0) -> 0 | AE32: =IFERROR(VLOOKUP($A32,Filtro!$A$5:$AK$2953,29,FALSE),0) -> 14 | AF32: =IFERROR(VLOOKUP($A32,Filtro!$A$5:$AK$2953,30,FALSE),0) -> 0 | AG32: =IFERROR(VLOOKUP($A32,Filtro!$A$5:$AK$2953,31,FALSE),0) -> 0 | AH32: =IFERROR(VLOOKUP($A32,Filtro!$A$5:$AK$2953,32,FALSE),0) -> 0 | AI32: =IFERROR(VLOOKUP($A32,Filtro!$A$5:$AK$2953,33,FALSE),0) -> 0 | AJ32: =IFERROR(VLOOKUP($A32,Filtro!$A$5:$AK$2953,34,FALSE),0) -> 0 | AK32: =IFERROR(VLOOKUP($A32,Filtro!$A$5:$AK$2953,35,FALSE),0) -> 0 | AL32: 9,620 | AM32: =IFERROR(VLOOKUP($A32,Filtro!$A$5:$AK$2953,37,FALSE),0) -> 7,638,280
A33: 01014301 | B33: 0101314 | C33: Consulta Médica de Especialidad en Cirugía Cardiovascular | D33: =IFERROR(VLOOKUP($A33,Filtro!$A$5:$AK$2953,2,FALSE),0) -> 0 | E33: =IFERROR(VLOOKUP($A33,Filtro!$A$5:$AK$2953,3,FALSE),0) -> 0 | F33: =IFERROR(VLOOKUP($A33,Filtro!$A$5:$AK$2953,4,FALSE),0) -> 0 | G33: =IFERROR(VLOOKUP($A33,Filtro!$A$5:$AK$2953,5,FALSE),0) -> 0 | H33: =IFERROR(VLOOKUP($A33,Filtro!$A$5:$AK$2953,6,FALSE),0) -> 0 | AB33: =IFERROR(VLOOKUP($A33,Filtro!$A$5:$AK$2953,26,FALSE),0) -> 0 | AC33: =IFERROR(VLOOKUP($A33,Filtro!$A$5:$AK$2953,27,FALSE),0) -> 0 | AD33: =IFERROR(VLOOKUP($A33,Filtro!$A$5:$AK$2953,28,FALSE),0) -> 0 | AE33: =IFERROR(VLOOKUP($A33,Filtro!$A$5:$AK$2953,29,FALSE),0) -> 0 | AF33: =IFERROR(VLOOKUP($A33,Filtro!$A$5:$AK$2953,30,FALSE),0) -> 0 | AG33: =IFERROR(VLOOKUP($A33,Filtro!$A$5:$AK$2953,31,FALSE),0) -> 0 | AH33: =IFERROR(VLOOKUP($A33,Filtro!$A$5:$AK$2953,32,FALSE),0) -> 0 | AI33: =IFERROR(VLOOKUP($A33,Filtro!$A$5:$AK$2953,33,FALSE),0) -> 0 | AJ33: =IFERROR(VLOOKUP($A33,Filtro!$A$5:$AK$2953,34,FALSE),0) -> 0 | AK33: =IFERROR(VLOOKUP($A33,Filtro!$A$5:$AK$2953,35,FALSE),0) -> 0 | AL33: 9,620 | AM33: =IFERROR(VLOOKUP($A33,Filtro!$A$5:$AK$2953,37,FALSE),0) -> 0
A34: 01014302 | B34: 0101315 | C34: Consulta Médica de Especialidad en Cirugía de Tórax | D34: =IFERROR(VLOOKUP($A34,Filtro!$A$5:$AK$2953,2,FALSE),0) -> 1253 | E34: =IFERROR(VLOOKUP($A34,Filtro!$A$5:$AK$2953,3,FALSE),0) -> 1251 | F34: =IFERROR(VLOOKUP($A34,Filtro!$A$5:$AK$2953,4,FALSE),0) -> 1251 | G34: =IFERROR(VLOOKUP($A34,Filtro!$A$5:$AK$2953,5,FALSE),0) -> 0 | H34: =IFERROR(VLOOKUP($A34,Filtro!$A$5:$AK$2953,6,FALSE),0) -> 2 | AB34: =IFERROR(VLOOKUP($A34,Filtro!$A$5:$AK$2953,26,FALSE),0) -> 0 | AC34: =IFERROR(VLOOKUP($A34,Filtro!$A$5:$AK$2953,27,FALSE),0) -> 1253 | AD34: =IFERROR(VLOOKUP($A34,Filtro!$A$5:$AK$2953,28,FALSE),0) -> 0 | AE34: =IFERROR(VLOOKUP($A34,Filtro!$A$5:$AK$2953,29,FALSE),0) -> 0 | AF34: =IFERROR(VLOOKUP($A34,Filtro!$A$5:$AK$2953,30,FALSE),0) -> 99 | AG34: =IFERROR(VLOOKUP($A34,Filtro!$A$5:$AK$2953,31,FALSE),0) -> 0 | AH34: =IFERROR(VLOOKUP($A34,Filtro!$A$5:$AK$2953,32,FALSE),0) -> 0 | AI34: =IFERROR(VLOOKUP($A34,Filtro!$A$5:$AK$2953,33,FALSE),0) -> 0 | AJ34: =IFERROR(VLOOKUP($A34,Filtro!$A$5:$AK$2953,34,FALSE),0) -> 0 | AK34: =IFERROR(VLOOKUP($A34,Filtro!$A$5:$AK$2953,35,FALSE),0) -> 0 | AL34: 9,620 | AM34: =IFERROR(VLOOKUP($A34,Filtro!$A$5:$AK$2953,37,FALSE),0) -> 12,034,620
A35: 01014303 | B35: 0101316 | C35: Consulta Médica de Especialidad en Cirugía Plástica y Reparadora | D35: =IFERROR(VLOOKUP($A35,Filtro!$A$5:$AK$2953,2,FALSE),0) -> 340 | E35: =IFERROR(VLOOKUP($A35,Filtro!$A$5:$AK$2953,3,FALSE),0) -> 340 | F35: =IFERROR(VLOOKUP($A35,Filtro!$A$5:$AK$2953,4,FALSE),0) -> 340 | G35: =IFERROR(VLOOKUP($A35,Filtro!$A$5:$AK$2953,5,FALSE),0) -> 0 | H35: =IFERROR(VLOOKUP($A35,Filtro!$A$5:$AK$2953,6,FALSE),0) -> 0 | AB35: =IFERROR(VLOOKUP($A35,Filtro!$A$5:$AK$2953,26,FALSE),0) -> 0 | AC35: =IFERROR(VLOOKUP($A35,Filtro!$A$5:$AK$2953,27,FALSE),0) -> 340 | AD35: =IFERROR(VLOOKUP($A35,Filtro!$A$5:$AK$2953,28,FALSE),0) -> 0 | AE35: =IFERROR(VLOOKUP($A35,Filtro!$A$5:$AK$2953,29,FALSE),0) -> 0 | AF35: =IFERROR(VLOOKUP($A35,Filtro!$A$5:$AK$2953,30,FALSE),0) -> 0 | AG35: =IFERROR(VLOOKUP($A35,Filtro!$A$5:$AK$2953,31,FALSE),0) -> 0 | AH35: =IFERROR(VLOOKUP($A35,Filtro!$A$5:$AK$2953,32,FALSE),0) -> 0 | AI35: =IFERROR(VLOOKUP($A35,Filtro!$A$5:$AK$2953,33,FALSE),0) -> 0 | AJ35: =IFERROR(VLOOKUP($A35,Filtro!$A$5:$AK$2953,34,FALSE),0) -> 0 | AK35: =IFERROR(VLOOKUP($A35,Filtro!$A$5:$AK$2953,35,FALSE),0) -> 0 | AL35: 9,620 | AM35: =IFERROR(VLOOKUP($A35,Filtro!$A$5:$AK$2953,37,FALSE),0) -> 3,270,800
A36: 01014304 | B36: 0101317 | C36: Consulta Médica de Especialidad en Cirugía Pediátrica | D36: =IFERROR(VLOOKUP($A36,Filtro!$A$5:$AK$2953,2,FALSE),0) -> 9778 | E36: =IFERROR(VLOOKUP($A36,Filtro!$A$5:$AK$2953,3,FALSE),0) -> 9757 | F36: =IFERROR(VLOOKUP($A36,Filtro!$A$5:$AK$2953,4,FALSE),0) -> 9757 | G36: =IFERROR(VLOOKUP($A36,Filtro!$A$5:$AK$2953,5,FALSE),0) -> 0 | H36: =IFERROR(VLOOKUP($A36,Filtro!$A$5:$AK$2953,6,FALSE),0) -> 21 | AB36: =IFERROR(VLOOKUP($A36,Filtro!$A$5:$AK$2953,26,FALSE),0) -> 0 | AC36: =IFERROR(VLOOKUP($A36,Filtro!$A$5:$AK$2953,27,FALSE),0) -> 9778 | AD36: =IFERROR(VLOOKUP($A36,Filtro!$A$5:$AK$2953,28,FALSE),0) -> 0 | AE36: =IFERROR(VLOOKUP($A36,Filtro!$A$5:$AK$2953,29,FALSE),0) -> 0 | AF36: =IFERROR(VLOOKUP($A36,Filtro!$A$5:$AK$2953,30,FALSE),0) -> 253 | AG36: =IFERROR(VLOOKUP($A36,Filtro!$A$5:$AK$2953,31,FALSE),0) -> 0 | AH36: =IFERROR(VLOOKUP($A36,Filtro!$A$5:$AK$2953,32,FALSE),0) -> 0 | AI36: =IFERROR(VLOOKUP($A36,Filtro!$A$5:$AK$2953,33,FALSE),0) -> 0 | AJ36: =IFERROR(VLOOKUP($A36,Filtro!$A$5:$AK$2953,34,FALSE),0) -> 0 | AK36: =IFERROR(VLOOKUP($A36,Filtro!$A$5:$AK$2953,35,FALSE),0) -> 0 | AL36: 9,620 | AM36: =IFERROR(VLOOKUP($A36,Filtro!$A$5:$AK$2953,37,FALSE),0) -> 93,862,340
A37: 01014305 | B37: 0101318 | C37: Consulta Médica de Especialidad en Cirugía Vascular Periférica | D37: =IFERROR(VLOOKUP($A37,Filtro!$A$5:$AK$2953,2,FALSE),0) -> 2541 | E37: =IFERROR(VLOOKUP($A37,Filtro!$A$5:$AK$2953,3,FALSE),0) -> 2540 | F37: =IFERROR(VLOOKUP($A37,Filtro!$A$5:$AK$2953,4,FALSE),0) -> 2540 | G37: =IFERROR(VLOOKUP($A37,Filtro!$A$5:$AK$2953,5,FALSE),0) -> 0 | H37: =IFERROR(VLOOKUP($A37,Filtro!$A$5:$AK$2953,6,FALSE),0) -> 1 | AB37: =IFERROR(VLOOKUP($A37,Filtro!$A$5:$AK$2953,26,FALSE),0) -> 0 | AC37: =IFERROR(VLOOKUP($A37,Filtro!$A$5:$AK$2953,27,FALSE),0) -> 2541 | AD37: =IFERROR(VLOOKUP($A37,Filtro!$A$5:$AK$2953,28,FALSE),0) -> 0 | AE37: =IFERROR(VLOOKUP($A37,Filtro!$A$5:$AK$2953,29,FALSE),0) -> 10 | AF37: =IFERROR(VLOOKUP($A37,Filtro!$A$5:$AK$2953,30,FALSE),0) -> 29 | AG37: =IFERROR(VLOOKUP($A37,Filtro!$A$5:$AK$2953,31,FALSE),0) -> 0 | AH37: =IFERROR(VLOOKUP($A37,Filtro!$A$5:$AK$2953,32,FALSE),0) -> 0 | AI37: =IFERROR(VLOOKUP($A37,Filtro!$A$5:$AK$2953,33,FALSE),0) -> 0 | AJ37: =IFERROR(VLOOKUP($A37,Filtro!$A$5:$AK$2953,34,FALSE),0) -> 0 | AK37: =IFERROR(VLOOKUP($A37,Filtro!$A$5:$AK$2953,35,FALSE),0) -> 0 | AL37: 9,620 | AM37: =IFERROR(VLOOKUP($A37,Filtro!$A$5:$AK$2953,37,FALSE),0) -> 24,434,800
A38: 01014306 | B38: 0101319 | C38: Consulta Médica de Especialidad en Coloproctología | D38: =IFERROR(VLOOKUP($A38,Filtro!$A$5:$AK$2953,2,FALSE),0) -> 2208 | E38: =IFERROR(VLOOKUP($A38,Filtro!$A$5:$AK$2953,3,FALSE),0) -> 2208 | F38: =IFERROR(VLOOKUP($A38,Filtro!$A$5:$AK$2953,4,FALSE),0) -> 2208 | G38: =IFERROR(VLOOKUP($A38,Filtro!$A$5:$AK$2953,5,FALSE),0) -> 0 | H38: =IFERROR(VLOOKUP($A38,Filtro!$A$5:$AK$2953,6,FALSE),0) -> 0 | AB38: =IFERROR(VLOOKUP($A38,Filtro!$A$5:$AK$2953,26,FALSE),0) -> 0 | AC38: =IFERROR(VLOOKUP($A38,Filtro!$A$5:$AK$2953,27,FALSE),0) -> 2208 | AD38: =IFERROR(VLOOKUP($A38,Filtro!$A$5:$AK$2953,28,FALSE),0) -> 0 | AE38: =IFERROR(VLOOKUP($A38,Filtro!$A$5:$AK$2953,29,FALSE),0) -> 0 | AF38: =IFERROR(VLOOKUP($A38,Filtro!$A$5:$AK$2953,30,FALSE),0) -> 143 | AG38: =IFERROR(VLOOKUP($A38,Filtro!$A$5:$AK$2953,31,FALSE),0) -> 0 | AH38: =IFERROR(VLOOKUP($A38,Filtro!$A$5:$AK$2953,32,FALSE),0) -> 0 | AI38: =IFERROR(VLOOKUP($A38,Filtro!$A$5:$AK$2953,33,FALSE),0) -> 0 | AJ38: =IFERROR(VLOOKUP($A38,Filtro!$A$5:$AK$2953,34,FALSE),0) -> 0 | AK38: =IFERROR(VLOOKUP($A38,Filtro!$A$5:$AK$2953,35,FALSE),0) -> 0 | AL38: 9,620 | AM38: =IFERROR(VLOOKUP($A38,Filtro!$A$5:$AK$2953,37,FALSE),0) -> 21,240,960
A39: 01014307 | B39: 0101320 | C39: Consulta Médica de Especialidad en Diabetología | D39: =IFERROR(VLOOKUP($A39,Filtro!$A$5:$AK$2953,2,FALSE),0) -> 807 | E39: =IFERROR(VLOOKUP($A39,Filtro!$A$5:$AK$2953,3,FALSE),0) -> 804 | F39: =IFERROR(VLOOKUP($A39,Filtro!$A$5:$AK$2953,4,FALSE),0) -> 804 | G39: =IFERROR(VLOOKUP($A39,Filtro!$A$5:$AK$2953,5,FALSE),0) -> 0 | H39: =IFERROR(VLOOKUP($A39,Filtro!$A$5:$AK$2953,6,FALSE),0) -> 3 | AB39: =IFERROR(VLOOKUP($A39,Filtro!$A$5:$AK$2953,26,FALSE),0) -> 0 | AC39: =IFERROR(VLOOKUP($A39,Filtro!$A$5:$AK$2953,27,FALSE),0) -> 807 | AD39: =IFERROR(VLOOKUP($A39,Filtro!$A$5:$AK$2953,28,FALSE),0) -> 0 | AE39: =IFERROR(VLOOKUP($A39,Filtro!$A$5:$AK$2953,29,FALSE),0) -> 0 | AF39: =IFERROR(VLOOKUP($A39,Filtro!$A$5:$AK$2953,30,FALSE),0) -> 105 | AG39: =IFERROR(VLOOKUP($A39,Filtro!$A$5:$AK$2953,31,FALSE),0) -> 0 | AH39: =IFERROR(VLOOKUP($A39,Filtro!$A$5:$AK$2953,32,FALSE),0) -> 0 | AI39: =IFERROR(VLOOKUP($A39,Filtro!$A$5:$AK$2953,33,FALSE),0) -> 0 | AJ39: =IFERROR(VLOOKUP($A39,Filtro!$A$5:$AK$2953,34,FALSE),0) -> 0 | AK39: =IFERROR(VLOOKUP($A39,Filtro!$A$5:$AK$2953,35,FALSE),0) -> 0 | AL39: 9,620 | AM39: =IFERROR(VLOOKUP($A39,Filtro!$A$5:$AK$2953,37,FALSE),0) -> 7,734,480
A40: 01014308 | B40: 0101321 | C40: Consulta Médica de Especialidad en Enfermedades Respiratorias Adulto | D40: =IFERROR(VLOOKUP($A40,Filtro!$A$5:$AK$2953,2,FALSE),0) -> 5187 | E40: =IFERROR(VLOOKUP($A40,Filtro!$A$5:$AK$2953,3,FALSE),0) -> 5186 | F40: =IFERROR(VLOOKUP($A40,Filtro!$A$5:$AK$2953,4,FALSE),0) -> 5186 | G40: =IFERROR(VLOOKUP($A40,Filtro!$A$5:$AK$2953,5,FALSE),0) -> 0 | H40: =IFERROR(VLOOKUP($A40,Filtro!$A$5:$AK$2953,6,FALSE),0) -> 1 | AB40: =IFERROR(VLOOKUP($A40,Filtro!$A$5:$AK$2953,26,FALSE),0) -> 0 | AC40: =IFERROR(VLOOKUP($A40,Filtro!$A$5:$AK$2953,27,FALSE),0) -> 5187 | AD40: =IFERROR(VLOOKUP($A40,Filtro!$A$5:$AK$2953,28,FALSE),0) -> 0 | AE40: =IFERROR(VLOOKUP($A40,Filtro!$A$5:$AK$2953,29,FALSE),0) -> 274 | AF40: =IFERROR(VLOOKUP($A40,Filtro!$A$5:$AK$2953,30,FALSE),0) -> 0 | AG40: =IFERROR(VLOOKUP($A40,Filtro!$A$5:$AK$2953,31,FALSE),0) -> 0 | AH40: =IFERROR(VLOOKUP($A40,Filtro!$A$5:$AK$2953,32,FALSE),0) -> 36 | AI40: =IFERROR(VLOOKUP($A40,Filtro!$A$5:$AK$2953,33,FALSE),0) -> 0 | AJ40: =IFERROR(VLOOKUP($A40,Filtro!$A$5:$AK$2953,34,FALSE),0) -> 0 | AK40: =IFERROR(VLOOKUP($A40,Filtro!$A$5:$AK$2953,35,FALSE),0) -> 0 | AL40: 9,620 | AM40: =IFERROR(VLOOKUP($A40,Filtro!$A$5:$AK$2953,37,FALSE),0) -> 49,889,320
A41: 01014309 | B41: 0101322 | C41: Consulta Médica de Especialidad en Enfermedades Respiratorias Pediátricas | D41: =IFERROR(VLOOKUP($A41,Filtro!$A$5:$AK$2953,2,FALSE),0) -> 5545 | E41: =IFERROR(VLOOKUP($A41,Filtro!$A$5:$AK$2953,3,FALSE),0) -> 5538 | F41: =IFERROR(VLOOKUP($A41,Filtro!$A$5:$AK$2953,4,FALSE),0) -> 5538 | G41: =IFERROR(VLOOKUP($A41,Filtro!$A$5:$AK$2953,5,FALSE),0) -> 0 | H41: =IFERROR(VLOOKUP($A41,Filtro!$A$5:$AK$2953,6,FALSE),0) -> 7 | AB41: =IFERROR(VLOOKUP($A41,Filtro!$A$5:$AK$2953,26,FALSE),0) -> 0 | AC41: =IFERROR(VLOOKUP($A41,Filtro!$A$5:$AK$2953,27,FALSE),0) -> 5545 | AD41: =IFERROR(VLOOKUP($A41,Filtro!$A$5:$AK$2953,28,FALSE),0) -> 0 | AE41: =IFERROR(VLOOKUP($A41,Filtro!$A$5:$AK$2953,29,FALSE),0) -> 0 | AF41: =IFERROR(VLOOKUP($A41,Filtro!$A$5:$AK$2953,30,FALSE),0) -> 0 | AG41: =IFERROR(VLOOKUP($A41,Filtro!$A$5:$AK$2953,31,FALSE),0) -> 0 | AH41: =IFERROR(VLOOKUP($A41,Filtro!$A$5:$AK$2953,32,FALSE),0) -> 0 | AI41: =IFERROR(VLOOKUP($A41,Filtro!$A$5:$AK$2953,33,FALSE),0) -> 0 | AJ41: =IFERROR(VLOOKUP($A41,Filtro!$A$5:$AK$2953,34,FALSE),0) -> 0 | AK41: =IFERROR(VLOOKUP($A41,Filtro!$A$5:$AK$2953,35,FALSE),0) -> 0 | AL41: 9,620 | AM41: =IFERROR(VLOOKUP($A41,Filtro!$A$5:$AK$2953,37,FALSE),0) -> 53,275,560
A42: 01014310 | B42: 0101323 | C42: Consulta Médica de Especialidad en Gastroenterología Adulto | D42: =IFERROR(VLOOKUP($A42,Filtro!$A$5:$AK$2953,2,FALSE),0) -> 5246 | E42: =IFERROR(VLOOKUP($A42,Filtro!$A$5:$AK$2953,3,FALSE),0) -> 5241 | F42: =IFERROR(VLOOKUP($A42,Filtro!$A$5:$AK$2953,4,FALSE),0) -> 5241 | G42: =IFERROR(VLOOKUP($A42,Filtro!$A$5:$AK$2953,5,FALSE),0) -> 0 | H42: =IFERROR(VLOOKUP($A42,Filtro!$A$5:$AK$2953,6,FALSE),0) -> 5 | AB42: =IFERROR(VLOOKUP($A42,Filtro!$A$5:$AK$2953,26,FALSE),0) -> 0 | AC42: =IFERROR(VLOOKUP($A42,Filtro!$A$5:$AK$2953,27,FALSE),0) -> 5246 | AD42: =IFERROR(VLOOKUP($A42,Filtro!$A$5:$AK$2953,28,FALSE),0) -> 0 | AE42: =IFERROR(VLOOKUP($A42,Filtro!$A$5:$AK$2953,29,FALSE),0) -> 27 | AF42: =IFERROR(VLOOKUP($A42,Filtro!$A$5:$AK$2953,30,FALSE),0) -> 351 | AG42: =IFERROR(VLOOKUP($A42,Filtro!$A$5:$AK$2953,31,FALSE),0) -> 0 | AH42: =IFERROR(VLOOKUP($A42,Filtro!$A$5:$AK$2953,32,FALSE),0) -> 0 | AI42: =IFERROR(VLOOKUP($A42,Filtro!$A$5:$AK$2953,33,FALSE),0) -> 0 | AJ42: =IFERROR(VLOOKUP($A42,Filtro!$A$5:$AK$2953,34,FALSE),0) -> 0 | AK42: =IFERROR(VLOOKUP($A42,Filtro!$A$5:$AK$2953,35,FALSE),0) -> 0 | AL42: 9,620 | AM42: =IFERROR(VLOOKUP($A42,Filtro!$A$5:$AK$2953,37,FALSE),0) -> 50,418,420
A43: 01014311 | B43: 0101324 | C43: Consulta Médica de Especialidad en Gastroenterología Pediátrico | D43: =IFERROR(VLOOKUP($A43,Filtro!$A$5:$AK$2953,2,FALSE),0) -> 3198 | E43: =IFERROR(VLOOKUP($A43,Filtro!$A$5:$AK$2953,3,FALSE),0) -> 3195 | F43: =IFERROR(VLOOKUP($A43,Filtro!$A$5:$AK$2953,4,FALSE),0) -> 3195 | G43: =IFERROR(VLOOKUP($A43,Filtro!$A$5:$AK$2953,5,FALSE),0) -> 0 | H43: =IFERROR(VLOOKUP($A43,Filtro!$A$5:$AK$2953,6,FALSE),0) -> 3 | AB43: =IFERROR(VLOOKUP($A43,Filtro!$A$5:$AK$2953,26,FALSE),0) -> 0 | AC43: =IFERROR(VLOOKUP($A43,Filtro!$A$5:$AK$2953,27,FALSE),0) -> 3198 | AD43: =IFERROR(VLOOKUP($A43,Filtro!$A$5:$AK$2953,28,FALSE),0) -> 0 | AE43: =IFERROR(VLOOKUP($A43,Filtro!$A$5:$AK$2953,29,FALSE),0) -> 0 | AF43: =IFERROR(VLOOKUP($A43,Filtro!$A$5:$AK$2953,30,FALSE),0) -> 0 | AG43: =IFERROR(VLOOKUP($A43,Filtro!$A$5:$AK$2953,31,FALSE),0) -> 0 | AH43: =IFERROR(VLOOKUP($A43,Filtro!$A$5:$AK$2953,32,FALSE),0) -> 0 | AI43: =IFERROR(VLOOKUP($A43,Filtro!$A$5:$AK$2953,33,FALSE),0) -> 0 | AJ43: =IFERROR(VLOOKUP($A43,Filtro!$A$5:$AK$2953,34,FALSE),0) -> 0 | AK43: =IFERROR(VLOOKUP($A43,Filtro!$A$5:$AK$2953,35,FALSE),0) -> 0 | AL43: 9,620 | AM43: =IFERROR(VLOOKUP($A43,Filtro!$A$5:$AK$2953,37,FALSE),0) -> 30,735,900
A44: 01014312 | B44: 0101325 | C44: Consulta Médica de Especialidad en Genética Clínica | D44: =IFERROR(VLOOKUP($A44,Filtro!$A$5:$AK$2953,2,FALSE),0) -> 205 | E44: =IFERROR(VLOOKUP($A44,Filtro!$A$5:$AK$2953,3,FALSE),0) -> 205 | F44: =IFERROR(VLOOKUP($A44,Filtro!$A$5:$AK$2953,4,FALSE),0) -> 205 | G44: =IFERROR(VLOOKUP($A44,Filtro!$A$5:$AK$2953,5,FALSE),0) -> 0 | H44: =IFERROR(VLOOKUP($A44,Filtro!$A$5:$AK$2953,6,FALSE),0) -> 0 | AB44: =IFERROR(VLOOKUP($A44,Filtro!$A$5:$AK$2953,26,FALSE),0) -> 0 | AC44: =IFERROR(VLOOKUP($A44,Filtro!$A$5:$AK$2953,27,FALSE),0) -> 205 | AD44: =IFERROR(VLOOKUP($A44,Filtro!$A$5:$AK$2953,28,FALSE),0) -> 0 | AE44: =IFERROR(VLOOKUP($A44,Filtro!$A$5:$AK$2953,29,FALSE),0) -> 0 | AF44: =IFERROR(VLOOKUP($A44,Filtro!$A$5:$AK$2953,30,FALSE),0) -> 0 | AG44: =IFERROR(VLOOKUP($A44,Filtro!$A$5:$AK$2953,31,FALSE),0) -> 0 | AH44: =IFERROR(VLOOKUP($A44,Filtro!$A$5:$AK$2953,32,FALSE),0) -> 0 | AI44: =IFERROR(VLOOKUP($A44,Filtro!$A$5:$AK$2953,33,FALSE),0) -> 0 | AJ44: =IFERROR(VLOOKUP($A44,Filtro!$A$5:$AK$2953,34,FALSE),0) -> 0 | AK44: =IFERROR(VLOOKUP($A44,Filtro!$A$5:$AK$2953,35,FALSE),0) -> 0 | AL44: 9,620 | AM44: =IFERROR(VLOOKUP($A44,Filtro!$A$5:$AK$2953,37,FALSE),0) -> 1,972,100
A45: 01014313 | B45: 0101326 | C45: Consulta Médica de Especialidad en Nefrología Adulto | D45: =IFERROR(VLOOKUP($A45,Filtro!$A$5:$AK$2953,2,FALSE),0) -> 8868 | E45: =IFERROR(VLOOKUP($A45,Filtro!$A$5:$AK$2953,3,FALSE),0) -> 8860 | F45: =IFERROR(VLOOKUP($A45,Filtro!$A$5:$AK$2953,4,FALSE),0) -> 8860 | G45: =IFERROR(VLOOKUP($A45,Filtro!$A$5:$AK$2953,5,FALSE),0) -> 0 | H45: =IFERROR(VLOOKUP($A45,Filtro!$A$5:$AK$2953,6,FALSE),0) -> 8 | AB45: =IFERROR(VLOOKUP($A45,Filtro!$A$5:$AK$2953,26,FALSE),0) -> 95 | AC45: =IFERROR(VLOOKUP($A45,Filtro!$A$5:$AK$2953,27,FALSE),0) -> 8773 | AD45: =IFERROR(VLOOKUP($A45,Filtro!$A$5:$AK$2953,28,FALSE),0) -> 0 | AE45: =IFERROR(VLOOKUP($A45,Filtro!$A$5:$AK$2953,29,FALSE),0) -> 0 | AF45: =IFERROR(VLOOKUP($A45,Filtro!$A$5:$AK$2953,30,FALSE),0) -> 0 | AG45: =IFERROR(VLOOKUP($A45,Filtro!$A$5:$AK$2953,31,FALSE),0) -> 0 | AH45: =IFERROR(VLOOKUP($A45,Filtro!$A$5:$AK$2953,32,FALSE),0) -> 0 | AI45: =IFERROR(VLOOKUP($A45,Filtro!$A$5:$AK$2953,33,FALSE),0) -> 0 | AJ45: =IFERROR(VLOOKUP($A45,Filtro!$A$5:$AK$2953,34,FALSE),0) -> 0 | AK45: =IFERROR(VLOOKUP($A45,Filtro!$A$5:$AK$2953,35,FALSE),0) -> 0 | AL45: 9,620 | AM45: =IFERROR(VLOOKUP($A45,Filtro!$A$5:$AK$2953,37,FALSE),0) -> 85,233,200
A46: 01014314 | B46: 0101327 | C46: Consulta Médica de Especialidad en Nefrología Pediátrico | D46: =IFERROR(VLOOKUP($A46,Filtro!$A$5:$AK$2953,2,FALSE),0) -> 1409 | E46: =IFERROR(VLOOKUP($A46,Filtro!$A$5:$AK$2953,3,FALSE),0) -> 1408 | F46: =IFERROR(VLOOKUP($A46,Filtro!$A$5:$AK$2953,4,FALSE),0) -> 1408 | G46: =IFERROR(VLOOKUP($A46,Filtro!$A$5:$AK$2953,5,FALSE),0) -> 0 | H46: =IFERROR(VLOOKUP($A46,Filtro!$A$5:$AK$2953,6,FALSE),0) -> 1 | AB46: =IFERROR(VLOOKUP($A46,Filtro!$A$5:$AK$2953,26,FALSE),0) -> 0 | AC46: =IFERROR(VLOOKUP($A46,Filtro!$A$5:$AK$2953,27,FALSE),0) -> 1409 | AD46: =IFERROR(VLOOKUP($A46,Filtro!$A$5:$AK$2953,28,FALSE),0) -> 0 | AE46: =IFERROR(VLOOKUP($A46,Filtro!$A$5:$AK$2953,29,FALSE),0) -> 0 | AF46: =IFERROR(VLOOKUP($A46,Filtro!$A$5:$AK$2953,30,FALSE),0) -> 0 | AG46: =IFERROR(VLOOKUP($A46,Filtro!$A$5:$AK$2953,31,FALSE),0) -> 0 | AH46: =IFERROR(VLOOKUP($A46,Filtro!$A$5:$AK$2953,32,FALSE),0) -> 0 | AI46: =IFERROR(VLOOKUP($A46,Filtro!$A$5:$AK$2953,33,FALSE),0) -> 0 | AJ46: =IFERROR(VLOOKUP($A46,Filtro!$A$5:$AK$2953,34,FALSE),0) -> 0 | AK46: =IFERROR(VLOOKUP($A46,Filtro!$A$5:$AK$2953,35,FALSE),0) -> 0 | AL46: 9,620 | AM46: =IFERROR(VLOOKUP($A46,Filtro!$A$5:$AK$2953,37,FALSE),0) -> 13,544,960
A47: 01014315 | B47: 0101328 | C47: Consulta Médica de Especialidad en Neonatología | D47: =IFERROR(VLOOKUP($A47,Filtro!$A$5:$AK$2953,2,FALSE),0) -> 1916 | E47: =IFERROR(VLOOKUP($A47,Filtro!$A$5:$AK$2953,3,FALSE),0) -> 1894 | F47: =IFERROR(VLOOKUP($A47,Filtro!$A$5:$AK$2953,4,FALSE),0) -> 1894 | G47: =IFERROR(VLOOKUP($A47,Filtro!$A$5:$AK$2953,5,FALSE),0) -> 0 | H47: =IFERROR(VLOOKUP($A47,Filtro!$A$5:$AK$2953,6,FALSE),0) -> 22 | AB47: =IFERROR(VLOOKUP($A47,Filtro!$A$5:$AK$2953,26,FALSE),0) -> 0 | AC47: =IFERROR(VLOOKUP($A47,Filtro!$A$5:$AK$2953,27,FALSE),0) -> 1916 | AD47: =IFERROR(VLOOKUP($A47,Filtro!$A$5:$AK$2953,28,FALSE),0) -> 0 | AE47: =IFERROR(VLOOKUP($A47,Filtro!$A$5:$AK$2953,29,FALSE),0) -> 0 | AF47: =IFERROR(VLOOKUP($A47,Filtro!$A$5:$AK$2953,30,FALSE),0) -> 0 | AG47: =IFERROR(VLOOKUP($A47,Filtro!$A$5:$AK$2953,31,FALSE),0) -> 0 | AH47: =IFERROR(VLOOKUP($A47,Filtro!$A$5:$AK$2953,32,FALSE),0) -> 0 | AI47: =IFERROR(VLOOKUP($A47,Filtro!$A$5:$AK$2953,33,FALSE),0) -> 0 | AJ47: =IFERROR(VLOOKUP($A47,Filtro!$A$5:$AK$2953,34,FALSE),0) -> 0 | AK47: =IFERROR(VLOOKUP($A47,Filtro!$A$5:$AK$2953,35,FALSE),0) -> 0 | AL47: 9,620 | AM47: =IFERROR(VLOOKUP($A47,Filtro!$A$5:$AK$2953,37,FALSE),0) -> 18,220,280
A48: 01014316 | B48: 0101329 | C48: Consulta Médica de Especialidad en Anestesiología | D48: =IFERROR(VLOOKUP($A48,Filtro!$A$5:$AK$2953,2,FALSE),0) -> 4403 | E48: =IFERROR(VLOOKUP($A48,Filtro!$A$5:$AK$2953,3,FALSE),0) -> 4403 | F48: =IFERROR(VLOOKUP($A48,Filtro!$A$5:$AK$2953,4,FALSE),0) -> 4403 | G48: =IFERROR(VLOOKUP($A48,Filtro!$A$5:$AK$2953,5,FALSE),0) -> 0 | H48: =IFERROR(VLOOKUP($A48,Filtro!$A$5:$AK$2953,6,FALSE),0) -> 0 | AB48: =IFERROR(VLOOKUP($A48,Filtro!$A$5:$AK$2953,26,FALSE),0) -> 0 | AC48: =IFERROR(VLOOKUP($A48,Filtro!$A$5:$AK$2953,27,FALSE),0) -> 4403 | AD48: =IFERROR(VLOOKUP($A48,Filtro!$A$5:$AK$2953,28,FALSE),0) -> 0 | AE48: =IFERROR(VLOOKUP($A48,Filtro!$A$5:$AK$2953,29,FALSE),0) -> 0 | AF48: =IFERROR(VLOOKUP($A48,Filtro!$A$5:$AK$2953,30,FALSE),0) -> 0 | AG48: =IFERROR(VLOOKUP($A48,Filtro!$A$5:$AK$2953,31,FALSE),0) -> 0 | AH48: =IFERROR(VLOOKUP($A48,Filtro!$A$5:$AK$2953,32,FALSE),0) -> 0 | AI48: =IFERROR(VLOOKUP($A48,Filtro!$A$5:$AK$2953,33,FALSE),0) -> 0 | AJ48: =IFERROR(VLOOKUP($A48,Filtro!$A$5:$AK$2953,34,FALSE),0) -> 0 | AK48: =IFERROR(VLOOKUP($A48,Filtro!$A$5:$AK$2953,35,FALSE),0) -> 0 | AL48: 9,620 | AM48: =IFERROR(VLOOKUP($A48,Filtro!$A$5:$AK$2953,37,FALSE),0) -> 42,356,860
A49: 01014317 | B49: 0101331 | C49: Consulta Médica de Especialidad en Radioterapia Oncológica | D49: =IFERROR(VLOOKUP($A49,Filtro!$A$5:$AK$2953,2,FALSE),0) -> 0 | E49: =IFERROR(VLOOKUP($A49,Filtro!$A$5:$AK$2953,3,FALSE),0) -> 0 | F49: =IFERROR(VLOOKUP($A49,Filtro!$A$5:$AK$2953,4,FALSE),0) -> 0 | G49: =IFERROR(VLOOKUP($A49,Filtro!$A$5:$AK$2953,5,FALSE),0) -> 0 | H49: =IFERROR(VLOOKUP($A49,Filtro!$A$5:$AK$2953,6,FALSE),0) -> 0 | AB49: =IFERROR(VLOOKUP($A49,Filtro!$A$5:$AK$2953,26,FALSE),0) -> 0 | AC49: =IFERROR(VLOOKUP($A49,Filtro!$A$5:$AK$2953,27,FALSE),0) -> 0 | AD49: =IFERROR(VLOOKUP($A49,Filtro!$A$5:$AK$2953,28,FALSE),0) -> 0 | AE49: =IFERROR(VLOOKUP($A49,Filtro!$A$5:$AK$2953,29,FALSE),0) -> 0 | AF49: =IFERROR(VLOOKUP($A49,Filtro!$A$5:$AK$2953,30,FALSE),0) -> 0 | AG49: =IFERROR(VLOOKUP($A49,Filtro!$A$5:$AK$2953,31,FALSE),0) -> 0 | AH49: =IFERROR(VLOOKUP($A49,Filtro!$A$5:$AK$2953,32,FALSE),0) -> 0 | AI49: =IFERROR(VLOOKUP($A49,Filtro!$A$5:$AK$2953,33,FALSE),0) -> 0 | AJ49: =IFERROR(VLOOKUP($A49,Filtro!$A$5:$AK$2953,34,FALSE),0) -> 0 | AK49: =IFERROR(VLOOKUP($A49,Filtro!$A$5:$AK$2953,35,FALSE),0) -> 0 | AL49: 9,620 | AM49: =IFERROR(VLOOKUP($A49,Filtro!$A$5:$AK$2953,37,FALSE),0) -> 0
A50: 01014318 | B50: 0101332 | C50: Consulta Médica de Especialidad en Ginecología Pediátrica y de la Adolescencia | D50: =IFERROR(VLOOKUP($A50,Filtro!$A$5:$AK$2953,2,FALSE),0) -> 888 | E50: =IFERROR(VLOOKUP($A50,Filtro!$A$5:$AK$2953,3,FALSE),0) -> 886 | F50: =IFERROR(VLOOKUP($A50,Filtro!$A$5:$AK$2953,4,FALSE),0) -> 886 | G50: =IFERROR(VLOOKUP($A50,Filtro!$A$5:$AK$2953,5,FALSE),0) -> 0 | H50: =IFERROR(VLOOKUP($A50,Filtro!$A$5:$AK$2953,6,FALSE),0) -> 2 | AB50: =IFERROR(VLOOKUP($A50,Filtro!$A$5:$AK$2953,26,FALSE),0) -> 0 | AC50: =IFERROR(VLOOKUP($A50,Filtro!$A$5:$AK$2953,27,FALSE),0) -> 888 | AD50: =IFERROR(VLOOKUP($A50,Filtro!$A$5:$AK$2953,28,FALSE),0) -> 0 | AE50: =IFERROR(VLOOKUP($A50,Filtro!$A$5:$AK$2953,29,FALSE),0) -> 0 | AF50: =IFERROR(VLOOKUP($A50,Filtro!$A$5:$AK$2953,30,FALSE),0) -> 0 | AG50: =IFERROR(VLOOKUP($A50,Filtro!$A$5:$AK$2953,31,FALSE),0) -> 0 | AH50: =IFERROR(VLOOKUP($A50,Filtro!$A$5:$AK$2953,32,FALSE),0) -> 0 | AI50: =IFERROR(VLOOKUP($A50,Filtro!$A$5:$AK$2953,33,FALSE),0) -> 0 | AJ50: =IFERROR(VLOOKUP($A50,Filtro!$A$5:$AK$2953,34,FALSE),0) -> 0 | AK50: =IFERROR(VLOOKUP($A50,Filtro!$A$5:$AK$2953,35,FALSE),0) -> 0 | AL50: 9,620 | AM50: =IFERROR(VLOOKUP($A50,Filtro!$A$5:$AK$2953,37,FALSE),0) -> 8,523,320
A51: 01014319 | B51: 0101334 | C51: Consulta Médica de Especialidad en Medicina Nuclear | D51: =IFERROR(VLOOKUP($A51,Filtro!$A$5:$AK$2953,2,FALSE),0) -> 0 | E51: =IFERROR(VLOOKUP($A51,Filtro!$A$5:$AK$2953,3,FALSE),0) -> 0 | F51: =IFERROR(VLOOKUP($A51,Filtro!$A$5:$AK$2953,4,FALSE),0) -> 0 | G51: =IFERROR(VLOOKUP($A51,Filtro!$A$5:$AK$2953,5,FALSE),0) -> 0 | H51: =IFERROR(VLOOKUP($A51,Filtro!$A$5:$AK$2953,6,FALSE),0) -> 0 | AB51: =IFERROR(VLOOKUP($A51,Filtro!$A$5:$AK$2953,26,FALSE),0) -> 0 | AC51: =IFERROR(VLOOKUP($A51,Filtro!$A$5:$AK$2953,27,FALSE),0) -> 0 | AD51: =IFERROR(VLOOKUP($A51,Filtro!$A$5:$AK$2953,28,FALSE),0) -> 0 | AE51: =IFERROR(VLOOKUP($A51,Filtro!$A$5:$AK$2953,29,FALSE),0) -> 0 | AF51: =IFERROR(VLOOKUP($A51,Filtro!$A$5:$AK$2953,30,FALSE),0) -> 0 | AG51: =IFERROR(VLOOKUP($A51,Filtro!$A$5:$AK$2953,31,FALSE),0) -> 0 | AH51: =IFERROR(VLOOKUP($A51,Filtro!$A$5:$AK$2953,32,FALSE),0) -> 0 | AI51: =IFERROR(VLOOKUP($A51,Filtro!$A$5:$AK$2953,33,FALSE),0) -> 0 | AJ51: =IFERROR(VLOOKUP($A51,Filtro!$A$5:$AK$2953,34,FALSE),0) -> 0 | AK51: =IFERROR(VLOOKUP($A51,Filtro!$A$5:$AK$2953,35,FALSE),0) -> 0 | AL51: 9,620 | AM51: =IFERROR(VLOOKUP($A51,Filtro!$A$5:$AK$2953,37,FALSE),0) -> 0
C52: TOTAL ARANCEL MAI | D52: =SUM(D6:D51) -> 400752 | E52: =SUM(E6:E51) -> 399595 | F52: =SUM(F6:F51) -> 399595 | G52: =SUM(G6:G51) -> 0 | H52: =SUM(H6:H51) -> 1157 | AB52: =SUM(AB6:AB51) -> 95 | AC52: 400506 | AD52: 49 | AE52: 9790 | AF52: 7591 | AG52: 0 | AH52: 311 | AI52: 0 | AJ52: 0 | AK52: 0 | AM52: =SUM(AM6:AM51) -> 3,844,103,900
C53: OTRAS CONSULTAS MEDICAS
A54: 01010014 | B54: 0101001 | C54: Consulta Medicina General | D54: =IFERROR(VLOOKUP($A54,Filtro!$A$5:$AK$2953,2,FALSE),0) -> 75120 | E54: =IFERROR(VLOOKUP($A54,Filtro!$A$5:$AK$2953,3,FALSE),0) -> 75120 | F54: =IFERROR(VLOOKUP($A54,Filtro!$A$5:$AK$2953,4,FALSE),0) -> 75120 | G54: =IFERROR(VLOOKUP($A54,Filtro!$A$5:$AK$2953,5,FALSE),0) -> 0 | H54: =IFERROR(VLOOKUP($A54,Filtro!$A$5:$AK$2953,6,FALSE),0) -> 0 | AB54: =IFERROR(VLOOKUP($A54,Filtro!$A$5:$AK$2953,26,FALSE),0) -> 0 | AC54: =IFERROR(VLOOKUP($A54,Filtro!$A$5:$AK$2953,27,FALSE),0) -> 72078 | AD54: =IFERROR(VLOOKUP($A54,Filtro!$A$5:$AK$2953,28,FALSE),0) -> 3042 | AE54: =IFERROR(VLOOKUP($A54,Filtro!$A$5:$AK$2953,29,FALSE),0) -> 0 | AF54: =IFERROR(VLOOKUP($A54,Filtro!$A$5:$AK$2953,30,FALSE),0) -> 0 | AG54: =IFERROR(VLOOKUP($A54,Filtro!$A$5:$AK$2953,31,FALSE),0) -> 0 | AH54: =IFERROR(VLOOKUP($A54,Filtro!$A$5:$AK$2953,32,FALSE),0) -> 0 | AI54: =IFERROR(VLOOKUP($A54,Filtro!$A$5:$AK$2953,33,FALSE),0) -> 0 | AJ54: =IFERROR(VLOOKUP($A54,Filtro!$A$5:$AK$2953,34,FALSE),0) -> 0 | AK54: =IFERROR(VLOOKUP($A54,Filtro!$A$5:$AK$2953,35,FALSE),0) -> 0 | AL54: 6,760 | AM54: =IFERROR(VLOOKUP($A54,Filtro!$A$5:$AK$2953,37,FALSE),0) -> 507,811,200
A55: 01014320 | B55: 0101007 | C55: Atención médica del recién nacido en sala de parto o pabellón quirúrgico c/s reanimación cardio-respiratoria | D55: =IFERROR(VLOOKUP($A55,Filtro!$A$5:$AK$2953,2,FALSE),0) -> 3167 | E55: =IFERROR(VLOOKUP($A55,Filtro!$A$5:$AK$2953,3,FALSE),0) -> 3155 | F55: =IFERROR(VLOOKUP($A55,Filtro!$A$5:$AK$2953,4,FALSE),0) -> 2798 | G55: =IFERROR(VLOOKUP($A55,Filtro!$A$5:$AK$2953,5,FALSE),0) -> 357 | H55: =IFERROR(VLOOKUP($A55,Filtro!$A$5:$AK$2953,6,FALSE),0) -> 12 | AB55: =IFERROR(VLOOKUP($A55,Filtro!$A$5:$AK$2953,26,FALSE),0) -> 1579 | AC55: =IFERROR(VLOOKUP($A55,Filtro!$A$5:$AK$2953,27,FALSE),0) -> 606 | AD55: =IFERROR(VLOOKUP($A55,Filtro!$A$5:$AK$2953,28,FALSE),0) -> 982 | AE55: =IFERROR(VLOOKUP($A55,Filtro!$A$5:$AK$2953,29,FALSE),0) -> 0 | AF55: =IFERROR(VLOOKUP($A55,Filtro!$A$5:$AK$2953,30,FALSE),0) -> 0 | AG55: =IFERROR(VLOOKUP($A55,Filtro!$A$5:$AK$2953,31,FALSE),0) -> 0 | AH55: =IFERROR(VLOOKUP($A55,Filtro!$A$5:$AK$2953,32,FALSE),0) -> 0 | AI55: =IFERROR(VLOOKUP($A55,Filtro!$A$5:$AK$2953,33,FALSE),0) -> 0 | AJ55: =IFERROR(VLOOKUP($A55,Filtro!$A$5:$AK$2953,34,FALSE),0) -> 0 | AK55: =IFERROR(VLOOKUP($A55,Filtro!$A$5:$AK$2953,35,FALSE),0) -> 0 | AL55: 17,850 | AM55: =IFERROR(VLOOKUP($A55,Filtro!$A$5:$AK$2953,37,FALSE),0) -> 49,944,300
A56: 01014321 | B56: 0101103 | C56: Consulta en Unidades de Urgencia Hospitalaria | D56: =IFERROR(VLOOKUP($A56,Filtro!$A$5:$AK$2953,2,FALSE),0) -> 294291 | E56: =IFERROR(VLOOKUP($A56,Filtro!$A$5:$AK$2953,3,FALSE),0) -> 281137 | F56: =IFERROR(VLOOKUP($A56,Filtro!$A$5:$AK$2953,4,FALSE),0) -> 281137 | G56: =IFERROR(VLOOKUP($A56,Filtro!$A$5:$AK$2953,5,FALSE),0) -> 0 | H56: =IFERROR(VLOOKUP($A56,Filtro!$A$5:$AK$2953,6,FALSE),0) -> 13154 | AB56: =IFERROR(VLOOKUP($A56,Filtro!$A$5:$AK$2953,26,FALSE),0) -> 0 | AC56: =IFERROR(VLOOKUP($A56,Filtro!$A$5:$AK$2953,27,FALSE),0) -> 12212 | AD56: =IFERROR(VLOOKUP($A56,Filtro!$A$5:$AK$2953,28,FALSE),0) -> 282079 | AE56: =IFERROR(VLOOKUP($A56,Filtro!$A$5:$AK$2953,29,FALSE),0) -> 0 | AF56: =IFERROR(VLOOKUP($A56,Filtro!$A$5:$AK$2953,30,FALSE),0) -> 0 | AG56: =IFERROR(VLOOKUP($A56,Filtro!$A$5:$AK$2953,31,FALSE),0) -> 0 | AH56: =IFERROR(VLOOKUP($A56,Filtro!$A$5:$AK$2953,32,FALSE),0) -> 0 | AI56: =IFERROR(VLOOKUP($A56,Filtro!$A$5:$AK$2953,33,FALSE),0) -> 0 | AJ56: =IFERROR(VLOOKUP($A56,Filtro!$A$5:$AK$2953,34,FALSE),0) -> 0 | AK56: =IFERROR(VLOOKUP($A56,Filtro!$A$5:$AK$2953,35,FALSE),0) -> 0 | AL56: 9,620 | AM56: =IFERROR(VLOOKUP($A56,Filtro!$A$5:$AK$2953,37,FALSE),0) -> 2,704,537,940
C57: TOTAL OTRAS CONSULTAS MÉDICAS | D57: =SUM(D54:D56) -> 372578 | E57: =SUM(E54:E56) -> 359412 | F57: =SUM(F54:F56) -> 359055 | G57: =SUM(G54:G56) -> 357 | H57: =SUM(H54:H56) -> 13166 | AB57: =SUM(AB54:AB56) -> 1579 | AC57: 84896 | AD57: 286103 | AE57: 0 | AF57: 0 | AG57: 0 | AH57: 0 | AI57: 0 | AJ57: 0 | AK57: 0 | AM57: =SUM(AM54:AM56) -> 3262293440
C58: TOTAL PRODUCCION | D58: =SUM(D52+D57) -> 773330 | E58: =SUM(E52+E57) -> 759007 | F58: =SUM(F52+F57) -> 758650 | G58: =SUM(G52+G57) -> 357 | H58: =SUM(H52+H57) -> 14323 | AB58: =SUM(AB52+AB57) -> 1674 | AC58: 485402 | AD58: 286152 | AE58: 9790 | AF58: 7591 | AG58: 0 | AH58: 311 | AI58: 0 | AJ58: 0 | AK58: 0 | AM58: =SUM(AM52+AM57) -> 7106397340
C59: CONSULTAS POR OTROS PROFESIONALES DE LA SALUD
A60: 01010020 | B60: 0102002 | C60: Control de salud niño con EDP por enfermera | D60: =IFERROR(VLOOKUP($A60,Filtro!$A$5:$AK$2953,2,FALSE),0) -> 2175 | E60: =IFERROR(VLOOKUP($A60,Filtro!$A$5:$AK$2953,3,FALSE),0) -> 2175 | F60: =IFERROR(VLOOKUP($A60,Filtro!$A$5:$AK$2953,4,FALSE),0) -> 2175 | G60: =IFERROR(VLOOKUP($A60,Filtro!$A$5:$AK$2953,5,FALSE),0) -> 0 | H60: =IFERROR(VLOOKUP($A60,Filtro!$A$5:$AK$2953,6,FALSE),0) -> 0 | AB60: =IFERROR(VLOOKUP($A60,Filtro!$A$5:$AK$2953,26,FALSE),0) -> 0 | AC60: =IFERROR(VLOOKUP($A60,Filtro!$A$5:$AK$2953,27,FALSE),0) -> 2175 | AD60: =IFERROR(VLOOKUP($A60,Filtro!$A$5:$AK$2953,28,FALSE),0) -> 0 | AE60: =IFERROR(VLOOKUP($A60,Filtro!$A$5:$AK$2953,29,FALSE),0) -> 0 | AF60: =IFERROR(VLOOKUP($A60,Filtro!$A$5:$AK$2953,30,FALSE),0) -> 0 | AG60: =IFERROR(VLOOKUP($A60,Filtro!$A$5:$AK$2953,31,FALSE),0) -> 0 | AH60: =IFERROR(VLOOKUP($A60,Filtro!$A$5:$AK$2953,32,FALSE),0) -> 0 | AI60: =IFERROR(VLOOKUP($A60,Filtro!$A$5:$AK$2953,33,FALSE),0) -> 0 | AJ60: =IFERROR(VLOOKUP($A60,Filtro!$A$5:$AK$2953,34,FALSE),0) -> 0 | AK60: =IFERROR(VLOOKUP($A60,Filtro!$A$5:$AK$2953,35,FALSE),0) -> 0 | AL60: 2,560 | AM60: =IFERROR(VLOOKUP($A60,Filtro!$A$5:$AK$2953,37,FALSE),0) -> 5,568,000
A61: 01010021 | B61: 0102003 | C61: Consulta o control por auxiliar de enfermería | D61: =IFERROR(VLOOKUP($A61,Filtro!$A$5:$AK$2953,2,FALSE),0) -> 23001 | E61: =IFERROR(VLOOKUP($A61,Filtro!$A$5:$AK$2953,3,FALSE),0) -> 22989 | F61: =IFERROR(VLOOKUP($A61,Filtro!$A$5:$AK$2953,4,FALSE),0) -> 22989 | G61: =IFERROR(VLOOKUP($A61,Filtro!$A$5:$AK$2953,5,FALSE),0) -> 0 | H61: =IFERROR(VLOOKUP($A61,Filtro!$A$5:$AK$2953,6,FALSE),0) -> 12 | AB61: =IFERROR(VLOOKUP($A61,Filtro!$A$5:$AK$2953,26,FALSE),0) -> 0 | AC61: =IFERROR(VLOOKUP($A61,Filtro!$A$5:$AK$2953,27,FALSE),0) -> 2561 | AD61: =IFERROR(VLOOKUP($A61,Filtro!$A$5:$AK$2953,28,FALSE),0) -> 20440 | AE61: =IFERROR(VLOOKUP($A61,Filtro!$A$5:$AK$2953,29,FALSE),0) -> 0 | AF61: =IFERROR(VLOOKUP($A61,Filtro!$A$5:$AK$2953,30,FALSE),0) -> 0 | AG61: =IFERROR(VLOOKUP($A61,Filtro!$A$5:$AK$2953,31,FALSE),0) -> 0 | AH61: =IFERROR(VLOOKUP($A61,Filtro!$A$5:$AK$2953,32,FALSE),0) -> 0 | AI61: =IFERROR(VLOOKUP($A61,Filtro!$A$5:$AK$2953,33,FALSE),0) -> 0 | AJ61: =IFERROR(VLOOKUP($A61,Filtro!$A$5:$AK$2953,34,FALSE),0) -> 0 | AK61: =IFERROR(VLOOKUP($A61,Filtro!$A$5:$AK$2953,35,FALSE),0) -> 0 | AL61: 830 | AM61: =IFERROR(VLOOKUP($A61,Filtro!$A$5:$AK$2953,37,FALSE),0) -> 19,080,870
A62: 01010022 | B62: 0102005 | C62: Consulta por fonoaudiólogo | D62: =IFERROR(VLOOKUP($A62,Filtro!$A$5:$AK$2953,2,FALSE),0) -> 16965 | E62: =IFERROR(VLOOKUP($A62,Filtro!$A$5:$AK$2953,3,FALSE),0) -> 16958 | F62: =IFERROR(VLOOKUP($A62,Filtro!$A$5:$AK$2953,4,FALSE),0) -> 16958 | G62: =IFERROR(VLOOKUP($A62,Filtro!$A$5:$AK$2953,5,FALSE),0) -> 0 | H62: =IFERROR(VLOOKUP($A62,Filtro!$A$5:$AK$2953,6,FALSE),0) -> 7 | AB62: =IFERROR(VLOOKUP($A62,Filtro!$A$5:$AK$2953,26,FALSE),0) -> 7887 | AC62: =IFERROR(VLOOKUP($A62,Filtro!$A$5:$AK$2953,27,FALSE),0) -> 9055 | AD62: =IFERROR(VLOOKUP($A62,Filtro!$A$5:$AK$2953,28,FALSE),0) -> 23 | AE62: =IFERROR(VLOOKUP($A62,Filtro!$A$5:$AK$2953,29,FALSE),0) -> 0 | AF62: =IFERROR(VLOOKUP($A62,Filtro!$A$5:$AK$2953,30,FALSE),0) -> 0 | AG62: =IFERROR(VLOOKUP($A62,Filtro!$A$5:$AK$2953,31,FALSE),0) -> 0 | AH62: =IFERROR(VLOOKUP($A62,Filtro!$A$5:$AK$2953,32,FALSE),0) -> 0 | AI62: =IFERROR(VLOOKUP($A62,Filtro!$A$5:$AK$2953,33,FALSE),0) -> 0 | AJ62: =IFERROR(VLOOKUP($A62,Filtro!$A$5:$AK$2953,34,FALSE),0) -> 0 | AK62: =IFERROR(VLOOKUP($A62,Filtro!$A$5:$AK$2953,35,FALSE),0) -> 0 | AL62: 2,040 | AM62: =IFERROR(VLOOKUP($A62,Filtro!$A$5:$AK$2953,37,FALSE),0) -> 34,594,320
A63: 01014322 | B63: 0102008 | C63: Consulta o control por enfermera | D63: =IFERROR(VLOOKUP($A63,Filtro!$A$5:$AK$2953,2,FALSE),0) -> 114812 | E63: =IFERROR(VLOOKUP($A63,Filtro!$A$5:$AK$2953,3,FALSE),0) -> 114479 | F63: =IFERROR(VLOOKUP($A63,Filtro!$A$5:$AK$2953,4,FALSE),0) -> 114479 | G63: =IFERROR(VLOOKUP($A63,Filtro!$A$5:$AK$2953,5,FALSE),0) -> 0 | H63: =IFERROR(VLOOKUP($A63,Filtro!$A$5:$AK$2953,6,FALSE),0) -> 333 | AB63: =IFERROR(VLOOKUP($A63,Filtro!$A$5:$AK$2953,26,FALSE),0) -> 0 | AC63: =IFERROR(VLOOKUP($A63,Filtro!$A$5:$AK$2953,27,FALSE),0) -> 95873 | AD63: =IFERROR(VLOOKUP($A63,Filtro!$A$5:$AK$2953,28,FALSE),0) -> 18939 | AE63: =IFERROR(VLOOKUP($A63,Filtro!$A$5:$AK$2953,29,FALSE),0) -> 0 | AF63: =IFERROR(VLOOKUP($A63,Filtro!$A$5:$AK$2953,30,FALSE),0) -> 0 | AG63: =IFERROR(VLOOKUP($A63,Filtro!$A$5:$AK$2953,31,FALSE),0) -> 0 | AH63: =IFERROR(VLOOKUP($A63,Filtro!$A$5:$AK$2953,32,FALSE),0) -> 0 | AI63: =IFERROR(VLOOKUP($A63,Filtro!$A$5:$AK$2953,33,FALSE),0) -> 0 | AJ63: =IFERROR(VLOOKUP($A63,Filtro!$A$5:$AK$2953,34,FALSE),0) -> 0 | AK63: =IFERROR(VLOOKUP($A63,Filtro!$A$5:$AK$2953,35,FALSE),0) -> 0 | AL63: 1,500 | AM63: =IFERROR(VLOOKUP($A63,Filtro!$A$5:$AK$2953,37,FALSE),0) -> 171,718,500
A64: 01014323 | B64: 0102009 | C64: Consulta o control por matrona | D64: =IFERROR(VLOOKUP($A64,Filtro!$A$5:$AK$2953,2,FALSE),0) -> 60001 | E64: =IFERROR(VLOOKUP($A64,Filtro!$A$5:$AK$2953,3,FALSE),0) -> 59747 | F64: =IFERROR(VLOOKUP($A64,Filtro!$A$5:$AK$2953,4,FALSE),0) -> 59747 | G64: =IFERROR(VLOOKUP($A64,Filtro!$A$5:$AK$2953,5,FALSE),0) -> 0 | H64: =IFERROR(VLOOKUP($A64,Filtro!$A$5:$AK$2953,6,FALSE),0) -> 254 | AB64: =IFERROR(VLOOKUP($A64,Filtro!$A$5:$AK$2953,26,FALSE),0) -> 134 | AC64: =IFERROR(VLOOKUP($A64,Filtro!$A$5:$AK$2953,27,FALSE),0) -> 54087 | AD64: =IFERROR(VLOOKUP($A64,Filtro!$A$5:$AK$2953,28,FALSE),0) -> 5779 | AE64: =IFERROR(VLOOKUP($A64,Filtro!$A$5:$AK$2953,29,FALSE),0) -> 0 | AF64: =IFERROR(VLOOKUP($A64,Filtro!$A$5:$AK$2953,30,FALSE),0) -> 0 | AG64: =IFERROR(VLOOKUP($A64,Filtro!$A$5:$AK$2953,31,FALSE),0) -> 0 | AH64: =IFERROR(VLOOKUP($A64,Filtro!$A$5:$AK$2953,32,FALSE),0) -> 0 | AI64: =IFERROR(VLOOKUP($A64,Filtro!$A$5:$AK$2953,33,FALSE),0) -> 0 | AJ64: =IFERROR(VLOOKUP($A64,Filtro!$A$5:$AK$2953,34,FALSE),0) -> 0 | AK64: =IFERROR(VLOOKUP($A64,Filtro!$A$5:$AK$2953,35,FALSE),0) -> 0 | AL64: 1,500 | AM64: =IFERROR(VLOOKUP($A64,Filtro!$A$5:$AK$2953,37,FALSE),0) -> 89,620,500
A65: 01014324 | B65: 0102010 | C65: Consulta o control por nutricionista | D65: =IFERROR(VLOOKUP($A65,Filtro!$A$5:$AK$2953,2,FALSE),0) -> 28090 | E65: =IFERROR(VLOOKUP($A65,Filtro!$A$5:$AK$2953,3,FALSE),0) -> 28016 | F65: =IFERROR(VLOOKUP($A65,Filtro!$A$5:$AK$2953,4,FALSE),0) -> 28016 | G65: =IFERROR(VLOOKUP($A65,Filtro!$A$5:$AK$2953,5,FALSE),0) -> 0 | H65: =IFERROR(VLOOKUP($A65,Filtro!$A$5:$AK$2953,6,FALSE),0) -> 74 | AB65: =IFERROR(VLOOKUP($A65,Filtro!$A$5:$AK$2953,26,FALSE),0) -> 0 | AC65: =IFERROR(VLOOKUP($A65,Filtro!$A$5:$AK$2953,27,FALSE),0) -> 28090 | AD65: =IFERROR(VLOOKUP($A65,Filtro!$A$5:$AK$2953,28,FALSE),0) -> 0 | AE65: =IFERROR(VLOOKUP($A65,Filtro!$A$5:$AK$2953,29,FALSE),0) -> 0 | AF65: =IFERROR(VLOOKUP($A65,Filtro!$A$5:$AK$2953,30,FALSE),0) -> 0 | AG65: =IFERROR(VLOOKUP($A65,Filtro!$A$5:$AK$2953,31,FALSE),0) -> 0 | AH65: =IFERROR(VLOOKUP($A65,Filtro!$A$5:$AK$2953,32,FALSE),0) -> 0 | AI65: =IFERROR(VLOOKUP($A65,Filtro!$A$5:$AK$2953,33,FALSE),0) -> 0 | AJ65: =IFERROR(VLOOKUP($A65,Filtro!$A$5:$AK$2953,34,FALSE),0) -> 0 | AK65: =IFERROR(VLOOKUP($A65,Filtro!$A$5:$AK$2953,35,FALSE),0) -> 0 | AL65: 1,500 | AM65: =IFERROR(VLOOKUP($A65,Filtro!$A$5:$AK$2953,37,FALSE),0) -> 42,024,000
C66: TOTAL ARANCEL MAI | D66: =SUM(D60:D65) -> 245044 | E66: =SUM(E60:E65) -> 244364 | F66: =SUM(F60:F65) -> 244364 | G66: =SUM(G60:G65) -> 0 | H66: =SUM(H60:H65) -> 680 | AB66: =SUM(AB60:AB65) -> 8021 | AC66: 191841 | AD66: 45181 | AE66: 0 | AF66: 0 | AG66: 0 | AH66: 0 | AI66: 0 | AJ66: 0 | AK66: 0 | AM66: =SUM(AM60:AM65) -> 362,606,190
A67: 01010025 | B67: 01010025 | C67: Consulta por otros profesionales | D67: =IFERROR(VLOOKUP($A67,Filtro!$A$5:$AK$2953,2,FALSE),0) -> 22853 | E67: =IFERROR(VLOOKUP($A67,Filtro!$A$5:$AK$2953,3,FALSE),0) -> 22686 | F67: =IFERROR(VLOOKUP($A67,Filtro!$A$5:$AK$2953,4,FALSE),0) -> 22686 | G67: =IFERROR(VLOOKUP($A67,Filtro!$A$5:$AK$2953,5,FALSE),0) -> 0 | H67: =IFERROR(VLOOKUP($A67,Filtro!$A$5:$AK$2953,6,FALSE),0) -> 167 | AB67: =IFERROR(VLOOKUP($A67,Filtro!$A$5:$AK$2953,26,FALSE),0) -> 0 | AC67: =IFERROR(VLOOKUP($A67,Filtro!$A$5:$AK$2953,27,FALSE),0) -> 22853 | AD67: =IFERROR(VLOOKUP($A67,Filtro!$A$5:$AK$2953,28,FALSE),0) -> 0 | AE67: =IFERROR(VLOOKUP($A67,Filtro!$A$5:$AK$2953,29,FALSE),0) -> 686 | AF67: =IFERROR(VLOOKUP($A67,Filtro!$A$5:$AK$2953,30,FALSE),0) -> 0 | AG67: =IFERROR(VLOOKUP($A67,Filtro!$A$5:$AK$2953,31,FALSE),0) -> 0 | AH67: =IFERROR(VLOOKUP($A67,Filtro!$A$5:$AK$2953,32,FALSE),0) -> 0 | AI67: =IFERROR(VLOOKUP($A67,Filtro!$A$5:$AK$2953,33,FALSE),0) -> 0 | AJ67: =IFERROR(VLOOKUP($A67,Filtro!$A$5:$AK$2953,34,FALSE),0) -> 0 | AK67: =IFERROR(VLOOKUP($A67,Filtro!$A$5:$AK$2953,35,FALSE),0) -> 0 | AM67: =IFERROR(VLOOKUP($A67,#REF!,37,FALSE),0) -> 0
A68: 01012817 | B68: 01012817 | C68: Consulta por Trabajador(a) Social | D68: =IFERROR(VLOOKUP($A68,Filtro!$A$5:$AK$2953,2,FALSE),0) -> 14948 | E68: =IFERROR(VLOOKUP($A68,Filtro!$A$5:$AK$2953,3,FALSE),0) -> 14534 | F68: =IFERROR(VLOOKUP($A68,Filtro!$A$5:$AK$2953,4,FALSE),0) -> 14534 | G68: =IFERROR(VLOOKUP($A68,Filtro!$A$5:$AK$2953,5,FALSE),0) -> 0 | H68: =IFERROR(VLOOKUP($A68,Filtro!$A$5:$AK$2953,6,FALSE),0) -> 414 | AB68: =IFERROR(VLOOKUP($A68,Filtro!$A$5:$AK$2953,26,FALSE),0) -> 1491 | AC68: =IFERROR(VLOOKUP($A68,Filtro!$A$5:$AK$2953,27,FALSE),0) -> 13457 | AD68: =IFERROR(VLOOKUP($A68,Filtro!$A$5:$AK$2953,28,FALSE),0) -> 0 | AE68: =IFERROR(VLOOKUP($A68,Filtro!$A$5:$AK$2953,29,FALSE),0) -> 0 | AF68: =IFERROR(VLOOKUP($A68,Filtro!$A$5:$AK$2953,30,FALSE),0) -> 0 | AG68: =IFERROR(VLOOKUP($A68,Filtro!$A$5:$AK$2953,31,FALSE),0) -> 0 | AH68: =IFERROR(VLOOKUP($A68,Filtro!$A$5:$AK$2953,32,FALSE),0) -> 0 | AI68: =IFERROR(VLOOKUP($A68,Filtro!$A$5:$AK$2953,33,FALSE),0) -> 0 | AJ68: =IFERROR(VLOOKUP($A68,Filtro!$A$5:$AK$2953,34,FALSE),0) -> 0 | AK68: =IFERROR(VLOOKUP($A68,Filtro!$A$5:$AK$2953,35,FALSE),0) -> 0 | AM68: =IFERROR(VLOOKUP($A68,#REF!,37,FALSE),0) -> 0
C69: TOTAL ARANCEL MLE Y NO ARANCELADO | D69: =SUM(D67:D68) -> 37801 | E69: =SUM(E67:E68) -> 37220 | F69: =SUM(F67:F68) -> 37220 | G69: =SUM(G67:G68) -> 0 | H69: =SUM(H67:H68) -> 581 | AB69: =SUM(AB67:AB68) -> 1491 | AC69: 36310 | AD69: 0 | AE69: 686 | AF69: 0 | AG69: 0 | AH69: 0 | AI69: 0 | AJ69: 0 | AK69: 0
C70: TOTAL PRODUCCION | D70: =SUM(D66+D69) -> 282845 | E70: =SUM(E66+E69) -> 281584 | F70: =SUM(F66+F69) -> 281584 | G70: =SUM(G66+G69) -> 0 | H70: =SUM(H66+H69) -> 1261 | AB70: =SUM(AB66+AB69) -> 9512 | AC70: 228151 | AD70: 45181 | AE70: 686 | AF70: 0 | AG70: 0 | AH70: 0 | AI70: 0 | AJ70: 0 | AK70: 0 | AM70: =SUM(AM66+AM69) -> 362,606,190
C71: TELEMEDICINA POR PROFESIONALES MÉDICOS
C72: TELECONSULTAS
A73: 01013100 | B73: 0108001 | C73: Teleconsulta Medicina General | D73: =IFERROR(VLOOKUP($A73,Filtro!$A$5:$AK$2953,2,FALSE),0) -> 11 | E73: =IFERROR(VLOOKUP($A73,Filtro!$A$5:$AK$2953,3,FALSE),0) -> 11 | F73: =IFERROR(VLOOKUP($A73,Filtro!$A$5:$AK$2953,4,FALSE),0) -> 11 | G73: =IFERROR(VLOOKUP($A73,Filtro!$A$5:$AK$2953,5,FALSE),0) -> 0 | H73: =IFERROR(VLOOKUP($A73,Filtro!$A$5:$AK$2953,6,FALSE),0) -> 0 | AB73: =IFERROR(VLOOKUP($A73,Filtro!$A$5:$AK$2953,26,FALSE),0) -> 0 | AC73: =IFERROR(VLOOKUP($A73,Filtro!$A$5:$AK$2953,27,FALSE),0) -> 11 | AD73: =IFERROR(VLOOKUP($A73,Filtro!$A$5:$AK$2953,28,FALSE),0) -> 0 | AE73: =IFERROR(VLOOKUP($A73,Filtro!$A$5:$AK$2953,29,FALSE),0) -> 0 | AF73: =IFERROR(VLOOKUP($A73,Filtro!$A$5:$AK$2953,30,FALSE),0) -> 0 | AG73: =IFERROR(VLOOKUP($A73,Filtro!$A$5:$AK$2953,31,FALSE),0) -> 0 | AH73: =IFERROR(VLOOKUP($A73,Filtro!$A$5:$AK$2953,32,FALSE),0) -> 0 | AI73: =IFERROR(VLOOKUP($A73,Filtro!$A$5:$AK$2953,33,FALSE),0) -> 0 | AJ73: =IFERROR(VLOOKUP($A73,Filtro!$A$5:$AK$2953,34,FALSE),0) -> 0 | AK73: =IFERROR(VLOOKUP($A73,Filtro!$A$5:$AK$2953,35,FALSE),0) -> 0 | AL73: 5,620 | AM73: =IFERROR(VLOOKUP($A73,Filtro!$A$5:$AK$2953,37,FALSE),0) -> 61,820
A74: 01014325 | B74: 0108201 | C74: Teleconsulta Médica de Especialidad en Dermatología | D74: =IFERROR(VLOOKUP($A74,Filtro!$A$5:$AK$2953,2,FALSE),0) -> 161 | E74: =IFERROR(VLOOKUP($A74,Filtro!$A$5:$AK$2953,3,FALSE),0) -> 161 | F74: =IFERROR(VLOOKUP($A74,Filtro!$A$5:$AK$2953,4,FALSE),0) -> 161 | G74: =IFERROR(VLOOKUP($A74,Filtro!$A$5:$AK$2953,5,FALSE),0) -> 0 | H74: =IFERROR(VLOOKUP($A74,Filtro!$A$5:$AK$2953,6,FALSE),0) -> 0 | AB74: =IFERROR(VLOOKUP($A74,Filtro!$A$5:$AK$2953,26,FALSE),0) -> 0 | AC74: =IFERROR(VLOOKUP($A74,Filtro!$A$5:$AK$2953,27,FALSE),0) -> 161 | AD74: =IFERROR(VLOOKUP($A74,Filtro!$A$5:$AK$2953,28,FALSE),0) -> 0 | AE74: =IFERROR(VLOOKUP($A74,Filtro!$A$5:$AK$2953,29,FALSE),0) -> 0 | AF74: =IFERROR(VLOOKUP($A74,Filtro!$A$5:$AK$2953,30,FALSE),0) -> 0 | AG74: =IFERROR(VLOOKUP($A74,Filtro!$A$5:$AK$2953,31,FALSE),0) -> 0 | AH74: =IFERROR(VLOOKUP($A74,Filtro!$A$5:$AK$2953,32,FALSE),0) -> 0 | AI74: =IFERROR(VLOOKUP($A74,Filtro!$A$5:$AK$2953,33,FALSE),0) -> 0 | AJ74: =IFERROR(VLOOKUP($A74,Filtro!$A$5:$AK$2953,34,FALSE),0) -> 0 | AK74: =IFERROR(VLOOKUP($A74,Filtro!$A$5:$AK$2953,35,FALSE),0) -> 0 | AL74: 8,000 | AM74: =IFERROR(VLOOKUP($A74,Filtro!$A$5:$AK$2953,37,FALSE),0) -> 1,288,000
A75: 01014326 | B75: 0108202 | C75: Teleconsulta Médica de Especialidad en Geriatría | D75: =IFERROR(VLOOKUP($A75,Filtro!$A$5:$AK$2953,2,FALSE),0) -> 3 | E75: =IFERROR(VLOOKUP($A75,Filtro!$A$5:$AK$2953,3,FALSE),0) -> 3 | F75: =IFERROR(VLOOKUP($A75,Filtro!$A$5:$AK$2953,4,FALSE),0) -> 3 | G75: =IFERROR(VLOOKUP($A75,Filtro!$A$5:$AK$2953,5,FALSE),0) -> 0 | H75: =IFERROR(VLOOKUP($A75,Filtro!$A$5:$AK$2953,6,FALSE),0) -> 0 | AB75: =IFERROR(VLOOKUP($A75,Filtro!$A$5:$AK$2953,26,FALSE),0) -> 0 | AC75: =IFERROR(VLOOKUP($A75,Filtro!$A$5:$AK$2953,27,FALSE),0) -> 3 | AD75: =IFERROR(VLOOKUP($A75,Filtro!$A$5:$AK$2953,28,FALSE),0) -> 0 | AE75: =IFERROR(VLOOKUP($A75,Filtro!$A$5:$AK$2953,29,FALSE),0) -> 0 | AF75: =IFERROR(VLOOKUP($A75,Filtro!$A$5:$AK$2953,30,FALSE),0) -> 0 | AG75: =IFERROR(VLOOKUP($A75,Filtro!$A$5:$AK$2953,31,FALSE),0) -> 0 | AH75: =IFERROR(VLOOKUP($A75,Filtro!$A$5:$AK$2953,32,FALSE),0) -> 0 | AI75: =IFERROR(VLOOKUP($A75,Filtro!$A$5:$AK$2953,33,FALSE),0) -> 0 | AJ75: =IFERROR(VLOOKUP($A75,Filtro!$A$5:$AK$2953,34,FALSE),0) -> 0 | AK75: =IFERROR(VLOOKUP($A75,Filtro!$A$5:$AK$2953,35,FALSE),0) -> 0 | AL75: 8,000 | AM75: =IFERROR(VLOOKUP($A75,Filtro!$A$5:$AK$2953,37,FALSE),0) -> 24,000
A76: 01014327 | B76: 0108206 | C76: Teleconsulta Médica de Especialidad en Reumatología | D76: =IFERROR(VLOOKUP($A76,Filtro!$A$5:$AK$2953,2,FALSE),0) -> 157 | E76: =IFERROR(VLOOKUP($A76,Filtro!$A$5:$AK$2953,3,FALSE),0) -> 157 | F76: =IFERROR(VLOOKUP($A76,Filtro!$A$5:$AK$2953,4,FALSE),0) -> 157 | G76: =IFERROR(VLOOKUP($A76,Filtro!$A$5:$AK$2953,5,FALSE),0) -> 0 | H76: =IFERROR(VLOOKUP($A76,Filtro!$A$5:$AK$2953,6,FALSE),0) -> 0 | AB76: =IFERROR(VLOOKUP($A76,Filtro!$A$5:$AK$2953,26,FALSE),0) -> 0 | AC76: =IFERROR(VLOOKUP($A76,Filtro!$A$5:$AK$2953,27,FALSE),0) -> 157 | AD76: =IFERROR(VLOOKUP($A76,Filtro!$A$5:$AK$2953,28,FALSE),0) -> 0 | AE76: =IFERROR(VLOOKUP($A76,Filtro!$A$5:$AK$2953,29,FALSE),0) -> 0 | AF76: =IFERROR(VLOOKUP($A76,Filtro!$A$5:$AK$2953,30,FALSE),0) -> 0 | AG76: =IFERROR(VLOOKUP($A76,Filtro!$A$5:$AK$2953,31,FALSE),0) -> 0 | AH76: =IFERROR(VLOOKUP($A76,Filtro!$A$5:$AK$2953,32,FALSE),0) -> 0 | AI76: =IFERROR(VLOOKUP($A76,Filtro!$A$5:$AK$2953,33,FALSE),0) -> 0 | AJ76: =IFERROR(VLOOKUP($A76,Filtro!$A$5:$AK$2953,34,FALSE),0) -> 0 | AK76: =IFERROR(VLOOKUP($A76,Filtro!$A$5:$AK$2953,35,FALSE),0) -> 0 | AL76: 8,000 | AM76: =IFERROR(VLOOKUP($A76,Filtro!$A$5:$AK$2953,37,FALSE),0) -> 1,256,000
A77: 01014328 | B77: 0108207 | C77: Teleconsulta Médica de Especialidad en Endocrinología Adulto | D77: =IFERROR(VLOOKUP($A77,Filtro!$A$5:$AK$2953,2,FALSE),0) -> 130 | E77: =IFERROR(VLOOKUP($A77,Filtro!$A$5:$AK$2953,3,FALSE),0) -> 130 | F77: =IFERROR(VLOOKUP($A77,Filtro!$A$5:$AK$2953,4,FALSE),0) -> 130 | G77: =IFERROR(VLOOKUP($A77,Filtro!$A$5:$AK$2953,5,FALSE),0) -> 0 | H77: =IFERROR(VLOOKUP($A77,Filtro!$A$5:$AK$2953,6,FALSE),0) -> 0 | AB77: =IFERROR(VLOOKUP($A77,Filtro!$A$5:$AK$2953,26,FALSE),0) -> 0 | AC77: =IFERROR(VLOOKUP($A77,Filtro!$A$5:$AK$2953,27,FALSE),0) -> 130 | AD77: =IFERROR(VLOOKUP($A77,Filtro!$A$5:$AK$2953,28,FALSE),0) -> 0 | AE77: =IFERROR(VLOOKUP($A77,Filtro!$A$5:$AK$2953,29,FALSE),0) -> 0 | AF77: =IFERROR(VLOOKUP($A77,Filtro!$A$5:$AK$2953,30,FALSE),0) -> 0 | AG77: =IFERROR(VLOOKUP($A77,Filtro!$A$5:$AK$2953,31,FALSE),0) -> 0 | AH77: =IFERROR(VLOOKUP($A77,Filtro!$A$5:$AK$2953,32,FALSE),0) -> 0 | AI77: =IFERROR(VLOOKUP($A77,Filtro!$A$5:$AK$2953,33,FALSE),0) -> 0 | AJ77: =IFERROR(VLOOKUP($A77,Filtro!$A$5:$AK$2953,34,FALSE),0) -> 0 | AK77: =IFERROR(VLOOKUP($A77,Filtro!$A$5:$AK$2953,35,FALSE),0) -> 0 | AL77: 8,000 | AM77: =IFERROR(VLOOKUP($A77,Filtro!$A$5:$AK$2953,37,FALSE),0) -> 1,040,000
A78: 01014329 | B78: 0108208 | C78: Teleconsulta Médica de Especialidad en Endocrinología Pediátrica | D78: =IFERROR(VLOOKUP($A78,Filtro!$A$5:$AK$2953,2,FALSE),0) -> 81 | E78: =IFERROR(VLOOKUP($A78,Filtro!$A$5:$AK$2953,3,FALSE),0) -> 81 | F78: =IFERROR(VLOOKUP($A78,Filtro!$A$5:$AK$2953,4,FALSE),0) -> 81 | G78: =IFERROR(VLOOKUP($A78,Filtro!$A$5:$AK$2953,5,FALSE),0) -> 0 | H78: =IFERROR(VLOOKUP($A78,Filtro!$A$5:$AK$2953,6,FALSE),0) -> 0 | AB78: =IFERROR(VLOOKUP($A78,Filtro!$A$5:$AK$2953,26,FALSE),0) -> 0 | AC78: =IFERROR(VLOOKUP($A78,Filtro!$A$5:$AK$2953,27,FALSE),0) -> 81 | AD78: =IFERROR(VLOOKUP($A78,Filtro!$A$5:$AK$2953,28,FALSE),0) -> 0 | AE78: =IFERROR(VLOOKUP($A78,Filtro!$A$5:$AK$2953,29,FALSE),0) -> 0 | AF78: =IFERROR(VLOOKUP($A78,Filtro!$A$5:$AK$2953,30,FALSE),0) -> 0 | AG78: =IFERROR(VLOOKUP($A78,Filtro!$A$5:$AK$2953,31,FALSE),0) -> 0 | AH78: =IFERROR(VLOOKUP($A78,Filtro!$A$5:$AK$2953,32,FALSE),0) -> 0 | AI78: =IFERROR(VLOOKUP($A78,Filtro!$A$5:$AK$2953,33,FALSE),0) -> 0 | AJ78: =IFERROR(VLOOKUP($A78,Filtro!$A$5:$AK$2953,34,FALSE),0) -> 0 | AK78: =IFERROR(VLOOKUP($A78,Filtro!$A$5:$AK$2953,35,FALSE),0) -> 0 | AL78: 8,000 | AM78: =IFERROR(VLOOKUP($A78,Filtro!$A$5:$AK$2953,37,FALSE),0) -> 648,000
A79: 01014330 | B79: 0108209 | C79: Teleconsulta Médica de Especialidad en Neurología Adultos | D79: =IFERROR(VLOOKUP($A79,Filtro!$A$5:$AK$2953,2,FALSE),0) -> 202 | E79: =IFERROR(VLOOKUP($A79,Filtro!$A$5:$AK$2953,3,FALSE),0) -> 202 | F79: =IFERROR(VLOOKUP($A79,Filtro!$A$5:$AK$2953,4,FALSE),0) -> 202 | G79: =IFERROR(VLOOKUP($A79,Filtro!$A$5:$AK$2953,5,FALSE),0) -> 0 | H79: =IFERROR(VLOOKUP($A79,Filtro!$A$5:$AK$2953,6,FALSE),0) -> 0 | AB79: =IFERROR(VLOOKUP($A79,Filtro!$A$5:$AK$2953,26,FALSE),0) -> 0 | AC79: =IFERROR(VLOOKUP($A79,Filtro!$A$5:$AK$2953,27,FALSE),0) -> 202 | AD79: =IFERROR(VLOOKUP($A79,Filtro!$A$5:$AK$2953,28,FALSE),0) -> 0 | AE79: =IFERROR(VLOOKUP($A79,Filtro!$A$5:$AK$2953,29,FALSE),0) -> 0 | AF79: =IFERROR(VLOOKUP($A79,Filtro!$A$5:$AK$2953,30,FALSE),0) -> 0 | AG79: =IFERROR(VLOOKUP($A79,Filtro!$A$5:$AK$2953,31,FALSE),0) -> 0 | AH79: =IFERROR(VLOOKUP($A79,Filtro!$A$5:$AK$2953,32,FALSE),0) -> 0 | AI79: =IFERROR(VLOOKUP($A79,Filtro!$A$5:$AK$2953,33,FALSE),0) -> 0 | AJ79: =IFERROR(VLOOKUP($A79,Filtro!$A$5:$AK$2953,34,FALSE),0) -> 0 | AK79: =IFERROR(VLOOKUP($A79,Filtro!$A$5:$AK$2953,35,FALSE),0) -> 0 | AL79: 8,000 | AM79: =IFERROR(VLOOKUP($A79,Filtro!$A$5:$AK$2953,37,FALSE),0) -> 1,616,000
A80: 01014331 | B80: 0108210 | C80: Teleconsulta Médica de Especialidad en Neurología Pediátrica | D80: =IFERROR(VLOOKUP($A80,Filtro!$A$5:$AK$2953,2,FALSE),0) -> 75 | E80: =IFERROR(VLOOKUP($A80,Filtro!$A$5:$AK$2953,3,FALSE),0) -> 75 | F80: =IFERROR(VLOOKUP($A80,Filtro!$A$5:$AK$2953,4,FALSE),0) -> 75 | G80: =IFERROR(VLOOKUP($A80,Filtro!$A$5:$AK$2953,5,FALSE),0) -> 0 | H80: =IFERROR(VLOOKUP($A80,Filtro!$A$5:$AK$2953,6,FALSE),0) -> 0 | AB80: =IFERROR(VLOOKUP($A80,Filtro!$A$5:$AK$2953,26,FALSE),0) -> 0 | AC80: =IFERROR(VLOOKUP($A80,Filtro!$A$5:$AK$2953,27,FALSE),0) -> 75 | AD80: =IFERROR(VLOOKUP($A80,Filtro!$A$5:$AK$2953,28,FALSE),0) -> 0 | AE80: =IFERROR(VLOOKUP($A80,Filtro!$A$5:$AK$2953,29,FALSE),0) -> 0 | AF80: =IFERROR(VLOOKUP($A80,Filtro!$A$5:$AK$2953,30,FALSE),0) -> 0 | AG80: =IFERROR(VLOOKUP($A80,Filtro!$A$5:$AK$2953,31,FALSE),0) -> 0 | AH80: =IFERROR(VLOOKUP($A80,Filtro!$A$5:$AK$2953,32,FALSE),0) -> 0 | AI80: =IFERROR(VLOOKUP($A80,Filtro!$A$5:$AK$2953,33,FALSE),0) -> 0 | AJ80: =IFERROR(VLOOKUP($A80,Filtro!$A$5:$AK$2953,34,FALSE),0) -> 0 | AK80: =IFERROR(VLOOKUP($A80,Filtro!$A$5:$AK$2953,35,FALSE),0) -> 0 | AL80: 8,000 | AM80: =IFERROR(VLOOKUP($A80,Filtro!$A$5:$AK$2953,37,FALSE),0) -> 600,000
A81: 01014332 | B81: 0108211 | C81: Teleconsulta Médica de Especialidad en Oncología Médica | D81: =IFERROR(VLOOKUP($A81,Filtro!$A$5:$AK$2953,2,FALSE),0) -> 3412 | E81: =IFERROR(VLOOKUP($A81,Filtro!$A$5:$AK$2953,3,FALSE),0) -> 3412 | F81: =IFERROR(VLOOKUP($A81,Filtro!$A$5:$AK$2953,4,FALSE),0) -> 3412 | G81: =IFERROR(VLOOKUP($A81,Filtro!$A$5:$AK$2953,5,FALSE),0) -> 0 | H81: =IFERROR(VLOOKUP($A81,Filtro!$A$5:$AK$2953,6,FALSE),0) -> 0 | AB81: =IFERROR(VLOOKUP($A81,Filtro!$A$5:$AK$2953,26,FALSE),0) -> 0 | AC81: =IFERROR(VLOOKUP($A81,Filtro!$A$5:$AK$2953,27,FALSE),0) -> 3412 | AD81: =IFERROR(VLOOKUP($A81,Filtro!$A$5:$AK$2953,28,FALSE),0) -> 0 | AE81: =IFERROR(VLOOKUP($A81,Filtro!$A$5:$AK$2953,29,FALSE),0) -> 0 | AF81: =IFERROR(VLOOKUP($A81,Filtro!$A$5:$AK$2953,30,FALSE),0) -> 0 | AG81: =IFERROR(VLOOKUP($A81,Filtro!$A$5:$AK$2953,31,FALSE),0) -> 0 | AH81: =IFERROR(VLOOKUP($A81,Filtro!$A$5:$AK$2953,32,FALSE),0) -> 0 | AI81: =IFERROR(VLOOKUP($A81,Filtro!$A$5:$AK$2953,33,FALSE),0) -> 0 | AJ81: =IFERROR(VLOOKUP($A81,Filtro!$A$5:$AK$2953,34,FALSE),0) -> 0 | AK81: =IFERROR(VLOOKUP($A81,Filtro!$A$5:$AK$2953,35,FALSE),0) -> 0 | AL81: 8,000 | AM81: =IFERROR(VLOOKUP($A81,Filtro!$A$5:$AK$2953,37,FALSE),0) -> 27,296,000
A82: 01014333 | B82: 0108212 | C82: Teleconsulta Médica de Especialidad en Psiquiatría adultos | D82: =IFERROR(VLOOKUP($A82,Filtro!$A$5:$AK$2953,2,FALSE),0) -> 698 | E82: =IFERROR(VLOOKUP($A82,Filtro!$A$5:$AK$2953,3,FALSE),0) -> 698 | F82: =IFERROR(VLOOKUP($A82,Filtro!$A$5:$AK$2953,4,FALSE),0) -> 698 | G82: =IFERROR(VLOOKUP($A82,Filtro!$A$5:$AK$2953,5,FALSE),0) -> 0 | H82: =IFERROR(VLOOKUP($A82,Filtro!$A$5:$AK$2953,6,FALSE),0) -> 0 | AB82: =IFERROR(VLOOKUP($A82,Filtro!$A$5:$AK$2953,26,FALSE),0) -> 1 | AC82: =IFERROR(VLOOKUP($A82,Filtro!$A$5:$AK$2953,27,FALSE),0) -> 697 | AD82: =IFERROR(VLOOKUP($A82,Filtro!$A$5:$AK$2953,28,FALSE),0) -> 0 | AE82: =IFERROR(VLOOKUP($A82,Filtro!$A$5:$AK$2953,29,FALSE),0) -> 0 | AF82: =IFERROR(VLOOKUP($A82,Filtro!$A$5:$AK$2953,30,FALSE),0) -> 0 | AG82: =IFERROR(VLOOKUP($A82,Filtro!$A$5:$AK$2953,31,FALSE),0) -> 0 | AH82: =IFERROR(VLOOKUP($A82,Filtro!$A$5:$AK$2953,32,FALSE),0) -> 0 | AI82: =IFERROR(VLOOKUP($A82,Filtro!$A$5:$AK$2953,33,FALSE),0) -> 0 | AJ82: =IFERROR(VLOOKUP($A82,Filtro!$A$5:$AK$2953,34,FALSE),0) -> 0 | AK82: =IFERROR(VLOOKUP($A82,Filtro!$A$5:$AK$2953,35,FALSE),0) -> 0 | AL82: 8,000 | AM82: =IFERROR(VLOOKUP($A82,Filtro!$A$5:$AK$2953,37,FALSE),0) -> 5,584,000
A83: 01014334 | B83: 0108213 | C83: Teleconsulta Médica de Especialidad en Psiquiatría pediátrica y de la adolescencia | D83: =IFERROR(VLOOKUP($A83,Filtro!$A$5:$AK$2953,2,FALSE),0) -> 257 | E83: =IFERROR(VLOOKUP($A83,Filtro!$A$5:$AK$2953,3,FALSE),0) -> 257 | F83: =IFERROR(VLOOKUP($A83,Filtro!$A$5:$AK$2953,4,FALSE),0) -> 257 | G83: =IFERROR(VLOOKUP($A83,Filtro!$A$5:$AK$2953,5,FALSE),0) -> 0 | H83: =IFERROR(VLOOKUP($A83,Filtro!$A$5:$AK$2953,6,FALSE),0) -> 0 | AB83: =IFERROR(VLOOKUP($A83,Filtro!$A$5:$AK$2953,26,FALSE),0) -> 1 | AC83: =IFERROR(VLOOKUP($A83,Filtro!$A$5:$AK$2953,27,FALSE),0) -> 256 | AD83: =IFERROR(VLOOKUP($A83,Filtro!$A$5:$AK$2953,28,FALSE),0) -> 0 | AE83: =IFERROR(VLOOKUP($A83,Filtro!$A$5:$AK$2953,29,FALSE),0) -> 0 | AF83: =IFERROR(VLOOKUP($A83,Filtro!$A$5:$AK$2953,30,FALSE),0) -> 0 | AG83: =IFERROR(VLOOKUP($A83,Filtro!$A$5:$AK$2953,31,FALSE),0) -> 0 | AH83: =IFERROR(VLOOKUP($A83,Filtro!$A$5:$AK$2953,32,FALSE),0) -> 0 | AI83: =IFERROR(VLOOKUP($A83,Filtro!$A$5:$AK$2953,33,FALSE),0) -> 0 | AJ83: =IFERROR(VLOOKUP($A83,Filtro!$A$5:$AK$2953,34,FALSE),0) -> 0 | AK83: =IFERROR(VLOOKUP($A83,Filtro!$A$5:$AK$2953,35,FALSE),0) -> 0 | AL83: 8,000 | AM83: =IFERROR(VLOOKUP($A83,Filtro!$A$5:$AK$2953,37,FALSE),0) -> 2,056,000
A84: 01014335 | B84: 0108301 | C84: Teleconsulta Médica de Especialidad en Cardiología | D84: =IFERROR(VLOOKUP($A84,Filtro!$A$5:$AK$2953,2,FALSE),0) -> 1 | E84: =IFERROR(VLOOKUP($A84,Filtro!$A$5:$AK$2953,3,FALSE),0) -> 1 | F84: =IFERROR(VLOOKUP($A84,Filtro!$A$5:$AK$2953,4,FALSE),0) -> 1 | G84: =IFERROR(VLOOKUP($A84,Filtro!$A$5:$AK$2953,5,FALSE),0) -> 0 | H84: =IFERROR(VLOOKUP($A84,Filtro!$A$5:$AK$2953,6,FALSE),0) -> 0 | AB84: =IFERROR(VLOOKUP($A84,Filtro!$A$5:$AK$2953,26,FALSE),0) -> 0 | AC84: =IFERROR(VLOOKUP($A84,Filtro!$A$5:$AK$2953,27,FALSE),0) -> 1 | AD84: =IFERROR(VLOOKUP($A84,Filtro!$A$5:$AK$2953,28,FALSE),0) -> 0 | AE84: =IFERROR(VLOOKUP($A84,Filtro!$A$5:$AK$2953,29,FALSE),0) -> 0 | AF84: =IFERROR(VLOOKUP($A84,Filtro!$A$5:$AK$2953,30,FALSE),0) -> 0 | AG84: =IFERROR(VLOOKUP($A84,Filtro!$A$5:$AK$2953,31,FALSE),0) -> 0 | AH84: =IFERROR(VLOOKUP($A84,Filtro!$A$5:$AK$2953,32,FALSE),0) -> 0 | AI84: =IFERROR(VLOOKUP($A84,Filtro!$A$5:$AK$2953,33,FALSE),0) -> 0 | AJ84: =IFERROR(VLOOKUP($A84,Filtro!$A$5:$AK$2953,34,FALSE),0) -> 0 | AK84: =IFERROR(VLOOKUP($A84,Filtro!$A$5:$AK$2953,35,FALSE),0) -> 0 | AL84: 8,000 | AM84: =IFERROR(VLOOKUP($A84,Filtro!$A$5:$AK$2953,37,FALSE),0) -> 8,000
A85: 01014336 | B85: 0108302 | C85: Teleconsulta Médica de Especialidad en Hematología | D85: =IFERROR(VLOOKUP($A85,Filtro!$A$5:$AK$2953,2,FALSE),0) -> 465 | E85: =IFERROR(VLOOKUP($A85,Filtro!$A$5:$AK$2953,3,FALSE),0) -> 465 | F85: =IFERROR(VLOOKUP($A85,Filtro!$A$5:$AK$2953,4,FALSE),0) -> 465 | G85: =IFERROR(VLOOKUP($A85,Filtro!$A$5:$AK$2953,5,FALSE),0) -> 0 | H85: =IFERROR(VLOOKUP($A85,Filtro!$A$5:$AK$2953,6,FALSE),0) -> 0 | AB85: =IFERROR(VLOOKUP($A85,Filtro!$A$5:$AK$2953,26,FALSE),0) -> 0 | AC85: =IFERROR(VLOOKUP($A85,Filtro!$A$5:$AK$2953,27,FALSE),0) -> 465 | AD85: =IFERROR(VLOOKUP($A85,Filtro!$A$5:$AK$2953,28,FALSE),0) -> 0 | AE85: =IFERROR(VLOOKUP($A85,Filtro!$A$5:$AK$2953,29,FALSE),0) -> 0 | AF85: =IFERROR(VLOOKUP($A85,Filtro!$A$5:$AK$2953,30,FALSE),0) -> 0 | AG85: =IFERROR(VLOOKUP($A85,Filtro!$A$5:$AK$2953,31,FALSE),0) -> 0 | AH85: =IFERROR(VLOOKUP($A85,Filtro!$A$5:$AK$2953,32,FALSE),0) -> 0 | AI85: =IFERROR(VLOOKUP($A85,Filtro!$A$5:$AK$2953,33,FALSE),0) -> 0 | AJ85: =IFERROR(VLOOKUP($A85,Filtro!$A$5:$AK$2953,34,FALSE),0) -> 0 | AK85: =IFERROR(VLOOKUP($A85,Filtro!$A$5:$AK$2953,35,FALSE),0) -> 0 | AL85: 8,000 | AM85: =IFERROR(VLOOKUP($A85,Filtro!$A$5:$AK$2953,37,FALSE),0) -> 3,720,000
A86: 01014337 | B86: 0108303 | C86: Teleconsulta Médica de Especialidad en Infectología | D86: =IFERROR(VLOOKUP($A86,Filtro!$A$5:$AK$2953,2,FALSE),0) -> 8 | E86: =IFERROR(VLOOKUP($A86,Filtro!$A$5:$AK$2953,3,FALSE),0) -> 8 | F86: =IFERROR(VLOOKUP($A86,Filtro!$A$5:$AK$2953,4,FALSE),0) -> 8 | G86: =IFERROR(VLOOKUP($A86,Filtro!$A$5:$AK$2953,5,FALSE),0) -> 0 | H86: =IFERROR(VLOOKUP($A86,Filtro!$A$5:$AK$2953,6,FALSE),0) -> 0 | AB86: =IFERROR(VLOOKUP($A86,Filtro!$A$5:$AK$2953,26,FALSE),0) -> 0 | AC86: =IFERROR(VLOOKUP($A86,Filtro!$A$5:$AK$2953,27,FALSE),0) -> 8 | AD86: =IFERROR(VLOOKUP($A86,Filtro!$A$5:$AK$2953,28,FALSE),0) -> 0 | AE86: =IFERROR(VLOOKUP($A86,Filtro!$A$5:$AK$2953,29,FALSE),0) -> 0 | AF86: =IFERROR(VLOOKUP($A86,Filtro!$A$5:$AK$2953,30,FALSE),0) -> 0 | AG86: =IFERROR(VLOOKUP($A86,Filtro!$A$5:$AK$2953,31,FALSE),0) -> 0 | AH86: =IFERROR(VLOOKUP($A86,Filtro!$A$5:$AK$2953,32,FALSE),0) -> 0 | AI86: =IFERROR(VLOOKUP($A86,Filtro!$A$5:$AK$2953,33,FALSE),0) -> 0 | AJ86: =IFERROR(VLOOKUP($A86,Filtro!$A$5:$AK$2953,34,FALSE),0) -> 0 | AK86: =IFERROR(VLOOKUP($A86,Filtro!$A$5:$AK$2953,35,FALSE),0) -> 0 | AL86: 8,000 | AM86: =IFERROR(VLOOKUP($A86,Filtro!$A$5:$AK$2953,37,FALSE),0) -> 64,000
A87: 01014338 | B87: 0108304 | C87: Teleconsulta Médica de Especialidad en Inmunología | D87: =IFERROR(VLOOKUP($A87,Filtro!$A$5:$AK$2953,2,FALSE),0) -> 442 | E87: =IFERROR(VLOOKUP($A87,Filtro!$A$5:$AK$2953,3,FALSE),0) -> 438 | F87: =IFERROR(VLOOKUP($A87,Filtro!$A$5:$AK$2953,4,FALSE),0) -> 438 | G87: =IFERROR(VLOOKUP($A87,Filtro!$A$5:$AK$2953,5,FALSE),0) -> 0 | H87: =IFERROR(VLOOKUP($A87,Filtro!$A$5:$AK$2953,6,FALSE),0) -> 4 | AB87: =IFERROR(VLOOKUP($A87,Filtro!$A$5:$AK$2953,26,FALSE),0) -> 0 | AC87: =IFERROR(VLOOKUP($A87,Filtro!$A$5:$AK$2953,27,FALSE),0) -> 442 | AD87: =IFERROR(VLOOKUP($A87,Filtro!$A$5:$AK$2953,28,FALSE),0) -> 0 | AE87: =IFERROR(VLOOKUP($A87,Filtro!$A$5:$AK$2953,29,FALSE),0) -> 0 | AF87: =IFERROR(VLOOKUP($A87,Filtro!$A$5:$AK$2953,30,FALSE),0) -> 0 | AG87: =IFERROR(VLOOKUP($A87,Filtro!$A$5:$AK$2953,31,FALSE),0) -> 0 | AH87: =IFERROR(VLOOKUP($A87,Filtro!$A$5:$AK$2953,32,FALSE),0) -> 0 | AI87: =IFERROR(VLOOKUP($A87,Filtro!$A$5:$AK$2953,33,FALSE),0) -> 0 | AJ87: =IFERROR(VLOOKUP($A87,Filtro!$A$5:$AK$2953,34,FALSE),0) -> 0 | AK87: =IFERROR(VLOOKUP($A87,Filtro!$A$5:$AK$2953,35,FALSE),0) -> 0 | AL87: 8,000 | AM87: =IFERROR(VLOOKUP($A87,Filtro!$A$5:$AK$2953,37,FALSE),0) -> 3,504,000
A88: 01014339 | B88: 0108305 | C88: Teleconsulta Médica de Especialidad en Medicina Familiar | D88: =IFERROR(VLOOKUP($A88,Filtro!$A$5:$AK$2953,2,FALSE),0) -> 63 | E88: =IFERROR(VLOOKUP($A88,Filtro!$A$5:$AK$2953,3,FALSE),0) -> 63 | F88: =IFERROR(VLOOKUP($A88,Filtro!$A$5:$AK$2953,4,FALSE),0) -> 63 | G88: =IFERROR(VLOOKUP($A88,Filtro!$A$5:$AK$2953,5,FALSE),0) -> 0 | H88: =IFERROR(VLOOKUP($A88,Filtro!$A$5:$AK$2953,6,FALSE),0) -> 0 | AB88: =IFERROR(VLOOKUP($A88,Filtro!$A$5:$AK$2953,26,FALSE),0) -> 0 | AC88: =IFERROR(VLOOKUP($A88,Filtro!$A$5:$AK$2953,27,FALSE),0) -> 63 | AD88: =IFERROR(VLOOKUP($A88,Filtro!$A$5:$AK$2953,28,FALSE),0) -> 0 | AE88: =IFERROR(VLOOKUP($A88,Filtro!$A$5:$AK$2953,29,FALSE),0) -> 0 | AF88: =IFERROR(VLOOKUP($A88,Filtro!$A$5:$AK$2953,30,FALSE),0) -> 0 | AG88: =IFERROR(VLOOKUP($A88,Filtro!$A$5:$AK$2953,31,FALSE),0) -> 0 | AH88: =IFERROR(VLOOKUP($A88,Filtro!$A$5:$AK$2953,32,FALSE),0) -> 0 | AI88: =IFERROR(VLOOKUP($A88,Filtro!$A$5:$AK$2953,33,FALSE),0) -> 0 | AJ88: =IFERROR(VLOOKUP($A88,Filtro!$A$5:$AK$2953,34,FALSE),0) -> 0 | AK88: =IFERROR(VLOOKUP($A88,Filtro!$A$5:$AK$2953,35,FALSE),0) -> 0 | AL88: 8,000 | AM88: =IFERROR(VLOOKUP($A88,Filtro!$A$5:$AK$2953,37,FALSE),0) -> 504,000
A89: 01014340 | B89: 0108306 | C89: Teleconsulta Médica de Especialidad en Medicina Física y Rehabilitación | D89: =IFERROR(VLOOKUP($A89,Filtro!$A$5:$AK$2953,2,FALSE),0) -> 194 | E89: =IFERROR(VLOOKUP($A89,Filtro!$A$5:$AK$2953,3,FALSE),0) -> 194 | F89: =IFERROR(VLOOKUP($A89,Filtro!$A$5:$AK$2953,4,FALSE),0) -> 194 | G89: =IFERROR(VLOOKUP($A89,Filtro!$A$5:$AK$2953,5,FALSE),0) -> 0 | H89: =IFERROR(VLOOKUP($A89,Filtro!$A$5:$AK$2953,6,FALSE),0) -> 0 | AB89: =IFERROR(VLOOKUP($A89,Filtro!$A$5:$AK$2953,26,FALSE),0) -> 0 | AC89: =IFERROR(VLOOKUP($A89,Filtro!$A$5:$AK$2953,27,FALSE),0) -> 194 | AD89: =IFERROR(VLOOKUP($A89,Filtro!$A$5:$AK$2953,28,FALSE),0) -> 0 | AE89: =IFERROR(VLOOKUP($A89,Filtro!$A$5:$AK$2953,29,FALSE),0) -> 0 | AF89: =IFERROR(VLOOKUP($A89,Filtro!$A$5:$AK$2953,30,FALSE),0) -> 0 | AG89: =IFERROR(VLOOKUP($A89,Filtro!$A$5:$AK$2953,31,FALSE),0) -> 0 | AH89: =IFERROR(VLOOKUP($A89,Filtro!$A$5:$AK$2953,32,FALSE),0) -> 0 | AI89: =IFERROR(VLOOKUP($A89,Filtro!$A$5:$AK$2953,33,FALSE),0) -> 0 | AJ89: =IFERROR(VLOOKUP($A89,Filtro!$A$5:$AK$2953,34,FALSE),0) -> 0 | AK89: =IFERROR(VLOOKUP($A89,Filtro!$A$5:$AK$2953,35,FALSE),0) -> 0 | AL89: 8,000 | AM89: =IFERROR(VLOOKUP($A89,Filtro!$A$5:$AK$2953,37,FALSE),0) -> 1,552,000
A90: 01014341 | B90: 0108307 | C90: Teleconsulta Médica de Especialidad en Medicina Interna | D90: =IFERROR(VLOOKUP($A90,Filtro!$A$5:$AK$2953,2,FALSE),0) -> 3301 | E90: =IFERROR(VLOOKUP($A90,Filtro!$A$5:$AK$2953,3,FALSE),0) -> 3294 | F90: =IFERROR(VLOOKUP($A90,Filtro!$A$5:$AK$2953,4,FALSE),0) -> 3294 | G90: =IFERROR(VLOOKUP($A90,Filtro!$A$5:$AK$2953,5,FALSE),0) -> 0 | H90: =IFERROR(VLOOKUP($A90,Filtro!$A$5:$AK$2953,6,FALSE),0) -> 7 | AB90: =IFERROR(VLOOKUP($A90,Filtro!$A$5:$AK$2953,26,FALSE),0) -> 0 | AC90: =IFERROR(VLOOKUP($A90,Filtro!$A$5:$AK$2953,27,FALSE),0) -> 3301 | AD90: =IFERROR(VLOOKUP($A90,Filtro!$A$5:$AK$2953,28,FALSE),0) -> 0 | AE90: =IFERROR(VLOOKUP($A90,Filtro!$A$5:$AK$2953,29,FALSE),0) -> 0 | AF90: =IFERROR(VLOOKUP($A90,Filtro!$A$5:$AK$2953,30,FALSE),0) -> 0 | AG90: =IFERROR(VLOOKUP($A90,Filtro!$A$5:$AK$2953,31,FALSE),0) -> 0 | AH90: =IFERROR(VLOOKUP($A90,Filtro!$A$5:$AK$2953,32,FALSE),0) -> 0 | AI90: =IFERROR(VLOOKUP($A90,Filtro!$A$5:$AK$2953,33,FALSE),0) -> 0 | AJ90: =IFERROR(VLOOKUP($A90,Filtro!$A$5:$AK$2953,34,FALSE),0) -> 0 | AK90: =IFERROR(VLOOKUP($A90,Filtro!$A$5:$AK$2953,35,FALSE),0) -> 0 | AL90: 8,000 | AM90: =IFERROR(VLOOKUP($A90,Filtro!$A$5:$AK$2953,37,FALSE),0) -> 26,352,000
A91: 01014342 | B91: 0108308 | C91: Teleconsulta Médica de Especialidad en Obstetricia y Ginecología | D91: =IFERROR(VLOOKUP($A91,Filtro!$A$5:$AK$2953,2,FALSE),0) -> 131 | E91: =IFERROR(VLOOKUP($A91,Filtro!$A$5:$AK$2953,3,FALSE),0) -> 131 | F91: =IFERROR(VLOOKUP($A91,Filtro!$A$5:$AK$2953,4,FALSE),0) -> 131 | G91: =IFERROR(VLOOKUP($A91,Filtro!$A$5:$AK$2953,5,FALSE),0) -> 0 | H91: =IFERROR(VLOOKUP($A91,Filtro!$A$5:$AK$2953,6,FALSE),0) -> 0 | AB91: =IFERROR(VLOOKUP($A91,Filtro!$A$5:$AK$2953,26,FALSE),0) -> 0 | AC91: =IFERROR(VLOOKUP($A91,Filtro!$A$5:$AK$2953,27,FALSE),0) -> 131 | AD91: =IFERROR(VLOOKUP($A91,Filtro!$A$5:$AK$2953,28,FALSE),0) -> 0 | AE91: =IFERROR(VLOOKUP($A91,Filtro!$A$5:$AK$2953,29,FALSE),0) -> 0 | AF91: =IFERROR(VLOOKUP($A91,Filtro!$A$5:$AK$2953,30,FALSE),0) -> 0 | AG91: =IFERROR(VLOOKUP($A91,Filtro!$A$5:$AK$2953,31,FALSE),0) -> 0 | AH91: =IFERROR(VLOOKUP($A91,Filtro!$A$5:$AK$2953,32,FALSE),0) -> 0 | AI91: =IFERROR(VLOOKUP($A91,Filtro!$A$5:$AK$2953,33,FALSE),0) -> 0 | AJ91: =IFERROR(VLOOKUP($A91,Filtro!$A$5:$AK$2953,34,FALSE),0) -> 0 | AK91: =IFERROR(VLOOKUP($A91,Filtro!$A$5:$AK$2953,35,FALSE),0) -> 0 | AL91: 8,000 | AM91: =IFERROR(VLOOKUP($A91,Filtro!$A$5:$AK$2953,37,FALSE),0) -> 1,048,000
A92: 01014343 | B92: 0108309 | C92: Teleconsulta Médica de Especialidad en Pediatría | D92: =IFERROR(VLOOKUP($A92,Filtro!$A$5:$AK$2953,2,FALSE),0) -> 101 | E92: =IFERROR(VLOOKUP($A92,Filtro!$A$5:$AK$2953,3,FALSE),0) -> 101 | F92: =IFERROR(VLOOKUP($A92,Filtro!$A$5:$AK$2953,4,FALSE),0) -> 101 | G92: =IFERROR(VLOOKUP($A92,Filtro!$A$5:$AK$2953,5,FALSE),0) -> 0 | H92: =IFERROR(VLOOKUP($A92,Filtro!$A$5:$AK$2953,6,FALSE),0) -> 0 | AB92: =IFERROR(VLOOKUP($A92,Filtro!$A$5:$AK$2953,26,FALSE),0) -> 0 | AC92: =IFERROR(VLOOKUP($A92,Filtro!$A$5:$AK$2953,27,FALSE),0) -> 101 | AD92: =IFERROR(VLOOKUP($A92,Filtro!$A$5:$AK$2953,28,FALSE),0) -> 0 | AE92: =IFERROR(VLOOKUP($A92,Filtro!$A$5:$AK$2953,29,FALSE),0) -> 0 | AF92: =IFERROR(VLOOKUP($A92,Filtro!$A$5:$AK$2953,30,FALSE),0) -> 0 | AG92: =IFERROR(VLOOKUP($A92,Filtro!$A$5:$AK$2953,31,FALSE),0) -> 0 | AH92: =IFERROR(VLOOKUP($A92,Filtro!$A$5:$AK$2953,32,FALSE),0) -> 0 | AI92: =IFERROR(VLOOKUP($A92,Filtro!$A$5:$AK$2953,33,FALSE),0) -> 0 | AJ92: =IFERROR(VLOOKUP($A92,Filtro!$A$5:$AK$2953,34,FALSE),0) -> 0 | AK92: =IFERROR(VLOOKUP($A92,Filtro!$A$5:$AK$2953,35,FALSE),0) -> 0 | AL92: 8,000 | AM92: =IFERROR(VLOOKUP($A92,Filtro!$A$5:$AK$2953,37,FALSE),0) -> 808,000
A93: 01014344 | B93: 0108310 | C93: Teleconsulta Médica de Especialidad en Traumatología y Ortopedia | D93: =IFERROR(VLOOKUP($A93,Filtro!$A$5:$AK$2953,2,FALSE),0) -> 0 | E93: =IFERROR(VLOOKUP($A93,Filtro!$A$5:$AK$2953,3,FALSE),0) -> 0 | F93: =IFERROR(VLOOKUP($A93,Filtro!$A$5:$AK$2953,4,FALSE),0) -> 0 | G93: =IFERROR(VLOOKUP($A93,Filtro!$A$5:$AK$2953,5,FALSE),0) -> 0 | H93: =IFERROR(VLOOKUP($A93,Filtro!$A$5:$AK$2953,6,FALSE),0) -> 0 | AB93: =IFERROR(VLOOKUP($A93,Filtro!$A$5:$AK$2953,26,FALSE),0) -> 0 | AC93: =IFERROR(VLOOKUP($A93,Filtro!$A$5:$AK$2953,27,FALSE),0) -> 0 | AD93: =IFERROR(VLOOKUP($A93,Filtro!$A$5:$AK$2953,28,FALSE),0) -> 0 | AE93: =IFERROR(VLOOKUP($A93,Filtro!$A$5:$AK$2953,29,FALSE),0) -> 0 | AF93: =IFERROR(VLOOKUP($A93,Filtro!$A$5:$AK$2953,30,FALSE),0) -> 0 | AG93: =IFERROR(VLOOKUP($A93,Filtro!$A$5:$AK$2953,31,FALSE),0) -> 0 | AH93: =IFERROR(VLOOKUP($A93,Filtro!$A$5:$AK$2953,32,FALSE),0) -> 0 | AI93: =IFERROR(VLOOKUP($A93,Filtro!$A$5:$AK$2953,33,FALSE),0) -> 0 | AJ93: =IFERROR(VLOOKUP($A93,Filtro!$A$5:$AK$2953,34,FALSE),0) -> 0 | AK93: =IFERROR(VLOOKUP($A93,Filtro!$A$5:$AK$2953,35,FALSE),0) -> 0 | AL93: 8,000 | AM93: =IFERROR(VLOOKUP($A93,Filtro!$A$5:$AK$2953,37,FALSE),0) -> 0
A94: 01014345 | B94: 0108311 | C94: Teleconsulta Médica de Especialidad en Urología | D94: =IFERROR(VLOOKUP($A94,Filtro!$A$5:$AK$2953,2,FALSE),0) -> 1 | E94: =IFERROR(VLOOKUP($A94,Filtro!$A$5:$AK$2953,3,FALSE),0) -> 1 | F94: =IFERROR(VLOOKUP($A94,Filtro!$A$5:$AK$2953,4,FALSE),0) -> 1 | G94: =IFERROR(VLOOKUP($A94,Filtro!$A$5:$AK$2953,5,FALSE),0) -> 0 | H94: =IFERROR(VLOOKUP($A94,Filtro!$A$5:$AK$2953,6,FALSE),0) -> 0 | AB94: =IFERROR(VLOOKUP($A94,Filtro!$A$5:$AK$2953,26,FALSE),0) -> 0 | AC94: =IFERROR(VLOOKUP($A94,Filtro!$A$5:$AK$2953,27,FALSE),0) -> 1 | AD94: =IFERROR(VLOOKUP($A94,Filtro!$A$5:$AK$2953,28,FALSE),0) -> 0 | AE94: =IFERROR(VLOOKUP($A94,Filtro!$A$5:$AK$2953,29,FALSE),0) -> 0 | AF94: =IFERROR(VLOOKUP($A94,Filtro!$A$5:$AK$2953,30,FALSE),0) -> 0 | AG94: =IFERROR(VLOOKUP($A94,Filtro!$A$5:$AK$2953,31,FALSE),0) -> 0 | AH94: =IFERROR(VLOOKUP($A94,Filtro!$A$5:$AK$2953,32,FALSE),0) -> 0 | AI94: =IFERROR(VLOOKUP($A94,Filtro!$A$5:$AK$2953,33,FALSE),0) -> 0 | AJ94: =IFERROR(VLOOKUP($A94,Filtro!$A$5:$AK$2953,34,FALSE),0) -> 0 | AK94: =IFERROR(VLOOKUP($A94,Filtro!$A$5:$AK$2953,35,FALSE),0) -> 0 | AL94: 8,000 | AM94: =IFERROR(VLOOKUP($A94,Filtro!$A$5:$AK$2953,37,FALSE),0) -> 8,000
A95: 01014346 | B95: 0108319 | C95: Teleconsulta Médica de Especialidad en Coloproctología | D95: =IFERROR(VLOOKUP($A95,Filtro!$A$5:$AK$2953,2,FALSE),0) -> 49 | E95: =IFERROR(VLOOKUP($A95,Filtro!$A$5:$AK$2953,3,FALSE),0) -> 49 | F95: =IFERROR(VLOOKUP($A95,Filtro!$A$5:$AK$2953,4,FALSE),0) -> 49 | G95: =IFERROR(VLOOKUP($A95,Filtro!$A$5:$AK$2953,5,FALSE),0) -> 0 | H95: =IFERROR(VLOOKUP($A95,Filtro!$A$5:$AK$2953,6,FALSE),0) -> 0 | AB95: =IFERROR(VLOOKUP($A95,Filtro!$A$5:$AK$2953,26,FALSE),0) -> 0 | AC95: =IFERROR(VLOOKUP($A95,Filtro!$A$5:$AK$2953,27,FALSE),0) -> 49 | AD95: =IFERROR(VLOOKUP($A95,Filtro!$A$5:$AK$2953,28,FALSE),0) -> 0 | AE95: =IFERROR(VLOOKUP($A95,Filtro!$A$5:$AK$2953,29,FALSE),0) -> 0 | AF95: =IFERROR(VLOOKUP($A95,Filtro!$A$5:$AK$2953,30,FALSE),0) -> 0 | AG95: =IFERROR(VLOOKUP($A95,Filtro!$A$5:$AK$2953,31,FALSE),0) -> 0 | AH95: =IFERROR(VLOOKUP($A95,Filtro!$A$5:$AK$2953,32,FALSE),0) -> 0 | AI95: =IFERROR(VLOOKUP($A95,Filtro!$A$5:$AK$2953,33,FALSE),0) -> 0 | AJ95: =IFERROR(VLOOKUP($A95,Filtro!$A$5:$AK$2953,34,FALSE),0) -> 0 | AK95: =IFERROR(VLOOKUP($A95,Filtro!$A$5:$AK$2953,35,FALSE),0) -> 0 | AL95: 8,000 | AM95: =IFERROR(VLOOKUP($A95,Filtro!$A$5:$AK$2953,37,FALSE),0) -> 392,000
A96: 01014347 | B96: 0108320 | C96: Teleconsulta Médica de Especialidad en Diabetología | D96: =IFERROR(VLOOKUP($A96,Filtro!$A$5:$AK$2953,2,FALSE),0) -> 19 | E96: =IFERROR(VLOOKUP($A96,Filtro!$A$5:$AK$2953,3,FALSE),0) -> 19 | F96: =IFERROR(VLOOKUP($A96,Filtro!$A$5:$AK$2953,4,FALSE),0) -> 19 | G96: =IFERROR(VLOOKUP($A96,Filtro!$A$5:$AK$2953,5,FALSE),0) -> 0 | H96: =IFERROR(VLOOKUP($A96,Filtro!$A$5:$AK$2953,6,FALSE),0) -> 0 | AB96: =IFERROR(VLOOKUP($A96,Filtro!$A$5:$AK$2953,26,FALSE),0) -> 0 | AC96: =IFERROR(VLOOKUP($A96,Filtro!$A$5:$AK$2953,27,FALSE),0) -> 19 | AD96: =IFERROR(VLOOKUP($A96,Filtro!$A$5:$AK$2953,28,FALSE),0) -> 0 | AE96: =IFERROR(VLOOKUP($A96,Filtro!$A$5:$AK$2953,29,FALSE),0) -> 0 | AF96: =IFERROR(VLOOKUP($A96,Filtro!$A$5:$AK$2953,30,FALSE),0) -> 0 | AG96: =IFERROR(VLOOKUP($A96,Filtro!$A$5:$AK$2953,31,FALSE),0) -> 0 | AH96: =IFERROR(VLOOKUP($A96,Filtro!$A$5:$AK$2953,32,FALSE),0) -> 0 | AI96: =IFERROR(VLOOKUP($A96,Filtro!$A$5:$AK$2953,33,FALSE),0) -> 0 | AJ96: =IFERROR(VLOOKUP($A96,Filtro!$A$5:$AK$2953,34,FALSE),0) -> 0 | AK96: =IFERROR(VLOOKUP($A96,Filtro!$A$5:$AK$2953,35,FALSE),0) -> 0 | AL96: 8,000 | AM96: =IFERROR(VLOOKUP($A96,Filtro!$A$5:$AK$2953,37,FALSE),0) -> 152,000
A97: 01014348 | B97: 0108321 | C97: Teleconsulta Médica de Especialidad en Enfermedades Respiratorias Adulto | D97: =IFERROR(VLOOKUP($A97,Filtro!$A$5:$AK$2953,2,FALSE),0) -> 86 | E97: =IFERROR(VLOOKUP($A97,Filtro!$A$5:$AK$2953,3,FALSE),0) -> 86 | F97: =IFERROR(VLOOKUP($A97,Filtro!$A$5:$AK$2953,4,FALSE),0) -> 86 | G97: =IFERROR(VLOOKUP($A97,Filtro!$A$5:$AK$2953,5,FALSE),0) -> 0 | H97: =IFERROR(VLOOKUP($A97,Filtro!$A$5:$AK$2953,6,FALSE),0) -> 0 | AB97: =IFERROR(VLOOKUP($A97,Filtro!$A$5:$AK$2953,26,FALSE),0) -> 0 | AC97: =IFERROR(VLOOKUP($A97,Filtro!$A$5:$AK$2953,27,FALSE),0) -> 86 | AD97: =IFERROR(VLOOKUP($A97,Filtro!$A$5:$AK$2953,28,FALSE),0) -> 0 | AE97: =IFERROR(VLOOKUP($A97,Filtro!$A$5:$AK$2953,29,FALSE),0) -> 0 | AF97: =IFERROR(VLOOKUP($A97,Filtro!$A$5:$AK$2953,30,FALSE),0) -> 0 | AG97: =IFERROR(VLOOKUP($A97,Filtro!$A$5:$AK$2953,31,FALSE),0) -> 0 | AH97: =IFERROR(VLOOKUP($A97,Filtro!$A$5:$AK$2953,32,FALSE),0) -> 0 | AI97: =IFERROR(VLOOKUP($A97,Filtro!$A$5:$AK$2953,33,FALSE),0) -> 0 | AJ97: =IFERROR(VLOOKUP($A97,Filtro!$A$5:$AK$2953,34,FALSE),0) -> 0 | AK97: =IFERROR(VLOOKUP($A97,Filtro!$A$5:$AK$2953,35,FALSE),0) -> 0 | AL97: 8,000 | AM97: =IFERROR(VLOOKUP($A97,Filtro!$A$5:$AK$2953,37,FALSE),0) -> 688,000
A98: 01014349 | B98: 0108322 | C98: Teleconsulta Médica de Especialidad en Enfermedades Respiratorias Pediátricas | D98: =IFERROR(VLOOKUP($A98,Filtro!$A$5:$AK$2953,2,FALSE),0) -> 105 | E98: =IFERROR(VLOOKUP($A98,Filtro!$A$5:$AK$2953,3,FALSE),0) -> 105 | F98: =IFERROR(VLOOKUP($A98,Filtro!$A$5:$AK$2953,4,FALSE),0) -> 105 | G98: =IFERROR(VLOOKUP($A98,Filtro!$A$5:$AK$2953,5,FALSE),0) -> 0 | H98: =IFERROR(VLOOKUP($A98,Filtro!$A$5:$AK$2953,6,FALSE),0) -> 0 | AB98: =IFERROR(VLOOKUP($A98,Filtro!$A$5:$AK$2953,26,FALSE),0) -> 0 | AC98: =IFERROR(VLOOKUP($A98,Filtro!$A$5:$AK$2953,27,FALSE),0) -> 105 | AD98: =IFERROR(VLOOKUP($A98,Filtro!$A$5:$AK$2953,28,FALSE),0) -> 0 | AE98: =IFERROR(VLOOKUP($A98,Filtro!$A$5:$AK$2953,29,FALSE),0) -> 0 | AF98: =IFERROR(VLOOKUP($A98,Filtro!$A$5:$AK$2953,30,FALSE),0) -> 0 | AG98: =IFERROR(VLOOKUP($A98,Filtro!$A$5:$AK$2953,31,FALSE),0) -> 0 | AH98: =IFERROR(VLOOKUP($A98,Filtro!$A$5:$AK$2953,32,FALSE),0) -> 0 | AI98: =IFERROR(VLOOKUP($A98,Filtro!$A$5:$AK$2953,33,FALSE),0) -> 0 | AJ98: =IFERROR(VLOOKUP($A98,Filtro!$A$5:$AK$2953,34,FALSE),0) -> 0 | AK98: =IFERROR(VLOOKUP($A98,Filtro!$A$5:$AK$2953,35,FALSE),0) -> 0 | AL98: 8,000 | AM98: =IFERROR(VLOOKUP($A98,Filtro!$A$5:$AK$2953,37,FALSE),0) -> 840,000
A99: 01014350 | B99: 0108323 | C99: Teleconsulta Médica de Especialidad en Gastroenterología Adulto | D99: =IFERROR(VLOOKUP($A99,Filtro!$A$5:$AK$2953,2,FALSE),0) -> 45 | E99: =IFERROR(VLOOKUP($A99,Filtro!$A$5:$AK$2953,3,FALSE),0) -> 45 | F99: =IFERROR(VLOOKUP($A99,Filtro!$A$5:$AK$2953,4,FALSE),0) -> 45 | G99: =IFERROR(VLOOKUP($A99,Filtro!$A$5:$AK$2953,5,FALSE),0) -> 0 | H99: =IFERROR(VLOOKUP($A99,Filtro!$A$5:$AK$2953,6,FALSE),0) -> 0 | AB99: =IFERROR(VLOOKUP($A99,Filtro!$A$5:$AK$2953,26,FALSE),0) -> 0 | AC99: =IFERROR(VLOOKUP($A99,Filtro!$A$5:$AK$2953,27,FALSE),0) -> 45 | AD99: =IFERROR(VLOOKUP($A99,Filtro!$A$5:$AK$2953,28,FALSE),0) -> 0 | AE99: =IFERROR(VLOOKUP($A99,Filtro!$A$5:$AK$2953,29,FALSE),0) -> 0 | AF99: =IFERROR(VLOOKUP($A99,Filtro!$A$5:$AK$2953,30,FALSE),0) -> 0 | AG99: =IFERROR(VLOOKUP($A99,Filtro!$A$5:$AK$2953,31,FALSE),0) -> 0 | AH99: =IFERROR(VLOOKUP($A99,Filtro!$A$5:$AK$2953,32,FALSE),0) -> 0 | AI99: =IFERROR(VLOOKUP($A99,Filtro!$A$5:$AK$2953,33,FALSE),0) -> 0 | AJ99: =IFERROR(VLOOKUP($A99,Filtro!$A$5:$AK$2953,34,FALSE),0) -> 0 | AK99: =IFERROR(VLOOKUP($A99,Filtro!$A$5:$AK$2953,35,FALSE),0) -> 0 | AL99: 8,000 | AM99: =IFERROR(VLOOKUP($A99,Filtro!$A$5:$AK$2953,37,FALSE),0) -> 360,000
A100: 01014351 | B100: 0108324 | C100: Teleconsulta Médica de Especialidad en Gastroenterología Pediátrico | D100: =IFERROR(VLOOKUP($A100,Filtro!$A$5:$AK$2953,2,FALSE),0) -> 65 | E100: =IFERROR(VLOOKUP($A100,Filtro!$A$5:$AK$2953,3,FALSE),0) -> 65 | F100: =IFERROR(VLOOKUP($A100,Filtro!$A$5:$AK$2953,4,FALSE),0) -> 65 | G100: =IFERROR(VLOOKUP($A100,Filtro!$A$5:$AK$2953,5,FALSE),0) -> 0 | H100: =IFERROR(VLOOKUP($A100,Filtro!$A$5:$AK$2953,6,FALSE),0) -> 0 | AB100: =IFERROR(VLOOKUP($A100,Filtro!$A$5:$AK$2953,26,FALSE),0) -> 0 | AC100: =IFERROR(VLOOKUP($A100,Filtro!$A$5:$AK$2953,27,FALSE),0) -> 65 | AD100: =IFERROR(VLOOKUP($A100,Filtro!$A$5:$AK$2953,28,FALSE),0) -> 0 | AE100: =IFERROR(VLOOKUP($A100,Filtro!$A$5:$AK$2953,29,FALSE),0) -> 0 | AF100: =IFERROR(VLOOKUP($A100,Filtro!$A$5:$AK$2953,30,FALSE),0) -> 0 | AG100: =IFERROR(VLOOKUP($A100,Filtro!$A$5:$AK$2953,31,FALSE),0) -> 0 | AH100: =IFERROR(VLOOKUP($A100,Filtro!$A$5:$AK$2953,32,FALSE),0) -> 0 | AI100: =IFERROR(VLOOKUP($A100,Filtro!$A$5:$AK$2953,33,FALSE),0) -> 0 | AJ100: =IFERROR(VLOOKUP($A100,Filtro!$A$5:$AK$2953,34,FALSE),0) -> 0 | AK100: =IFERROR(VLOOKUP($A100,Filtro!$A$5:$AK$2953,35,FALSE),0) -> 0 | AL100: 8,000 | AM100: =IFERROR(VLOOKUP($A100,Filtro!$A$5:$AK$2953,37,FALSE),0) -> 520,000
A101: 01014352 | B101: 0108325 | C101: Teleconsulta Médica de Especialidad en Genética Clínica | D101: =IFERROR(VLOOKUP($A101,Filtro!$A$5:$AK$2953,2,FALSE),0) -> 67 | E101: =IFERROR(VLOOKUP($A101,Filtro!$A$5:$AK$2953,3,FALSE),0) -> 67 | F101: =IFERROR(VLOOKUP($A101,Filtro!$A$5:$AK$2953,4,FALSE),0) -> 67 | G101: =IFERROR(VLOOKUP($A101,Filtro!$A$5:$AK$2953,5,FALSE),0) -> 0 | H101: =IFERROR(VLOOKUP($A101,Filtro!$A$5:$AK$2953,6,FALSE),0) -> 0 | AB101: =IFERROR(VLOOKUP($A101,Filtro!$A$5:$AK$2953,26,FALSE),0) -> 0 | AC101: =IFERROR(VLOOKUP($A101,Filtro!$A$5:$AK$2953,27,FALSE),0) -> 67 | AD101: =IFERROR(VLOOKUP($A101,Filtro!$A$5:$AK$2953,28,FALSE),0) -> 0 | AE101: =IFERROR(VLOOKUP($A101,Filtro!$A$5:$AK$2953,29,FALSE),0) -> 0 | AF101: =IFERROR(VLOOKUP($A101,Filtro!$A$5:$AK$2953,30,FALSE),0) -> 0 | AG101: =IFERROR(VLOOKUP($A101,Filtro!$A$5:$AK$2953,31,FALSE),0) -> 0 | AH101: =IFERROR(VLOOKUP($A101,Filtro!$A$5:$AK$2953,32,FALSE),0) -> 0 | AI101: =IFERROR(VLOOKUP($A101,Filtro!$A$5:$AK$2953,33,FALSE),0) -> 0 | AJ101: =IFERROR(VLOOKUP($A101,Filtro!$A$5:$AK$2953,34,FALSE),0) -> 0 | AK101: =IFERROR(VLOOKUP($A101,Filtro!$A$5:$AK$2953,35,FALSE),0) -> 0 | AL101: 8,000 | AM101: =IFERROR(VLOOKUP($A101,Filtro!$A$5:$AK$2953,37,FALSE),0) -> 536,000
A102: 01014353 | B102: 0108326 | C102: Teleconsulta Médica de Especialidad en Nefrología Adulto | D102: =IFERROR(VLOOKUP($A102,Filtro!$A$5:$AK$2953,2,FALSE),0) -> 744 | E102: =IFERROR(VLOOKUP($A102,Filtro!$A$5:$AK$2953,3,FALSE),0) -> 741 | F102: =IFERROR(VLOOKUP($A102,Filtro!$A$5:$AK$2953,4,FALSE),0) -> 741 | G102: =IFERROR(VLOOKUP($A102,Filtro!$A$5:$AK$2953,5,FALSE),0) -> 0 | H102: =IFERROR(VLOOKUP($A102,Filtro!$A$5:$AK$2953,6,FALSE),0) -> 3 | AB102: =IFERROR(VLOOKUP($A102,Filtro!$A$5:$AK$2953,26,FALSE),0) -> 0 | AC102: =IFERROR(VLOOKUP($A102,Filtro!$A$5:$AK$2953,27,FALSE),0) -> 744 | AD102: =IFERROR(VLOOKUP($A102,Filtro!$A$5:$AK$2953,28,FALSE),0) -> 0 | AE102: =IFERROR(VLOOKUP($A102,Filtro!$A$5:$AK$2953,29,FALSE),0) -> 0 | AF102: =IFERROR(VLOOKUP($A102,Filtro!$A$5:$AK$2953,30,FALSE),0) -> 0 | AG102: =IFERROR(VLOOKUP($A102,Filtro!$A$5:$AK$2953,31,FALSE),0) -> 0 | AH102: =IFERROR(VLOOKUP($A102,Filtro!$A$5:$AK$2953,32,FALSE),0) -> 0 | AI102: =IFERROR(VLOOKUP($A102,Filtro!$A$5:$AK$2953,33,FALSE),0) -> 0 | AJ102: =IFERROR(VLOOKUP($A102,Filtro!$A$5:$AK$2953,34,FALSE),0) -> 0 | AK102: =IFERROR(VLOOKUP($A102,Filtro!$A$5:$AK$2953,35,FALSE),0) -> 0 | AL102: 8,000 | AM102: =IFERROR(VLOOKUP($A102,Filtro!$A$5:$AK$2953,37,FALSE),0) -> 5,928,000
A103: 01014354 | B103: 0108327 | C103: Teleconsulta Médica de Especialidad en Nefrología Pediátrico | D103: =IFERROR(VLOOKUP($A103,Filtro!$A$5:$AK$2953,2,FALSE),0) -> 3 | E103: =IFERROR(VLOOKUP($A103,Filtro!$A$5:$AK$2953,3,FALSE),0) -> 3 | F103: =IFERROR(VLOOKUP($A103,Filtro!$A$5:$AK$2953,4,FALSE),0) -> 3 | G103: =IFERROR(VLOOKUP($A103,Filtro!$A$5:$AK$2953,5,FALSE),0) -> 0 | H103: =IFERROR(VLOOKUP($A103,Filtro!$A$5:$AK$2953,6,FALSE),0) -> 0 | AB103: =IFERROR(VLOOKUP($A103,Filtro!$A$5:$AK$2953,26,FALSE),0) -> 0 | AC103: =IFERROR(VLOOKUP($A103,Filtro!$A$5:$AK$2953,27,FALSE),0) -> 3 | AD103: =IFERROR(VLOOKUP($A103,Filtro!$A$5:$AK$2953,28,FALSE),0) -> 0 | AE103: =IFERROR(VLOOKUP($A103,Filtro!$A$5:$AK$2953,29,FALSE),0) -> 0 | AF103: =IFERROR(VLOOKUP($A103,Filtro!$A$5:$AK$2953,30,FALSE),0) -> 0 | AG103: =IFERROR(VLOOKUP($A103,Filtro!$A$5:$AK$2953,31,FALSE),0) -> 0 | AH103: =IFERROR(VLOOKUP($A103,Filtro!$A$5:$AK$2953,32,FALSE),0) -> 0 | AI103: =IFERROR(VLOOKUP($A103,Filtro!$A$5:$AK$2953,33,FALSE),0) -> 0 | AJ103: =IFERROR(VLOOKUP($A103,Filtro!$A$5:$AK$2953,34,FALSE),0) -> 0 | AK103: =IFERROR(VLOOKUP($A103,Filtro!$A$5:$AK$2953,35,FALSE),0) -> 0 | AL103: 8,000 | AM103: =IFERROR(VLOOKUP($A103,Filtro!$A$5:$AK$2953,37,FALSE),0) -> 24,000
A104: 01014355 | B104: 0108331 | C104: Teleconsulta Médica de Especialidad en Radioterapia Oncológica | D104: =IFERROR(VLOOKUP($A104,Filtro!$A$5:$AK$2953,2,FALSE),0) -> 0 | E104: =IFERROR(VLOOKUP($A104,Filtro!$A$5:$AK$2953,3,FALSE),0) -> 0 | F104: =IFERROR(VLOOKUP($A104,Filtro!$A$5:$AK$2953,4,FALSE),0) -> 0 | G104: =IFERROR(VLOOKUP($A104,Filtro!$A$5:$AK$2953,5,FALSE),0) -> 0 | H104: =IFERROR(VLOOKUP($A104,Filtro!$A$5:$AK$2953,6,FALSE),0) -> 0 | AB104: =IFERROR(VLOOKUP($A104,Filtro!$A$5:$AK$2953,26,FALSE),0) -> 0 | AC104: =IFERROR(VLOOKUP($A104,Filtro!$A$5:$AK$2953,27,FALSE),0) -> 0 | AD104: =IFERROR(VLOOKUP($A104,Filtro!$A$5:$AK$2953,28,FALSE),0) -> 0 | AE104: =IFERROR(VLOOKUP($A104,Filtro!$A$5:$AK$2953,29,FALSE),0) -> 0 | AF104: =IFERROR(VLOOKUP($A104,Filtro!$A$5:$AK$2953,30,FALSE),0) -> 0 | AG104: =IFERROR(VLOOKUP($A104,Filtro!$A$5:$AK$2953,31,FALSE),0) -> 0 | AH104: =IFERROR(VLOOKUP($A104,Filtro!$A$5:$AK$2953,32,FALSE),0) -> 0 | AI104: =IFERROR(VLOOKUP($A104,Filtro!$A$5:$AK$2953,33,FALSE),0) -> 0 | AJ104: =IFERROR(VLOOKUP($A104,Filtro!$A$5:$AK$2953,34,FALSE),0) -> 0 | AK104: =IFERROR(VLOOKUP($A104,Filtro!$A$5:$AK$2953,35,FALSE),0) -> 0 | AL104: 8,000 | AM104: =IFERROR(VLOOKUP($A104,Filtro!$A$5:$AK$2953,37,FALSE),0) -> 0
A105: 01014356 | B105: 0108203 | C105: Teleconsulta Médica de Especialidad en Neurocirugía | D105: =IFERROR(VLOOKUP($A105,Filtro!$A$5:$AK$2953,2,FALSE),0) -> 0 | E105: =IFERROR(VLOOKUP($A105,Filtro!$A$5:$AK$2953,3,FALSE),0) -> 0 | F105: =IFERROR(VLOOKUP($A105,Filtro!$A$5:$AK$2953,4,FALSE),0) -> 0 | G105: =IFERROR(VLOOKUP($A105,Filtro!$A$5:$AK$2953,5,FALSE),0) -> 0 | H105: =IFERROR(VLOOKUP($A105,Filtro!$A$5:$AK$2953,6,FALSE),0) -> 0 | AB105: =IFERROR(VLOOKUP($A105,Filtro!$A$5:$AK$2953,26,FALSE),0) -> 0 | AC105: =IFERROR(VLOOKUP($A105,Filtro!$A$5:$AK$2953,27,FALSE),0) -> 0 | AD105: =IFERROR(VLOOKUP($A105,Filtro!$A$5:$AK$2953,28,FALSE),0) -> 0 | AE105: =IFERROR(VLOOKUP($A105,Filtro!$A$5:$AK$2953,29,FALSE),0) -> 0 | AF105: =IFERROR(VLOOKUP($A105,Filtro!$A$5:$AK$2953,30,FALSE),0) -> 0 | AG105: =IFERROR(VLOOKUP($A105,Filtro!$A$5:$AK$2953,31,FALSE),0) -> 0 | AH105: =IFERROR(VLOOKUP($A105,Filtro!$A$5:$AK$2953,32,FALSE),0) -> 0 | AI105: =IFERROR(VLOOKUP($A105,Filtro!$A$5:$AK$2953,33,FALSE),0) -> 0 | AJ105: =IFERROR(VLOOKUP($A105,Filtro!$A$5:$AK$2953,34,FALSE),0) -> 0 | AK105: =IFERROR(VLOOKUP($A105,Filtro!$A$5:$AK$2953,35,FALSE),0) -> 0 | AL105: 8,000 | AM105: =IFERROR(VLOOKUP($A105,Filtro!$A$5:$AK$2953,37,FALSE),0) -> 0
A106: 01014357 | B106: 0108204 | C106: Teleconsulta Médica de Especialidad en Oftalmología | D106: =IFERROR(VLOOKUP($A106,Filtro!$A$5:$AK$2953,2,FALSE),0) -> 290 | E106: =IFERROR(VLOOKUP($A106,Filtro!$A$5:$AK$2953,3,FALSE),0) -> 290 | F106: =IFERROR(VLOOKUP($A106,Filtro!$A$5:$AK$2953,4,FALSE),0) -> 290 | G106: =IFERROR(VLOOKUP($A106,Filtro!$A$5:$AK$2953,5,FALSE),0) -> 0 | H106: =IFERROR(VLOOKUP($A106,Filtro!$A$5:$AK$2953,6,FALSE),0) -> 0 | AB106: =IFERROR(VLOOKUP($A106,Filtro!$A$5:$AK$2953,26,FALSE),0) -> 0 | AC106: =IFERROR(VLOOKUP($A106,Filtro!$A$5:$AK$2953,27,FALSE),0) -> 290 | AD106: =IFERROR(VLOOKUP($A106,Filtro!$A$5:$AK$2953,28,FALSE),0) -> 0 | AE106: =IFERROR(VLOOKUP($A106,Filtro!$A$5:$AK$2953,29,FALSE),0) -> 0 | AF106: =IFERROR(VLOOKUP($A106,Filtro!$A$5:$AK$2953,30,FALSE),0) -> 0 | AG106: =IFERROR(VLOOKUP($A106,Filtro!$A$5:$AK$2953,31,FALSE),0) -> 0 | AH106: =IFERROR(VLOOKUP($A106,Filtro!$A$5:$AK$2953,32,FALSE),0) -> 0 | AI106: =IFERROR(VLOOKUP($A106,Filtro!$A$5:$AK$2953,33,FALSE),0) -> 0 | AJ106: =IFERROR(VLOOKUP($A106,Filtro!$A$5:$AK$2953,34,FALSE),0) -> 0 | AK106: =IFERROR(VLOOKUP($A106,Filtro!$A$5:$AK$2953,35,FALSE),0) -> 0 | AL106: 8,000 | AM106: =IFERROR(VLOOKUP($A106,Filtro!$A$5:$AK$2953,37,FALSE),0) -> 2,320,000
A107: 01014358 | B107: 0108205 | C107: Teleconsulta Médica de Especialidad en Otorrinolaringología | D107: =IFERROR(VLOOKUP($A107,Filtro!$A$5:$AK$2953,2,FALSE),0) -> 19 | E107: =IFERROR(VLOOKUP($A107,Filtro!$A$5:$AK$2953,3,FALSE),0) -> 19 | F107: =IFERROR(VLOOKUP($A107,Filtro!$A$5:$AK$2953,4,FALSE),0) -> 19 | G107: =IFERROR(VLOOKUP($A107,Filtro!$A$5:$AK$2953,5,FALSE),0) -> 0 | H107: =IFERROR(VLOOKUP($A107,Filtro!$A$5:$AK$2953,6,FALSE),0) -> 0 | AB107: =IFERROR(VLOOKUP($A107,Filtro!$A$5:$AK$2953,26,FALSE),0) -> 0 | AC107: =IFERROR(VLOOKUP($A107,Filtro!$A$5:$AK$2953,27,FALSE),0) -> 19 | AD107: =IFERROR(VLOOKUP($A107,Filtro!$A$5:$AK$2953,28,FALSE),0) -> 0 | AE107: =IFERROR(VLOOKUP($A107,Filtro!$A$5:$AK$2953,29,FALSE),0) -> 0 | AF107: =IFERROR(VLOOKUP($A107,Filtro!$A$5:$AK$2953,30,FALSE),0) -> 0 | AG107: =IFERROR(VLOOKUP($A107,Filtro!$A$5:$AK$2953,31,FALSE),0) -> 0 | AH107: =IFERROR(VLOOKUP($A107,Filtro!$A$5:$AK$2953,32,FALSE),0) -> 0 | AI107: =IFERROR(VLOOKUP($A107,Filtro!$A$5:$AK$2953,33,FALSE),0) -> 0 | AJ107: =IFERROR(VLOOKUP($A107,Filtro!$A$5:$AK$2953,34,FALSE),0) -> 0 | AK107: =IFERROR(VLOOKUP($A107,Filtro!$A$5:$AK$2953,35,FALSE),0) -> 0 | AL107: 8,000 | AM107: =IFERROR(VLOOKUP($A107,Filtro!$A$5:$AK$2953,37,FALSE),0) -> 152,000
A108: 01014359 | B108: 0108312 | C108: Teleconsulta Médica de Especialidad en Cirugía General | D108: =IFERROR(VLOOKUP($A108,Filtro!$A$5:$AK$2953,2,FALSE),0) -> 138 | E108: =IFERROR(VLOOKUP($A108,Filtro!$A$5:$AK$2953,3,FALSE),0) -> 138 | F108: =IFERROR(VLOOKUP($A108,Filtro!$A$5:$AK$2953,4,FALSE),0) -> 138 | G108: =IFERROR(VLOOKUP($A108,Filtro!$A$5:$AK$2953,5,FALSE),0) -> 0 | H108: =IFERROR(VLOOKUP($A108,Filtro!$A$5:$AK$2953,6,FALSE),0) -> 0 | AB108: =IFERROR(VLOOKUP($A108,Filtro!$A$5:$AK$2953,26,FALSE),0) -> 0 | AC108: =IFERROR(VLOOKUP($A108,Filtro!$A$5:$AK$2953,27,FALSE),0) -> 138 | AD108: =IFERROR(VLOOKUP($A108,Filtro!$A$5:$AK$2953,28,FALSE),0) -> 0 | AE108: =IFERROR(VLOOKUP($A108,Filtro!$A$5:$AK$2953,29,FALSE),0) -> 0 | AF108: =IFERROR(VLOOKUP($A108,Filtro!$A$5:$AK$2953,30,FALSE),0) -> 0 | AG108: =IFERROR(VLOOKUP($A108,Filtro!$A$5:$AK$2953,31,FALSE),0) -> 0 | AH108: =IFERROR(VLOOKUP($A108,Filtro!$A$5:$AK$2953,32,FALSE),0) -> 0 | AI108: =IFERROR(VLOOKUP($A108,Filtro!$A$5:$AK$2953,33,FALSE),0) -> 0 | AJ108: =IFERROR(VLOOKUP($A108,Filtro!$A$5:$AK$2953,34,FALSE),0) -> 0 | AK108: =IFERROR(VLOOKUP($A108,Filtro!$A$5:$AK$2953,35,FALSE),0) -> 0 | AL108: 8,000 | AM108: =IFERROR(VLOOKUP($A108,Filtro!$A$5:$AK$2953,37,FALSE),0) -> 1,104,000
A109: 01014360 | B109: 0108313 | C109: Teleconsulta Médica de Especialidad en Cirugía de Cabeza, Cuello y Maxilofacial | D109: =IFERROR(VLOOKUP($A109,Filtro!$A$5:$AK$2953,2,FALSE),0) -> 1 | E109: =IFERROR(VLOOKUP($A109,Filtro!$A$5:$AK$2953,3,FALSE),0) -> 1 | F109: =IFERROR(VLOOKUP($A109,Filtro!$A$5:$AK$2953,4,FALSE),0) -> 1 | G109: =IFERROR(VLOOKUP($A109,Filtro!$A$5:$AK$2953,5,FALSE),0) -> 0 | H109: =IFERROR(VLOOKUP($A109,Filtro!$A$5:$AK$2953,6,FALSE),0) -> 0 | AB109: =IFERROR(VLOOKUP($A109,Filtro!$A$5:$AK$2953,26,FALSE),0) -> 0 | AC109: =IFERROR(VLOOKUP($A109,Filtro!$A$5:$AK$2953,27,FALSE),0) -> 1 | AD109: =IFERROR(VLOOKUP($A109,Filtro!$A$5:$AK$2953,28,FALSE),0) -> 0 | AE109: =IFERROR(VLOOKUP($A109,Filtro!$A$5:$AK$2953,29,FALSE),0) -> 0 | AF109: =IFERROR(VLOOKUP($A109,Filtro!$A$5:$AK$2953,30,FALSE),0) -> 0 | AG109: =IFERROR(VLOOKUP($A109,Filtro!$A$5:$AK$2953,31,FALSE),0) -> 0 | AH109: =IFERROR(VLOOKUP($A109,Filtro!$A$5:$AK$2953,32,FALSE),0) -> 0 | AI109: =IFERROR(VLOOKUP($A109,Filtro!$A$5:$AK$2953,33,FALSE),0) -> 0 | AJ109: =IFERROR(VLOOKUP($A109,Filtro!$A$5:$AK$2953,34,FALSE),0) -> 0 | AK109: =IFERROR(VLOOKUP($A109,Filtro!$A$5:$AK$2953,35,FALSE),0) -> 0 | AL109: 8,000 | AM109: =IFERROR(VLOOKUP($A109,Filtro!$A$5:$AK$2953,37,FALSE),0) -> 8,000
A110: 01014361 | B110: 0108314 | C110: Teleconsulta Médica de Especialidad en Cirugía Cardiovascular | D110: =IFERROR(VLOOKUP($A110,Filtro!$A$5:$AK$2953,2,FALSE),0) -> 0 | E110: =IFERROR(VLOOKUP($A110,Filtro!$A$5:$AK$2953,3,FALSE),0) -> 0 | F110: =IFERROR(VLOOKUP($A110,Filtro!$A$5:$AK$2953,4,FALSE),0) -> 0 | G110: =IFERROR(VLOOKUP($A110,Filtro!$A$5:$AK$2953,5,FALSE),0) -> 0 | H110: =IFERROR(VLOOKUP($A110,Filtro!$A$5:$AK$2953,6,FALSE),0) -> 0 | AB110: =IFERROR(VLOOKUP($A110,Filtro!$A$5:$AK$2953,26,FALSE),0) -> 0 | AC110: =IFERROR(VLOOKUP($A110,Filtro!$A$5:$AK$2953,27,FALSE),0) -> 0 | AD110: =IFERROR(VLOOKUP($A110,Filtro!$A$5:$AK$2953,28,FALSE),0) -> 0 | AE110: =IFERROR(VLOOKUP($A110,Filtro!$A$5:$AK$2953,29,FALSE),0) -> 0 | AF110: =IFERROR(VLOOKUP($A110,Filtro!$A$5:$AK$2953,30,FALSE),0) -> 0 | AG110: =IFERROR(VLOOKUP($A110,Filtro!$A$5:$AK$2953,31,FALSE),0) -> 0 | AH110: =IFERROR(VLOOKUP($A110,Filtro!$A$5:$AK$2953,32,FALSE),0) -> 0 | AI110: =IFERROR(VLOOKUP($A110,Filtro!$A$5:$AK$2953,33,FALSE),0) -> 0 | AJ110: =IFERROR(VLOOKUP($A110,Filtro!$A$5:$AK$2953,34,FALSE),0) -> 0 | AK110: =IFERROR(VLOOKUP($A110,Filtro!$A$5:$AK$2953,35,FALSE),0) -> 0 | AL110: 8,000 | AM110: =IFERROR(VLOOKUP($A110,Filtro!$A$5:$AK$2953,37,FALSE),0) -> 0
A111: 01014362 | B111: 0108315 | C111: Teleconsulta Médica de Especialidad en Cirugía de Tórax | D111: =IFERROR(VLOOKUP($A111,Filtro!$A$5:$AK$2953,2,FALSE),0) -> 0 | E111: =IFERROR(VLOOKUP($A111,Filtro!$A$5:$AK$2953,3,FALSE),0) -> 0 | F111: =IFERROR(VLOOKUP($A111,Filtro!$A$5:$AK$2953,4,FALSE),0) -> 0 | G111: =IFERROR(VLOOKUP($A111,Filtro!$A$5:$AK$2953,5,FALSE),0) -> 0 | H111: =IFERROR(VLOOKUP($A111,Filtro!$A$5:$AK$2953,6,FALSE),0) -> 0 | AB111: =IFERROR(VLOOKUP($A111,Filtro!$A$5:$AK$2953,26,FALSE),0) -> 0 | AC111: =IFERROR(VLOOKUP($A111,Filtro!$A$5:$AK$2953,27,FALSE),0) -> 0 | AD111: =IFERROR(VLOOKUP($A111,Filtro!$A$5:$AK$2953,28,FALSE),0) -> 0 | AE111: =IFERROR(VLOOKUP($A111,Filtro!$A$5:$AK$2953,29,FALSE),0) -> 0 | AF111: =IFERROR(VLOOKUP($A111,Filtro!$A$5:$AK$2953,30,FALSE),0) -> 0 | AG111: =IFERROR(VLOOKUP($A111,Filtro!$A$5:$AK$2953,31,FALSE),0) -> 0 | AH111: =IFERROR(VLOOKUP($A111,Filtro!$A$5:$AK$2953,32,FALSE),0) -> 0 | AI111: =IFERROR(VLOOKUP($A111,Filtro!$A$5:$AK$2953,33,FALSE),0) -> 0 | AJ111: =IFERROR(VLOOKUP($A111,Filtro!$A$5:$AK$2953,34,FALSE),0) -> 0 | AK111: =IFERROR(VLOOKUP($A111,Filtro!$A$5:$AK$2953,35,FALSE),0) -> 0 | AL111: 8,000 | AM111: =IFERROR(VLOOKUP($A111,Filtro!$A$5:$AK$2953,37,FALSE),0) -> 0
A112: 01014363 | B112: 0108316 | C112: Teleconsulta Médica de Especialidad en Cirugía Plástica y Reparadora | D112: =IFERROR(VLOOKUP($A112,Filtro!$A$5:$AK$2953,2,FALSE),0) -> 0 | E112: =IFERROR(VLOOKUP($A112,Filtro!$A$5:$AK$2953,3,FALSE),0) -> 0 | F112: =IFERROR(VLOOKUP($A112,Filtro!$A$5:$AK$2953,4,FALSE),0) -> 0 | G112: =IFERROR(VLOOKUP($A112,Filtro!$A$5:$AK$2953,5,FALSE),0) -> 0 | H112: =IFERROR(VLOOKUP($A112,Filtro!$A$5:$AK$2953,6,FALSE),0) -> 0 | AB112: =IFERROR(VLOOKUP($A112,Filtro!$A$5:$AK$2953,26,FALSE),0) -> 0 | AC112: =IFERROR(VLOOKUP($A112,Filtro!$A$5:$AK$2953,27,FALSE),0) -> 0 | AD112: =IFERROR(VLOOKUP($A112,Filtro!$A$5:$AK$2953,28,FALSE),0) -> 0 | AE112: =IFERROR(VLOOKUP($A112,Filtro!$A$5:$AK$2953,29,FALSE),0) -> 0 | AF112: =IFERROR(VLOOKUP($A112,Filtro!$A$5:$AK$2953,30,FALSE),0) -> 0 | AG112: =IFERROR(VLOOKUP($A112,Filtro!$A$5:$AK$2953,31,FALSE),0) -> 0 | AH112: =IFERROR(VLOOKUP($A112,Filtro!$A$5:$AK$2953,32,FALSE),0) -> 0 | AI112: =IFERROR(VLOOKUP($A112,Filtro!$A$5:$AK$2953,33,FALSE),0) -> 0 | AJ112: =IFERROR(VLOOKUP($A112,Filtro!$A$5:$AK$2953,34,FALSE),0) -> 0 | AK112: =IFERROR(VLOOKUP($A112,Filtro!$A$5:$AK$2953,35,FALSE),0) -> 0 | AL112: 8,000 | AM112: =IFERROR(VLOOKUP($A112,Filtro!$A$5:$AK$2953,37,FALSE),0) -> 0
A113: 01014364 | B113: 0108317 | C113: Teleconsulta Médica de Especialidad en Cirugía Pediátrica | D113: =IFERROR(VLOOKUP($A113,Filtro!$A$5:$AK$2953,2,FALSE),0) -> 4 | E113: =IFERROR(VLOOKUP($A113,Filtro!$A$5:$AK$2953,3,FALSE),0) -> 4 | F113: =IFERROR(VLOOKUP($A113,Filtro!$A$5:$AK$2953,4,FALSE),0) -> 4 | G113: =IFERROR(VLOOKUP($A113,Filtro!$A$5:$AK$2953,5,FALSE),0) -> 0 | H113: =IFERROR(VLOOKUP($A113,Filtro!$A$5:$AK$2953,6,FALSE),0) -> 0 | AB113: =IFERROR(VLOOKUP($A113,Filtro!$A$5:$AK$2953,26,FALSE),0) -> 0 | AC113: =IFERROR(VLOOKUP($A113,Filtro!$A$5:$AK$2953,27,FALSE),0) -> 4 | AD113: =IFERROR(VLOOKUP($A113,Filtro!$A$5:$AK$2953,28,FALSE),0) -> 0 | AE113: =IFERROR(VLOOKUP($A113,Filtro!$A$5:$AK$2953,29,FALSE),0) -> 0 | AF113: =IFERROR(VLOOKUP($A113,Filtro!$A$5:$AK$2953,30,FALSE),0) -> 0 | AG113: =IFERROR(VLOOKUP($A113,Filtro!$A$5:$AK$2953,31,FALSE),0) -> 0 | AH113: =IFERROR(VLOOKUP($A113,Filtro!$A$5:$AK$2953,32,FALSE),0) -> 0 | AI113: =IFERROR(VLOOKUP($A113,Filtro!$A$5:$AK$2953,33,FALSE),0) -> 0 | AJ113: =IFERROR(VLOOKUP($A113,Filtro!$A$5:$AK$2953,34,FALSE),0) -> 0 | AK113: =IFERROR(VLOOKUP($A113,Filtro!$A$5:$AK$2953,35,FALSE),0) -> 0 | AL113: 8,000 | AM113: =IFERROR(VLOOKUP($A113,Filtro!$A$5:$AK$2953,37,FALSE),0) -> 32,000
A114: 01014365 | B114: 0108318 | C114: Teleconsulta Médica de Especialidad en Cirugía Vascular Periférica | D114: =IFERROR(VLOOKUP($A114,Filtro!$A$5:$AK$2953,2,FALSE),0) -> 1 | E114: =IFERROR(VLOOKUP($A114,Filtro!$A$5:$AK$2953,3,FALSE),0) -> 1 | F114: =IFERROR(VLOOKUP($A114,Filtro!$A$5:$AK$2953,4,FALSE),0) -> 1 | G114: =IFERROR(VLOOKUP($A114,Filtro!$A$5:$AK$2953,5,FALSE),0) -> 0 | H114: =IFERROR(VLOOKUP($A114,Filtro!$A$5:$AK$2953,6,FALSE),0) -> 0 | AB114: =IFERROR(VLOOKUP($A114,Filtro!$A$5:$AK$2953,26,FALSE),0) -> 0 | AC114: =IFERROR(VLOOKUP($A114,Filtro!$A$5:$AK$2953,27,FALSE),0) -> 1 | AD114: =IFERROR(VLOOKUP($A114,Filtro!$A$5:$AK$2953,28,FALSE),0) -> 0 | AE114: =IFERROR(VLOOKUP($A114,Filtro!$A$5:$AK$2953,29,FALSE),0) -> 0 | AF114: =IFERROR(VLOOKUP($A114,Filtro!$A$5:$AK$2953,30,FALSE),0) -> 0 | AG114: =IFERROR(VLOOKUP($A114,Filtro!$A$5:$AK$2953,31,FALSE),0) -> 0 | AH114: =IFERROR(VLOOKUP($A114,Filtro!$A$5:$AK$2953,32,FALSE),0) -> 0 | AI114: =IFERROR(VLOOKUP($A114,Filtro!$A$5:$AK$2953,33,FALSE),0) -> 0 | AJ114: =IFERROR(VLOOKUP($A114,Filtro!$A$5:$AK$2953,34,FALSE),0) -> 0 | AK114: =IFERROR(VLOOKUP($A114,Filtro!$A$5:$AK$2953,35,FALSE),0) -> 0 | AL114: 8,000 | AM114: =IFERROR(VLOOKUP($A114,Filtro!$A$5:$AK$2953,37,FALSE),0) -> 8,000
A115: 01014366 | B115: 0108329 | C115: Teleconsulta Médica de Especialidad en Anestesiología | D115: =IFERROR(VLOOKUP($A115,Filtro!$A$5:$AK$2953,2,FALSE),0) -> 2560 | E115: =IFERROR(VLOOKUP($A115,Filtro!$A$5:$AK$2953,3,FALSE),0) -> 2522 | F115: =IFERROR(VLOOKUP($A115,Filtro!$A$5:$AK$2953,4,FALSE),0) -> 2522 | G115: =IFERROR(VLOOKUP($A115,Filtro!$A$5:$AK$2953,5,FALSE),0) -> 0 | H115: =IFERROR(VLOOKUP($A115,Filtro!$A$5:$AK$2953,6,FALSE),0) -> 38 | AB115: =IFERROR(VLOOKUP($A115,Filtro!$A$5:$AK$2953,26,FALSE),0) -> 0 | AC115: =IFERROR(VLOOKUP($A115,Filtro!$A$5:$AK$2953,27,FALSE),0) -> 2560 | AD115: =IFERROR(VLOOKUP($A115,Filtro!$A$5:$AK$2953,28,FALSE),0) -> 0 | AE115: =IFERROR(VLOOKUP($A115,Filtro!$A$5:$AK$2953,29,FALSE),0) -> 522 | AF115: =IFERROR(VLOOKUP($A115,Filtro!$A$5:$AK$2953,30,FALSE),0) -> 0 | AG115: =IFERROR(VLOOKUP($A115,Filtro!$A$5:$AK$2953,31,FALSE),0) -> 0 | AH115: =IFERROR(VLOOKUP($A115,Filtro!$A$5:$AK$2953,32,FALSE),0) -> 0 | AI115: =IFERROR(VLOOKUP($A115,Filtro!$A$5:$AK$2953,33,FALSE),0) -> 0 | AJ115: =IFERROR(VLOOKUP($A115,Filtro!$A$5:$AK$2953,34,FALSE),0) -> 0 | AK115: =IFERROR(VLOOKUP($A115,Filtro!$A$5:$AK$2953,35,FALSE),0) -> 0 | AL115: 8,000 | AM115: =IFERROR(VLOOKUP($A115,Filtro!$A$5:$AK$2953,37,FALSE),0) -> 20,176,000
A116: 01014367 | B116: 0108332 | C116: Teleconsulta Médica de Especialidad en Ginecología Pediátrica y de la Adolescencia | D116: =IFERROR(VLOOKUP($A116,Filtro!$A$5:$AK$2953,2,FALSE),0) -> 0 | E116: =IFERROR(VLOOKUP($A116,Filtro!$A$5:$AK$2953,3,FALSE),0) -> 0 | F116: =IFERROR(VLOOKUP($A116,Filtro!$A$5:$AK$2953,4,FALSE),0) -> 0 | G116: =IFERROR(VLOOKUP($A116,Filtro!$A$5:$AK$2953,5,FALSE),0) -> 0 | H116: =IFERROR(VLOOKUP($A116,Filtro!$A$5:$AK$2953,6,FALSE),0) -> 0 | AB116: =IFERROR(VLOOKUP($A116,Filtro!$A$5:$AK$2953,26,FALSE),0) -> 0 | AC116: =IFERROR(VLOOKUP($A116,Filtro!$A$5:$AK$2953,27,FALSE),0) -> 0 | AD116: =IFERROR(VLOOKUP($A116,Filtro!$A$5:$AK$2953,28,FALSE),0) -> 0 | AE116: =IFERROR(VLOOKUP($A116,Filtro!$A$5:$AK$2953,29,FALSE),0) -> 0 | AF116: =IFERROR(VLOOKUP($A116,Filtro!$A$5:$AK$2953,30,FALSE),0) -> 0 | AG116: =IFERROR(VLOOKUP($A116,Filtro!$A$5:$AK$2953,31,FALSE),0) -> 0 | AH116: =IFERROR(VLOOKUP($A116,Filtro!$A$5:$AK$2953,32,FALSE),0) -> 0 | AI116: =IFERROR(VLOOKUP($A116,Filtro!$A$5:$AK$2953,33,FALSE),0) -> 0 | AJ116: =IFERROR(VLOOKUP($A116,Filtro!$A$5:$AK$2953,34,FALSE),0) -> 0 | AK116: =IFERROR(VLOOKUP($A116,Filtro!$A$5:$AK$2953,35,FALSE),0) -> 0 | AL116: 8,000 | AM116: =IFERROR(VLOOKUP($A116,Filtro!$A$5:$AK$2953,37,FALSE),0) -> 0
A117: 01014368 | B117: 0108333 | C117: Teleconsulta Médica de Especialidad en Medicina Materno Fetal | D117: =IFERROR(VLOOKUP($A117,Filtro!$A$5:$AK$2953,2,FALSE),0) -> 0 | E117: =IFERROR(VLOOKUP($A117,Filtro!$A$5:$AK$2953,3,FALSE),0) -> 0 | F117: =IFERROR(VLOOKUP($A117,Filtro!$A$5:$AK$2953,4,FALSE),0) -> 0 | G117: =IFERROR(VLOOKUP($A117,Filtro!$A$5:$AK$2953,5,FALSE),0) -> 0 | H117: =IFERROR(VLOOKUP($A117,Filtro!$A$5:$AK$2953,6,FALSE),0) -> 0 | AB117: =IFERROR(VLOOKUP($A117,Filtro!$A$5:$AK$2953,26,FALSE),0) -> 0 | AC117: =IFERROR(VLOOKUP($A117,Filtro!$A$5:$AK$2953,27,FALSE),0) -> 0 | AD117: =IFERROR(VLOOKUP($A117,Filtro!$A$5:$AK$2953,28,FALSE),0) -> 0 | AE117: =IFERROR(VLOOKUP($A117,Filtro!$A$5:$AK$2953,29,FALSE),0) -> 0 | AF117: =IFERROR(VLOOKUP($A117,Filtro!$A$5:$AK$2953,30,FALSE),0) -> 0 | AG117: =IFERROR(VLOOKUP($A117,Filtro!$A$5:$AK$2953,31,FALSE),0) -> 0 | AH117: =IFERROR(VLOOKUP($A117,Filtro!$A$5:$AK$2953,32,FALSE),0) -> 0 | AI117: =IFERROR(VLOOKUP($A117,Filtro!$A$5:$AK$2953,33,FALSE),0) -> 0 | AJ117: =IFERROR(VLOOKUP($A117,Filtro!$A$5:$AK$2953,34,FALSE),0) -> 0 | AK117: =IFERROR(VLOOKUP($A117,Filtro!$A$5:$AK$2953,35,FALSE),0) -> 0 | AL117: 8,000 | AM117: =IFERROR(VLOOKUP($A117,Filtro!$A$5:$AK$2953,37,FALSE),0) -> 0
A118: 01014369 | B118: 0108334 | C118: Teleconsulta Médica de Especialidad en Medicina Nuclear | D118: =IFERROR(VLOOKUP($A118,Filtro!$A$5:$AK$2953,2,FALSE),0) -> 0 | E118: =IFERROR(VLOOKUP($A118,Filtro!$A$5:$AK$2953,3,FALSE),0) -> 0 | F118: =IFERROR(VLOOKUP($A118,Filtro!$A$5:$AK$2953,4,FALSE),0) -> 0 | G118: =IFERROR(VLOOKUP($A118,Filtro!$A$5:$AK$2953,5,FALSE),0) -> 0 | H118: =IFERROR(VLOOKUP($A118,Filtro!$A$5:$AK$2953,6,FALSE),0) -> 0 | AB118: =IFERROR(VLOOKUP($A118,Filtro!$A$5:$AK$2953,26,FALSE),0) -> 0 | AC118: =IFERROR(VLOOKUP($A118,Filtro!$A$5:$AK$2953,27,FALSE),0) -> 0 | AD118: =IFERROR(VLOOKUP($A118,Filtro!$A$5:$AK$2953,28,FALSE),0) -> 0 | AE118: =IFERROR(VLOOKUP($A118,Filtro!$A$5:$AK$2953,29,FALSE),0) -> 0 | AF118: =IFERROR(VLOOKUP($A118,Filtro!$A$5:$AK$2953,30,FALSE),0) -> 0 | AG118: =IFERROR(VLOOKUP($A118,Filtro!$A$5:$AK$2953,31,FALSE),0) -> 0 | AH118: =IFERROR(VLOOKUP($A118,Filtro!$A$5:$AK$2953,32,FALSE),0) -> 0 | AI118: =IFERROR(VLOOKUP($A118,Filtro!$A$5:$AK$2953,33,FALSE),0) -> 0 | AJ118: =IFERROR(VLOOKUP($A118,Filtro!$A$5:$AK$2953,34,FALSE),0) -> 0 | AK118: =IFERROR(VLOOKUP($A118,Filtro!$A$5:$AK$2953,35,FALSE),0) -> 0 | AL118: 8,000 | AM118: =IFERROR(VLOOKUP($A118,Filtro!$A$5:$AK$2953,37,FALSE),0) -> 0
C119: TOTAL | D119: =SUM(D73:D118) -> 14090 | E119: =SUM(E73:E118) -> 14038 | F119: =SUM(F73:F118) -> 14038 | G119: =SUM(G73:G118) -> 0 | H119: =SUM(H73:H118) -> 52 | AB119: =SUM(AB73:AB118) -> 2 | AC119: 14088 | AD119: 0 | AE119: 522 | AF119: 0 | AG119: 0 | AH119: 0 | AI119: 0 | AJ119: 0 | AK119: 0 | AM119: =SUM(AM73:AM118) -> 112277820
C120: TELEMEDICINA PROFESIONALES NO MÉDICOS
A121: 01014370 | B121: 0108400 | C121: Teleconsulta: Atención Integral de Nutricionista (incluye 3 sesiones) | D121: =IFERROR(VLOOKUP($A121,Filtro!$A$5:$AK$2953,2,FALSE),0) -> 0 | E121: =IFERROR(VLOOKUP($A121,Filtro!$A$5:$AK$2953,3,FALSE),0) -> 0 | F121: =IFERROR(VLOOKUP($A121,Filtro!$A$5:$AK$2953,4,FALSE),0) -> 0 | G121: =IFERROR(VLOOKUP($A121,Filtro!$A$5:$AK$2953,5,FALSE),0) -> 0 | H121: =IFERROR(VLOOKUP($A121,Filtro!$A$5:$AK$2953,6,FALSE),0) -> 0 | AB121: =IFERROR(VLOOKUP($A121,Filtro!$A$5:$AK$2953,26,FALSE),0) -> 0 | AC121: =IFERROR(VLOOKUP($A121,Filtro!$A$5:$AK$2953,27,FALSE),0) -> 0 | AD121: =IFERROR(VLOOKUP($A121,Filtro!$A$5:$AK$2953,28,FALSE),0) -> 0 | AE121: =IFERROR(VLOOKUP($A121,Filtro!$A$5:$AK$2953,29,FALSE),0) -> 0 | AF121: =IFERROR(VLOOKUP($A121,Filtro!$A$5:$AK$2953,30,FALSE),0) -> 0 | AG121: =IFERROR(VLOOKUP($A121,Filtro!$A$5:$AK$2953,31,FALSE),0) -> 0 | AH121: =IFERROR(VLOOKUP($A121,Filtro!$A$5:$AK$2953,32,FALSE),0) -> 0 | AI121: =IFERROR(VLOOKUP($A121,Filtro!$A$5:$AK$2953,33,FALSE),0) -> 0 | AJ121: =IFERROR(VLOOKUP($A121,Filtro!$A$5:$AK$2953,34,FALSE),0) -> 0 | AK121: =IFERROR(VLOOKUP($A121,Filtro!$A$5:$AK$2953,35,FALSE),0) -> 0 | AL121: 23,120 | AM121: =IFERROR(VLOOKUP($A121,Filtro!$A$5:$AK$2953,37,FALSE),0) -> 0
C122: TOTAL | D122: =SUM(D121) -> 0 | E122: =SUM(E121) -> 0 | F122: =SUM(F121) -> 0 | G122: =SUM(G121) -> 0 | H122: =SUM(H121) -> 0 | AB122: =SUM(AB121) -> 0 | AC122: 0 | AD122: 0 | AE122: 0 | AF122: 0 | AG122: 0 | AH122: 0 | AI122: 0 | AJ122: 0 | AK122: 0 | AM122: =SUM(AM121) -> 0
C123: TELEINTERCONSULTA (TELEMEDICINA)
A124: 01014371 | B124: 0109001 | C124: Teleinterconsulta médica | D124: =IFERROR(VLOOKUP($A124,Filtro!$A$5:$AK$2953,2,FALSE),0) -> 127 | E124: =IFERROR(VLOOKUP($A124,Filtro!$A$5:$AK$2953,3,FALSE),0) -> 127 | F124: =IFERROR(VLOOKUP($A124,Filtro!$A$5:$AK$2953,4,FALSE),0) -> 127 | G124: =IFERROR(VLOOKUP($A124,Filtro!$A$5:$AK$2953,5,FALSE),0) -> 0 | H124: =IFERROR(VLOOKUP($A124,Filtro!$A$5:$AK$2953,6,FALSE),0) -> 0 | AB124: =IFERROR(VLOOKUP($A124,Filtro!$A$5:$AK$2953,26,FALSE),0) -> 0 | AC124: =IFERROR(VLOOKUP($A124,Filtro!$A$5:$AK$2953,27,FALSE),0) -> 127 | AD124: =IFERROR(VLOOKUP($A124,Filtro!$A$5:$AK$2953,28,FALSE),0) -> 0 | AE124: =IFERROR(VLOOKUP($A124,Filtro!$A$5:$AK$2953,29,FALSE),0) -> 0 | AF124: =IFERROR(VLOOKUP($A124,Filtro!$A$5:$AK$2953,30,FALSE),0) -> 0 | AG124: =IFERROR(VLOOKUP($A124,Filtro!$A$5:$AK$2953,31,FALSE),0) -> 0 | AH124: =IFERROR(VLOOKUP($A124,Filtro!$A$5:$AK$2953,32,FALSE),0) -> 0 | AI124: =IFERROR(VLOOKUP($A124,Filtro!$A$5:$AK$2953,33,FALSE),0) -> 0 | AJ124: =IFERROR(VLOOKUP($A124,Filtro!$A$5:$AK$2953,34,FALSE),0) -> 0 | AK124: =IFERROR(VLOOKUP($A124,Filtro!$A$5:$AK$2953,35,FALSE),0) -> 0 | AL124: 8,000 | AM124: =IFERROR(VLOOKUP($A124,Filtro!$A$5:$AK$2953,37,FALSE),0) -> 1,016,000
A125: 01014372 | B125: 0109002 | C125: Teleinterconsulta no médica | D125: =IFERROR(VLOOKUP($A125,Filtro!$A$5:$AK$2953,2,FALSE),0) -> 0 | E125: =IFERROR(VLOOKUP($A125,Filtro!$A$5:$AK$2953,3,FALSE),0) -> 0 | F125: =IFERROR(VLOOKUP($A125,Filtro!$A$5:$AK$2953,4,FALSE),0) -> 0 | G125: =IFERROR(VLOOKUP($A125,Filtro!$A$5:$AK$2953,5,FALSE),0) -> 0 | H125: =IFERROR(VLOOKUP($A125,Filtro!$A$5:$AK$2953,6,FALSE),0) -> 0 | AB125: =IFERROR(VLOOKUP($A125,Filtro!$A$5:$AK$2953,26,FALSE),0) -> 0 | AC125: =IFERROR(VLOOKUP($A125,Filtro!$A$5:$AK$2953,27,FALSE),0) -> 0 | AD125: =IFERROR(VLOOKUP($A125,Filtro!$A$5:$AK$2953,28,FALSE),0) -> 0 | AE125: =IFERROR(VLOOKUP($A125,Filtro!$A$5:$AK$2953,29,FALSE),0) -> 0 | AF125: =IFERROR(VLOOKUP($A125,Filtro!$A$5:$AK$2953,30,FALSE),0) -> 0 | AG125: =IFERROR(VLOOKUP($A125,Filtro!$A$5:$AK$2953,31,FALSE),0) -> 0 | AH125: =IFERROR(VLOOKUP($A125,Filtro!$A$5:$AK$2953,32,FALSE),0) -> 0 | AI125: =IFERROR(VLOOKUP($A125,Filtro!$A$5:$AK$2953,33,FALSE),0) -> 0 | AJ125: =IFERROR(VLOOKUP($A125,Filtro!$A$5:$AK$2953,34,FALSE),0) -> 0 | AK125: =IFERROR(VLOOKUP($A125,Filtro!$A$5:$AK$2953,35,FALSE),0) -> 0 | AL125: 6,800 | AM125: =IFERROR(VLOOKUP($A125,Filtro!$A$5:$AK$2953,37,FALSE),0) -> 0
C126: TOTAL | D126: =SUM(D124:D125) -> 127 | E126: =SUM(E124:E125) -> 127 | F126: =SUM(F124:F125) -> 127 | G126: =SUM(G124:G125) -> 0 | H126: =SUM(H124:H125) -> 0 | AB126: =SUM(AB124:AB125) -> 0 | AC126: 127 | AD126: 0 | AE126: 0 | AF126: 0 | AG126: 0 | AH126: 0 | AI126: 0 | AJ126: 0 | AK126: 0 | AM126: =SUM(AM124:AM125) -> 1,016,000
C127: EDUCACION DE GRUPO
A128: 01010029 | B128: 0103001 | C128: Educación de grupo por médico | D128: =IFERROR(VLOOKUP($A128,Filtro!$A$5:$AK$2953,2,FALSE),0) -> 367 | E128: =IFERROR(VLOOKUP($A128,Filtro!$A$5:$AK$2953,3,FALSE),0) -> 367 | F128: =IFERROR(VLOOKUP($A128,Filtro!$A$5:$AK$2953,4,FALSE),0) -> 367 | G128: =IFERROR(VLOOKUP($A128,Filtro!$A$5:$AK$2953,5,FALSE),0) -> 0 | H128: =IFERROR(VLOOKUP($A128,Filtro!$A$5:$AK$2953,6,FALSE),0) -> 0 | AB128: =IFERROR(VLOOKUP($A128,Filtro!$A$5:$AK$2953,26,FALSE),0) -> 0 | AC128: =IFERROR(VLOOKUP($A128,Filtro!$A$5:$AK$2953,27,FALSE),0) -> 367 | AD128: =IFERROR(VLOOKUP($A128,Filtro!$A$5:$AK$2953,28,FALSE),0) -> 0 | AE128: =IFERROR(VLOOKUP($A128,Filtro!$A$5:$AK$2953,29,FALSE),0) -> 0 | AF128: =IFERROR(VLOOKUP($A128,Filtro!$A$5:$AK$2953,30,FALSE),0) -> 0 | AG128: =IFERROR(VLOOKUP($A128,Filtro!$A$5:$AK$2953,31,FALSE),0) -> 0 | AH128: =IFERROR(VLOOKUP($A128,Filtro!$A$5:$AK$2953,32,FALSE),0) -> 0 | AI128: =IFERROR(VLOOKUP($A128,Filtro!$A$5:$AK$2953,33,FALSE),0) -> 0 | AJ128: =IFERROR(VLOOKUP($A128,Filtro!$A$5:$AK$2953,34,FALSE),0) -> 0 | AK128: =IFERROR(VLOOKUP($A128,Filtro!$A$5:$AK$2953,35,FALSE),0) -> 0 | AL128: 4,930 | AM128: =IFERROR(VLOOKUP($A128,Filtro!$A$5:$AK$2953,37,FALSE),0) -> 1,809,310
A129: 01010031 | B129: 0103003 | C129: Educación de grupo por Trabajador/a Social | D129: =IFERROR(VLOOKUP($A129,Filtro!$A$5:$AK$2953,2,FALSE),0) -> 165 | E129: =IFERROR(VLOOKUP($A129,Filtro!$A$5:$AK$2953,3,FALSE),0) -> 165 | F129: =IFERROR(VLOOKUP($A129,Filtro!$A$5:$AK$2953,4,FALSE),0) -> 165 | G129: =IFERROR(VLOOKUP($A129,Filtro!$A$5:$AK$2953,5,FALSE),0) -> 0 | H129: =IFERROR(VLOOKUP($A129,Filtro!$A$5:$AK$2953,6,FALSE),0) -> 0 | AB129: =IFERROR(VLOOKUP($A129,Filtro!$A$5:$AK$2953,26,FALSE),0) -> 0 | AC129: =IFERROR(VLOOKUP($A129,Filtro!$A$5:$AK$2953,27,FALSE),0) -> 165 | AD129: =IFERROR(VLOOKUP($A129,Filtro!$A$5:$AK$2953,28,FALSE),0) -> 0 | AE129: =IFERROR(VLOOKUP($A129,Filtro!$A$5:$AK$2953,29,FALSE),0) -> 0 | AF129: =IFERROR(VLOOKUP($A129,Filtro!$A$5:$AK$2953,30,FALSE),0) -> 0 | AG129: =IFERROR(VLOOKUP($A129,Filtro!$A$5:$AK$2953,31,FALSE),0) -> 0 | AH129: =IFERROR(VLOOKUP($A129,Filtro!$A$5:$AK$2953,32,FALSE),0) -> 0 | AI129: =IFERROR(VLOOKUP($A129,Filtro!$A$5:$AK$2953,33,FALSE),0) -> 0 | AJ129: =IFERROR(VLOOKUP($A129,Filtro!$A$5:$AK$2953,34,FALSE),0) -> 0 | AK129: =IFERROR(VLOOKUP($A129,Filtro!$A$5:$AK$2953,35,FALSE),0) -> 0 | AL129: 2,710 | AM129: =IFERROR(VLOOKUP($A129,Filtro!$A$5:$AK$2953,37,FALSE),0) -> 447,150
A130: 01010032 | B130: 0103004 | C130: Educación de grupo por auxiliar de enfermería | D130: =IFERROR(VLOOKUP($A130,Filtro!$A$5:$AK$2953,2,FALSE),0) -> 1 | E130: =IFERROR(VLOOKUP($A130,Filtro!$A$5:$AK$2953,3,FALSE),0) -> 1 | F130: =IFERROR(VLOOKUP($A130,Filtro!$A$5:$AK$2953,4,FALSE),0) -> 1 | G130: =IFERROR(VLOOKUP($A130,Filtro!$A$5:$AK$2953,5,FALSE),0) -> 0 | H130: =IFERROR(VLOOKUP($A130,Filtro!$A$5:$AK$2953,6,FALSE),0) -> 0 | AB130: =IFERROR(VLOOKUP($A130,Filtro!$A$5:$AK$2953,26,FALSE),0) -> 0 | AC130: =IFERROR(VLOOKUP($A130,Filtro!$A$5:$AK$2953,27,FALSE),0) -> 1 | AD130: =IFERROR(VLOOKUP($A130,Filtro!$A$5:$AK$2953,28,FALSE),0) -> 0 | AE130: =IFERROR(VLOOKUP($A130,Filtro!$A$5:$AK$2953,29,FALSE),0) -> 0 | AF130: =IFERROR(VLOOKUP($A130,Filtro!$A$5:$AK$2953,30,FALSE),0) -> 0 | AG130: =IFERROR(VLOOKUP($A130,Filtro!$A$5:$AK$2953,31,FALSE),0) -> 0 | AH130: =IFERROR(VLOOKUP($A130,Filtro!$A$5:$AK$2953,32,FALSE),0) -> 0 | AI130: =IFERROR(VLOOKUP($A130,Filtro!$A$5:$AK$2953,33,FALSE),0) -> 0 | AJ130: =IFERROR(VLOOKUP($A130,Filtro!$A$5:$AK$2953,34,FALSE),0) -> 0 | AK130: =IFERROR(VLOOKUP($A130,Filtro!$A$5:$AK$2953,35,FALSE),0) -> 0 | AL130: 830 | AM130: =IFERROR(VLOOKUP($A130,Filtro!$A$5:$AK$2953,37,FALSE),0) -> 830
A131: 01014373 | B131: 0103005 | C131: Educación de grupo por enfermera | D131: =IFERROR(VLOOKUP($A131,Filtro!$A$5:$AK$2953,2,FALSE),0) -> 33381 | E131: =IFERROR(VLOOKUP($A131,Filtro!$A$5:$AK$2953,3,FALSE),0) -> 33381 | F131: =IFERROR(VLOOKUP($A131,Filtro!$A$5:$AK$2953,4,FALSE),0) -> 32794 | G131: =IFERROR(VLOOKUP($A131,Filtro!$A$5:$AK$2953,5,FALSE),0) -> 587 | H131: =IFERROR(VLOOKUP($A131,Filtro!$A$5:$AK$2953,6,FALSE),0) -> 0 | AB131: =IFERROR(VLOOKUP($A131,Filtro!$A$5:$AK$2953,26,FALSE),0) -> 28707 | AC131: =IFERROR(VLOOKUP($A131,Filtro!$A$5:$AK$2953,27,FALSE),0) -> 5519 | AD131: =IFERROR(VLOOKUP($A131,Filtro!$A$5:$AK$2953,28,FALSE),0) -> 17 | AE131: =IFERROR(VLOOKUP($A131,Filtro!$A$5:$AK$2953,29,FALSE),0) -> 0 | AF131: =IFERROR(VLOOKUP($A131,Filtro!$A$5:$AK$2953,30,FALSE),0) -> 0 | AG131: =IFERROR(VLOOKUP($A131,Filtro!$A$5:$AK$2953,31,FALSE),0) -> 0 | AH131: =IFERROR(VLOOKUP($A131,Filtro!$A$5:$AK$2953,32,FALSE),0) -> 0 | AI131: =IFERROR(VLOOKUP($A131,Filtro!$A$5:$AK$2953,33,FALSE),0) -> 0 | AJ131: =IFERROR(VLOOKUP($A131,Filtro!$A$5:$AK$2953,34,FALSE),0) -> 0 | AK131: =IFERROR(VLOOKUP($A131,Filtro!$A$5:$AK$2953,35,FALSE),0) -> 0 | AL131: 2,710 | AM131: =IFERROR(VLOOKUP($A131,Filtro!$A$5:$AK$2953,37,FALSE),0) -> 88,871,740
A132: 01014374 | B132: 0103006 | C132: Educación de grupo por matrona | D132: =IFERROR(VLOOKUP($A132,Filtro!$A$5:$AK$2953,2,FALSE),0) -> 1889 | E132: =IFERROR(VLOOKUP($A132,Filtro!$A$5:$AK$2953,3,FALSE),0) -> 1889 | F132: =IFERROR(VLOOKUP($A132,Filtro!$A$5:$AK$2953,4,FALSE),0) -> 1889 | G132: =IFERROR(VLOOKUP($A132,Filtro!$A$5:$AK$2953,5,FALSE),0) -> 0 | H132: =IFERROR(VLOOKUP($A132,Filtro!$A$5:$AK$2953,6,FALSE),0) -> 0 | AB132: =IFERROR(VLOOKUP($A132,Filtro!$A$5:$AK$2953,26,FALSE),0) -> 26 | AC132: =IFERROR(VLOOKUP($A132,Filtro!$A$5:$AK$2953,27,FALSE),0) -> 1889 | AD132: =IFERROR(VLOOKUP($A132,Filtro!$A$5:$AK$2953,28,FALSE),0) -> 0 | AE132: =IFERROR(VLOOKUP($A132,Filtro!$A$5:$AK$2953,29,FALSE),0) -> 0 | AF132: =IFERROR(VLOOKUP($A132,Filtro!$A$5:$AK$2953,30,FALSE),0) -> 0 | AG132: =IFERROR(VLOOKUP($A132,Filtro!$A$5:$AK$2953,31,FALSE),0) -> 0 | AH132: =IFERROR(VLOOKUP($A132,Filtro!$A$5:$AK$2953,32,FALSE),0) -> 0 | AI132: =IFERROR(VLOOKUP($A132,Filtro!$A$5:$AK$2953,33,FALSE),0) -> 0 | AJ132: =IFERROR(VLOOKUP($A132,Filtro!$A$5:$AK$2953,34,FALSE),0) -> 0 | AK132: =IFERROR(VLOOKUP($A132,Filtro!$A$5:$AK$2953,35,FALSE),0) -> 0 | AL132: 2,710 | AM132: =IFERROR(VLOOKUP($A132,Filtro!$A$5:$AK$2953,37,FALSE),0) -> 5,119,190
A133: 01014375 | B133: 0103007 | C133: Educación de grupo por nutricionista | D133: =IFERROR(VLOOKUP($A133,Filtro!$A$5:$AK$2953,2,FALSE),0) -> 81 | E133: =IFERROR(VLOOKUP($A133,Filtro!$A$5:$AK$2953,3,FALSE),0) -> 81 | F133: =IFERROR(VLOOKUP($A133,Filtro!$A$5:$AK$2953,4,FALSE),0) -> 81 | G133: =IFERROR(VLOOKUP($A133,Filtro!$A$5:$AK$2953,5,FALSE),0) -> 0 | H133: =IFERROR(VLOOKUP($A133,Filtro!$A$5:$AK$2953,6,FALSE),0) -> 0 | AB133: =IFERROR(VLOOKUP($A133,Filtro!$A$5:$AK$2953,26,FALSE),0) -> 0 | AC133: =IFERROR(VLOOKUP($A133,Filtro!$A$5:$AK$2953,27,FALSE),0) -> 81 | AD133: =IFERROR(VLOOKUP($A133,Filtro!$A$5:$AK$2953,28,FALSE),0) -> 0 | AE133: =IFERROR(VLOOKUP($A133,Filtro!$A$5:$AK$2953,29,FALSE),0) -> 0 | AF133: =IFERROR(VLOOKUP($A133,Filtro!$A$5:$AK$2953,30,FALSE),0) -> 0 | AG133: =IFERROR(VLOOKUP($A133,Filtro!$A$5:$AK$2953,31,FALSE),0) -> 0 | AH133: =IFERROR(VLOOKUP($A133,Filtro!$A$5:$AK$2953,32,FALSE),0) -> 0 | AI133: =IFERROR(VLOOKUP($A133,Filtro!$A$5:$AK$2953,33,FALSE),0) -> 0 | AJ133: =IFERROR(VLOOKUP($A133,Filtro!$A$5:$AK$2953,34,FALSE),0) -> 0 | AK133: =IFERROR(VLOOKUP($A133,Filtro!$A$5:$AK$2953,35,FALSE),0) -> 0 | AL133: 2,710 | AM133: =IFERROR(VLOOKUP($A133,Filtro!$A$5:$AK$2953,37,FALSE),0) -> 219,510
C134: TOTAL ARANCEL MAI | D134: =SUM(D128:D133) -> 35884 | E134: =SUM(E128:E133) -> 35884 | F134: =SUM(F128:F133) -> 35297 | G134: =SUM(G128:G133) -> 587 | H134: =SUM(H128:H133) -> 0 | AB134: =SUM(AB128:AB133) -> 28733 | AC134: 8022 | AD134: 17 | AE134: 0 | AF134: 0 | AG134: 0 | AH134: 0 | AI134: 0 | AJ134: 0 | AK134: 0 | AM134: =SUM(AM128:AM133) -> 96,467,730
A135: 01010033 | B135: 01010033 | C135: Educación de grupo por otro integrante del equipo de salud | D135: =IFERROR(VLOOKUP($A135,Filtro!$A$5:$AK$2953,2,FALSE),0) -> 1769 | E135: =IFERROR(VLOOKUP($A135,Filtro!$A$5:$AK$2953,3,FALSE),0) -> 1769 | F135: =IFERROR(VLOOKUP($A135,Filtro!$A$5:$AK$2953,4,FALSE),0) -> 1769 | G135: =IFERROR(VLOOKUP($A135,Filtro!$A$5:$AK$2953,5,FALSE),0) -> 0 | H135: =IFERROR(VLOOKUP($A135,Filtro!$A$5:$AK$2953,6,FALSE),0) -> 0 | AB135: =IFERROR(VLOOKUP($A135,Filtro!$A$5:$AK$2953,26,FALSE),0) -> 443 | AC135: =IFERROR(VLOOKUP($A135,Filtro!$A$5:$AK$2953,27,FALSE),0) -> 1318 | AD135: =IFERROR(VLOOKUP($A135,Filtro!$A$5:$AK$2953,28,FALSE),0) -> 0 | AE135: =IFERROR(VLOOKUP($A135,Filtro!$A$5:$AK$2953,29,FALSE),0) -> 0 | AF135: =IFERROR(VLOOKUP($A135,Filtro!$A$5:$AK$2953,30,FALSE),0) -> 0 | AG135: =IFERROR(VLOOKUP($A135,Filtro!$A$5:$AK$2953,31,FALSE),0) -> 0 | AH135: =IFERROR(VLOOKUP($A135,Filtro!$A$5:$AK$2953,32,FALSE),0) -> 0 | AI135: =IFERROR(VLOOKUP($A135,Filtro!$A$5:$AK$2953,33,FALSE),0) -> 0 | AJ135: =IFERROR(VLOOKUP($A135,Filtro!$A$5:$AK$2953,34,FALSE),0) -> 0 | AK135: =IFERROR(VLOOKUP($A135,Filtro!$A$5:$AK$2953,35,FALSE),0) -> 0 | AM135: =IFERROR(VLOOKUP($A135,#REF!,37,FALSE),0) -> 0
C136: TOTAL ARANCEL MLE Y NO ARANCELADO | D136: =D135 -> 1769 | E136: =E135 -> 1769 | F136: =F135 -> 1769 | G136: =G135 -> 0 | H136: =H135 -> 0 | AB136: =AB135 -> 443 | AC136: 1318 | AD136: 0 | AE136: 0 | AF136: 0 | AG136: 0 | AH136: 0 | AI136: 0 | AJ136: 0 | AK136: 0
C137: TOTAL PRODUCCION | D137: =SUM(D134+D136) -> 37653 | E137: =SUM(E134+E136) -> 37653 | F137: =SUM(F134+F136) -> 37066 | G137: =SUM(G134+G136) -> 587 | H137: =SUM(H134+H136) -> 0 | AB137: =SUM(AB134+AB136) -> 29176 | AC137: 9340 | AD137: 17 | AE137: 0 | AF137: 0 | AG137: 0 | AH137: 0 | AI137: 0 | AJ137: 0 | AK137: 0 | AL137: 0 | AM137: =SUM(AM134+AM136) -> 96,467,730
C138: VISITAS DOMICILIARIAS
A139: 01010035 | B139: 0104002 | C139: Visita a domicilio por Trabajador/a Social | D139: =IFERROR(VLOOKUP($A139,Filtro!$A$5:$AK$2953,2,FALSE),0) -> 2720 | E139: =IFERROR(VLOOKUP($A139,Filtro!$A$5:$AK$2953,3,FALSE),0) -> 2718 | F139: =IFERROR(VLOOKUP($A139,Filtro!$A$5:$AK$2953,4,FALSE),0) -> 2718 | G139: =IFERROR(VLOOKUP($A139,Filtro!$A$5:$AK$2953,5,FALSE),0) -> 0 | H139: =IFERROR(VLOOKUP($A139,Filtro!$A$5:$AK$2953,6,FALSE),0) -> 2 | AB139: =IFERROR(VLOOKUP($A139,Filtro!$A$5:$AK$2953,26,FALSE),0) -> 277 | AC139: =IFERROR(VLOOKUP($A139,Filtro!$A$5:$AK$2953,27,FALSE),0) -> 2443 | AD139: =IFERROR(VLOOKUP($A139,Filtro!$A$5:$AK$2953,28,FALSE),0) -> 0 | AE139: =IFERROR(VLOOKUP($A139,Filtro!$A$5:$AK$2953,29,FALSE),0) -> 0 | AF139: =IFERROR(VLOOKUP($A139,Filtro!$A$5:$AK$2953,30,FALSE),0) -> 0 | AG139: =IFERROR(VLOOKUP($A139,Filtro!$A$5:$AK$2953,31,FALSE),0) -> 0 | AH139: =IFERROR(VLOOKUP($A139,Filtro!$A$5:$AK$2953,32,FALSE),0) -> 0 | AI139: =IFERROR(VLOOKUP($A139,Filtro!$A$5:$AK$2953,33,FALSE),0) -> 0 | AJ139: =IFERROR(VLOOKUP($A139,Filtro!$A$5:$AK$2953,34,FALSE),0) -> 0 | AK139: =IFERROR(VLOOKUP($A139,Filtro!$A$5:$AK$2953,35,FALSE),0) -> 0 | AL139: 2,350 | AM139: =IFERROR(VLOOKUP($A139,Filtro!$A$5:$AK$2953,37,FALSE),0) -> 6,387,300
A140: 01010036 | B140: 0104003 | C140: Visita a domicilio por auxiliar de enfermería | D140: =IFERROR(VLOOKUP($A140,Filtro!$A$5:$AK$2953,2,FALSE),0) -> 12596 | E140: =IFERROR(VLOOKUP($A140,Filtro!$A$5:$AK$2953,3,FALSE),0) -> 12594 | F140: =IFERROR(VLOOKUP($A140,Filtro!$A$5:$AK$2953,4,FALSE),0) -> 12594 | G140: =IFERROR(VLOOKUP($A140,Filtro!$A$5:$AK$2953,5,FALSE),0) -> 0 | H140: =IFERROR(VLOOKUP($A140,Filtro!$A$5:$AK$2953,6,FALSE),0) -> 2 | AB140: =IFERROR(VLOOKUP($A140,Filtro!$A$5:$AK$2953,26,FALSE),0) -> 11732 | AC140: =IFERROR(VLOOKUP($A140,Filtro!$A$5:$AK$2953,27,FALSE),0) -> 864 | AD140: =IFERROR(VLOOKUP($A140,Filtro!$A$5:$AK$2953,28,FALSE),0) -> 0 | AE140: =IFERROR(VLOOKUP($A140,Filtro!$A$5:$AK$2953,29,FALSE),0) -> 0 | AF140: =IFERROR(VLOOKUP($A140,Filtro!$A$5:$AK$2953,30,FALSE),0) -> 0 | AG140: =IFERROR(VLOOKUP($A140,Filtro!$A$5:$AK$2953,31,FALSE),0) -> 0 | AH140: =IFERROR(VLOOKUP($A140,Filtro!$A$5:$AK$2953,32,FALSE),0) -> 0 | AI140: =IFERROR(VLOOKUP($A140,Filtro!$A$5:$AK$2953,33,FALSE),0) -> 0 | AJ140: =IFERROR(VLOOKUP($A140,Filtro!$A$5:$AK$2953,34,FALSE),0) -> 0 | AK140: =IFERROR(VLOOKUP($A140,Filtro!$A$5:$AK$2953,35,FALSE),0) -> 0 | AL140: 1,350 | AM140: =IFERROR(VLOOKUP($A140,Filtro!$A$5:$AK$2953,37,FALSE),0) -> 17,001,900
A141: 01014376 | B141: 0104004 | C141: Visita a domicilio por enfermera | D141: =IFERROR(VLOOKUP($A141,Filtro!$A$5:$AK$2953,2,FALSE),0) -> 25521 | E141: =IFERROR(VLOOKUP($A141,Filtro!$A$5:$AK$2953,3,FALSE),0) -> 25520 | F141: =IFERROR(VLOOKUP($A141,Filtro!$A$5:$AK$2953,4,FALSE),0) -> 25520 | G141: =IFERROR(VLOOKUP($A141,Filtro!$A$5:$AK$2953,5,FALSE),0) -> 0 | H141: =IFERROR(VLOOKUP($A141,Filtro!$A$5:$AK$2953,6,FALSE),0) -> 1 | AB141: =IFERROR(VLOOKUP($A141,Filtro!$A$5:$AK$2953,26,FALSE),0) -> 17154 | AC141: =IFERROR(VLOOKUP($A141,Filtro!$A$5:$AK$2953,27,FALSE),0) -> 8367 | AD141: =IFERROR(VLOOKUP($A141,Filtro!$A$5:$AK$2953,28,FALSE),0) -> 0 | AE141: =IFERROR(VLOOKUP($A141,Filtro!$A$5:$AK$2953,29,FALSE),0) -> 0 | AF141: =IFERROR(VLOOKUP($A141,Filtro!$A$5:$AK$2953,30,FALSE),0) -> 0 | AG141: =IFERROR(VLOOKUP($A141,Filtro!$A$5:$AK$2953,31,FALSE),0) -> 0 | AH141: =IFERROR(VLOOKUP($A141,Filtro!$A$5:$AK$2953,32,FALSE),0) -> 0 | AI141: =IFERROR(VLOOKUP($A141,Filtro!$A$5:$AK$2953,33,FALSE),0) -> 0 | AJ141: =IFERROR(VLOOKUP($A141,Filtro!$A$5:$AK$2953,34,FALSE),0) -> 0 | AK141: =IFERROR(VLOOKUP($A141,Filtro!$A$5:$AK$2953,35,FALSE),0) -> 0 | AL141: 2,350 | AM141: =IFERROR(VLOOKUP($A141,Filtro!$A$5:$AK$2953,37,FALSE),0) -> 59,972,000
A142: 01014377 | B142: 0104005 | C142: Visita a domicilio por matrona | D142: =IFERROR(VLOOKUP($A142,Filtro!$A$5:$AK$2953,2,FALSE),0) -> 161 | E142: =IFERROR(VLOOKUP($A142,Filtro!$A$5:$AK$2953,3,FALSE),0) -> 161 | F142: =IFERROR(VLOOKUP($A142,Filtro!$A$5:$AK$2953,4,FALSE),0) -> 161 | G142: =IFERROR(VLOOKUP($A142,Filtro!$A$5:$AK$2953,5,FALSE),0) -> 0 | H142: =IFERROR(VLOOKUP($A142,Filtro!$A$5:$AK$2953,6,FALSE),0) -> 0 | AB142: =IFERROR(VLOOKUP($A142,Filtro!$A$5:$AK$2953,26,FALSE),0) -> 0 | AC142: =IFERROR(VLOOKUP($A142,Filtro!$A$5:$AK$2953,27,FALSE),0) -> 161 | AD142: =IFERROR(VLOOKUP($A142,Filtro!$A$5:$AK$2953,28,FALSE),0) -> 0 | AE142: =IFERROR(VLOOKUP($A142,Filtro!$A$5:$AK$2953,29,FALSE),0) -> 0 | AF142: =IFERROR(VLOOKUP($A142,Filtro!$A$5:$AK$2953,30,FALSE),0) -> 0 | AG142: =IFERROR(VLOOKUP($A142,Filtro!$A$5:$AK$2953,31,FALSE),0) -> 0 | AH142: =IFERROR(VLOOKUP($A142,Filtro!$A$5:$AK$2953,32,FALSE),0) -> 0 | AI142: =IFERROR(VLOOKUP($A142,Filtro!$A$5:$AK$2953,33,FALSE),0) -> 0 | AJ142: =IFERROR(VLOOKUP($A142,Filtro!$A$5:$AK$2953,34,FALSE),0) -> 0 | AK142: =IFERROR(VLOOKUP($A142,Filtro!$A$5:$AK$2953,35,FALSE),0) -> 0 | AL142: 2,350 | AM142: =IFERROR(VLOOKUP($A142,Filtro!$A$5:$AK$2953,37,FALSE),0) -> 378,350
A143: 01014378 | B143: 0104006 | C143: Visita a domicilio por nutricionista | D143: =IFERROR(VLOOKUP($A143,Filtro!$A$5:$AK$2953,2,FALSE),0) -> 958 | E143: =IFERROR(VLOOKUP($A143,Filtro!$A$5:$AK$2953,3,FALSE),0) -> 958 | F143: =IFERROR(VLOOKUP($A143,Filtro!$A$5:$AK$2953,4,FALSE),0) -> 958 | G143: =IFERROR(VLOOKUP($A143,Filtro!$A$5:$AK$2953,5,FALSE),0) -> 0 | H143: =IFERROR(VLOOKUP($A143,Filtro!$A$5:$AK$2953,6,FALSE),0) -> 0 | AB143: =IFERROR(VLOOKUP($A143,Filtro!$A$5:$AK$2953,26,FALSE),0) -> 520 | AC143: =IFERROR(VLOOKUP($A143,Filtro!$A$5:$AK$2953,27,FALSE),0) -> 438 | AD143: =IFERROR(VLOOKUP($A143,Filtro!$A$5:$AK$2953,28,FALSE),0) -> 0 | AE143: =IFERROR(VLOOKUP($A143,Filtro!$A$5:$AK$2953,29,FALSE),0) -> 0 | AF143: =IFERROR(VLOOKUP($A143,Filtro!$A$5:$AK$2953,30,FALSE),0) -> 0 | AG143: =IFERROR(VLOOKUP($A143,Filtro!$A$5:$AK$2953,31,FALSE),0) -> 0 | AH143: =IFERROR(VLOOKUP($A143,Filtro!$A$5:$AK$2953,32,FALSE),0) -> 0 | AI143: =IFERROR(VLOOKUP($A143,Filtro!$A$5:$AK$2953,33,FALSE),0) -> 0 | AJ143: =IFERROR(VLOOKUP($A143,Filtro!$A$5:$AK$2953,34,FALSE),0) -> 0 | AK143: =IFERROR(VLOOKUP($A143,Filtro!$A$5:$AK$2953,35,FALSE),0) -> 0 | AL143: 2,350 | AM143: =IFERROR(VLOOKUP($A143,Filtro!$A$5:$AK$2953,37,FALSE),0) -> 2,251,300
C144: TOTAL ARANCEL MAI | D144: =SUM(D139:D143) -> 41956 | E144: =SUM(E139:E143) -> 41951 | F144: =SUM(F139:F143) -> 41951 | G144: =SUM(G139:G143) -> 0 | H144: =SUM(H139:H143) -> 5 | AB144: =SUM(AB139:AB143) -> 29683 | AC144: 12273 | AD144: 0 | AE144: 0 | AF144: 0 | AG144: 0 | AH144: 0 | AI144: 0 | AJ144: 0 | AK144: 0 | AM144: =SUM(AM139:AM143) -> 85,990,850
A145: 01010037 | B145: 01010037 | C145: Visita a domicilio por otro integrante del equipo de salud | D145: =IFERROR(VLOOKUP($A145,Filtro!$A$5:$AK$2953,2,FALSE),0) -> 20766 | E145: =IFERROR(VLOOKUP($A145,Filtro!$A$5:$AK$2953,3,FALSE),0) -> 20760 | F145: =IFERROR(VLOOKUP($A145,Filtro!$A$5:$AK$2953,4,FALSE),0) -> 20760 | G145: =IFERROR(VLOOKUP($A145,Filtro!$A$5:$AK$2953,5,FALSE),0) -> 0 | H145: =IFERROR(VLOOKUP($A145,Filtro!$A$5:$AK$2953,6,FALSE),0) -> 6 | AB145: =IFERROR(VLOOKUP($A145,Filtro!$A$5:$AK$2953,26,FALSE),0) -> 13532 | AC145: =IFERROR(VLOOKUP($A145,Filtro!$A$5:$AK$2953,27,FALSE),0) -> 7234 | AD145: =IFERROR(VLOOKUP($A145,Filtro!$A$5:$AK$2953,28,FALSE),0) -> 0 | AE145: =IFERROR(VLOOKUP($A145,Filtro!$A$5:$AK$2953,29,FALSE),0) -> 0 | AF145: =IFERROR(VLOOKUP($A145,Filtro!$A$5:$AK$2953,30,FALSE),0) -> 0 | AG145: =IFERROR(VLOOKUP($A145,Filtro!$A$5:$AK$2953,31,FALSE),0) -> 0 | AH145: =IFERROR(VLOOKUP($A145,Filtro!$A$5:$AK$2953,32,FALSE),0) -> 0 | AI145: =IFERROR(VLOOKUP($A145,Filtro!$A$5:$AK$2953,33,FALSE),0) -> 0 | AJ145: =IFERROR(VLOOKUP($A145,Filtro!$A$5:$AK$2953,34,FALSE),0) -> 0 | AK145: =IFERROR(VLOOKUP($A145,Filtro!$A$5:$AK$2953,35,FALSE),0) -> 0
A146: 01010038 | B146: 01010038 | C146: Visita domiciaria por otro profesional y técnicos paramédico | D146: =IFERROR(VLOOKUP($A146,Filtro!$A$5:$AK$2953,2,FALSE),0) -> 11432 | E146: =IFERROR(VLOOKUP($A146,Filtro!$A$5:$AK$2953,3,FALSE),0) -> 11432 | F146: =IFERROR(VLOOKUP($A146,Filtro!$A$5:$AK$2953,4,FALSE),0) -> 11432 | G146: =IFERROR(VLOOKUP($A146,Filtro!$A$5:$AK$2953,5,FALSE),0) -> 0 | H146: =IFERROR(VLOOKUP($A146,Filtro!$A$5:$AK$2953,6,FALSE),0) -> 0 | AB146: =IFERROR(VLOOKUP($A146,Filtro!$A$5:$AK$2953,26,FALSE),0) -> 8714 | AC146: =IFERROR(VLOOKUP($A146,Filtro!$A$5:$AK$2953,27,FALSE),0) -> 175 | AD146: =IFERROR(VLOOKUP($A146,Filtro!$A$5:$AK$2953,28,FALSE),0) -> 0 | AE146: =IFERROR(VLOOKUP($A146,Filtro!$A$5:$AK$2953,29,FALSE),0) -> 0 | AF146: =IFERROR(VLOOKUP($A146,Filtro!$A$5:$AK$2953,30,FALSE),0) -> 0 | AG146: =IFERROR(VLOOKUP($A146,Filtro!$A$5:$AK$2953,31,FALSE),0) -> 0 | AH146: =IFERROR(VLOOKUP($A146,Filtro!$A$5:$AK$2953,32,FALSE),0) -> 0 | AI146: =IFERROR(VLOOKUP($A146,Filtro!$A$5:$AK$2953,33,FALSE),0) -> 0 | AJ146: =IFERROR(VLOOKUP($A146,Filtro!$A$5:$AK$2953,34,FALSE),0) -> 0 | AK146: =IFERROR(VLOOKUP($A146,Filtro!$A$5:$AK$2953,35,FALSE),0) -> 0
C147: TOTAL ARANCEL MLE Y NO ARANCELADO | D147: =SUM(D145:D146) -> 32198 | E147: =SUM(E145:E146) -> 32192 | F147: =SUM(F145:F146) -> 32192 | G147: =SUM(G145:G146) -> 0 | H147: =SUM(H145:H146) -> 6 | AB147: =SUM(AB145:AB146) -> 22246 | AC147: 7409 | AD147: 0 | AE147: 0 | AF147: 0 | AG147: 0 | AH147: 0 | AI147: 0 | AJ147: 0 | AK147: 0
C148: TOTAL | D148: =SUM(D144+D147) -> 74154 | E148: =SUM(E144+E147) -> 74143 | F148: =SUM(F144+F147) -> 74143 | G148: =SUM(G144+G147) -> 0 | H148: =SUM(H144+H147) -> 11 | AB148: =SUM(AB144+AB147) -> 51929 | AC148: 19682 | AD148: 0 | AE148: 0 | AF148: 0 | AG148: 0 | AH148: 0 | AI148: 0 | AJ148: 0 | AK148: 0 | AM148: =SUM(AM144+AM147) -> 85,990,850
C149: MISCELANEOS
A150: 01010042 | B150: 0106002 | C150: Curación simple ambulatoria | D150: =IFERROR(VLOOKUP($A150,Filtro!$A$5:$AK$2953,2,FALSE),0) -> 35391 | E150: =IFERROR(VLOOKUP($A150,Filtro!$A$5:$AK$2953,3,FALSE),0) -> 35358 | F150: =IFERROR(VLOOKUP($A150,Filtro!$A$5:$AK$2953,4,FALSE),0) -> 35319 | G150: =IFERROR(VLOOKUP($A150,Filtro!$A$5:$AK$2953,5,FALSE),0) -> 39 | H150: =IFERROR(VLOOKUP($A150,Filtro!$A$5:$AK$2953,6,FALSE),0) -> 33 | AB150: =IFERROR(VLOOKUP($A150,Filtro!$A$5:$AK$2953,26,FALSE),0) -> 3848 | AC150: =IFERROR(VLOOKUP($A150,Filtro!$A$5:$AK$2953,27,FALSE),0) -> 27993 | AD150: =IFERROR(VLOOKUP($A150,Filtro!$A$5:$AK$2953,28,FALSE),0) -> 3587 | AE150: =IFERROR(VLOOKUP($A150,Filtro!$A$5:$AK$2953,29,FALSE),0) -> 0 | AF150: =IFERROR(VLOOKUP($A150,Filtro!$A$5:$AK$2953,30,FALSE),0) -> 0 | AG150: =IFERROR(VLOOKUP($A150,Filtro!$A$5:$AK$2953,31,FALSE),0) -> 0 | AH150: =IFERROR(VLOOKUP($A150,Filtro!$A$5:$AK$2953,32,FALSE),0) -> 0 | AI150: =IFERROR(VLOOKUP($A150,Filtro!$A$5:$AK$2953,33,FALSE),0) -> 0 | AJ150: =IFERROR(VLOOKUP($A150,Filtro!$A$5:$AK$2953,34,FALSE),0) -> 0 | AK150: =IFERROR(VLOOKUP($A150,Filtro!$A$5:$AK$2953,35,FALSE),0) -> 0 | AL150: 900 | AM150: =IFERROR(VLOOKUP($A150,Filtro!$A$5:$AK$2953,37,FALSE),0) -> 31,787,100
A151: 01014379 | B151: 0106007 | C151: Oxigenoterapia Hiperbárica (1 sesión) | D151: =IFERROR(VLOOKUP($A151,Filtro!$A$5:$AK$2953,2,FALSE),0) -> 300 | E151: =IFERROR(VLOOKUP($A151,Filtro!$A$5:$AK$2953,3,FALSE),0) -> 300 | F151: =IFERROR(VLOOKUP($A151,Filtro!$A$5:$AK$2953,4,FALSE),0) -> 300 | G151: =IFERROR(VLOOKUP($A151,Filtro!$A$5:$AK$2953,5,FALSE),0) -> 0 | H151: =IFERROR(VLOOKUP($A151,Filtro!$A$5:$AK$2953,6,FALSE),0) -> 0 | AB151: =IFERROR(VLOOKUP($A151,Filtro!$A$5:$AK$2953,26,FALSE),0) -> 43 | AC151: =IFERROR(VLOOKUP($A151,Filtro!$A$5:$AK$2953,27,FALSE),0) -> 257 | AD151: =IFERROR(VLOOKUP($A151,Filtro!$A$5:$AK$2953,28,FALSE),0) -> 0 | AE151: =IFERROR(VLOOKUP($A151,Filtro!$A$5:$AK$2953,29,FALSE),0) -> 0 | AF151: =IFERROR(VLOOKUP($A151,Filtro!$A$5:$AK$2953,30,FALSE),0) -> 0 | AG151: =IFERROR(VLOOKUP($A151,Filtro!$A$5:$AK$2953,31,FALSE),0) -> 0 | AH151: =IFERROR(VLOOKUP($A151,Filtro!$A$5:$AK$2953,32,FALSE),0) -> 0 | AI151: =IFERROR(VLOOKUP($A151,Filtro!$A$5:$AK$2953,33,FALSE),0) -> 0 | AJ151: =IFERROR(VLOOKUP($A151,Filtro!$A$5:$AK$2953,34,FALSE),0) -> 0 | AK151: =IFERROR(VLOOKUP($A151,Filtro!$A$5:$AK$2953,35,FALSE),0) -> 0 | AL151: 27,850 | AM151: =IFERROR(VLOOKUP($A151,Filtro!$A$5:$AK$2953,37,FALSE),0) -> 8,355,000
A152: 01014705 | B152: 0106101 | C152: Atención Integral de Acupuntura | D152: =IFERROR(VLOOKUP($A152,Filtro!$A$5:$AK$2953,2,FALSE),0) -> 1129 | E152: =IFERROR(VLOOKUP($A152,Filtro!$A$5:$AK$2953,3,FALSE),0) -> 1129 | F152: =IFERROR(VLOOKUP($A152,Filtro!$A$5:$AK$2953,4,FALSE),0) -> 1129 | G152: =IFERROR(VLOOKUP($A152,Filtro!$A$5:$AK$2953,5,FALSE),0) -> 0 | H152: =IFERROR(VLOOKUP($A152,Filtro!$A$5:$AK$2953,6,FALSE),0) -> 0 | AB152: =IFERROR(VLOOKUP($A152,Filtro!$A$5:$AK$2953,26,FALSE),0) -> 0 | AC152: =IFERROR(VLOOKUP($A152,Filtro!$A$5:$AK$2953,27,FALSE),0) -> 1129 | AD152: =IFERROR(VLOOKUP($A152,Filtro!$A$5:$AK$2953,28,FALSE),0) -> 0 | AE152: =IFERROR(VLOOKUP($A152,Filtro!$A$5:$AK$2953,29,FALSE),0) -> 0 | AF152: =IFERROR(VLOOKUP($A152,Filtro!$A$5:$AK$2953,30,FALSE),0) -> 0 | AG152: =IFERROR(VLOOKUP($A152,Filtro!$A$5:$AK$2953,31,FALSE),0) -> 0 | AH152: =IFERROR(VLOOKUP($A152,Filtro!$A$5:$AK$2953,32,FALSE),0) -> 0 | AI152: =IFERROR(VLOOKUP($A152,Filtro!$A$5:$AK$2953,33,FALSE),0) -> 0 | AJ152: =IFERROR(VLOOKUP($A152,Filtro!$A$5:$AK$2953,34,FALSE),0) -> 0 | AK152: =IFERROR(VLOOKUP($A152,Filtro!$A$5:$AK$2953,35,FALSE),0) -> 0 | AL152: 6,490 | AM152: =IFERROR(VLOOKUP($A152,Filtro!$A$5:$AK$2953,37,FALSE),0) -> 7,327,210
C153: TOTAL ARANCEL MAI | D153: =SUM(D150:D152) -> 36820 | E153: =SUM(E150:E152) -> 36787 | F153: =SUM(F150:F152) -> 36748 | G153: =SUM(G150:G152) -> 39 | H153: =SUM(H150:H152) -> 33 | AB153: =SUM(AB150:AB152) -> 3891 | AC153: 29379 | AD153: 3587 | AE153: 0 | AF153: 0 | AG153: 0 | AH153: 0 | AI153: 0 | AJ153: 0 | AK153: 0 | AM153: =SUM(AM150:AM152) -> 47469310
A154: 01014706 | B154: 01010043 | C154: Autocontrol pacientes Diabetico insulino dependiente (D.I.D. mensual) | D154: =IFERROR(VLOOKUP($A154,Filtro!$A$5:$AK$2953,2,FALSE),0) -> 10667 | E154: =IFERROR(VLOOKUP($A154,Filtro!$A$5:$AK$2953,3,FALSE),0) -> 10667 | F154: =IFERROR(VLOOKUP($A154,Filtro!$A$5:$AK$2953,4,FALSE),0) -> 10667 | G154: =IFERROR(VLOOKUP($A154,Filtro!$A$5:$AK$2953,5,FALSE),0) -> 0 | H154: =IFERROR(VLOOKUP($A154,Filtro!$A$5:$AK$2953,6,FALSE),0) -> 0 | AB154: =IFERROR(VLOOKUP($A154,Filtro!$A$5:$AK$2953,26,FALSE),0) -> 0 | AC154: =IFERROR(VLOOKUP($A154,Filtro!$A$5:$AK$2953,27,FALSE),0) -> 10667 | AD154: =IFERROR(VLOOKUP($A154,Filtro!$A$5:$AK$2953,28,FALSE),0) -> 0 | AE154: =IFERROR(VLOOKUP($A154,Filtro!$A$5:$AK$2953,29,FALSE),0) -> 0 | AF154: =IFERROR(VLOOKUP($A154,Filtro!$A$5:$AK$2953,30,FALSE),0) -> 0 | AG154: =IFERROR(VLOOKUP($A154,Filtro!$A$5:$AK$2953,31,FALSE),0) -> 0 | AH154: =IFERROR(VLOOKUP($A154,Filtro!$A$5:$AK$2953,32,FALSE),0) -> 0 | AI154: =IFERROR(VLOOKUP($A154,Filtro!$A$5:$AK$2953,33,FALSE),0) -> 0 | AJ154: =IFERROR(VLOOKUP($A154,Filtro!$A$5:$AK$2953,34,FALSE),0) -> 0 | AK154: =IFERROR(VLOOKUP($A154,Filtro!$A$5:$AK$2953,35,FALSE),0) -> 0
A155: 01014707 | B155: 01010044 | C155: Oxigenoterapia domiciliaria (pacientes oxígeno dependientes) | D155: =IFERROR(VLOOKUP($A155,Filtro!$A$5:$AK$2953,2,FALSE),0) -> 727 | E155: =IFERROR(VLOOKUP($A155,Filtro!$A$5:$AK$2953,3,FALSE),0) -> 727 | F155: =IFERROR(VLOOKUP($A155,Filtro!$A$5:$AK$2953,4,FALSE),0) -> 727 | G155: =IFERROR(VLOOKUP($A155,Filtro!$A$5:$AK$2953,5,FALSE),0) -> 0 | H155: =IFERROR(VLOOKUP($A155,Filtro!$A$5:$AK$2953,6,FALSE),0) -> 0 | AB155: =IFERROR(VLOOKUP($A155,Filtro!$A$5:$AK$2953,26,FALSE),0) -> 232 | AC155: =IFERROR(VLOOKUP($A155,Filtro!$A$5:$AK$2953,27,FALSE),0) -> 495 | AD155: =IFERROR(VLOOKUP($A155,Filtro!$A$5:$AK$2953,28,FALSE),0) -> 0 | AE155: =IFERROR(VLOOKUP($A155,Filtro!$A$5:$AK$2953,29,FALSE),0) -> 0 | AF155: =IFERROR(VLOOKUP($A155,Filtro!$A$5:$AK$2953,30,FALSE),0) -> 0 | AG155: =IFERROR(VLOOKUP($A155,Filtro!$A$5:$AK$2953,31,FALSE),0) -> 0 | AH155: =IFERROR(VLOOKUP($A155,Filtro!$A$5:$AK$2953,32,FALSE),0) -> 0 | AI155: =IFERROR(VLOOKUP($A155,Filtro!$A$5:$AK$2953,33,FALSE),0) -> 0 | AJ155: =IFERROR(VLOOKUP($A155,Filtro!$A$5:$AK$2953,34,FALSE),0) -> 0 | AK155: =IFERROR(VLOOKUP($A155,Filtro!$A$5:$AK$2953,35,FALSE),0) -> 0
A156: 01010047 | B156: 01010047 | C156: Procedimientos de podología | D156: =IFERROR(VLOOKUP($A156,Filtro!$A$5:$AK$2953,2,FALSE),0) -> 1919 | E156: =IFERROR(VLOOKUP($A156,Filtro!$A$5:$AK$2953,3,FALSE),0) -> 1919 | F156: =IFERROR(VLOOKUP($A156,Filtro!$A$5:$AK$2953,4,FALSE),0) -> 1919 | G156: =IFERROR(VLOOKUP($A156,Filtro!$A$5:$AK$2953,5,FALSE),0) -> 0 | H156: =IFERROR(VLOOKUP($A156,Filtro!$A$5:$AK$2953,6,FALSE),0) -> 0 | AB156: =IFERROR(VLOOKUP($A156,Filtro!$A$5:$AK$2953,26,FALSE),0) -> 14 | AC156: =IFERROR(VLOOKUP($A156,Filtro!$A$5:$AK$2953,27,FALSE),0) -> 1905 | AD156: =IFERROR(VLOOKUP($A156,Filtro!$A$5:$AK$2953,28,FALSE),0) -> 0 | AE156: =IFERROR(VLOOKUP($A156,Filtro!$A$5:$AK$2953,29,FALSE),0) -> 0 | AF156: =IFERROR(VLOOKUP($A156,Filtro!$A$5:$AK$2953,30,FALSE),0) -> 0 | AG156: =IFERROR(VLOOKUP($A156,Filtro!$A$5:$AK$2953,31,FALSE),0) -> 0 | AH156: =IFERROR(VLOOKUP($A156,Filtro!$A$5:$AK$2953,32,FALSE),0) -> 0 | AI156: =IFERROR(VLOOKUP($A156,Filtro!$A$5:$AK$2953,33,FALSE),0) -> 0 | AJ156: =IFERROR(VLOOKUP($A156,Filtro!$A$5:$AK$2953,34,FALSE),0) -> 0 | AK156: =IFERROR(VLOOKUP($A156,Filtro!$A$5:$AK$2953,35,FALSE),0) -> 0
C157: TOTAL ARANCEL MLE Y NO ARANCELADO | D157: =SUM(D154:D156) -> 13313 | E157: =SUM(E154:E156) -> 13313 | F157: =SUM(F154:F156) -> 13313 | G157: =SUM(G154:G156) -> 0 | H157: =SUM(H154:H156) -> 0 | AB157: =SUM(AB154:AB156) -> 246 | AC157: 13067 | AD157: 0 | AE157: 0 | AF157: 0 | AG157: 0 | AH157: 0 | AI157: 0 | AJ157: 0 | AK157: 0
C158: TOTAL PRODUCCION | D158: =SUM(D153+D157) -> 50133 | E158: =SUM(E153+E157) -> 50100 | F158: =SUM(F153+F157) -> 50061 | G158: =SUM(G153+G157) -> 39 | H158: =SUM(H153+H157) -> 33 | AB158: =SUM(AB153+AB157) -> 4137 | AC158: 42446 | AD158: 3587 | AE158: 0 | AF158: 0 | AG158: 0 | AH158: 0 | AI158: 0 | AJ158: 0 | AK158: 0 | AM158: =SUM(AM153+AM157) -> 47,469,310
C159: OTRAS MISCELANEOS
A160: 01010048 | B160: 5099048 | C160: Hemoglucotest instantáneo | D160: =IFERROR(VLOOKUP($A160,Filtro!$A$5:$AK$2953,2,FALSE),0) -> 890026 | E160: =IFERROR(VLOOKUP($A160,Filtro!$A$5:$AK$2953,3,FALSE),0) -> 890026 | F160: =IFERROR(VLOOKUP($A160,Filtro!$A$5:$AK$2953,4,FALSE),0) -> 890026 | G160: =IFERROR(VLOOKUP($A160,Filtro!$A$5:$AK$2953,5,FALSE),0) -> 0 | H160: =IFERROR(VLOOKUP($A160,Filtro!$A$5:$AK$2953,6,FALSE),0) -> 0 | AB160: =IFERROR(VLOOKUP($A160,Filtro!$A$5:$AK$2953,26,FALSE),0) -> 131800 | AC160: =IFERROR(VLOOKUP($A160,Filtro!$A$5:$AK$2953,27,FALSE),0) -> 706288 | AD160: =IFERROR(VLOOKUP($A160,Filtro!$A$5:$AK$2953,28,FALSE),0) -> 51938 | AE160: =IFERROR(VLOOKUP($A160,Filtro!$A$5:$AK$2953,29,FALSE),0) -> 0 | AF160: =IFERROR(VLOOKUP($A160,Filtro!$A$5:$AK$2953,30,FALSE),0) -> 0 | AG160: =IFERROR(VLOOKUP($A160,Filtro!$A$5:$AK$2953,31,FALSE),0) -> 0 | AH160: =IFERROR(VLOOKUP($A160,Filtro!$A$5:$AK$2953,32,FALSE),0) -> 0 | AI160: =IFERROR(VLOOKUP($A160,Filtro!$A$5:$AK$2953,33,FALSE),0) -> 0 | AJ160: =IFERROR(VLOOKUP($A160,Filtro!$A$5:$AK$2953,34,FALSE),0) -> 0 | AK160: =IFERROR(VLOOKUP($A160,Filtro!$A$5:$AK$2953,35,FALSE),0) -> 0
A161: 01010049 | B161: 5099008 | C161: Actividad Básica | D161: =IFERROR(VLOOKUP($A161,Filtro!$A$5:$AK$2953,2,FALSE),0) -> 1819 | E161: =IFERROR(VLOOKUP($A161,Filtro!$A$5:$AK$2953,3,FALSE),0) -> 1819 | F161: =IFERROR(VLOOKUP($A161,Filtro!$A$5:$AK$2953,4,FALSE),0) -> 1819 | G161: =IFERROR(VLOOKUP($A161,Filtro!$A$5:$AK$2953,5,FALSE),0) -> 0 | H161: =IFERROR(VLOOKUP($A161,Filtro!$A$5:$AK$2953,6,FALSE),0) -> 0 | AB161: =IFERROR(VLOOKUP($A161,Filtro!$A$5:$AK$2953,26,FALSE),0) -> 0 | AC161: =IFERROR(VLOOKUP($A161,Filtro!$A$5:$AK$2953,27,FALSE),0) -> 1819 | AD161: =IFERROR(VLOOKUP($A161,Filtro!$A$5:$AK$2953,28,FALSE),0) -> 0 | AE161: =IFERROR(VLOOKUP($A161,Filtro!$A$5:$AK$2953,29,FALSE),0) -> 0 | AF161: =IFERROR(VLOOKUP($A161,Filtro!$A$5:$AK$2953,30,FALSE),0) -> 0 | AG161: =IFERROR(VLOOKUP($A161,Filtro!$A$5:$AK$2953,31,FALSE),0) -> 0 | AH161: =IFERROR(VLOOKUP($A161,Filtro!$A$5:$AK$2953,32,FALSE),0) -> 0 | AI161: =IFERROR(VLOOKUP($A161,Filtro!$A$5:$AK$2953,33,FALSE),0) -> 0 | AJ161: =IFERROR(VLOOKUP($A161,Filtro!$A$5:$AK$2953,34,FALSE),0) -> 0 | AK161: =IFERROR(VLOOKUP($A161,Filtro!$A$5:$AK$2953,35,FALSE),0) -> 0
A162: 01010050 | B162: 5099009 | C162: Actividad Terapeutica | D162: =IFERROR(VLOOKUP($A162,Filtro!$A$5:$AK$2953,2,FALSE),0) -> 4120 | E162: =IFERROR(VLOOKUP($A162,Filtro!$A$5:$AK$2953,3,FALSE),0) -> 4120 | F162: =IFERROR(VLOOKUP($A162,Filtro!$A$5:$AK$2953,4,FALSE),0) -> 4120 | G162: =IFERROR(VLOOKUP($A162,Filtro!$A$5:$AK$2953,5,FALSE),0) -> 0 | H162: =IFERROR(VLOOKUP($A162,Filtro!$A$5:$AK$2953,6,FALSE),0) -> 0 | AB162: =IFERROR(VLOOKUP($A162,Filtro!$A$5:$AK$2953,26,FALSE),0) -> 1131 | AC162: =IFERROR(VLOOKUP($A162,Filtro!$A$5:$AK$2953,27,FALSE),0) -> 2989 | AD162: =IFERROR(VLOOKUP($A162,Filtro!$A$5:$AK$2953,28,FALSE),0) -> 0 | AE162: =IFERROR(VLOOKUP($A162,Filtro!$A$5:$AK$2953,29,FALSE),0) -> 0 | AF162: =IFERROR(VLOOKUP($A162,Filtro!$A$5:$AK$2953,30,FALSE),0) -> 0 | AG162: =IFERROR(VLOOKUP($A162,Filtro!$A$5:$AK$2953,31,FALSE),0) -> 0 | AH162: =IFERROR(VLOOKUP($A162,Filtro!$A$5:$AK$2953,32,FALSE),0) -> 0 | AI162: =IFERROR(VLOOKUP($A162,Filtro!$A$5:$AK$2953,33,FALSE),0) -> 0 | AJ162: =IFERROR(VLOOKUP($A162,Filtro!$A$5:$AK$2953,34,FALSE),0) -> 0 | AK162: =IFERROR(VLOOKUP($A162,Filtro!$A$5:$AK$2953,35,FALSE),0) -> 0
A163: 01010051 | B163: 5099010 | C163: Evaluacion Actividad | D163: =IFERROR(VLOOKUP($A163,Filtro!$A$5:$AK$2953,2,FALSE),0) -> 615 | E163: =IFERROR(VLOOKUP($A163,Filtro!$A$5:$AK$2953,3,FALSE),0) -> 615 | F163: =IFERROR(VLOOKUP($A163,Filtro!$A$5:$AK$2953,4,FALSE),0) -> 615 | G163: =IFERROR(VLOOKUP($A163,Filtro!$A$5:$AK$2953,5,FALSE),0) -> 0 | H163: =IFERROR(VLOOKUP($A163,Filtro!$A$5:$AK$2953,6,FALSE),0) -> 0 | AB163: =IFERROR(VLOOKUP($A163,Filtro!$A$5:$AK$2953,26,FALSE),0) -> 63 | AC163: =IFERROR(VLOOKUP($A163,Filtro!$A$5:$AK$2953,27,FALSE),0) -> 507 | AD163: =IFERROR(VLOOKUP($A163,Filtro!$A$5:$AK$2953,28,FALSE),0) -> 0 | AE163: =IFERROR(VLOOKUP($A163,Filtro!$A$5:$AK$2953,29,FALSE),0) -> 0 | AF163: =IFERROR(VLOOKUP($A163,Filtro!$A$5:$AK$2953,30,FALSE),0) -> 0 | AG163: =IFERROR(VLOOKUP($A163,Filtro!$A$5:$AK$2953,31,FALSE),0) -> 0 | AH163: =IFERROR(VLOOKUP($A163,Filtro!$A$5:$AK$2953,32,FALSE),0) -> 0 | AI163: =IFERROR(VLOOKUP($A163,Filtro!$A$5:$AK$2953,33,FALSE),0) -> 0 | AJ163: =IFERROR(VLOOKUP($A163,Filtro!$A$5:$AK$2953,34,FALSE),0) -> 0 | AK163: =IFERROR(VLOOKUP($A163,Filtro!$A$5:$AK$2953,35,FALSE),0) -> 0
A164: 01010052 | B164: 5099011 | C164: Evaluacion prevocacional | D164: =IFERROR(VLOOKUP($A164,Filtro!$A$5:$AK$2953,2,FALSE),0) -> 0 | E164: =IFERROR(VLOOKUP($A164,Filtro!$A$5:$AK$2953,3,FALSE),0) -> 0 | F164: =IFERROR(VLOOKUP($A164,Filtro!$A$5:$AK$2953,4,FALSE),0) -> 0 | G164: =IFERROR(VLOOKUP($A164,Filtro!$A$5:$AK$2953,5,FALSE),0) -> 0 | H164: =IFERROR(VLOOKUP($A164,Filtro!$A$5:$AK$2953,6,FALSE),0) -> 0 | AB164: =IFERROR(VLOOKUP($A164,Filtro!$A$5:$AK$2953,26,FALSE),0) -> 0 | AC164: =IFERROR(VLOOKUP($A164,Filtro!$A$5:$AK$2953,27,FALSE),0) -> 0 | AD164: =IFERROR(VLOOKUP($A164,Filtro!$A$5:$AK$2953,28,FALSE),0) -> 0 | AE164: =IFERROR(VLOOKUP($A164,Filtro!$A$5:$AK$2953,29,FALSE),0) -> 0 | AF164: =IFERROR(VLOOKUP($A164,Filtro!$A$5:$AK$2953,30,FALSE),0) -> 0 | AG164: =IFERROR(VLOOKUP($A164,Filtro!$A$5:$AK$2953,31,FALSE),0) -> 0 | AH164: =IFERROR(VLOOKUP($A164,Filtro!$A$5:$AK$2953,32,FALSE),0) -> 0 | AI164: =IFERROR(VLOOKUP($A164,Filtro!$A$5:$AK$2953,33,FALSE),0) -> 0 | AJ164: =IFERROR(VLOOKUP($A164,Filtro!$A$5:$AK$2953,34,FALSE),0) -> 0 | AK164: =IFERROR(VLOOKUP($A164,Filtro!$A$5:$AK$2953,35,FALSE),0) -> 0
A165: 01010053 | B165: 5099063 | C165: Evaluación cognitiva | D165: =IFERROR(VLOOKUP($A165,Filtro!$A$5:$AK$2953,2,FALSE),0) -> 494 | E165: =IFERROR(VLOOKUP($A165,Filtro!$A$5:$AK$2953,3,FALSE),0) -> 494 | F165: =IFERROR(VLOOKUP($A165,Filtro!$A$5:$AK$2953,4,FALSE),0) -> 494 | G165: =IFERROR(VLOOKUP($A165,Filtro!$A$5:$AK$2953,5,FALSE),0) -> 0 | H165: =IFERROR(VLOOKUP($A165,Filtro!$A$5:$AK$2953,6,FALSE),0) -> 0 | AB165: =IFERROR(VLOOKUP($A165,Filtro!$A$5:$AK$2953,26,FALSE),0) -> 281 | AC165: =IFERROR(VLOOKUP($A165,Filtro!$A$5:$AK$2953,27,FALSE),0) -> 213 | AD165: =IFERROR(VLOOKUP($A165,Filtro!$A$5:$AK$2953,28,FALSE),0) -> 0 | AE165: =IFERROR(VLOOKUP($A165,Filtro!$A$5:$AK$2953,29,FALSE),0) -> 0 | AF165: =IFERROR(VLOOKUP($A165,Filtro!$A$5:$AK$2953,30,FALSE),0) -> 0 | AG165: =IFERROR(VLOOKUP($A165,Filtro!$A$5:$AK$2953,31,FALSE),0) -> 0 | AH165: =IFERROR(VLOOKUP($A165,Filtro!$A$5:$AK$2953,32,FALSE),0) -> 0 | AI165: =IFERROR(VLOOKUP($A165,Filtro!$A$5:$AK$2953,33,FALSE),0) -> 0 | AJ165: =IFERROR(VLOOKUP($A165,Filtro!$A$5:$AK$2953,34,FALSE),0) -> 0 | AK165: =IFERROR(VLOOKUP($A165,Filtro!$A$5:$AK$2953,35,FALSE),0) -> 0
A166: 01010054 | B166: 5099064 | C166: Estimulación cognitiva | D166: =IFERROR(VLOOKUP($A166,Filtro!$A$5:$AK$2953,2,FALSE),0) -> 3594 | E166: =IFERROR(VLOOKUP($A166,Filtro!$A$5:$AK$2953,3,FALSE),0) -> 3594 | F166: =IFERROR(VLOOKUP($A166,Filtro!$A$5:$AK$2953,4,FALSE),0) -> 3594 | G166: =IFERROR(VLOOKUP($A166,Filtro!$A$5:$AK$2953,5,FALSE),0) -> 0 | H166: =IFERROR(VLOOKUP($A166,Filtro!$A$5:$AK$2953,6,FALSE),0) -> 0 | AB166: =IFERROR(VLOOKUP($A166,Filtro!$A$5:$AK$2953,26,FALSE),0) -> 2188 | AC166: =IFERROR(VLOOKUP($A166,Filtro!$A$5:$AK$2953,27,FALSE),0) -> 1406 | AD166: =IFERROR(VLOOKUP($A166,Filtro!$A$5:$AK$2953,28,FALSE),0) -> 0 | AE166: =IFERROR(VLOOKUP($A166,Filtro!$A$5:$AK$2953,29,FALSE),0) -> 0 | AF166: =IFERROR(VLOOKUP($A166,Filtro!$A$5:$AK$2953,30,FALSE),0) -> 0 | AG166: =IFERROR(VLOOKUP($A166,Filtro!$A$5:$AK$2953,31,FALSE),0) -> 0 | AH166: =IFERROR(VLOOKUP($A166,Filtro!$A$5:$AK$2953,32,FALSE),0) -> 0 | AI166: =IFERROR(VLOOKUP($A166,Filtro!$A$5:$AK$2953,33,FALSE),0) -> 0 | AJ166: =IFERROR(VLOOKUP($A166,Filtro!$A$5:$AK$2953,34,FALSE),0) -> 0 | AK166: =IFERROR(VLOOKUP($A166,Filtro!$A$5:$AK$2953,35,FALSE),0) -> 0
A167: 01010055 | B167: 5099111 | C167: Curacion avanzada de herida | D167: =IFERROR(VLOOKUP($A167,Filtro!$A$5:$AK$2953,2,FALSE),0) -> 18187 | E167: =IFERROR(VLOOKUP($A167,Filtro!$A$5:$AK$2953,3,FALSE),0) -> 18187 | F167: =IFERROR(VLOOKUP($A167,Filtro!$A$5:$AK$2953,4,FALSE),0) -> 18187 | G167: =IFERROR(VLOOKUP($A167,Filtro!$A$5:$AK$2953,5,FALSE),0) -> 0 | H167: =IFERROR(VLOOKUP($A167,Filtro!$A$5:$AK$2953,6,FALSE),0) -> 0 | AB167: =IFERROR(VLOOKUP($A167,Filtro!$A$5:$AK$2953,26,FALSE),0) -> 544 | AC167: =IFERROR(VLOOKUP($A167,Filtro!$A$5:$AK$2953,27,FALSE),0) -> 16905 | AD167: =IFERROR(VLOOKUP($A167,Filtro!$A$5:$AK$2953,28,FALSE),0) -> 619 | AE167: =IFERROR(VLOOKUP($A167,Filtro!$A$5:$AK$2953,29,FALSE),0) -> 0 | AF167: =IFERROR(VLOOKUP($A167,Filtro!$A$5:$AK$2953,30,FALSE),0) -> 0 | AG167: =IFERROR(VLOOKUP($A167,Filtro!$A$5:$AK$2953,31,FALSE),0) -> 0 | AH167: =IFERROR(VLOOKUP($A167,Filtro!$A$5:$AK$2953,32,FALSE),0) -> 0 | AI167: =IFERROR(VLOOKUP($A167,Filtro!$A$5:$AK$2953,33,FALSE),0) -> 0 | AJ167: =IFERROR(VLOOKUP($A167,Filtro!$A$5:$AK$2953,34,FALSE),0) -> 0 | AK167: =IFERROR(VLOOKUP($A167,Filtro!$A$5:$AK$2953,35,FALSE),0) -> 0
A168: 01010056 | B168: 0102701 | C168: Evaluación Motriz Funcional | D168: =IFERROR(VLOOKUP($A168,Filtro!$A$5:$AK$2953,2,FALSE),0) -> 505 | E168: =IFERROR(VLOOKUP($A168,Filtro!$A$5:$AK$2953,3,FALSE),0) -> 505 | F168: =IFERROR(VLOOKUP($A168,Filtro!$A$5:$AK$2953,4,FALSE),0) -> 505 | G168: =IFERROR(VLOOKUP($A168,Filtro!$A$5:$AK$2953,5,FALSE),0) -> 0 | H168: =IFERROR(VLOOKUP($A168,Filtro!$A$5:$AK$2953,6,FALSE),0) -> 0 | AB168: =IFERROR(VLOOKUP($A168,Filtro!$A$5:$AK$2953,26,FALSE),0) -> 281 | AC168: =IFERROR(VLOOKUP($A168,Filtro!$A$5:$AK$2953,27,FALSE),0) -> 224 | AD168: =IFERROR(VLOOKUP($A168,Filtro!$A$5:$AK$2953,28,FALSE),0) -> 0 | AE168: =IFERROR(VLOOKUP($A168,Filtro!$A$5:$AK$2953,29,FALSE),0) -> 0 | AF168: =IFERROR(VLOOKUP($A168,Filtro!$A$5:$AK$2953,30,FALSE),0) -> 0 | AG168: =IFERROR(VLOOKUP($A168,Filtro!$A$5:$AK$2953,31,FALSE),0) -> 0 | AH168: =IFERROR(VLOOKUP($A168,Filtro!$A$5:$AK$2953,32,FALSE),0) -> 0 | AI168: =IFERROR(VLOOKUP($A168,Filtro!$A$5:$AK$2953,33,FALSE),0) -> 0 | AJ168: =IFERROR(VLOOKUP($A168,Filtro!$A$5:$AK$2953,34,FALSE),0) -> 0 | AK168: =IFERROR(VLOOKUP($A168,Filtro!$A$5:$AK$2953,35,FALSE),0) -> 0
A169: 01010057 | B169: 0102702 | C169: Evaluación cognitiva-perceptual | D169: =IFERROR(VLOOKUP($A169,Filtro!$A$5:$AK$2953,2,FALSE),0) -> 446 | E169: =IFERROR(VLOOKUP($A169,Filtro!$A$5:$AK$2953,3,FALSE),0) -> 446 | F169: =IFERROR(VLOOKUP($A169,Filtro!$A$5:$AK$2953,4,FALSE),0) -> 446 | G169: =IFERROR(VLOOKUP($A169,Filtro!$A$5:$AK$2953,5,FALSE),0) -> 0 | H169: =IFERROR(VLOOKUP($A169,Filtro!$A$5:$AK$2953,6,FALSE),0) -> 0 | AB169: =IFERROR(VLOOKUP($A169,Filtro!$A$5:$AK$2953,26,FALSE),0) -> 232 | AC169: =IFERROR(VLOOKUP($A169,Filtro!$A$5:$AK$2953,27,FALSE),0) -> 214 | AD169: =IFERROR(VLOOKUP($A169,Filtro!$A$5:$AK$2953,28,FALSE),0) -> 0 | AE169: =IFERROR(VLOOKUP($A169,Filtro!$A$5:$AK$2953,29,FALSE),0) -> 0 | AF169: =IFERROR(VLOOKUP($A169,Filtro!$A$5:$AK$2953,30,FALSE),0) -> 0 | AG169: =IFERROR(VLOOKUP($A169,Filtro!$A$5:$AK$2953,31,FALSE),0) -> 0 | AH169: =IFERROR(VLOOKUP($A169,Filtro!$A$5:$AK$2953,32,FALSE),0) -> 0 | AI169: =IFERROR(VLOOKUP($A169,Filtro!$A$5:$AK$2953,33,FALSE),0) -> 0 | AJ169: =IFERROR(VLOOKUP($A169,Filtro!$A$5:$AK$2953,34,FALSE),0) -> 0 | AK169: =IFERROR(VLOOKUP($A169,Filtro!$A$5:$AK$2953,35,FALSE),0) -> 0
A170: 01010058 | B170: 0102703 | C170: Evaluación independencia en actividades de la vida diaria | D170: =IFERROR(VLOOKUP($A170,Filtro!$A$5:$AK$2953,2,FALSE),0) -> 455 | E170: =IFERROR(VLOOKUP($A170,Filtro!$A$5:$AK$2953,3,FALSE),0) -> 455 | F170: =IFERROR(VLOOKUP($A170,Filtro!$A$5:$AK$2953,4,FALSE),0) -> 455 | G170: =IFERROR(VLOOKUP($A170,Filtro!$A$5:$AK$2953,5,FALSE),0) -> 0 | H170: =IFERROR(VLOOKUP($A170,Filtro!$A$5:$AK$2953,6,FALSE),0) -> 0 | AB170: =IFERROR(VLOOKUP($A170,Filtro!$A$5:$AK$2953,26,FALSE),0) -> 233 | AC170: =IFERROR(VLOOKUP($A170,Filtro!$A$5:$AK$2953,27,FALSE),0) -> 222 | AD170: =IFERROR(VLOOKUP($A170,Filtro!$A$5:$AK$2953,28,FALSE),0) -> 0 | AE170: =IFERROR(VLOOKUP($A170,Filtro!$A$5:$AK$2953,29,FALSE),0) -> 0 | AF170: =IFERROR(VLOOKUP($A170,Filtro!$A$5:$AK$2953,30,FALSE),0) -> 0 | AG170: =IFERROR(VLOOKUP($A170,Filtro!$A$5:$AK$2953,31,FALSE),0) -> 0 | AH170: =IFERROR(VLOOKUP($A170,Filtro!$A$5:$AK$2953,32,FALSE),0) -> 0 | AI170: =IFERROR(VLOOKUP($A170,Filtro!$A$5:$AK$2953,33,FALSE),0) -> 0 | AJ170: =IFERROR(VLOOKUP($A170,Filtro!$A$5:$AK$2953,34,FALSE),0) -> 0 | AK170: =IFERROR(VLOOKUP($A170,Filtro!$A$5:$AK$2953,35,FALSE),0) -> 0
A171: 01010059 | B171: 0102704 | C171: Evaluación barreras arquitectónicas | D171: =IFERROR(VLOOKUP($A171,Filtro!$A$5:$AK$2953,2,FALSE),0) -> 0 | E171: =IFERROR(VLOOKUP($A171,Filtro!$A$5:$AK$2953,3,FALSE),0) -> 0 | F171: =IFERROR(VLOOKUP($A171,Filtro!$A$5:$AK$2953,4,FALSE),0) -> 0 | G171: =IFERROR(VLOOKUP($A171,Filtro!$A$5:$AK$2953,5,FALSE),0) -> 0 | H171: =IFERROR(VLOOKUP($A171,Filtro!$A$5:$AK$2953,6,FALSE),0) -> 0 | AB171: =IFERROR(VLOOKUP($A171,Filtro!$A$5:$AK$2953,26,FALSE),0) -> 0 | AC171: =IFERROR(VLOOKUP($A171,Filtro!$A$5:$AK$2953,27,FALSE),0) -> 0 | AD171: =IFERROR(VLOOKUP($A171,Filtro!$A$5:$AK$2953,28,FALSE),0) -> 0 | AE171: =IFERROR(VLOOKUP($A171,Filtro!$A$5:$AK$2953,29,FALSE),0) -> 0 | AF171: =IFERROR(VLOOKUP($A171,Filtro!$A$5:$AK$2953,30,FALSE),0) -> 0 | AG171: =IFERROR(VLOOKUP($A171,Filtro!$A$5:$AK$2953,31,FALSE),0) -> 0 | AH171: =IFERROR(VLOOKUP($A171,Filtro!$A$5:$AK$2953,32,FALSE),0) -> 0 | AI171: =IFERROR(VLOOKUP($A171,Filtro!$A$5:$AK$2953,33,FALSE),0) -> 0 | AJ171: =IFERROR(VLOOKUP($A171,Filtro!$A$5:$AK$2953,34,FALSE),0) -> 0 | AK171: =IFERROR(VLOOKUP($A171,Filtro!$A$5:$AK$2953,35,FALSE),0) -> 0
A172: 01010060 | B172: 0102705 | C172: Evaluación puesto de trabajo | D172: =IFERROR(VLOOKUP($A172,Filtro!$A$5:$AK$2953,2,FALSE),0) -> 0 | E172: =IFERROR(VLOOKUP($A172,Filtro!$A$5:$AK$2953,3,FALSE),0) -> 0 | F172: =IFERROR(VLOOKUP($A172,Filtro!$A$5:$AK$2953,4,FALSE),0) -> 0 | G172: =IFERROR(VLOOKUP($A172,Filtro!$A$5:$AK$2953,5,FALSE),0) -> 0 | H172: =IFERROR(VLOOKUP($A172,Filtro!$A$5:$AK$2953,6,FALSE),0) -> 0 | AB172: =IFERROR(VLOOKUP($A172,Filtro!$A$5:$AK$2953,26,FALSE),0) -> 0 | AC172: =IFERROR(VLOOKUP($A172,Filtro!$A$5:$AK$2953,27,FALSE),0) -> 0 | AD172: =IFERROR(VLOOKUP($A172,Filtro!$A$5:$AK$2953,28,FALSE),0) -> 0 | AE172: =IFERROR(VLOOKUP($A172,Filtro!$A$5:$AK$2953,29,FALSE),0) -> 0 | AF172: =IFERROR(VLOOKUP($A172,Filtro!$A$5:$AK$2953,30,FALSE),0) -> 0 | AG172: =IFERROR(VLOOKUP($A172,Filtro!$A$5:$AK$2953,31,FALSE),0) -> 0 | AH172: =IFERROR(VLOOKUP($A172,Filtro!$A$5:$AK$2953,32,FALSE),0) -> 0 | AI172: =IFERROR(VLOOKUP($A172,Filtro!$A$5:$AK$2953,33,FALSE),0) -> 0 | AJ172: =IFERROR(VLOOKUP($A172,Filtro!$A$5:$AK$2953,34,FALSE),0) -> 0 | AK172: =IFERROR(VLOOKUP($A172,Filtro!$A$5:$AK$2953,35,FALSE),0) -> 0
A173: 01010061 | B173: 0102706 | C173: Evaluación del desarrollo Psicomotor | D173: =IFERROR(VLOOKUP($A173,Filtro!$A$5:$AK$2953,2,FALSE),0) -> 356 | E173: =IFERROR(VLOOKUP($A173,Filtro!$A$5:$AK$2953,3,FALSE),0) -> 356 | F173: =IFERROR(VLOOKUP($A173,Filtro!$A$5:$AK$2953,4,FALSE),0) -> 356 | G173: =IFERROR(VLOOKUP($A173,Filtro!$A$5:$AK$2953,5,FALSE),0) -> 0 | H173: =IFERROR(VLOOKUP($A173,Filtro!$A$5:$AK$2953,6,FALSE),0) -> 0 | AB173: =IFERROR(VLOOKUP($A173,Filtro!$A$5:$AK$2953,26,FALSE),0) -> 12 | AC173: =IFERROR(VLOOKUP($A173,Filtro!$A$5:$AK$2953,27,FALSE),0) -> 344 | AD173: =IFERROR(VLOOKUP($A173,Filtro!$A$5:$AK$2953,28,FALSE),0) -> 0 | AE173: =IFERROR(VLOOKUP($A173,Filtro!$A$5:$AK$2953,29,FALSE),0) -> 0 | AF173: =IFERROR(VLOOKUP($A173,Filtro!$A$5:$AK$2953,30,FALSE),0) -> 0 | AG173: =IFERROR(VLOOKUP($A173,Filtro!$A$5:$AK$2953,31,FALSE),0) -> 0 | AH173: =IFERROR(VLOOKUP($A173,Filtro!$A$5:$AK$2953,32,FALSE),0) -> 0 | AI173: =IFERROR(VLOOKUP($A173,Filtro!$A$5:$AK$2953,33,FALSE),0) -> 0 | AJ173: =IFERROR(VLOOKUP($A173,Filtro!$A$5:$AK$2953,34,FALSE),0) -> 0 | AK173: =IFERROR(VLOOKUP($A173,Filtro!$A$5:$AK$2953,35,FALSE),0) -> 0
A174: 01010062 | B174: 0102707 | C174: Reentrenamiento de las funciones cognitiva-perceptual | D174: =IFERROR(VLOOKUP($A174,Filtro!$A$5:$AK$2953,2,FALSE),0) -> 543 | E174: =IFERROR(VLOOKUP($A174,Filtro!$A$5:$AK$2953,3,FALSE),0) -> 543 | F174: =IFERROR(VLOOKUP($A174,Filtro!$A$5:$AK$2953,4,FALSE),0) -> 543 | G174: =IFERROR(VLOOKUP($A174,Filtro!$A$5:$AK$2953,5,FALSE),0) -> 0 | H174: =IFERROR(VLOOKUP($A174,Filtro!$A$5:$AK$2953,6,FALSE),0) -> 0 | AB174: =IFERROR(VLOOKUP($A174,Filtro!$A$5:$AK$2953,26,FALSE),0) -> 306 | AC174: =IFERROR(VLOOKUP($A174,Filtro!$A$5:$AK$2953,27,FALSE),0) -> 237 | AD174: =IFERROR(VLOOKUP($A174,Filtro!$A$5:$AK$2953,28,FALSE),0) -> 0 | AE174: =IFERROR(VLOOKUP($A174,Filtro!$A$5:$AK$2953,29,FALSE),0) -> 0 | AF174: =IFERROR(VLOOKUP($A174,Filtro!$A$5:$AK$2953,30,FALSE),0) -> 0 | AG174: =IFERROR(VLOOKUP($A174,Filtro!$A$5:$AK$2953,31,FALSE),0) -> 0 | AH174: =IFERROR(VLOOKUP($A174,Filtro!$A$5:$AK$2953,32,FALSE),0) -> 0 | AI174: =IFERROR(VLOOKUP($A174,Filtro!$A$5:$AK$2953,33,FALSE),0) -> 0 | AJ174: =IFERROR(VLOOKUP($A174,Filtro!$A$5:$AK$2953,34,FALSE),0) -> 0 | AK174: =IFERROR(VLOOKUP($A174,Filtro!$A$5:$AK$2953,35,FALSE),0) -> 0
A175: 01010063 | B175: 0102708 | C175: Reentrenamiento de las actividades de la vida diaria | D175: =IFERROR(VLOOKUP($A175,Filtro!$A$5:$AK$2953,2,FALSE),0) -> 1474 | E175: =IFERROR(VLOOKUP($A175,Filtro!$A$5:$AK$2953,3,FALSE),0) -> 1474 | F175: =IFERROR(VLOOKUP($A175,Filtro!$A$5:$AK$2953,4,FALSE),0) -> 1474 | G175: =IFERROR(VLOOKUP($A175,Filtro!$A$5:$AK$2953,5,FALSE),0) -> 0 | H175: =IFERROR(VLOOKUP($A175,Filtro!$A$5:$AK$2953,6,FALSE),0) -> 0 | AB175: =IFERROR(VLOOKUP($A175,Filtro!$A$5:$AK$2953,26,FALSE),0) -> 445 | AC175: =IFERROR(VLOOKUP($A175,Filtro!$A$5:$AK$2953,27,FALSE),0) -> 1029 | AD175: =IFERROR(VLOOKUP($A175,Filtro!$A$5:$AK$2953,28,FALSE),0) -> 0 | AE175: =IFERROR(VLOOKUP($A175,Filtro!$A$5:$AK$2953,29,FALSE),0) -> 0 | AF175: =IFERROR(VLOOKUP($A175,Filtro!$A$5:$AK$2953,30,FALSE),0) -> 0 | AG175: =IFERROR(VLOOKUP($A175,Filtro!$A$5:$AK$2953,31,FALSE),0) -> 0 | AH175: =IFERROR(VLOOKUP($A175,Filtro!$A$5:$AK$2953,32,FALSE),0) -> 0 | AI175: =IFERROR(VLOOKUP($A175,Filtro!$A$5:$AK$2953,33,FALSE),0) -> 0 | AJ175: =IFERROR(VLOOKUP($A175,Filtro!$A$5:$AK$2953,34,FALSE),0) -> 0 | AK175: =IFERROR(VLOOKUP($A175,Filtro!$A$5:$AK$2953,35,FALSE),0) -> 0
A176: 01010064 | B176: 0102709 | C176: Reentrenamiento laboral | D176: =IFERROR(VLOOKUP($A176,Filtro!$A$5:$AK$2953,2,FALSE),0) -> 0 | E176: =IFERROR(VLOOKUP($A176,Filtro!$A$5:$AK$2953,3,FALSE),0) -> 0 | F176: =IFERROR(VLOOKUP($A176,Filtro!$A$5:$AK$2953,4,FALSE),0) -> 0 | G176: =IFERROR(VLOOKUP($A176,Filtro!$A$5:$AK$2953,5,FALSE),0) -> 0 | H176: =IFERROR(VLOOKUP($A176,Filtro!$A$5:$AK$2953,6,FALSE),0) -> 0 | AB176: =IFERROR(VLOOKUP($A176,Filtro!$A$5:$AK$2953,26,FALSE),0) -> 0 | AC176: =IFERROR(VLOOKUP($A176,Filtro!$A$5:$AK$2953,27,FALSE),0) -> 0 | AD176: =IFERROR(VLOOKUP($A176,Filtro!$A$5:$AK$2953,28,FALSE),0) -> 0 | AE176: =IFERROR(VLOOKUP($A176,Filtro!$A$5:$AK$2953,29,FALSE),0) -> 0 | AF176: =IFERROR(VLOOKUP($A176,Filtro!$A$5:$AK$2953,30,FALSE),0) -> 0 | AG176: =IFERROR(VLOOKUP($A176,Filtro!$A$5:$AK$2953,31,FALSE),0) -> 0 | AH176: =IFERROR(VLOOKUP($A176,Filtro!$A$5:$AK$2953,32,FALSE),0) -> 0 | AI176: =IFERROR(VLOOKUP($A176,Filtro!$A$5:$AK$2953,33,FALSE),0) -> 0 | AJ176: =IFERROR(VLOOKUP($A176,Filtro!$A$5:$AK$2953,34,FALSE),0) -> 0 | AK176: =IFERROR(VLOOKUP($A176,Filtro!$A$5:$AK$2953,35,FALSE),0) -> 0
A177: 01010065 | B177: 01010065 | C177: Comité junta médica | D177: =IFERROR(VLOOKUP($A177,Filtro!$A$5:$AK$2953,2,FALSE),0) -> 621 | E177: =IFERROR(VLOOKUP($A177,Filtro!$A$5:$AK$2953,3,FALSE),0) -> 621 | F177: =IFERROR(VLOOKUP($A177,Filtro!$A$5:$AK$2953,4,FALSE),0) -> 621 | G177: =IFERROR(VLOOKUP($A177,Filtro!$A$5:$AK$2953,5,FALSE),0) -> 0 | H177: =IFERROR(VLOOKUP($A177,Filtro!$A$5:$AK$2953,6,FALSE),0) -> 0 | AB177: =IFERROR(VLOOKUP($A177,Filtro!$A$5:$AK$2953,26,FALSE),0) -> 0 | AC177: =IFERROR(VLOOKUP($A177,Filtro!$A$5:$AK$2953,27,FALSE),0) -> 621 | AD177: =IFERROR(VLOOKUP($A177,Filtro!$A$5:$AK$2953,28,FALSE),0) -> 0 | AE177: =IFERROR(VLOOKUP($A177,Filtro!$A$5:$AK$2953,29,FALSE),0) -> 0 | AF177: =IFERROR(VLOOKUP($A177,Filtro!$A$5:$AK$2953,30,FALSE),0) -> 0 | AG177: =IFERROR(VLOOKUP($A177,Filtro!$A$5:$AK$2953,31,FALSE),0) -> 0 | AH177: =IFERROR(VLOOKUP($A177,Filtro!$A$5:$AK$2953,32,FALSE),0) -> 0 | AI177: =IFERROR(VLOOKUP($A177,Filtro!$A$5:$AK$2953,33,FALSE),0) -> 0 | AJ177: =IFERROR(VLOOKUP($A177,Filtro!$A$5:$AK$2953,34,FALSE),0) -> 0 | AK177: =IFERROR(VLOOKUP($A177,Filtro!$A$5:$AK$2953,35,FALSE),0) -> 0
A178: 01010066 | B178: 01010066 | C178: Consultorías médicas de especialidades | D178: =IFERROR(VLOOKUP($A178,Filtro!$A$5:$AK$2953,2,FALSE),0) -> 1954 | E178: =IFERROR(VLOOKUP($A178,Filtro!$A$5:$AK$2953,3,FALSE),0) -> 1954 | F178: =IFERROR(VLOOKUP($A178,Filtro!$A$5:$AK$2953,4,FALSE),0) -> 1954 | G178: =IFERROR(VLOOKUP($A178,Filtro!$A$5:$AK$2953,5,FALSE),0) -> 0 | H178: =IFERROR(VLOOKUP($A178,Filtro!$A$5:$AK$2953,6,FALSE),0) -> 0 | AB178: =IFERROR(VLOOKUP($A178,Filtro!$A$5:$AK$2953,26,FALSE),0) -> 0 | AC178: =IFERROR(VLOOKUP($A178,Filtro!$A$5:$AK$2953,27,FALSE),0) -> 128 | AD178: =IFERROR(VLOOKUP($A178,Filtro!$A$5:$AK$2953,28,FALSE),0) -> 1826 | AE178: =IFERROR(VLOOKUP($A178,Filtro!$A$5:$AK$2953,29,FALSE),0) -> 342 | AF178: =IFERROR(VLOOKUP($A178,Filtro!$A$5:$AK$2953,30,FALSE),0) -> 0 | AG178: =IFERROR(VLOOKUP($A178,Filtro!$A$5:$AK$2953,31,FALSE),0) -> 130 | AH178: =IFERROR(VLOOKUP($A178,Filtro!$A$5:$AK$2953,32,FALSE),0) -> 0 | AI178: =IFERROR(VLOOKUP($A178,Filtro!$A$5:$AK$2953,33,FALSE),0) -> 0 | AJ178: =IFERROR(VLOOKUP($A178,Filtro!$A$5:$AK$2953,34,FALSE),0) -> 0 | AK178: =IFERROR(VLOOKUP($A178,Filtro!$A$5:$AK$2953,35,FALSE),0) -> 0
A179: 01010067 | B179: 01010067 | C179: Consultorías odontólogos | D179: =IFERROR(VLOOKUP($A179,Filtro!$A$5:$AK$2953,2,FALSE),0) -> 0 | E179: =IFERROR(VLOOKUP($A179,Filtro!$A$5:$AK$2953,3,FALSE),0) -> 0 | F179: =IFERROR(VLOOKUP($A179,Filtro!$A$5:$AK$2953,4,FALSE),0) -> 0 | G179: =IFERROR(VLOOKUP($A179,Filtro!$A$5:$AK$2953,5,FALSE),0) -> 0 | H179: =IFERROR(VLOOKUP($A179,Filtro!$A$5:$AK$2953,6,FALSE),0) -> 0 | AB179: =IFERROR(VLOOKUP($A179,Filtro!$A$5:$AK$2953,26,FALSE),0) -> 0 | AC179: =IFERROR(VLOOKUP($A179,Filtro!$A$5:$AK$2953,27,FALSE),0) -> 0 | AD179: =IFERROR(VLOOKUP($A179,Filtro!$A$5:$AK$2953,28,FALSE),0) -> 0 | AE179: =IFERROR(VLOOKUP($A179,Filtro!$A$5:$AK$2953,29,FALSE),0) -> 0 | AF179: =IFERROR(VLOOKUP($A179,Filtro!$A$5:$AK$2953,30,FALSE),0) -> 0 | AG179: =IFERROR(VLOOKUP($A179,Filtro!$A$5:$AK$2953,31,FALSE),0) -> 0 | AH179: =IFERROR(VLOOKUP($A179,Filtro!$A$5:$AK$2953,32,FALSE),0) -> 0 | AI179: =IFERROR(VLOOKUP($A179,Filtro!$A$5:$AK$2953,33,FALSE),0) -> 0 | AJ179: =IFERROR(VLOOKUP($A179,Filtro!$A$5:$AK$2953,34,FALSE),0) -> 0 | AK179: =IFERROR(VLOOKUP($A179,Filtro!$A$5:$AK$2953,35,FALSE),0) -> 0
A180: 01010068 | B180: 01010068 | C180: Consejerias Individual por profesional de salud | D180: =IFERROR(VLOOKUP($A180,Filtro!$A$5:$AK$2953,2,FALSE),0) -> 27199 | E180: =IFERROR(VLOOKUP($A180,Filtro!$A$5:$AK$2953,3,FALSE),0) -> 27199 | F180: =IFERROR(VLOOKUP($A180,Filtro!$A$5:$AK$2953,4,FALSE),0) -> 27177 | G180: =IFERROR(VLOOKUP($A180,Filtro!$A$5:$AK$2953,5,FALSE),0) -> 22 | H180: =IFERROR(VLOOKUP($A180,Filtro!$A$5:$AK$2953,6,FALSE),0) -> 0 | AB180: =IFERROR(VLOOKUP($A180,Filtro!$A$5:$AK$2953,26,FALSE),0) -> 7014 | AC180: =IFERROR(VLOOKUP($A180,Filtro!$A$5:$AK$2953,27,FALSE),0) -> 19489 | AD180: =IFERROR(VLOOKUP($A180,Filtro!$A$5:$AK$2953,28,FALSE),0) -> 0 | AE180: =IFERROR(VLOOKUP($A180,Filtro!$A$5:$AK$2953,29,FALSE),0) -> 0 | AF180: =IFERROR(VLOOKUP($A180,Filtro!$A$5:$AK$2953,30,FALSE),0) -> 0 | AG180: =IFERROR(VLOOKUP($A180,Filtro!$A$5:$AK$2953,31,FALSE),0) -> 0 | AH180: =IFERROR(VLOOKUP($A180,Filtro!$A$5:$AK$2953,32,FALSE),0) -> 0 | AI180: =IFERROR(VLOOKUP($A180,Filtro!$A$5:$AK$2953,33,FALSE),0) -> 0 | AJ180: =IFERROR(VLOOKUP($A180,Filtro!$A$5:$AK$2953,34,FALSE),0) -> 0 | AK180: =IFERROR(VLOOKUP($A180,Filtro!$A$5:$AK$2953,35,FALSE),0) -> 0
A181: 01010069 | B181: 01010069 | C181: Consejerias Familiar por profesionales de salud | D181: =IFERROR(VLOOKUP($A181,Filtro!$A$5:$AK$2953,2,FALSE),0) -> 655 | E181: =IFERROR(VLOOKUP($A181,Filtro!$A$5:$AK$2953,3,FALSE),0) -> 655 | F181: =IFERROR(VLOOKUP($A181,Filtro!$A$5:$AK$2953,4,FALSE),0) -> 655 | G181: =IFERROR(VLOOKUP($A181,Filtro!$A$5:$AK$2953,5,FALSE),0) -> 0 | H181: =IFERROR(VLOOKUP($A181,Filtro!$A$5:$AK$2953,6,FALSE),0) -> 0 | AB181: =IFERROR(VLOOKUP($A181,Filtro!$A$5:$AK$2953,26,FALSE),0) -> 0 | AC181: =IFERROR(VLOOKUP($A181,Filtro!$A$5:$AK$2953,27,FALSE),0) -> 655 | AD181: =IFERROR(VLOOKUP($A181,Filtro!$A$5:$AK$2953,28,FALSE),0) -> 0 | AE181: =IFERROR(VLOOKUP($A181,Filtro!$A$5:$AK$2953,29,FALSE),0) -> 0 | AF181: =IFERROR(VLOOKUP($A181,Filtro!$A$5:$AK$2953,30,FALSE),0) -> 0 | AG181: =IFERROR(VLOOKUP($A181,Filtro!$A$5:$AK$2953,31,FALSE),0) -> 0 | AH181: =IFERROR(VLOOKUP($A181,Filtro!$A$5:$AK$2953,32,FALSE),0) -> 0 | AI181: =IFERROR(VLOOKUP($A181,Filtro!$A$5:$AK$2953,33,FALSE),0) -> 0 | AJ181: =IFERROR(VLOOKUP($A181,Filtro!$A$5:$AK$2953,34,FALSE),0) -> 0 | AK181: =IFERROR(VLOOKUP($A181,Filtro!$A$5:$AK$2953,35,FALSE),0) -> 0
A182: 01010070 | B182: 01010070 | C182: Instalación de clips en lesiones sangrantes | D182: =IFERROR(VLOOKUP($A182,Filtro!$A$5:$AK$2953,2,FALSE),0) -> 0 | E182: =IFERROR(VLOOKUP($A182,Filtro!$A$5:$AK$2953,3,FALSE),0) -> 0 | F182: =IFERROR(VLOOKUP($A182,Filtro!$A$5:$AK$2953,4,FALSE),0) -> 0 | G182: =IFERROR(VLOOKUP($A182,Filtro!$A$5:$AK$2953,5,FALSE),0) -> 0 | H182: =IFERROR(VLOOKUP($A182,Filtro!$A$5:$AK$2953,6,FALSE),0) -> 0 | AB182: =IFERROR(VLOOKUP($A182,Filtro!$A$5:$AK$2953,26,FALSE),0) -> 0 | AC182: =IFERROR(VLOOKUP($A182,Filtro!$A$5:$AK$2953,27,FALSE),0) -> 0 | AD182: =IFERROR(VLOOKUP($A182,Filtro!$A$5:$AK$2953,28,FALSE),0) -> 0 | AE182: =IFERROR(VLOOKUP($A182,Filtro!$A$5:$AK$2953,29,FALSE),0) -> 0 | AF182: =IFERROR(VLOOKUP($A182,Filtro!$A$5:$AK$2953,30,FALSE),0) -> 0 | AG182: =IFERROR(VLOOKUP($A182,Filtro!$A$5:$AK$2953,31,FALSE),0) -> 0 | AH182: =IFERROR(VLOOKUP($A182,Filtro!$A$5:$AK$2953,32,FALSE),0) -> 0 | AI182: =IFERROR(VLOOKUP($A182,Filtro!$A$5:$AK$2953,33,FALSE),0) -> 0 | AJ182: =IFERROR(VLOOKUP($A182,Filtro!$A$5:$AK$2953,34,FALSE),0) -> 0 | AK182: =IFERROR(VLOOKUP($A182,Filtro!$A$5:$AK$2953,35,FALSE),0) -> 0
A183: 01010071 | B183: 01010071 | C183: Instalación vendaje compresivo (Coban) | D183: =IFERROR(VLOOKUP($A183,Filtro!$A$5:$AK$2953,2,FALSE),0) -> 11 | E183: =IFERROR(VLOOKUP($A183,Filtro!$A$5:$AK$2953,3,FALSE),0) -> 11 | F183: =IFERROR(VLOOKUP($A183,Filtro!$A$5:$AK$2953,4,FALSE),0) -> 11 | G183: =IFERROR(VLOOKUP($A183,Filtro!$A$5:$AK$2953,5,FALSE),0) -> 0 | H183: =IFERROR(VLOOKUP($A183,Filtro!$A$5:$AK$2953,6,FALSE),0) -> 0 | AB183: =IFERROR(VLOOKUP($A183,Filtro!$A$5:$AK$2953,26,FALSE),0) -> 1 | AC183: =IFERROR(VLOOKUP($A183,Filtro!$A$5:$AK$2953,27,FALSE),0) -> 10 | AD183: =IFERROR(VLOOKUP($A183,Filtro!$A$5:$AK$2953,28,FALSE),0) -> 0 | AE183: =IFERROR(VLOOKUP($A183,Filtro!$A$5:$AK$2953,29,FALSE),0) -> 0 | AF183: =IFERROR(VLOOKUP($A183,Filtro!$A$5:$AK$2953,30,FALSE),0) -> 0 | AG183: =IFERROR(VLOOKUP($A183,Filtro!$A$5:$AK$2953,31,FALSE),0) -> 0 | AH183: =IFERROR(VLOOKUP($A183,Filtro!$A$5:$AK$2953,32,FALSE),0) -> 0 | AI183: =IFERROR(VLOOKUP($A183,Filtro!$A$5:$AK$2953,33,FALSE),0) -> 0 | AJ183: =IFERROR(VLOOKUP($A183,Filtro!$A$5:$AK$2953,34,FALSE),0) -> 0 | AK183: =IFERROR(VLOOKUP($A183,Filtro!$A$5:$AK$2953,35,FALSE),0) -> 0
C184: TOTAL | D184: =SUM(D160:D183) -> 953074 | E184: =SUM(E160:E183) -> 953074 | F184: =SUM(F160:F183) -> 953052 | G184: =SUM(G160:G183) -> 22 | H184: =SUM(H160:H183) -> 0 | AB184: =SUM(AB160:AB183) -> 144531 | AC184: 753300 | AD184: 54383 | AE184: 342 | AF184: 0 | AG184: 130 | AH184: 0 | AI184: 0 | AJ184: 0 | AK184: 0 | AM184: =IFERROR(VLOOKUP($A184,Filtro!$A$5:$AK$2953,37,FALSE),0) -> 0
C185: TRASPLANTES
A186: 01010072 | B186: 01010072 | C186: Estudio receptor donante cadáver | D186: =IFERROR(VLOOKUP($A186,Filtro!$A$5:$AK$2953,2,FALSE),0) -> 0 | E186: =IFERROR(VLOOKUP($A186,Filtro!$A$5:$AK$2953,3,FALSE),0) -> 0 | F186: =IFERROR(VLOOKUP($A186,Filtro!$A$5:$AK$2953,4,FALSE),0) -> 0 | G186: =IFERROR(VLOOKUP($A186,Filtro!$A$5:$AK$2953,5,FALSE),0) -> 0 | H186: =IFERROR(VLOOKUP($A186,Filtro!$A$5:$AK$2953,6,FALSE),0) -> 0 | AB186: =IFERROR(VLOOKUP($A186,Filtro!$A$5:$AK$2953,26,FALSE),0) -> 0 | AC186: =IFERROR(VLOOKUP($A186,Filtro!$A$5:$AK$2953,27,FALSE),0) -> 0 | AD186: =IFERROR(VLOOKUP($A186,Filtro!$A$5:$AK$2953,28,FALSE),0) -> 0 | AE186: =IFERROR(VLOOKUP($A186,Filtro!$A$5:$AK$2953,29,FALSE),0) -> 0 | AF186: =IFERROR(VLOOKUP($A186,Filtro!$A$5:$AK$2953,30,FALSE),0) -> 0 | AG186: =IFERROR(VLOOKUP($A186,Filtro!$A$5:$AK$2953,31,FALSE),0) -> 0 | AH186: =IFERROR(VLOOKUP($A186,Filtro!$A$5:$AK$2953,32,FALSE),0) -> 0 | AI186: =IFERROR(VLOOKUP($A186,Filtro!$A$5:$AK$2953,33,FALSE),0) -> 0 | AJ186: =IFERROR(VLOOKUP($A186,Filtro!$A$5:$AK$2953,34,FALSE),0) -> 0 | AK186: =IFERROR(VLOOKUP($A186,Filtro!$A$5:$AK$2953,35,FALSE),0) -> 0
A187: 01010073 | B187: 01010073 | C187: Estudio receptor donante vivo | D187: =IFERROR(VLOOKUP($A187,Filtro!$A$5:$AK$2953,2,FALSE),0) -> 0 | E187: =IFERROR(VLOOKUP($A187,Filtro!$A$5:$AK$2953,3,FALSE),0) -> 0 | F187: =IFERROR(VLOOKUP($A187,Filtro!$A$5:$AK$2953,4,FALSE),0) -> 0 | G187: =IFERROR(VLOOKUP($A187,Filtro!$A$5:$AK$2953,5,FALSE),0) -> 0 | H187: =IFERROR(VLOOKUP($A187,Filtro!$A$5:$AK$2953,6,FALSE),0) -> 0 | AB187: =IFERROR(VLOOKUP($A187,Filtro!$A$5:$AK$2953,26,FALSE),0) -> 0 | AC187: =IFERROR(VLOOKUP($A187,Filtro!$A$5:$AK$2953,27,FALSE),0) -> 0 | AD187: =IFERROR(VLOOKUP($A187,Filtro!$A$5:$AK$2953,28,FALSE),0) -> 0 | AE187: =IFERROR(VLOOKUP($A187,Filtro!$A$5:$AK$2953,29,FALSE),0) -> 0 | AF187: =IFERROR(VLOOKUP($A187,Filtro!$A$5:$AK$2953,30,FALSE),0) -> 0 | AG187: =IFERROR(VLOOKUP($A187,Filtro!$A$5:$AK$2953,31,FALSE),0) -> 0 | AH187: =IFERROR(VLOOKUP($A187,Filtro!$A$5:$AK$2953,32,FALSE),0) -> 0 | AI187: =IFERROR(VLOOKUP($A187,Filtro!$A$5:$AK$2953,33,FALSE),0) -> 0 | AJ187: =IFERROR(VLOOKUP($A187,Filtro!$A$5:$AK$2953,34,FALSE),0) -> 0 | AK187: =IFERROR(VLOOKUP($A187,Filtro!$A$5:$AK$2953,35,FALSE),0) -> 0
A188: 01010074 | B188: 01010074 | C188: Estudio receptores corazón-pulmón | D188: =IFERROR(VLOOKUP($A188,Filtro!$A$5:$AK$2953,2,FALSE),0) -> 0 | E188: =IFERROR(VLOOKUP($A188,Filtro!$A$5:$AK$2953,3,FALSE),0) -> 0 | F188: =IFERROR(VLOOKUP($A188,Filtro!$A$5:$AK$2953,4,FALSE),0) -> 0 | G188: =IFERROR(VLOOKUP($A188,Filtro!$A$5:$AK$2953,5,FALSE),0) -> 0 | H188: =IFERROR(VLOOKUP($A188,Filtro!$A$5:$AK$2953,6,FALSE),0) -> 0 | AB188: =IFERROR(VLOOKUP($A188,Filtro!$A$5:$AK$2953,26,FALSE),0) -> 0 | AC188: =IFERROR(VLOOKUP($A188,Filtro!$A$5:$AK$2953,27,FALSE),0) -> 0 | AD188: =IFERROR(VLOOKUP($A188,Filtro!$A$5:$AK$2953,28,FALSE),0) -> 0 | AE188: =IFERROR(VLOOKUP($A188,Filtro!$A$5:$AK$2953,29,FALSE),0) -> 0 | AF188: =IFERROR(VLOOKUP($A188,Filtro!$A$5:$AK$2953,30,FALSE),0) -> 0 | AG188: =IFERROR(VLOOKUP($A188,Filtro!$A$5:$AK$2953,31,FALSE),0) -> 0 | AH188: =IFERROR(VLOOKUP($A188,Filtro!$A$5:$AK$2953,32,FALSE),0) -> 0 | AI188: =IFERROR(VLOOKUP($A188,Filtro!$A$5:$AK$2953,33,FALSE),0) -> 0 | AJ188: =IFERROR(VLOOKUP($A188,Filtro!$A$5:$AK$2953,34,FALSE),0) -> 0 | AK188: =IFERROR(VLOOKUP($A188,Filtro!$A$5:$AK$2953,35,FALSE),0) -> 0
A189: 01010075 | B189: 01010075 | C189: Estudio pacientes trasplante medula ósea | D189: =IFERROR(VLOOKUP($A189,Filtro!$A$5:$AK$2953,2,FALSE),0) -> 0 | E189: =IFERROR(VLOOKUP($A189,Filtro!$A$5:$AK$2953,3,FALSE),0) -> 0 | F189: =IFERROR(VLOOKUP($A189,Filtro!$A$5:$AK$2953,4,FALSE),0) -> 0 | G189: =IFERROR(VLOOKUP($A189,Filtro!$A$5:$AK$2953,5,FALSE),0) -> 0 | H189: =IFERROR(VLOOKUP($A189,Filtro!$A$5:$AK$2953,6,FALSE),0) -> 0 | AB189: =IFERROR(VLOOKUP($A189,Filtro!$A$5:$AK$2953,26,FALSE),0) -> 0 | AC189: =IFERROR(VLOOKUP($A189,Filtro!$A$5:$AK$2953,27,FALSE),0) -> 0 | AD189: =IFERROR(VLOOKUP($A189,Filtro!$A$5:$AK$2953,28,FALSE),0) -> 0 | AE189: =IFERROR(VLOOKUP($A189,Filtro!$A$5:$AK$2953,29,FALSE),0) -> 0 | AF189: =IFERROR(VLOOKUP($A189,Filtro!$A$5:$AK$2953,30,FALSE),0) -> 0 | AG189: =IFERROR(VLOOKUP($A189,Filtro!$A$5:$AK$2953,31,FALSE),0) -> 0 | AH189: =IFERROR(VLOOKUP($A189,Filtro!$A$5:$AK$2953,32,FALSE),0) -> 0 | AI189: =IFERROR(VLOOKUP($A189,Filtro!$A$5:$AK$2953,33,FALSE),0) -> 0 | AJ189: =IFERROR(VLOOKUP($A189,Filtro!$A$5:$AK$2953,34,FALSE),0) -> 0 | AK189: =IFERROR(VLOOKUP($A189,Filtro!$A$5:$AK$2953,35,FALSE),0) -> 0
A190: 01010076 | B190: 01010076 | C190: Trasplante de medula autólogo | D190: =IFERROR(VLOOKUP($A190,Filtro!$A$5:$AK$2953,2,FALSE),0) -> 0 | E190: =IFERROR(VLOOKUP($A190,Filtro!$A$5:$AK$2953,3,FALSE),0) -> 0 | F190: =IFERROR(VLOOKUP($A190,Filtro!$A$5:$AK$2953,4,FALSE),0) -> 0 | G190: =IFERROR(VLOOKUP($A190,Filtro!$A$5:$AK$2953,5,FALSE),0) -> 0 | H190: =IFERROR(VLOOKUP($A190,Filtro!$A$5:$AK$2953,6,FALSE),0) -> 0 | AB190: =IFERROR(VLOOKUP($A190,Filtro!$A$5:$AK$2953,26,FALSE),0) -> 0 | AC190: =IFERROR(VLOOKUP($A190,Filtro!$A$5:$AK$2953,27,FALSE),0) -> 0 | AD190: =IFERROR(VLOOKUP($A190,Filtro!$A$5:$AK$2953,28,FALSE),0) -> 0 | AE190: =IFERROR(VLOOKUP($A190,Filtro!$A$5:$AK$2953,29,FALSE),0) -> 0 | AF190: =IFERROR(VLOOKUP($A190,Filtro!$A$5:$AK$2953,30,FALSE),0) -> 0 | AG190: =IFERROR(VLOOKUP($A190,Filtro!$A$5:$AK$2953,31,FALSE),0) -> 0 | AH190: =IFERROR(VLOOKUP($A190,Filtro!$A$5:$AK$2953,32,FALSE),0) -> 0 | AI190: =IFERROR(VLOOKUP($A190,Filtro!$A$5:$AK$2953,33,FALSE),0) -> 0 | AJ190: =IFERROR(VLOOKUP($A190,Filtro!$A$5:$AK$2953,34,FALSE),0) -> 0 | AK190: =IFERROR(VLOOKUP($A190,Filtro!$A$5:$AK$2953,35,FALSE),0) -> 0
A191: 01010077 | B191: 01010077 | C191: Trasplante de medula alógeno | D191: =IFERROR(VLOOKUP($A191,Filtro!$A$5:$AK$2953,2,FALSE),0) -> 0 | E191: =IFERROR(VLOOKUP($A191,Filtro!$A$5:$AK$2953,3,FALSE),0) -> 0 | F191: =IFERROR(VLOOKUP($A191,Filtro!$A$5:$AK$2953,4,FALSE),0) -> 0 | G191: =IFERROR(VLOOKUP($A191,Filtro!$A$5:$AK$2953,5,FALSE),0) -> 0 | H191: =IFERROR(VLOOKUP($A191,Filtro!$A$5:$AK$2953,6,FALSE),0) -> 0 | AB191: =IFERROR(VLOOKUP($A191,Filtro!$A$5:$AK$2953,26,FALSE),0) -> 0 | AC191: =IFERROR(VLOOKUP($A191,Filtro!$A$5:$AK$2953,27,FALSE),0) -> 0 | AD191: =IFERROR(VLOOKUP($A191,Filtro!$A$5:$AK$2953,28,FALSE),0) -> 0 | AE191: =IFERROR(VLOOKUP($A191,Filtro!$A$5:$AK$2953,29,FALSE),0) -> 0 | AF191: =IFERROR(VLOOKUP($A191,Filtro!$A$5:$AK$2953,30,FALSE),0) -> 0 | AG191: =IFERROR(VLOOKUP($A191,Filtro!$A$5:$AK$2953,31,FALSE),0) -> 0 | AH191: =IFERROR(VLOOKUP($A191,Filtro!$A$5:$AK$2953,32,FALSE),0) -> 0 | AI191: =IFERROR(VLOOKUP($A191,Filtro!$A$5:$AK$2953,33,FALSE),0) -> 0 | AJ191: =IFERROR(VLOOKUP($A191,Filtro!$A$5:$AK$2953,34,FALSE),0) -> 0 | AK191: =IFERROR(VLOOKUP($A191,Filtro!$A$5:$AK$2953,35,FALSE),0) -> 0
A192: 01010078 | B192: 01010078 | C192: Trasplante medula de cordón | D192: =IFERROR(VLOOKUP($A192,Filtro!$A$5:$AK$2953,2,FALSE),0) -> 0 | E192: =IFERROR(VLOOKUP($A192,Filtro!$A$5:$AK$2953,3,FALSE),0) -> 0 | F192: =IFERROR(VLOOKUP($A192,Filtro!$A$5:$AK$2953,4,FALSE),0) -> 0 | G192: =IFERROR(VLOOKUP($A192,Filtro!$A$5:$AK$2953,5,FALSE),0) -> 0 | H192: =IFERROR(VLOOKUP($A192,Filtro!$A$5:$AK$2953,6,FALSE),0) -> 0 | AB192: =IFERROR(VLOOKUP($A192,Filtro!$A$5:$AK$2953,26,FALSE),0) -> 0 | AC192: =IFERROR(VLOOKUP($A192,Filtro!$A$5:$AK$2953,27,FALSE),0) -> 0 | AD192: =IFERROR(VLOOKUP($A192,Filtro!$A$5:$AK$2953,28,FALSE),0) -> 0 | AE192: =IFERROR(VLOOKUP($A192,Filtro!$A$5:$AK$2953,29,FALSE),0) -> 0 | AF192: =IFERROR(VLOOKUP($A192,Filtro!$A$5:$AK$2953,30,FALSE),0) -> 0 | AG192: =IFERROR(VLOOKUP($A192,Filtro!$A$5:$AK$2953,31,FALSE),0) -> 0 | AH192: =IFERROR(VLOOKUP($A192,Filtro!$A$5:$AK$2953,32,FALSE),0) -> 0 | AI192: =IFERROR(VLOOKUP($A192,Filtro!$A$5:$AK$2953,33,FALSE),0) -> 0 | AJ192: =IFERROR(VLOOKUP($A192,Filtro!$A$5:$AK$2953,34,FALSE),0) -> 0 | AK192: =IFERROR(VLOOKUP($A192,Filtro!$A$5:$AK$2953,35,FALSE),0) -> 0
A193: 01010079 | B193: 01010079 | C193: Trasplante medula aploidentico | D193: =IFERROR(VLOOKUP($A193,Filtro!$A$5:$AK$2953,2,FALSE),0) -> 0 | E193: =IFERROR(VLOOKUP($A193,Filtro!$A$5:$AK$2953,3,FALSE),0) -> 0 | F193: =IFERROR(VLOOKUP($A193,Filtro!$A$5:$AK$2953,4,FALSE),0) -> 0 | G193: =IFERROR(VLOOKUP($A193,Filtro!$A$5:$AK$2953,5,FALSE),0) -> 0 | H193: =IFERROR(VLOOKUP($A193,Filtro!$A$5:$AK$2953,6,FALSE),0) -> 0 | AB193: =IFERROR(VLOOKUP($A193,Filtro!$A$5:$AK$2953,26,FALSE),0) -> 0 | AC193: =IFERROR(VLOOKUP($A193,Filtro!$A$5:$AK$2953,27,FALSE),0) -> 0 | AD193: =IFERROR(VLOOKUP($A193,Filtro!$A$5:$AK$2953,28,FALSE),0) -> 0 | AE193: =IFERROR(VLOOKUP($A193,Filtro!$A$5:$AK$2953,29,FALSE),0) -> 0 | AF193: =IFERROR(VLOOKUP($A193,Filtro!$A$5:$AK$2953,30,FALSE),0) -> 0 | AG193: =IFERROR(VLOOKUP($A193,Filtro!$A$5:$AK$2953,31,FALSE),0) -> 0 | AH193: =IFERROR(VLOOKUP($A193,Filtro!$A$5:$AK$2953,32,FALSE),0) -> 0 | AI193: =IFERROR(VLOOKUP($A193,Filtro!$A$5:$AK$2953,33,FALSE),0) -> 0 | AJ193: =IFERROR(VLOOKUP($A193,Filtro!$A$5:$AK$2953,34,FALSE),0) -> 0 | AK193: =IFERROR(VLOOKUP($A193,Filtro!$A$5:$AK$2953,35,FALSE),0) -> 0
A194: 01010080 | B194: 01010080 | C194: Trasplante de córnea (incluye procuramiento y seguimiento por un año) | D194: =IFERROR(VLOOKUP($A194,Filtro!$A$5:$AK$2953,2,FALSE),0) -> 6 | E194: =IFERROR(VLOOKUP($A194,Filtro!$A$5:$AK$2953,3,FALSE),0) -> 6 | F194: =IFERROR(VLOOKUP($A194,Filtro!$A$5:$AK$2953,4,FALSE),0) -> 6 | G194: =IFERROR(VLOOKUP($A194,Filtro!$A$5:$AK$2953,5,FALSE),0) -> 0 | H194: =IFERROR(VLOOKUP($A194,Filtro!$A$5:$AK$2953,6,FALSE),0) -> 0 | AB194: =IFERROR(VLOOKUP($A194,Filtro!$A$5:$AK$2953,26,FALSE),0) -> 6 | AC194: =IFERROR(VLOOKUP($A194,Filtro!$A$5:$AK$2953,27,FALSE),0) -> 0 | AD194: =IFERROR(VLOOKUP($A194,Filtro!$A$5:$AK$2953,28,FALSE),0) -> 0 | AE194: =IFERROR(VLOOKUP($A194,Filtro!$A$5:$AK$2953,29,FALSE),0) -> 0 | AF194: =IFERROR(VLOOKUP($A194,Filtro!$A$5:$AK$2953,30,FALSE),0) -> 0 | AG194: =IFERROR(VLOOKUP($A194,Filtro!$A$5:$AK$2953,31,FALSE),0) -> 0 | AH194: =IFERROR(VLOOKUP($A194,Filtro!$A$5:$AK$2953,32,FALSE),0) -> 0 | AI194: =IFERROR(VLOOKUP($A194,Filtro!$A$5:$AK$2953,33,FALSE),0) -> 0 | AJ194: =IFERROR(VLOOKUP($A194,Filtro!$A$5:$AK$2953,34,FALSE),0) -> 0 | AK194: =IFERROR(VLOOKUP($A194,Filtro!$A$5:$AK$2953,35,FALSE),0) -> 0
A195: 01010081 | B195: 01010081 | C195: Soporte pretrasplante hepático extracorporeo por sesión | D195: =IFERROR(VLOOKUP($A195,Filtro!$A$5:$AK$2953,2,FALSE),0) -> 0 | E195: =IFERROR(VLOOKUP($A195,Filtro!$A$5:$AK$2953,3,FALSE),0) -> 0 | F195: =IFERROR(VLOOKUP($A195,Filtro!$A$5:$AK$2953,4,FALSE),0) -> 0 | G195: =IFERROR(VLOOKUP($A195,Filtro!$A$5:$AK$2953,5,FALSE),0) -> 0 | H195: =IFERROR(VLOOKUP($A195,Filtro!$A$5:$AK$2953,6,FALSE),0) -> 0 | AB195: =IFERROR(VLOOKUP($A195,Filtro!$A$5:$AK$2953,26,FALSE),0) -> 0 | AC195: =IFERROR(VLOOKUP($A195,Filtro!$A$5:$AK$2953,27,FALSE),0) -> 0 | AD195: =IFERROR(VLOOKUP($A195,Filtro!$A$5:$AK$2953,28,FALSE),0) -> 0 | AE195: =IFERROR(VLOOKUP($A195,Filtro!$A$5:$AK$2953,29,FALSE),0) -> 0 | AF195: =IFERROR(VLOOKUP($A195,Filtro!$A$5:$AK$2953,30,FALSE),0) -> 0 | AG195: =IFERROR(VLOOKUP($A195,Filtro!$A$5:$AK$2953,31,FALSE),0) -> 0 | AH195: =IFERROR(VLOOKUP($A195,Filtro!$A$5:$AK$2953,32,FALSE),0) -> 0 | AI195: =IFERROR(VLOOKUP($A195,Filtro!$A$5:$AK$2953,33,FALSE),0) -> 0 | AJ195: =IFERROR(VLOOKUP($A195,Filtro!$A$5:$AK$2953,34,FALSE),0) -> 0 | AK195: =IFERROR(VLOOKUP($A195,Filtro!$A$5:$AK$2953,35,FALSE),0) -> 0
A196: 01010082 | B196: 01010082 | C196: Mantención donante cadáver (pulmón, corazón o hígado) (muerte cerebral) | D196: =IFERROR(VLOOKUP($A196,Filtro!$A$5:$AK$2953,2,FALSE),0) -> 8 | E196: =IFERROR(VLOOKUP($A196,Filtro!$A$5:$AK$2953,3,FALSE),0) -> 7 | F196: =IFERROR(VLOOKUP($A196,Filtro!$A$5:$AK$2953,4,FALSE),0) -> 7 | G196: =IFERROR(VLOOKUP($A196,Filtro!$A$5:$AK$2953,5,FALSE),0) -> 0 | H196: =IFERROR(VLOOKUP($A196,Filtro!$A$5:$AK$2953,6,FALSE),0) -> 1 | AB196: =IFERROR(VLOOKUP($A196,Filtro!$A$5:$AK$2953,26,FALSE),0) -> 8 | AC196: =IFERROR(VLOOKUP($A196,Filtro!$A$5:$AK$2953,27,FALSE),0) -> 0 | AD196: =IFERROR(VLOOKUP($A196,Filtro!$A$5:$AK$2953,28,FALSE),0) -> 0 | AE196: =IFERROR(VLOOKUP($A196,Filtro!$A$5:$AK$2953,29,FALSE),0) -> 0 | AF196: =IFERROR(VLOOKUP($A196,Filtro!$A$5:$AK$2953,30,FALSE),0) -> 0 | AG196: =IFERROR(VLOOKUP($A196,Filtro!$A$5:$AK$2953,31,FALSE),0) -> 0 | AH196: =IFERROR(VLOOKUP($A196,Filtro!$A$5:$AK$2953,32,FALSE),0) -> 0 | AI196: =IFERROR(VLOOKUP($A196,Filtro!$A$5:$AK$2953,33,FALSE),0) -> 0 | AJ196: =IFERROR(VLOOKUP($A196,Filtro!$A$5:$AK$2953,34,FALSE),0) -> 0 | AK196: =IFERROR(VLOOKUP($A196,Filtro!$A$5:$AK$2953,35,FALSE),0) -> 0
C197: TOTAL | D197: =SUM(D186:D196) -> 14 | E197: =SUM(E186:E196) -> 13 | F197: =SUM(F186:F196) -> 13 | G197: =SUM(G186:G196) -> 0 | H197: =SUM(H186:H196) -> 1 | AB197: =SUM(AB186:AB196) -> 14 | AC197: 0 | AD197: 0 | AE197: 0 | AF197: 0 | AG197: 0 | AH197: 0 | AI197: 0 | AJ197: 0 | AK197: 0 | AM197: =IFERROR(VLOOKUP($A197,Filtro!$A$5:$AK$2953,37,FALSE),0) -> 0
C198: ATENCION CERRADA
A199: 01014380 | B199: 0201010 | C199: Dia Cama de Hospitalización Integral Cuidados Básicos | D199: =IFERROR(VLOOKUP($A199,Filtro!$A$5:$AK$2953,2,FALSE),0) -> 33404 | E199: =IFERROR(VLOOKUP($A199,Filtro!$A$5:$AK$2953,3,FALSE),0) -> 32943 | F199: =IFERROR(VLOOKUP($A199,Filtro!$A$5:$AK$2953,4,FALSE),0) -> 32929 | G199: =IFERROR(VLOOKUP($A199,Filtro!$A$5:$AK$2953,5,FALSE),0) -> 14 | H199: =IFERROR(VLOOKUP($A199,Filtro!$A$5:$AK$2953,6,FALSE),0) -> 461 | AB199: =IFERROR(VLOOKUP($A199,Filtro!$A$5:$AK$2953,26,FALSE),0) -> 30912 | AC199: =IFERROR(VLOOKUP($A199,Filtro!$A$5:$AK$2953,27,FALSE),0) -> 1565 | AD199: =IFERROR(VLOOKUP($A199,Filtro!$A$5:$AK$2953,28,FALSE),0) -> 228 | AE199: =IFERROR(VLOOKUP($A199,Filtro!$A$5:$AK$2953,29,FALSE),0) -> 0 | AF199: =IFERROR(VLOOKUP($A199,Filtro!$A$5:$AK$2953,30,FALSE),0) -> 0 | AG199: =IFERROR(VLOOKUP($A199,Filtro!$A$5:$AK$2953,31,FALSE),0) -> 0 | AH199: =IFERROR(VLOOKUP($A199,Filtro!$A$5:$AK$2953,32,FALSE),0) -> 0 | AI199: =IFERROR(VLOOKUP($A199,Filtro!$A$5:$AK$2953,33,FALSE),0) -> 0 | AJ199: =IFERROR(VLOOKUP($A199,Filtro!$A$5:$AK$2953,34,FALSE),0) -> 0 | AK199: =IFERROR(VLOOKUP($A199,Filtro!$A$5:$AK$2953,35,FALSE),0) -> 0 | AL199: 42,910 | AM199: =IFERROR(VLOOKUP($A199,Filtro!$A$5:$AK$2953,37,FALSE),0) -> 1,412,983,390
A200: 01014381 | B200: 0201110 | C200: Dia Cama de Hospitalización Integral Cuidados Medios | D200: =IFERROR(VLOOKUP($A200,Filtro!$A$5:$AK$2953,2,FALSE),0) -> 173424 | E200: =IFERROR(VLOOKUP($A200,Filtro!$A$5:$AK$2953,3,FALSE),0) -> 170275 | F200: =IFERROR(VLOOKUP($A200,Filtro!$A$5:$AK$2953,4,FALSE),0) -> 170268 | G200: =IFERROR(VLOOKUP($A200,Filtro!$A$5:$AK$2953,5,FALSE),0) -> 7 | H200: =IFERROR(VLOOKUP($A200,Filtro!$A$5:$AK$2953,6,FALSE),0) -> 3149 | AB200: =IFERROR(VLOOKUP($A200,Filtro!$A$5:$AK$2953,26,FALSE),0) -> 166841 | AC200: =IFERROR(VLOOKUP($A200,Filtro!$A$5:$AK$2953,27,FALSE),0) -> 465 | AD200: =IFERROR(VLOOKUP($A200,Filtro!$A$5:$AK$2953,28,FALSE),0) -> 0 | AE200: =IFERROR(VLOOKUP($A200,Filtro!$A$5:$AK$2953,29,FALSE),0) -> 0 | AF200: =IFERROR(VLOOKUP($A200,Filtro!$A$5:$AK$2953,30,FALSE),0) -> 0 | AG200: =IFERROR(VLOOKUP($A200,Filtro!$A$5:$AK$2953,31,FALSE),0) -> 0 | AH200: =IFERROR(VLOOKUP($A200,Filtro!$A$5:$AK$2953,32,FALSE),0) -> 0 | AI200: =IFERROR(VLOOKUP($A200,Filtro!$A$5:$AK$2953,33,FALSE),0) -> 0 | AJ200: =IFERROR(VLOOKUP($A200,Filtro!$A$5:$AK$2953,34,FALSE),0) -> 0 | AK200: =IFERROR(VLOOKUP($A200,Filtro!$A$5:$AK$2953,35,FALSE),0) -> 0 | AL200: 48,310 | AM200: =IFERROR(VLOOKUP($A200,Filtro!$A$5:$AK$2953,37,FALSE),0) -> 8,225,647,080
... 3025 more rows

Sheet B17
B1: SERVICIO DE SALUD / ESTABLECIMIENTO MUNICIPAL
B2: =CONCATENATE("COMUNA: ",[1]NOMBRE!B2," - ","( ",[1]NOMBRE!C2,[1]NOMBRE!D2,[1]NOMBRE!E2,[1]NOMBRE!F2,[1]NOMBRE!G2," )") -> COMUNA: - ( )
B3: =CONCATENATE("ESTABLECIMIENTO/ESTRATEGIA: ",[1]NOMBRE!B3," - ","( ",[1]NOMBRE!C3,[1]NOMBRE!D3,[1]NOMBRE!E3,[1]NOMBRE!F3,[1]NOMBRE!G3,[1]NOMBRE!H3," )") -> ESTABLECIMIENTO/ESTRATEGIA: - ( )
B4: =CONCATENATE("MES: ",[1]NOMBRE!B6," - ","( ",[1]NOMBRE!C6,[1]NOMBRE!D6," )") -> MES: - ( )
B5: =CONCATENATE("AÑO: ",[1]NOMBRE!B7) -> AÑO: 2024
E6: REM-B17. ACTIVIDADES DE APOYO DIAGNOSTICO y TERAPEUTICO
B8: SECCION A: ATENCIONES ABIERTAS
B9: CÓDIGOS | C9: IDENTIFICACIÓN DE PRESTACIONES | D9: TOTAL PRODUCCIÓN | E9: TOTAL BENEFICIARIOS MAI | F9: PAGO POR PRESTACIONES ($)
C10: CONSULTAS Y ATENCION MÉDICA | D10: =SUM(D11:D17) -> 788103 | E10: =SUM(E11:E17) -> 773371 | F10: =SUM(F11:F17) -> 7,241,236,160
A11: 99100120 | C11: Consulta Médica general | D11: =IFERROR(VLOOKUP($A11,Filtro!$A$5:$AK$2953,2,FALSE),0) -> 75120 | E11: =IFERROR(VLOOKUP($A11,Filtro!$A$5:$AK$2953,3,FALSE),0) -> 75120 | F11: =IFERROR(VLOOKUP($A11,Filtro!$A$5:$AK$2953,4,FALSE),0) -> 507,811,200
A12: 17400010 | C12: Consulta Médica de Especialidades | D12: =IFERROR(VLOOKUP($A12,Filtro!$A$5:$AK$2953,2,FALSE),0) -> 400752 | E12: =IFERROR(VLOOKUP($A12,Filtro!$A$5:$AK$2953,3,FALSE),0) -> 399595 | F12: =IFERROR(VLOOKUP($A12,Filtro!$A$5:$AK$2953,4,FALSE),0) -> 3,844,103,900
A13: 17400020 | C13: Consulta en Unidades de Urgencia Hospitalaria | D13: =IFERROR(VLOOKUP($A13,Filtro!$A$5:$AK$2953,2,FALSE),0) -> 294291 | E13: =IFERROR(VLOOKUP($A13,Filtro!$A$5:$AK$2953,3,FALSE),0) -> 281137 | F13: =IFERROR(VLOOKUP($A13,Filtro!$A$5:$AK$2953,4,FALSE),0) -> 2,704,537,940
A14: 17400030 | C14: Atención médica del recién nacido en sala de parto o pabellón quirúrgico c/s reanimación cardio-respiratoria | D14: =IFERROR(VLOOKUP($A14,Filtro!$A$5:$AK$2953,2,FALSE),0) -> 3167 | E14: =IFERROR(VLOOKUP($A14,Filtro!$A$5:$AK$2953,3,FALSE),0) -> 2798 | F14: =IFERROR(VLOOKUP($A14,Filtro!$A$5:$AK$2953,4,FALSE),0) -> 49,944,300
A15: 17400040 | C15: Telemedicina/ Teleconsulta por profesional médico | D15: =IFERROR(VLOOKUP($A15,Filtro!$A$5:$AK$2953,2,FALSE),0) -> 14090 | E15: =IFERROR(VLOOKUP($A15,Filtro!$A$5:$AK$2953,3,FALSE),0) -> 14038 | F15: =IFERROR(VLOOKUP($A15,Filtro!$A$5:$AK$2953,4,FALSE),0) -> 112,277,820
A16: 17400060 | C16: Teleinterconsulta (Telemedicina) | D16: =IFERROR(VLOOKUP($A16,Filtro!$A$5:$AK$2953,2,FALSE),0) -> 127 | E16: =IFERROR(VLOOKUP($A16,Filtro!$A$5:$AK$2953,3,FALSE),0) -> 127 | F16: =IFERROR(VLOOKUP($A16,Filtro!$A$5:$AK$2953,4,FALSE),0) -> 1,016,000
A17: 99000130 | B17: 0903006 | C17: Consultoría de salud mental por psiquiatra (sesión 4 hrs.) (mínimo 8 pacientes) | D17: =IFERROR(VLOOKUP($A17,Filtro!$A$5:$AK$2953,2,FALSE),0) -> 556 | E17: =IFERROR(VLOOKUP($A17,Filtro!$A$5:$AK$2953,3,FALSE),0) -> 556 | F17: =IFERROR(VLOOKUP($A17,Filtro!$A$5:$AK$2953,4,FALSE),0) -> 21,545,000
C18: CONSULTAS POR OTROS PROFESIONALES DE LA SALUD | D18: =SUM(D19:D29) -> 336183 | E18: =SUM(E19:E29) -> 335293 | F18: =SUM(F19:F29) -> 899,320,820
A19: 17400070 | B19: 0102008 | C19: Consulta o control por enfermera/o | D19: =IFERROR(VLOOKUP($A19,Filtro!$A$5:$AK$2953,2,FALSE),0) -> 114812 | E19: =IFERROR(VLOOKUP($A19,Filtro!$A$5:$AK$2953,3,FALSE),0) -> 114479 | F19: =IFERROR(VLOOKUP($A19,Filtro!$A$5:$AK$2953,4,FALSE),0) -> 171,718,500
A20: 99000150 | B20: 0102002 | C20: Control de salud niño con EDP por enfermera/o | D20: =IFERROR(VLOOKUP($A20,Filtro!$A$5:$AK$2953,2,FALSE),0) -> 2175 | E20: =IFERROR(VLOOKUP($A20,Filtro!$A$5:$AK$2953,3,FALSE),0) -> 2175 | F20: =IFERROR(VLOOKUP($A20,Filtro!$A$5:$AK$2953,4,FALSE),0) -> 5,568,000
A21: 99000160 | B21: 0102003 | C21: Consulta o control por auxiliar de enfermería | D21: =IFERROR(VLOOKUP($A21,Filtro!$A$5:$AK$2953,2,FALSE),0) -> 23001 | E21: =IFERROR(VLOOKUP($A21,Filtro!$A$5:$AK$2953,3,FALSE),0) -> 22989 | F21: =IFERROR(VLOOKUP($A21,Filtro!$A$5:$AK$2953,4,FALSE),0) -> 19,080,870
A22: 99000170 | B22: 0102005 | C22: Consulta por fonoaudiólogo/a | D22: =IFERROR(VLOOKUP($A22,Filtro!$A$5:$AK$2953,2,FALSE),0) -> 16965 | E22: =IFERROR(VLOOKUP($A22,Filtro!$A$5:$AK$2953,3,FALSE),0) -> 16958 | F22: =IFERROR(VLOOKUP($A22,Filtro!$A$5:$AK$2953,4,FALSE),0) -> 34,594,320
A23: 17400080 | B23: 0102009 | C23: Consulta o control por matron/a | D23: =IFERROR(VLOOKUP($A23,Filtro!$A$5:$AK$2953,2,FALSE),0) -> 60001 | E23: =IFERROR(VLOOKUP($A23,Filtro!$A$5:$AK$2953,3,FALSE),0) -> 59747 | F23: =IFERROR(VLOOKUP($A23,Filtro!$A$5:$AK$2953,4,FALSE),0) -> 89,620,500
A24: 17400090 | B24: 0102010 | C24: Consulta o control por nutricionista | D24: =IFERROR(VLOOKUP($A24,Filtro!$A$5:$AK$2953,2,FALSE),0) -> 28090 | E24: =IFERROR(VLOOKUP($A24,Filtro!$A$5:$AK$2953,3,FALSE),0) -> 28016 | F24: =IFERROR(VLOOKUP($A24,Filtro!$A$5:$AK$2953,4,FALSE),0) -> 42,024,000
A25: 99000200 | B25: 0903002 | C25: Consulta o control psicológico clínico | D25: =IFERROR(VLOOKUP($A25,Filtro!$A$5:$AK$2953,2,FALSE),0) -> 33823 | E25: =IFERROR(VLOOKUP($A25,Filtro!$A$5:$AK$2953,3,FALSE),0) -> 33742 | F25: =IFERROR(VLOOKUP($A25,Filtro!$A$5:$AK$2953,4,FALSE),0) -> 123,833,140
A26: 99000210 | B26: 0903003 | C26: Consulta de salud mental por otros profesionales | D26: =IFERROR(VLOOKUP($A26,Filtro!$A$5:$AK$2953,2,FALSE),0) -> 40506 | E26: =IFERROR(VLOOKUP($A26,Filtro!$A$5:$AK$2953,3,FALSE),0) -> 40417 | F26: =IFERROR(VLOOKUP($A26,Filtro!$A$5:$AK$2953,4,FALSE),0) -> 148,330,390
A27: 99000220 | B27: 0903004 | C27: Intervención psicosocial grupal (4 a 8 pacientes, familiares o cuidadores) | D27: =IFERROR(VLOOKUP($A27,Filtro!$A$5:$AK$2953,2,FALSE),0) -> 8760 | E27: =IFERROR(VLOOKUP($A27,Filtro!$A$5:$AK$2953,3,FALSE),0) -> 8720 | F27: =IFERROR(VLOOKUP($A27,Filtro!$A$5:$AK$2953,4,FALSE),0) -> 127,137,600
A28: 99000230 | B28: 0903005 | C28: Psicoterapia de grupo (por psicólogo o psiquiatra) (4 a 8 pacientes) | D28: =IFERROR(VLOOKUP($A28,Filtro!$A$5:$AK$2953,2,FALSE),0) -> 8050 | E28: =IFERROR(VLOOKUP($A28,Filtro!$A$5:$AK$2953,3,FALSE),0) -> 8050 | F28: =IFERROR(VLOOKUP($A28,Filtro!$A$5:$AK$2953,4,FALSE),0) -> 137,413,500
A29: 17400050 | C29: Telemedicina/ Teleconsulta por profesional no médico | D29: =IFERROR(VLOOKUP($A29,Filtro!$A$5:$AK$2953,2,FALSE),0) -> 0 | E29: =IFERROR(VLOOKUP($A29,Filtro!$A$5:$AK$2953,3,FALSE),0) -> 0 | F29: =IFERROR(VLOOKUP($A29,Filtro!$A$5:$AK$2953,4,FALSE),0) -> 0
C30: OTRAS CONSULTAS Y ATENCION MEDICA | D30: =SUM(D31:D32) -> 37801
A31: 99100170 | C31: Consulta por otros profesionales | D31: =IFERROR(VLOOKUP($A31,Filtro!$A$5:$AK$2953,2,FALSE),0) -> 22853 | E31: =IFERROR(VLOOKUP($A31,Filtro!$A$5:$AK$2953,3,FALSE),0) -> 0 | F31: =IFERROR(VLOOKUP($A31,Filtro!$A$5:$AK$2953,4,FALSE),0) -> 0
A32: 17200390 | C32: Consulta por Trabajador(a) Social | D32: =IFERROR(VLOOKUP($A32,Filtro!$A$5:$AK$2953,2,FALSE),0) -> 14948 | E32: =IFERROR(VLOOKUP($A32,Filtro!$A$5:$AK$2953,3,FALSE),0) -> 0 | F32: =IFERROR(VLOOKUP($A32,Filtro!$A$5:$AK$2953,4,FALSE),0) -> 0
C33: PROGRAMAS DE REHABILITACIÓN | D33: =SUM(D34:D35) -> 225 | E33: =SUM(E34:E35) -> 225 | F33: =SUM(F34:F35) -> 3,460,275
A34: 99000240 | B34: 0903007 | C34: Programa de rehabilitación tipo 1 (mensual, grupo 6 a 10 pers.) | D34: =IFERROR(VLOOKUP($A34,Filtro!$A$5:$AK$2953,2,FALSE),0) -> 0 | E34: =IFERROR(VLOOKUP($A34,Filtro!$A$5:$AK$2953,3,FALSE),0) -> 0 | F34: =IFERROR(VLOOKUP($A34,Filtro!$A$5:$AK$2953,4,FALSE),0) -> 0
A35: 99000250 | B35: 0903008 | C35: Programa de rehabilitación tipo 2 (mensual, grupo 5 a 7 pers.) | D35: =IFERROR(VLOOKUP($A35,Filtro!$A$5:$AK$2953,2,FALSE),0) -> 225 | E35: =IFERROR(VLOOKUP($A35,Filtro!$A$5:$AK$2953,3,FALSE),0) -> 225 | F35: =IFERROR(VLOOKUP($A35,Filtro!$A$5:$AK$2953,4,FALSE),0) -> 3,460,275
C36: OTROS PROGRAMAS | D36: =D$37 -> 91
A37: 99100210 | B37: 0901003 | C37: Sesión de terapia electroconvulsivante (hasta 6 sesiones por ciclo o sesiones de mantención) c/ sesión | D37: =IFERROR(VLOOKUP($A37,Filtro!$A$5:$AK$2953,2,FALSE),0) -> 91 | E37: =IFERROR(VLOOKUP($A37,Filtro!$A$5:$AK$2953,3,FALSE),0) -> 0 | F37: =IFERROR(VLOOKUP($A37,Filtro!$A$5:$AK$2953,4,FALSE),0) -> 0
C38: EDUCACION DE GRUPO | D38: =SUM(D39:D44) -> 35884 | E38: =SUM(E39:E44) -> 35297 | F38: =SUM(F39:F44) -> 96,467,730
A39: 99000260 | B39: 0103001 | C39: Educación de grupo por médico | D39: =IFERROR(VLOOKUP($A39,Filtro!$A$5:$AK$2953,2,FALSE),0) -> 367 | E39: =IFERROR(VLOOKUP($A39,Filtro!$A$5:$AK$2953,3,FALSE),0) -> 367 | F39: =IFERROR(VLOOKUP($A39,Filtro!$A$5:$AK$2953,4,FALSE),0) -> 1,809,310
A40: 99000270 | B40: 0103005 | C40: Educación de grupo por enfermera | D40: =IFERROR(VLOOKUP($A40,Filtro!$A$5:$AK$2953,2,FALSE),0) -> 33381 | E40: =IFERROR(VLOOKUP($A40,Filtro!$A$5:$AK$2953,3,FALSE),0) -> 32794 | F40: =IFERROR(VLOOKUP($A40,Filtro!$A$5:$AK$2953,4,FALSE),0) -> 88,871,740
A41: 99000280 | B41: 0103003 | C41: Educación de grupo por Trabajador/a Social | D41: =IFERROR(VLOOKUP($A41,Filtro!$A$5:$AK$2953,2,FALSE),0) -> 165 | E41: =IFERROR(VLOOKUP($A41,Filtro!$A$5:$AK$2953,3,FALSE),0) -> 165 | F41: =IFERROR(VLOOKUP($A41,Filtro!$A$5:$AK$2953,4,FALSE),0) -> 447,150
A42: 99000290 | B42: 0103004 | C42: Educación de grupo por auxiliar de enfermería | D42: =IFERROR(VLOOKUP($A42,Filtro!$A$5:$AK$2953,2,FALSE),0) -> 1 | E42: =IFERROR(VLOOKUP($A42,Filtro!$A$5:$AK$2953,3,FALSE),0) -> 1 | F42: =IFERROR(VLOOKUP($A42,Filtro!$A$5:$AK$2953,4,FALSE),0) -> 830
A43: 17400100 | B43: 0103006 | C43: Educación de grupo por matrona | D43: =IFERROR(VLOOKUP($A43,Filtro!$A$5:$AK$2953,2,FALSE),0) -> 1889 | E43: =IFERROR(VLOOKUP($A43,Filtro!$A$5:$AK$2953,3,FALSE),0) -> 1889 | F43: =IFERROR(VLOOKUP($A43,Filtro!$A$5:$AK$2953,4,FALSE),0) -> 5,119,190
A44: 17400110 | B44: 0103007 | C44: Educación de grupo por nutricionista | D44: =IFERROR(VLOOKUP($A44,Filtro!$A$5:$AK$2953,2,FALSE),0) -> 81 | E44: =IFERROR(VLOOKUP($A44,Filtro!$A$5:$AK$2953,3,FALSE),0) -> 81 | F44: =IFERROR(VLOOKUP($A44,Filtro!$A$5:$AK$2953,4,FALSE),0) -> 219,510
C45: OTRA EDUCACIÓN DE GRUPO | D45: =D46 -> 1,769
A46: 99100220 | C46: Educación de grupo por otro integrante del equipo de salud | D46: =IFERROR(VLOOKUP($A46,Filtro!$A$5:$AK$2953,2,FALSE),0) -> 1769 | E46: =IFERROR(VLOOKUP($A46,Filtro!$A$5:$AK$2953,3,FALSE),0) -> 0 | F46: =IFERROR(VLOOKUP($A46,Filtro!$A$5:$AK$2953,4,FALSE),0) -> 0
C47: VISITAS DOMICILIARIAS | D47: =SUM(D48:D52) -> 41,956 | E47: =SUM(E48:E52) -> 41,951 | F47: =SUM(F48:F52) -> 85,990,850
A48: 17400120 | B48: 0104004 | C48: Visita a domicilio por enfermera | D48: =IFERROR(VLOOKUP($A48,Filtro!$A$5:$AK$2953,2,FALSE),0) -> 25521 | E48: =IFERROR(VLOOKUP($A48,Filtro!$A$5:$AK$2953,3,FALSE),0) -> 25520 | F48: =IFERROR(VLOOKUP($A48,Filtro!$A$5:$AK$2953,4,FALSE),0) -> 59,972,000
A49: 99000310 | B49: 0104002 | C49: Visita a domicilio por asistente social | D49: =IFERROR(VLOOKUP($A49,Filtro!$A$5:$AK$2953,2,FALSE),0) -> 2720 | E49: =IFERROR(VLOOKUP($A49,Filtro!$A$5:$AK$2953,3,FALSE),0) -> 2718 | F49: =IFERROR(VLOOKUP($A49,Filtro!$A$5:$AK$2953,4,FALSE),0) -> 6,387,300
A50: 99000320 | B50: 0104003 | C50: Visita a domicilio por auxiliar de enfermería | D50: =IFERROR(VLOOKUP($A50,Filtro!$A$5:$AK$2953,2,FALSE),0) -> 12596 | E50: =IFERROR(VLOOKUP($A50,Filtro!$A$5:$AK$2953,3,FALSE),0) -> 12594 | F50: =IFERROR(VLOOKUP($A50,Filtro!$A$5:$AK$2953,4,FALSE),0) -> 17,001,900
A51: 17400130 | B51: 0104005 | C51: Visita a domicilio por matrona | D51: =IFERROR(VLOOKUP($A51,Filtro!$A$5:$AK$2953,2,FALSE),0) -> 161 | E51: =IFERROR(VLOOKUP($A51,Filtro!$A$5:$AK$2953,3,FALSE),0) -> 161 | F51: =IFERROR(VLOOKUP($A51,Filtro!$A$5:$AK$2953,4,FALSE),0) -> 378,350
A52: 17400140 | B52: 0104006 | C52: Visita a domicilio por nutricionista | D52: =IFERROR(VLOOKUP($A52,Filtro!$A$5:$AK$2953,2,FALSE),0) -> 958 | E52: =IFERROR(VLOOKUP($A52,Filtro!$A$5:$AK$2953,3,FALSE),0) -> 958 | F52: =IFERROR(VLOOKUP($A52,Filtro!$A$5:$AK$2953,4,FALSE),0) -> 2,251,300
C53: OTRAS VISITAS DOMICILIARIAS | D53: =SUM(D54:D55) -> 32,198
A54: 99100230 | C54: Visita a domicilio por otro integrante del equipo de salud | D54: =IFERROR(VLOOKUP($A54,Filtro!$A$5:$AK$2953,2,FALSE),0) -> 20766 | E54: =IFERROR(VLOOKUP($A54,Filtro!$A$5:$AK$2953,3,FALSE),0) -> 0 | F54: =IFERROR(VLOOKUP($A54,Filtro!$A$5:$AK$2953,4,FALSE),0) -> 0
A55: 99100240 | C55: Visita domiciliaria por profesional y técnico paramédico | D55: =IFERROR(VLOOKUP($A55,Filtro!$A$5:$AK$2953,2,FALSE),0) -> 11432 | E55: =IFERROR(VLOOKUP($A55,Filtro!$A$5:$AK$2953,3,FALSE),0) -> 0 | F55: =IFERROR(VLOOKUP($A55,Filtro!$A$5:$AK$2953,4,FALSE),0) -> 0
C56: TOTAL | D56: =D10+D18+D33+D38+D47+D30+D36+D45+D53 -> 1,274,210 | E56: =E10+E18+E33+E38+E47 -> 1,186,137 | F56: =F10+F18+F33+F38+F47 -> 8,326,475,835
B57: SECCION B: ATENCION CERRADA, DIAS DE HOSPITALIZACION
B58: CODIGOS | C58: IDENTIFICACION DE PRESTACIONES | D58: TOTAL PRODUCCIÓN | E58: TOTAL BENEFICIARIOS MAI | F58: PAGO POR PRESTACIONES ($)
C59: ATENCIÓN CERRADA
A60: 17400150 | B60: 0201010 | C60: Dia Cama de Hospitalización Integral Cuidados Básicos | D60: =IFERROR(VLOOKUP($A60,Filtro!$A$5:$AK$2953,2,FALSE),0) -> 33404 | E60: =IFERROR(VLOOKUP($A60,Filtro!$A$5:$AK$2953,3,FALSE),0) -> 32929 | F60: =IFERROR(VLOOKUP($A60,Filtro!$A$5:$AK$2953,4,FALSE),0) -> 1,412,983,390
A61: 17400160 | B61: 0201110 | C61: Dia Cama de Hospitalización Integral Cuidados Medios | D61: =IFERROR(VLOOKUP($A61,Filtro!$A$5:$AK$2953,2,FALSE),0) -> 173424 | E61: =IFERROR(VLOOKUP($A61,Filtro!$A$5:$AK$2953,3,FALSE),0) -> 170268 | F61: =IFERROR(VLOOKUP($A61,Filtro!$A$5:$AK$2953,4,FALSE),0) -> 8,225,647,080
A62: 17400170 | B62: 0201301 | C62: Día Cama de Hospitalización Integral Adulto en Unidad de Tratamiento Intermedio (U.T.I) | D62: =IFERROR(VLOOKUP($A62,Filtro!$A$5:$AK$2953,2,FALSE),0) -> 28104 | E62: =IFERROR(VLOOKUP($A62,Filtro!$A$5:$AK$2953,3,FALSE),0) -> 27868 | F62: =IFERROR(VLOOKUP($A62,Filtro!$A$5:$AK$2953,4,FALSE),0) -> 2,503,661,120
A63: 17400180 | B63: 0201302 | C63: Día Cama de Hospitalización Integral Pediátrica en Unidad de Tratamiento Intermedio (U.T.I) | D63: =IFERROR(VLOOKUP($A63,Filtro!$A$5:$AK$2953,2,FALSE),0) -> 2600 | E63: =IFERROR(VLOOKUP($A63,Filtro!$A$5:$AK$2953,3,FALSE),0) -> 2523 | F63: =IFERROR(VLOOKUP($A63,Filtro!$A$5:$AK$2953,4,FALSE),0) -> 226,666,320
A64: 17400190 | B64: 0201303 | C64: Día Cama de Hospitalización Integral Neonatal en Unidad de Tratamiento Intermedio (U.T.I) | D64: =IFERROR(VLOOKUP($A64,Filtro!$A$5:$AK$2953,2,FALSE),0) -> 4333 | E64: =IFERROR(VLOOKUP($A64,Filtro!$A$5:$AK$2953,3,FALSE),0) -> 4292 | F64: =IFERROR(VLOOKUP($A64,Filtro!$A$5:$AK$2953,4,FALSE),0) -> 385,593,280
A65: 17400200 | B65: 0201201 | C65: Día Cama de Hospitalización Integral Adulto en Unidad de Cuidado Intensivo (U.C.I.) | D65: =IFERROR(VLOOKUP($A65,Filtro!$A$5:$AK$2953,2,FALSE),0) -> 12877 | E65: =IFERROR(VLOOKUP($A65,Filtro!$A$5:$AK$2953,3,FALSE),0) -> 12692 | F65: =IFERROR(VLOOKUP($A65,Filtro!$A$5:$AK$2953,4,FALSE),0) -> 2,360,585,080
A66: 17400210 | B66: 0201202 | C66: Día Cama de Hospitalización Integral Pediátrica en Unidad de Cuidado Intensivo (U.C.I). | D66: =IFERROR(VLOOKUP($A66,Filtro!$A$5:$AK$2953,2,FALSE),0) -> 403 | E66: =IFERROR(VLOOKUP($A66,Filtro!$A$5:$AK$2953,3,FALSE),0) -> 401 | F66: =IFERROR(VLOOKUP($A66,Filtro!$A$5:$AK$2953,4,FALSE),0) -> 74,581,990
A67: 17400220 | B67: 0201203 | C67: Día Cama de Hospitalización Integral Neonatal en Unidad de Cuidado Intensivo (U.C.I.) | D67: =IFERROR(VLOOKUP($A67,Filtro!$A$5:$AK$2953,2,FALSE),0) -> 2515 | E67: =IFERROR(VLOOKUP($A67,Filtro!$A$5:$AK$2953,3,FALSE),0) -> 2498 | F67: =IFERROR(VLOOKUP($A67,Filtro!$A$5:$AK$2953,4,FALSE),0) -> 464,603,020
A68: 17400230 | B68: 0201410 | C68: Día Cama de Hospitalización Integral Obstetricia | D68: =IFERROR(VLOOKUP($A68,Filtro!$A$5:$AK$2953,2,FALSE),0) -> 19821 | E68: =IFERROR(VLOOKUP($A68,Filtro!$A$5:$AK$2953,3,FALSE),0) -> 19570 | F68: =IFERROR(VLOOKUP($A68,Filtro!$A$5:$AK$2953,4,FALSE),0) -> 840,922,900
A69: 17400240 | B69: 0201403 | C69: Día Cama de Hospitalización Integral Sala Cuna | D69: =IFERROR(VLOOKUP($A69,Filtro!$A$5:$AK$2953,2,FALSE),0) -> 3522 | E69: =IFERROR(VLOOKUP($A69,Filtro!$A$5:$AK$2953,3,FALSE),0) -> 3513 | F69: =IFERROR(VLOOKUP($A69,Filtro!$A$5:$AK$2953,4,FALSE),0) -> 30,457,710
A70: 17400250 | B70: 0201404 | C70: Día Cama de Hospitalización Integral Incubadora | D70: =IFERROR(VLOOKUP($A70,Filtro!$A$5:$AK$2953,2,FALSE),0) -> 893 | E70: =IFERROR(VLOOKUP($A70,Filtro!$A$5:$AK$2953,3,FALSE),0) -> 845 | F70: =IFERROR(VLOOKUP($A70,Filtro!$A$5:$AK$2953,4,FALSE),0) -> 68,115,450
A71: 17400270 | B71: 0201406 | C71: Día Cama de Hospitalización Integral Psiquiatría | D71: =IFERROR(VLOOKUP($A71,Filtro!$A$5:$AK$2953,2,FALSE),0) -> 11915 | E71: =IFERROR(VLOOKUP($A71,Filtro!$A$5:$AK$2953,3,FALSE),0) -> 11901 | F71: =IFERROR(VLOOKUP($A71,Filtro!$A$5:$AK$2953,4,FALSE),0) -> 379,403,880
A72: 17400280 | B72: 0201407 | C72: Día Cama de Hospitalizacion Integral de Observación - Ambulatorio | D72: =IFERROR(VLOOKUP($A72,Filtro!$A$5:$AK$2953,2,FALSE),0) -> 73158 | E72: =IFERROR(VLOOKUP($A72,Filtro!$A$5:$AK$2953,3,FALSE),0) -> 73080 | F72: =IFERROR(VLOOKUP($A72,Filtro!$A$5:$AK$2953,4,FALSE),0) -> 660,643,200
A73: 17400290 | B73: 0201501 | C73: Dia Cama Hospitalizacion Domiciliaria Cuidados Básicos | D73: =IFERROR(VLOOKUP($A73,Filtro!$A$5:$AK$2953,2,FALSE),0) -> 5417 | E73: =IFERROR(VLOOKUP($A73,Filtro!$A$5:$AK$2953,3,FALSE),0) -> 5417 | F73: =IFERROR(VLOOKUP($A73,Filtro!$A$5:$AK$2953,4,FALSE),0) -> 226,863,960
A74: 17400300 | B74: 0201502 | C74: Dia Cama Hospitalizacion Domiciliaria Cuidados Medios | D74: =IFERROR(VLOOKUP($A74,Filtro!$A$5:$AK$2953,2,FALSE),0) -> 24283 | E74: =IFERROR(VLOOKUP($A74,Filtro!$A$5:$AK$2953,3,FALSE),0) -> 24249 | F74: =IFERROR(VLOOKUP($A74,Filtro!$A$5:$AK$2953,4,FALSE),0) -> 1,554,118,410
A75: 17400310 | B75: 0201503 | C75: Dia Cama Hospitalizacion Domiciliaria Cuidados Alta Complejidad | D75: =IFERROR(VLOOKUP($A75,Filtro!$A$5:$AK$2953,2,FALSE),0) -> 8881 | E75: =IFERROR(VLOOKUP($A75,Filtro!$A$5:$AK$2953,3,FALSE),0) -> 8817 | F75: =IFERROR(VLOOKUP($A75,Filtro!$A$5:$AK$2953,4,FALSE),0) -> 941,214,750
C76: TOTAL | D76: =SUM(D60:D75) -> 405550 | E76: =SUM(E60:E75) -> 400863 | F76: =SUM(F60:F75) -> 20,356,061,540
B77: SECCIÓN C:TRATAMIENTO ABREVIADO DE LA TUBERCULOSIS
B78: CODIGOS | C78: TRATAMIENTO ABREVIADO DE LA TUBERCULOSIS | D78: TOTAL PRODUCCIÓN | E78: TOTAL BENEFICIARIOS MAI | F78: PAGO POR PRESTACIONES ($)
A79: 99001860 | B79: 3003001 | C79: TBC, Esquema primario (mensual) | D79: =IFERROR(VLOOKUP($A79,Filtro!$A$5:$AK$2953,2,FALSE),0) -> 9 | E79: =IFERROR(VLOOKUP($A79,Filtro!$A$5:$AK$2953,3,FALSE),0) -> 9 | F79: =IFERROR(VLOOKUP($A79,Filtro!$A$5:$AK$2953,4,FALSE),0) -> 84,060
A80: 99001870 | B80: 3003002 | C80: TBC, Esquema primario simplificado (mensual) | D80: =IFERROR(VLOOKUP($A80,Filtro!$A$5:$AK$2953,2,FALSE),0) -> 3 | E80: =IFERROR(VLOOKUP($A80,Filtro!$A$5:$AK$2953,3,FALSE),0) -> 3 | F80: =IFERROR(VLOOKUP($A80,Filtro!$A$5:$AK$2953,4,FALSE),0) -> 14,910
A81: 99001880 | B81: 3003003 | C81: TBC, Esquema secundario (mensual) | D81: =IFERROR(VLOOKUP($A81,Filtro!$A$5:$AK$2953,2,FALSE),0) -> 1 | E81: =IFERROR(VLOOKUP($A81,Filtro!$A$5:$AK$2953,3,FALSE),0) -> 1 | F81: =IFERROR(VLOOKUP($A81,Filtro!$A$5:$AK$2953,4,FALSE),0) -> 18,730
A82: 99001890 | B82: 3003004 | C82: TBC, Esquema normado de retratamiento (mensual) | D82: =IFERROR(VLOOKUP($A82,Filtro!$A$5:$AK$2953,2,FALSE),0) -> 0 | E82: =IFERROR(VLOOKUP($A82,Filtro!$A$5:$AK$2953,3,FALSE),0) -> 0 | F82: =IFERROR(VLOOKUP($A82,Filtro!$A$5:$AK$2953,4,FALSE),0) -> 0
A83: 99001900 | B83: 3003005 | C83: TBC, Esquema especial de retratamiento (mensual) | D83: =IFERROR(VLOOKUP($A83,Filtro!$A$5:$AK$2953,2,FALSE),0) -> 0 | E83: =IFERROR(VLOOKUP($A83,Filtro!$A$5:$AK$2953,3,FALSE),0) -> 0 | F83: =IFERROR(VLOOKUP($A83,Filtro!$A$5:$AK$2953,4,FALSE),0) -> 0
C84: TOTAL | D84: =SUM(D79:D83) -> 13 | E84: =SUM(E79:E83) -> 13 | F84: =SUM(F79:F83) -> 117,700
B85: SECCIÓN D:TRASLADO, RESCATES Y RONDAS RURALES
B86: CODIGOS | C86: TRASLADO, RESCATES Y RONDAS RURALES | D86: TOTAL PRODUCCIÓN | E86: TOTAL BENEFICIARIOS MAI | F86: PAGO POR PRESTACIONES ($)
A87: 99001910 | B87: 2401061 | C87: Rescate simple y/o traslado en móvil 1 | D87: =IFERROR(VLOOKUP($A87,Filtro!$A$5:$AK$2953,2,FALSE),0) -> 2927 | E87: =IFERROR(VLOOKUP($A87,Filtro!$A$5:$AK$2953,3,FALSE),0) -> 2922 | F87: =IFERROR(VLOOKUP($A87,Filtro!$A$5:$AK$2953,4,FALSE),0) -> 72,962,340
A88: 99001920 | B88: 2401062 | C88: Rescate profesionalizado y/o traslado paciente complejo móvil 2 | D88: =IFERROR(VLOOKUP($A88,Filtro!$A$5:$AK$2953,2,FALSE),0) -> 2214 | E88: =IFERROR(VLOOKUP($A88,Filtro!$A$5:$AK$2953,3,FALSE),0) -> 2188 | F88: =IFERROR(VLOOKUP($A88,Filtro!$A$5:$AK$2953,4,FALSE),0) -> 171,867,400
A89: 99001930 | B89: 2401063 | C89: Rescate medicalizado y/o traslado paciente critico en móvil 3 | D89: =IFERROR(VLOOKUP($A89,Filtro!$A$5:$AK$2953,2,FALSE),0) -> 271 | E89: =IFERROR(VLOOKUP($A89,Filtro!$A$5:$AK$2953,3,FALSE),0) -> 271 | F89: =IFERROR(VLOOKUP($A89,Filtro!$A$5:$AK$2953,4,FALSE),0) -> 26,384,560
A90: 99001940 | B90: 2401064 | C90: Traslado en ambulancia | D90: =IFERROR(VLOOKUP($A90,Filtro!$A$5:$AK$2953,2,FALSE),0) -> 39439 | E90: =IFERROR(VLOOKUP($A90,Filtro!$A$5:$AK$2953,3,FALSE),0) -> 39433 | F90: =IFERROR(VLOOKUP($A90,Filtro!$A$5:$AK$2953,4,FALSE),0) -> 135,255,190
A91: 99001950 | B91: 2401065 | C91: Ronda rural terrestre, c/ km recorrido | D91: =IFERROR(VLOOKUP($A91,Filtro!$A$5:$AK$2953,2,FALSE),0) -> 74925 | E91: =IFERROR(VLOOKUP($A91,Filtro!$A$5:$AK$2953,3,FALSE),0) -> 74925 | F91: =IFERROR(VLOOKUP($A91,Filtro!$A$5:$AK$2953,4,FALSE),0) -> 5,244,750
A92: 99001960 | B92: 2401066 | C92: Ronda rural aérea, c/ hora de vuelo | D92: =IFERROR(VLOOKUP($A92,Filtro!$A$5:$AK$2953,2,FALSE),0) -> 0 | E92: =IFERROR(VLOOKUP($A92,Filtro!$A$5:$AK$2953,3,FALSE),0) -> 0 | F92: =IFERROR(VLOOKUP($A92,Filtro!$A$5:$AK$2953,4,FALSE),0) -> 0
A93: 99001970 | B93: 2401067 | C93: Ronda rural marítima, c/ hora de navegación | D93: =IFERROR(VLOOKUP($A93,Filtro!$A$5:$AK$2953,2,FALSE),0) -> 0 | E93: =IFERROR(VLOOKUP($A93,Filtro!$A$5:$AK$2953,3,FALSE),0) -> 0 | F93: =IFERROR(VLOOKUP($A93,Filtro!$A$5:$AK$2953,4,FALSE),0) -> 0
C94: TOTAL | D94: =SUM(D87:D93) -> 119776 | E94: =SUM(E87:E93) -> 119739 | F94: =SUM(F87:F93) -> 411,714,240
B95: SECCION E: PARTOS
B96: CODIGOS | C96: IDENTIFICACION DE PRESTACIONES | D96: TOTAL PRODUCCIÓN | E96: TOTAL BENEFICIARIOS MAI | F96: PAGO POR PRESTACIONES ($)
A97: 99000740 | B97: 2004103 | C97: Parto normal | D97: =IFERROR(VLOOKUP($A97,Filtro!$A$5:$AK$2953,2,FALSE),0) -> 2272 | E97: =IFERROR(VLOOKUP($A97,Filtro!$A$5:$AK$2953,3,FALSE),0) -> 2125 | F97: =IFERROR(VLOOKUP($A97,Filtro!$A$5:$AK$2953,4,FALSE),0) -> 371,237,500
A98: 99000750 | B98: 2004113 | C98: Parto distósico vaginal | D98: =IFERROR(VLOOKUP($A98,Filtro!$A$5:$AK$2953,2,FALSE),0) -> 30 | E98: =IFERROR(VLOOKUP($A98,Filtro!$A$5:$AK$2953,3,FALSE),0) -> 23 | F98: =IFERROR(VLOOKUP($A98,Filtro!$A$5:$AK$2953,4,FALSE),0) -> 4,227,400
C99: TOTAL | D99: =SUM(D97:D98) -> 2302 | E99: =SUM(E97:E98) -> 2148 | F99: =SUM(F97:F98) -> 375,464,900
B100: SECCION F: ATENCION ODONTOLOGICA
C101: Prestaciones | D101: TOTAL PRODUCCIÓN | E101: TOTAL BENEFICIARIOS MAI | F101: PAGO POR PRESTACIONES ($)
A102: 17400320 | B102: 2701XXX | C102: Consulta y atención odontológica | D102: =IFERROR(VLOOKUP($A102,Filtro!$A$5:$AK$2953,2,FALSE),0) -> 141428 | E102: =IFERROR(VLOOKUP($A102,Filtro!$A$5:$AK$2953,3,FALSE),0) -> 141375 | F102: =IFERROR(VLOOKUP($A102,Filtro!$A$5:$AK$2953,4,FALSE),0) -> 627,387,250
A103: 17400330 | B103: 2702XXX | C103: Exámenes imagenológicos odontológico | D103: =IFERROR(VLOOKUP($A103,Filtro!$A$5:$AK$2953,2,FALSE),0) -> 21612 | E103: =IFERROR(VLOOKUP($A103,Filtro!$A$5:$AK$2953,3,FALSE),0) -> 21551 | F103: =IFERROR(VLOOKUP($A103,Filtro!$A$5:$AK$2953,4,FALSE),0) -> 261,431,190
A104: 17400340 | B104: 2703XXX | C104: Odontología general: Actividades preventivas y recuperativas | D104: =IFERROR(VLOOKUP($A104,Filtro!$A$5:$AK$2953,2,FALSE),0) -> 55978 | E104: =IFERROR(VLOOKUP($A104,Filtro!$A$5:$AK$2953,3,FALSE),0) -> 55962 | F104: =IFERROR(VLOOKUP($A104,Filtro!$A$5:$AK$2953,4,FALSE),0) -> 486,676,990
A105: 17400350 | B105: 2704XXX | C105: Especialidades | D105: =IFERROR(VLOOKUP($A105,Filtro!$A$5:$AK$2953,2,FALSE),0) -> 26504 | E105: =IFERROR(VLOOKUP($A105,Filtro!$A$5:$AK$2953,3,FALSE),0) -> 26502 | F105: =IFERROR(VLOOKUP($A105,Filtro!$A$5:$AK$2953,4,FALSE),0) -> 863,993,580
A106: 17400360 | B106: 2705XXX | C106: Cirugías | D106: =IFERROR(VLOOKUP($A106,Filtro!$A$5:$AK$2953,2,FALSE),0) -> 8399 | E106: =IFERROR(VLOOKUP($A106,Filtro!$A$5:$AK$2953,3,FALSE),0) -> 7271 | F106: =IFERROR(VLOOKUP($A106,Filtro!$A$5:$AK$2953,4,FALSE),0) -> 352,081,940
A107: 99100440 | C107: Otras prestaciones odontológicas | D107: =IFERROR(VLOOKUP($A107,Filtro!$A$5:$AK$2953,2,FALSE),0) -> 26890 | E107: =IFERROR(VLOOKUP($A107,Filtro!$A$5:$AK$2953,3,FALSE),0) -> 0 | F107: =IFERROR(VLOOKUP($A107,Filtro!$A$5:$AK$2953,4,FALSE),0) -> 0
C108: TOTAL | D108: =SUM(D102:D107) -> 280811 | E108: =SUM(E102:E106) -> 252661 | F108: =SUM(F102:F106) -> 2,591,570,950
B109: SECCION G: LENTES, AUDIFONOS
B110: CODIGOS | C110: IDENTIFICACION DE PRESTACIONES | D110: TOTAL PRODUCCIÓN | E110: TOTAL BENEFICIARIOS MAI | F110: PAGO POR PRESTACIONES ($)
A111: 99001470 | B111: 3001001 | C111: Lentes ópticos | D111: =IFERROR(VLOOKUP($A111,Filtro!$A$5:$AK$2953,2,FALSE),0) -> 15119 | E111: =IFERROR(VLOOKUP($A111,Filtro!$A$5:$AK$2953,3,FALSE),0) -> 15050 | F111: =IFERROR(VLOOKUP($A111,Filtro!$A$5:$AK$2953,4,FALSE),0) -> 393,708,000
A112: 99001480 | B112: 3001002 | C112: Audífonos | D112: =IFERROR(VLOOKUP($A112,Filtro!$A$5:$AK$2953,2,FALSE),0) -> 1964 | E112: =IFERROR(VLOOKUP($A112,Filtro!$A$5:$AK$2953,3,FALSE),0) -> 1963 | F112: =IFERROR(VLOOKUP($A112,Filtro!$A$5:$AK$2953,4,FALSE),0) -> 643,746,220
C113: TOTAL | D113: =SUM(D111:D112) -> 17083 | E113: =SUM(E111:E112) -> 17013 | F113: =SUM(F111:F112) -> 1,037,454,220
B114: SECCIÓN H: MEDICINA TRANSFUSIONAL
B115: CODIGOS | C115: IDENTIFICACION DE PRESTACIONES | D115: TOTAL PRODUCCIÓN | E115: TOTAL BENEFICIARIOS MAI | F115: PAGO POR PRESTACIONES ($)
A116: 99001490 | B116: Grupo 07 | C116: Medicina Transfusional | D116: =IFERROR(VLOOKUP($A116,Filtro!$A$5:$AK$2953,2,FALSE),0) -> 133655 | E116: =IFERROR(VLOOKUP($A116,Filtro!$A$5:$AK$2953,3,FALSE),0) -> 133521 | F116: =IFERROR(VLOOKUP($A116,Filtro!$A$5:$AK$2953,4,FALSE),0) -> 2,083,195,090
B117: SECCION I: EXAMENES DE DIAGNOSTICO
B118: TIPO DE EXAMEN | D118: TOTAL | E118: EXAMENES REALIZADOS | I118: PROCEDENCIA | L118: PRODUCCION INTRA HOSPITAL | O118: OPERATIVO | P118: COMPRAS REALIZADAS | R118: VENTAS DE SERVICIOS | S118: TOTAL DE PROCEDIMIENTOS INFORMADOS | T118: PAGO POR PRESTACIONES ($)
E119: TOTAL BENEFICIARIOS | F119: BENEFICIARIOS | H119: NO BENEFICIARIOS | I119: ATENCION CERRADA | J119: ATENCION ABIERTA | K119: EMERGENCIA | L119: POR HONORARIOS | M119: POR CONVENIOS | N119: POR CONSULTORES DE LLAMADA | P119: AL SISTEMA | Q119: EXTRA-SISTEMA
F120: MAI | G120: MLE
B121: TOTAL EXAMENES LABORATORIO | D121: =+D122+D123+D124+D125+D126+D127+D131+D132+D133 -> 4392056 | E121: 4333673 | F121: 4271167 | G121: 62506 | H121: 58383 | I121: 1298093 | J121: 1922387 | K121: 1162203 | L121: 0 | M121: 0 | N121: 0 | O121: 0 | P121: 57229 | Q121: 15892 | R121: 169135 | S121: 0 | T121: =SUM(T122:T126,T127,T131:T133) -> 15,646,110,340
A122: 17010100 | B122: I | C122: HEMATOLOGICOS | D122: =IFERROR(VLOOKUP($A122,Filtro!$A$5:$AK$2953,2,FALSE),0) -> 1203283 | E122: =IFERROR(VLOOKUP($A122,Filtro!$A$5:$AK$2953,3,FALSE),0) -> 1183532 | F122: =IFERROR(VLOOKUP($A122,Filtro!$A$5:$AK$2953,4,FALSE),0) -> 1,160,858 | G122: =IFERROR(VLOOKUP($A122,Filtro!$A$5:$AK$2953,5,FALSE),0) -> 22674 | H122: =IFERROR(VLOOKUP($A122,Filtro!$A$5:$AK$2953,6,FALSE),0) -> 19751 | I122: =IFERROR(VLOOKUP($A122,Filtro!$A$5:$AK$2953,7,FALSE),0) -> 384764 | J122: =IFERROR(VLOOKUP($A122,Filtro!$A$5:$AK$2953,8,FALSE),0) -> 454166 | K122: =IFERROR(VLOOKUP($A122,Filtro!$A$5:$AK$2953,9,FALSE),0) -> 358335 | L122: =IFERROR(VLOOKUP($A122,Filtro!$A$5:$AK$2953,10,FALSE),0) -> 0 | M122: =IFERROR(VLOOKUP($A122,Filtro!$A$5:$AK$2953,11,FALSE),0) -> 0 | N122: =IFERROR(VLOOKUP($A122,Filtro!$A$5:$AK$2953,12,FALSE),0) -> 0 | O122: =IFERROR(VLOOKUP($A122,Filtro!$A$5:$AK$2953,13,FALSE),0) -> 0 | P122: =IFERROR(VLOOKUP($A122,Filtro!$A$5:$AK$2953,14,FALSE),0) -> 7472 | Q122: =IFERROR(VLOOKUP($A122,Filtro!$A$5:$AK$2953,15,FALSE),0) -> 440 | R122: =IFERROR(VLOOKUP($A122,Filtro!$A$5:$AK$2953,16,FALSE),0) -> 42730 | T122: =IFERROR(VLOOKUP($A122,Filtro!$A$5:$AK$2953,18,FALSE),0) -> 2,591,522,000
A123: 17010200 | B123: II | C123: BIOQUIMICOS | D123: =IFERROR(VLOOKUP($A123,Filtro!$A$5:$AK$2953,2,FALSE),0) -> 2251448 | E123: =IFERROR(VLOOKUP($A123,Filtro!$A$5:$AK$2953,3,FALSE),0) -> 2221242 | F123: =IFERROR(VLOOKUP($A123,Filtro!$A$5:$AK$2953,4,FALSE),0) -> 2,200,480 | G123: =IFERROR(VLOOKUP($A123,Filtro!$A$5:$AK$2953,5,FALSE),0) -> 20762 | H123: =IFERROR(VLOOKUP($A123,Filtro!$A$5:$AK$2953,6,FALSE),0) -> 30206 | I123: =IFERROR(VLOOKUP($A123,Filtro!$A$5:$AK$2953,7,FALSE),0) -> 734918 | J123: =IFERROR(VLOOKUP($A123,Filtro!$A$5:$AK$2953,8,FALSE),0) -> 892389 | K123: =IFERROR(VLOOKUP($A123,Filtro!$A$5:$AK$2953,9,FALSE),0) -> 621754 | L123: =IFERROR(VLOOKUP($A123,Filtro!$A$5:$AK$2953,10,FALSE),0) -> 0 | M123: =IFERROR(VLOOKUP($A123,Filtro!$A$5:$AK$2953,11,FALSE),0) -> 0 | N123: =IFERROR(VLOOKUP($A123,Filtro!$A$5:$AK$2953,12,FALSE),0) -> 0 | O123: =IFERROR(VLOOKUP($A123,Filtro!$A$5:$AK$2953,13,FALSE),0) -> 0 | P123: =IFERROR(VLOOKUP($A123,Filtro!$A$5:$AK$2953,14,FALSE),0) -> 14187 | Q123: =IFERROR(VLOOKUP($A123,Filtro!$A$5:$AK$2953,15,FALSE),0) -> 1196 | R123: =IFERROR(VLOOKUP($A123,Filtro!$A$5:$AK$2953,16,FALSE),0) -> 71329 | T123: =IFERROR(VLOOKUP($A123,Filtro!$A$5:$AK$2953,18,FALSE),0) -> 7,069,504,320
A124: 17010300 | B124: III | C124: HORMONALES | D124: =IFERROR(VLOOKUP($A124,Filtro!$A$5:$AK$2953,2,FALSE),0) -> 216147 | E124: =IFERROR(VLOOKUP($A124,Filtro!$A$5:$AK$2953,3,FALSE),0) -> 214847 | F124: =IFERROR(VLOOKUP($A124,Filtro!$A$5:$AK$2953,4,FALSE),0) -> 209,723 | G124: =IFERROR(VLOOKUP($A124,Filtro!$A$5:$AK$2953,5,FALSE),0) -> 5124 | H124: =IFERROR(VLOOKUP($A124,Filtro!$A$5:$AK$2953,6,FALSE),0) -> 1300 | I124: =IFERROR(VLOOKUP($A124,Filtro!$A$5:$AK$2953,7,FALSE),0) -> 21101 | J124: =IFERROR(VLOOKUP($A124,Filtro!$A$5:$AK$2953,8,FALSE),0) -> 188224 | K124: =IFERROR(VLOOKUP($A124,Filtro!$A$5:$AK$2953,9,FALSE),0) -> 6767 | L124: =IFERROR(VLOOKUP($A124,Filtro!$A$5:$AK$2953,10,FALSE),0) -> 0 | M124: =IFERROR(VLOOKUP($A124,Filtro!$A$5:$AK$2953,11,FALSE),0) -> 0 | N124: =IFERROR(VLOOKUP($A124,Filtro!$A$5:$AK$2953,12,FALSE),0) -> 0 | O124: =IFERROR(VLOOKUP($A124,Filtro!$A$5:$AK$2953,13,FALSE),0) -> 0 | P124: =IFERROR(VLOOKUP($A124,Filtro!$A$5:$AK$2953,14,FALSE),0) -> 14401 | Q124: =IFERROR(VLOOKUP($A124,Filtro!$A$5:$AK$2953,15,FALSE),0) -> 352 | R124: =IFERROR(VLOOKUP($A124,Filtro!$A$5:$AK$2953,16,FALSE),0) -> 14849 | T124: =IFERROR(VLOOKUP($A124,Filtro!$A$5:$AK$2953,18,FALSE),0) -> 1,338,188,520
A125: 17010400 | B125: IV | C125: GENETICA | D125: =IFERROR(VLOOKUP($A125,Filtro!$A$5:$AK$2953,2,FALSE),0) -> 0 | E125: =IFERROR(VLOOKUP($A125,Filtro!$A$5:$AK$2953,3,FALSE),0) -> 0 | F125: =IFERROR(VLOOKUP($A125,Filtro!$A$5:$AK$2953,4,FALSE),0) -> 0 | G125: =IFERROR(VLOOKUP($A125,Filtro!$A$5:$AK$2953,5,FALSE),0) -> 0 | H125: =IFERROR(VLOOKUP($A125,Filtro!$A$5:$AK$2953,6,FALSE),0) -> 0 | I125: =IFERROR(VLOOKUP($A125,Filtro!$A$5:$AK$2953,7,FALSE),0) -> 0 | J125: =IFERROR(VLOOKUP($A125,Filtro!$A$5:$AK$2953,8,FALSE),0) -> 0 | K125: =IFERROR(VLOOKUP($A125,Filtro!$A$5:$AK$2953,9,FALSE),0) -> 0 | L125: =IFERROR(VLOOKUP($A125,Filtro!$A$5:$AK$2953,10,FALSE),0) -> 0 | M125: =IFERROR(VLOOKUP($A125,Filtro!$A$5:$AK$2953,11,FALSE),0) -> 0 | N125: =IFERROR(VLOOKUP($A125,Filtro!$A$5:$AK$2953,12,FALSE),0) -> 0 | O125: =IFERROR(VLOOKUP($A125,Filtro!$A$5:$AK$2953,13,FALSE),0) -> 0 | P125: =IFERROR(VLOOKUP($A125,Filtro!$A$5:$AK$2953,14,FALSE),0) -> 0 | Q125: =IFERROR(VLOOKUP($A125,Filtro!$A$5:$AK$2953,15,FALSE),0) -> 137 | R125: =IFERROR(VLOOKUP($A125,Filtro!$A$5:$AK$2953,16,FALSE),0) -> 0 | S125: =IFERROR(VLOOKUP($A125,Filtro!$A$5:$AK$2953,17,FALSE),0) -> 0 | T125: =IFERROR(VLOOKUP($A125,Filtro!$A$5:$AK$2953,18,FALSE),0) -> 0
A126: 17010500 | B126: V | C126: INMUNOLOGICOS | D126: =IFERROR(VLOOKUP($A126,Filtro!$A$5:$AK$2953,2,FALSE),0) -> 210828 | E126: =IFERROR(VLOOKUP($A126,Filtro!$A$5:$AK$2953,3,FALSE),0) -> 207875 | F126: =IFERROR(VLOOKUP($A126,Filtro!$A$5:$AK$2953,4,FALSE),0) -> 204,562 | G126: =IFERROR(VLOOKUP($A126,Filtro!$A$5:$AK$2953,5,FALSE),0) -> 3313 | H126: =IFERROR(VLOOKUP($A126,Filtro!$A$5:$AK$2953,6,FALSE),0) -> 2953 | I126: =IFERROR(VLOOKUP($A126,Filtro!$A$5:$AK$2953,7,FALSE),0) -> 65125 | J126: =IFERROR(VLOOKUP($A126,Filtro!$A$5:$AK$2953,8,FALSE),0) -> 78873 | K126: =IFERROR(VLOOKUP($A126,Filtro!$A$5:$AK$2953,9,FALSE),0) -> 66850 | L126: =IFERROR(VLOOKUP($A126,Filtro!$A$5:$AK$2953,10,FALSE),0) -> 0 | M126: =IFERROR(VLOOKUP($A126,Filtro!$A$5:$AK$2953,11,FALSE),0) -> 0 | N126: =IFERROR(VLOOKUP($A126,Filtro!$A$5:$AK$2953,12,FALSE),0) -> 0 | O126: =IFERROR(VLOOKUP($A126,Filtro!$A$5:$AK$2953,13,FALSE),0) -> 0 | P126: =IFERROR(VLOOKUP($A126,Filtro!$A$5:$AK$2953,14,FALSE),0) -> 16278 | Q126: =IFERROR(VLOOKUP($A126,Filtro!$A$5:$AK$2953,15,FALSE),0) -> 3352 | R126: =IFERROR(VLOOKUP($A126,Filtro!$A$5:$AK$2953,16,FALSE),0) -> 1615 | T126: =IFERROR(VLOOKUP($A126,Filtro!$A$5:$AK$2953,18,FALSE),0) -> 1,399,466,940
B127: VI | C127: MICROBIOLOGICOS | D127: =SUM(D128:D130) -> 257253 | E127: 254795 | F127: 248274 | G127: 6521 | H127: 2458 | I127: 56119 | J127: 136825 | K127: 63414 | L127: 0 | M127: 0 | N127: 0 | O127: 0 | P127: 2978 | Q127: 9556 | R127: 6512 | S127: 0 | T127: =SUM(T128:T130) -> 2,725,649,550
A128: 17010601 | C128: a) BACTERIAS Y HONGOS | D128: =IFERROR(VLOOKUP($A128,Filtro!$A$5:$AK$2953,2,FALSE),0) -> 144504 | E128: =IFERROR(VLOOKUP($A128,Filtro!$A$5:$AK$2953,3,FALSE),0) -> 142762 | F128: =IFERROR(VLOOKUP($A128,Filtro!$A$5:$AK$2953,4,FALSE),0) -> 141266 | G128: =IFERROR(VLOOKUP($A128,Filtro!$A$5:$AK$2953,5,FALSE),0) -> 1496 | H128: =IFERROR(VLOOKUP($A128,Filtro!$A$5:$AK$2953,6,FALSE),0) -> 1742 | I128: =IFERROR(VLOOKUP($A128,Filtro!$A$5:$AK$2953,7,FALSE),0) -> 42828 | J128: =IFERROR(VLOOKUP($A128,Filtro!$A$5:$AK$2953,8,FALSE),0) -> 59652 | K128: =IFERROR(VLOOKUP($A128,Filtro!$A$5:$AK$2953,9,FALSE),0) -> 41023 | L128: =IFERROR(VLOOKUP($A128,Filtro!$A$5:$AK$2953,10,FALSE),0) -> 0 | M128: =IFERROR(VLOOKUP($A128,Filtro!$A$5:$AK$2953,11,FALSE),0) -> 0 | N128: =IFERROR(VLOOKUP($A128,Filtro!$A$5:$AK$2953,12,FALSE),0) -> 0 | O128: =IFERROR(VLOOKUP($A128,Filtro!$A$5:$AK$2953,13,FALSE),0) -> 0 | P128: =IFERROR(VLOOKUP($A128,Filtro!$A$5:$AK$2953,14,FALSE),0) -> 239 | Q128: =IFERROR(VLOOKUP($A128,Filtro!$A$5:$AK$2953,15,FALSE),0) -> 8489 | R128: =IFERROR(VLOOKUP($A128,Filtro!$A$5:$AK$2953,16,FALSE),0) -> 5049 | T128: =IFERROR(VLOOKUP($A128,Filtro!$A$5:$AK$2953,18,FALSE),0) -> 797,262,990
A129: 17010602 | C129: b) PARASITOS | D129: =IFERROR(VLOOKUP($A129,Filtro!$A$5:$AK$2953,2,FALSE),0) -> 33282 | E129: =IFERROR(VLOOKUP($A129,Filtro!$A$5:$AK$2953,3,FALSE),0) -> 33221 | F129: =IFERROR(VLOOKUP($A129,Filtro!$A$5:$AK$2953,4,FALSE),0) -> 30410 | G129: =IFERROR(VLOOKUP($A129,Filtro!$A$5:$AK$2953,5,FALSE),0) -> 2811 | H129: =IFERROR(VLOOKUP($A129,Filtro!$A$5:$AK$2953,6,FALSE),0) -> 61 | I129: =IFERROR(VLOOKUP($A129,Filtro!$A$5:$AK$2953,7,FALSE),0) -> 1544 | J129: =IFERROR(VLOOKUP($A129,Filtro!$A$5:$AK$2953,8,FALSE),0) -> 31204 | K129: =IFERROR(VLOOKUP($A129,Filtro!$A$5:$AK$2953,9,FALSE),0) -> 505 | L129: =IFERROR(VLOOKUP($A129,Filtro!$A$5:$AK$2953,10,FALSE),0) -> 0 | M129: =IFERROR(VLOOKUP($A129,Filtro!$A$5:$AK$2953,11,FALSE),0) -> 0 | N129: =IFERROR(VLOOKUP($A129,Filtro!$A$5:$AK$2953,12,FALSE),0) -> 0 | O129: =IFERROR(VLOOKUP($A129,Filtro!$A$5:$AK$2953,13,FALSE),0) -> 0 | P129: =IFERROR(VLOOKUP($A129,Filtro!$A$5:$AK$2953,14,FALSE),0) -> 371 | Q129: =IFERROR(VLOOKUP($A129,Filtro!$A$5:$AK$2953,15,FALSE),0) -> 607 | R129: =IFERROR(VLOOKUP($A129,Filtro!$A$5:$AK$2953,16,FALSE),0) -> 1207 | T129: =IFERROR(VLOOKUP($A129,Filtro!$A$5:$AK$2953,18,FALSE),0) -> 166,924,890
A130: 17010603 | C130: c) VIRUS | D130: =IFERROR(VLOOKUP($A130,Filtro!$A$5:$AK$2953,2,FALSE),0) -> 79467 | E130: =IFERROR(VLOOKUP($A130,Filtro!$A$5:$AK$2953,3,FALSE),0) -> 78812 | F130: =IFERROR(VLOOKUP($A130,Filtro!$A$5:$AK$2953,4,FALSE),0) -> 76598 | G130: =IFERROR(VLOOKUP($A130,Filtro!$A$5:$AK$2953,5,FALSE),0) -> 2214 | H130: =IFERROR(VLOOKUP($A130,Filtro!$A$5:$AK$2953,6,FALSE),0) -> 655 | I130: =IFERROR(VLOOKUP($A130,Filtro!$A$5:$AK$2953,7,FALSE),0) -> 11747 | J130: =IFERROR(VLOOKUP($A130,Filtro!$A$5:$AK$2953,8,FALSE),0) -> 45969 | K130: =IFERROR(VLOOKUP($A130,Filtro!$A$5:$AK$2953,9,FALSE),0) -> 21886 | L130: =IFERROR(VLOOKUP($A130,Filtro!$A$5:$AK$2953,10,FALSE),0) -> 0 | M130: =IFERROR(VLOOKUP($A130,Filtro!$A$5:$AK$2953,11,FALSE),0) -> 0 | N130: =IFERROR(VLOOKUP($A130,Filtro!$A$5:$AK$2953,12,FALSE),0) -> 0 | O130: =IFERROR(VLOOKUP($A130,Filtro!$A$5:$AK$2953,13,FALSE),0) -> 0 | P130: =IFERROR(VLOOKUP($A130,Filtro!$A$5:$AK$2953,14,FALSE),0) -> 2368 | Q130: =IFERROR(VLOOKUP($A130,Filtro!$A$5:$AK$2953,15,FALSE),0) -> 460 | R130: =IFERROR(VLOOKUP($A130,Filtro!$A$5:$AK$2953,16,FALSE),0) -> 256 | T130: =IFERROR(VLOOKUP($A130,Filtro!$A$5:$AK$2953,18,FALSE),0) -> 1,761,461,670
A131: 17010700 | B131: VII | C131: PROCEDIMIENTO O DETERMINACION DIRECTA C/PACIENTE | D131: =IFERROR(VLOOKUP($A131,Filtro!$A$5:$AK$2953,2,FALSE),0) -> 14036 | E131: =IFERROR(VLOOKUP($A131,Filtro!$A$5:$AK$2953,3,FALSE),0) -> 14036 | F131: =IFERROR(VLOOKUP($A131,Filtro!$A$5:$AK$2953,4,FALSE),0) -> 14036 | G131: =IFERROR(VLOOKUP($A131,Filtro!$A$5:$AK$2953,5,FALSE),0) -> 0 | H131: =IFERROR(VLOOKUP($A131,Filtro!$A$5:$AK$2953,6,FALSE),0) -> 0 | I131: =IFERROR(VLOOKUP($A131,Filtro!$A$5:$AK$2953,7,FALSE),0) -> 12765 | J131: =IFERROR(VLOOKUP($A131,Filtro!$A$5:$AK$2953,8,FALSE),0) -> 500 | K131: =IFERROR(VLOOKUP($A131,Filtro!$A$5:$AK$2953,9,FALSE),0) -> 734 | L131: =IFERROR(VLOOKUP($A131,Filtro!$A$5:$AK$2953,10,FALSE),0) -> 0 | M131: =IFERROR(VLOOKUP($A131,Filtro!$A$5:$AK$2953,11,FALSE),0) -> 0 | N131: =IFERROR(VLOOKUP($A131,Filtro!$A$5:$AK$2953,12,FALSE),0) -> 0 | O131: =IFERROR(VLOOKUP($A131,Filtro!$A$5:$AK$2953,13,FALSE),0) -> 0 | P131: =IFERROR(VLOOKUP($A131,Filtro!$A$5:$AK$2953,14,FALSE),0) -> 0 | Q131: =IFERROR(VLOOKUP($A131,Filtro!$A$5:$AK$2953,15,FALSE),0) -> 0 | R131: =IFERROR(VLOOKUP($A131,Filtro!$A$5:$AK$2953,16,FALSE),0) -> 0 | T131: =IFERROR(VLOOKUP($A131,Filtro!$A$5:$AK$2953,18,FALSE),0) -> 38,478,910
A132: 17010800 | B132: VIII | C132: EX. DE DEPOSICIONES EXUDADOS. SECREC. Y OTROS LIQ. | D132: =IFERROR(VLOOKUP($A132,Filtro!$A$5:$AK$2953,2,FALSE),0) -> 11873 | E132: =IFERROR(VLOOKUP($A132,Filtro!$A$5:$AK$2953,3,FALSE),0) -> 11723 | F132: =IFERROR(VLOOKUP($A132,Filtro!$A$5:$AK$2953,4,FALSE),0) -> 11631 | G132: =IFERROR(VLOOKUP($A132,Filtro!$A$5:$AK$2953,5,FALSE),0) -> 92 | H132: =IFERROR(VLOOKUP($A132,Filtro!$A$5:$AK$2953,6,FALSE),0) -> 150 | I132: =IFERROR(VLOOKUP($A132,Filtro!$A$5:$AK$2953,7,FALSE),0) -> 4913 | J132: =IFERROR(VLOOKUP($A132,Filtro!$A$5:$AK$2953,8,FALSE),0) -> 4199 | K132: =IFERROR(VLOOKUP($A132,Filtro!$A$5:$AK$2953,9,FALSE),0) -> 2774 | L132: =IFERROR(VLOOKUP($A132,Filtro!$A$5:$AK$2953,10,FALSE),0) -> 0 | M132: =IFERROR(VLOOKUP($A132,Filtro!$A$5:$AK$2953,11,FALSE),0) -> 0 | N132: =IFERROR(VLOOKUP($A132,Filtro!$A$5:$AK$2953,12,FALSE),0) -> 0 | O132: =IFERROR(VLOOKUP($A132,Filtro!$A$5:$AK$2953,13,FALSE),0) -> 0 | P132: =IFERROR(VLOOKUP($A132,Filtro!$A$5:$AK$2953,14,FALSE),0) -> 420 | Q132: =IFERROR(VLOOKUP($A132,Filtro!$A$5:$AK$2953,15,FALSE),0) -> 697 | R132: =IFERROR(VLOOKUP($A132,Filtro!$A$5:$AK$2953,16,FALSE),0) -> 146 | T132: =IFERROR(VLOOKUP($A132,Filtro!$A$5:$AK$2953,18,FALSE),0) -> 27,629,300
A133: 17010900 | B133: IX | C133: ORINA | D133: =IFERROR(VLOOKUP($A133,Filtro!$A$5:$AK$2953,2,FALSE),0) -> 227188 | E133: =IFERROR(VLOOKUP($A133,Filtro!$A$5:$AK$2953,3,FALSE),0) -> 225623 | F133: =IFERROR(VLOOKUP($A133,Filtro!$A$5:$AK$2953,4,FALSE),0) -> 221603 | G133: =IFERROR(VLOOKUP($A133,Filtro!$A$5:$AK$2953,5,FALSE),0) -> 4020 | H133: =IFERROR(VLOOKUP($A133,Filtro!$A$5:$AK$2953,6,FALSE),0) -> 1565 | I133: =IFERROR(VLOOKUP($A133,Filtro!$A$5:$AK$2953,7,FALSE),0) -> 18388 | J133: =IFERROR(VLOOKUP($A133,Filtro!$A$5:$AK$2953,8,FALSE),0) -> 167211 | K133: =IFERROR(VLOOKUP($A133,Filtro!$A$5:$AK$2953,9,FALSE),0) -> 41575 | L133: =IFERROR(VLOOKUP($A133,Filtro!$A$5:$AK$2953,10,FALSE),0) -> 0 | M133: =IFERROR(VLOOKUP($A133,Filtro!$A$5:$AK$2953,11,FALSE),0) -> 0 | N133: =IFERROR(VLOOKUP($A133,Filtro!$A$5:$AK$2953,12,FALSE),0) -> 0 | O133: =IFERROR(VLOOKUP($A133,Filtro!$A$5:$AK$2953,13,FALSE),0) -> 0 | P133: =IFERROR(VLOOKUP($A133,Filtro!$A$5:$AK$2953,14,FALSE),0) -> 1493 | Q133: =IFERROR(VLOOKUP($A133,Filtro!$A$5:$AK$2953,15,FALSE),0) -> 162 | R133: =IFERROR(VLOOKUP($A133,Filtro!$A$5:$AK$2953,16,FALSE),0) -> 31954 | T133: =IFERROR(VLOOKUP($A133,Filtro!$A$5:$AK$2953,18,FALSE),0) -> 455,670,800
B134: TOTAL EXAMENES IMAGENOLOGIA | D134: =+D135+D136+D137+D138+D142+D143 -> 391971 | E134: 388040 | F134: 386943 | G134: 1097 | H134: 3931 | I134: 48571 | J134: 161778 | K134: 181090 | L134: 1672 | M134: 0 | N134: 155 | O134: 34 | P134: 0 | Q134: 1652 | R134: 14 | S134: =+S135+S136+S137 -> 0 | T134: =+T135+T136+T137+T138+T142 -> 11,182,710,630
A135: 17011001 | B135: I. a) | C135: EX. RADIOLOGICOS SIMPLES | D135: =IFERROR(VLOOKUP($A135,Filtro!$A$5:$AK$2953,2,FALSE),0) -> 228693 | E135: =IFERROR(VLOOKUP($A135,Filtro!$A$5:$AK$2953,3,FALSE),0) -> 226035 | F135: =IFERROR(VLOOKUP($A135,Filtro!$A$5:$AK$2953,4,FALSE),0) -> 225046 | G135: =IFERROR(VLOOKUP($A135,Filtro!$A$5:$AK$2953,5,FALSE),0) -> 989 | H135: =IFERROR(VLOOKUP($A135,Filtro!$A$5:$AK$2953,6,FALSE),0) -> 2658 | I135: =IFERROR(VLOOKUP($A135,Filtro!$A$5:$AK$2953,7,FALSE),0) -> 23242 | J135: =IFERROR(VLOOKUP($A135,Filtro!$A$5:$AK$2953,8,FALSE),0) -> 81859 | K135: =IFERROR(VLOOKUP($A135,Filtro!$A$5:$AK$2953,9,FALSE),0) -> 123040 | L135: =IFERROR(VLOOKUP($A135,Filtro!$A$5:$AK$2953,10,FALSE),0) -> 71 | M135: =IFERROR(VLOOKUP($A135,Filtro!$A$5:$AK$2953,11,FALSE),0) -> 0 | N135: =IFERROR(VLOOKUP($A135,Filtro!$A$5:$AK$2953,12,FALSE),0) -> 112 | O135: =IFERROR(VLOOKUP($A135,Filtro!$A$5:$AK$2953,13,FALSE),0) -> 0 | P135: =IFERROR(VLOOKUP($A135,Filtro!$A$5:$AK$2953,14,FALSE),0) -> 0 | Q135: =IFERROR(VLOOKUP($A135,Filtro!$A$5:$AK$2953,15,FALSE),0) -> 290 | R135: =IFERROR(VLOOKUP($A135,Filtro!$A$5:$AK$2953,16,FALSE),0) -> 14 | S135: =IFERROR(VLOOKUP($A135,Filtro!$A$5:$AK$2953,17,FALSE),0) -> 0 | T135: =IFERROR(VLOOKUP($A135,Filtro!$A$5:$AK$2953,18,FALSE),0) -> 2,508,663,780
A136: 17011002 | B136: I. b) | C136: EX. RADIOLOGICOS COMPLEJOS | D136: =IFERROR(VLOOKUP($A136,Filtro!$A$5:$AK$2953,2,FALSE),0) -> 423 | E136: =IFERROR(VLOOKUP($A136,Filtro!$A$5:$AK$2953,3,FALSE),0) -> 421 | F136: =IFERROR(VLOOKUP($A136,Filtro!$A$5:$AK$2953,4,FALSE),0) -> 421 | G136: =IFERROR(VLOOKUP($A136,Filtro!$A$5:$AK$2953,5,FALSE),0) -> 0 | H136: =IFERROR(VLOOKUP($A136,Filtro!$A$5:$AK$2953,6,FALSE),0) -> 2 | I136: =IFERROR(VLOOKUP($A136,Filtro!$A$5:$AK$2953,7,FALSE),0) -> 229 | J136: =IFERROR(VLOOKUP($A136,Filtro!$A$5:$AK$2953,8,FALSE),0) -> 189 | K136: =IFERROR(VLOOKUP($A136,Filtro!$A$5:$AK$2953,9,FALSE),0) -> 5 | L136: =IFERROR(VLOOKUP($A136,Filtro!$A$5:$AK$2953,10,FALSE),0) -> 20 | M136: =IFERROR(VLOOKUP($A136,Filtro!$A$5:$AK$2953,11,FALSE),0) -> 0 | N136: =IFERROR(VLOOKUP($A136,Filtro!$A$5:$AK$2953,12,FALSE),0) -> 5 | O136: =IFERROR(VLOOKUP($A136,Filtro!$A$5:$AK$2953,13,FALSE),0) -> 0 | P136: =IFERROR(VLOOKUP($A136,Filtro!$A$5:$AK$2953,14,FALSE),0) -> 0 | Q136: =IFERROR(VLOOKUP($A136,Filtro!$A$5:$AK$2953,15,FALSE),0) -> 0 | R136: =IFERROR(VLOOKUP($A136,Filtro!$A$5:$AK$2953,16,FALSE),0) -> 0 | S136: =IFERROR(VLOOKUP($A136,Filtro!$A$5:$AK$2953,17,FALSE),0) -> 0 | T136: =IFERROR(VLOOKUP($A136,Filtro!$A$5:$AK$2953,18,FALSE),0) -> 22,470,740
A137: 17011003 | B137: II. | C137: TOMOGRAFIA AXIAL COMP. | D137: =IFERROR(VLOOKUP($A137,Filtro!$A$5:$AK$2953,2,FALSE),0) -> 77107 | E137: =IFERROR(VLOOKUP($A137,Filtro!$A$5:$AK$2953,3,FALSE),0) -> 76226 | F137: =IFERROR(VLOOKUP($A137,Filtro!$A$5:$AK$2953,4,FALSE),0) -> 76141 | G137: =IFERROR(VLOOKUP($A137,Filtro!$A$5:$AK$2953,5,FALSE),0) -> 85 | H137: =IFERROR(VLOOKUP($A137,Filtro!$A$5:$AK$2953,6,FALSE),0) -> 881 | I137: =IFERROR(VLOOKUP($A137,Filtro!$A$5:$AK$2953,7,FALSE),0) -> 14182 | J137: =IFERROR(VLOOKUP($A137,Filtro!$A$5:$AK$2953,8,FALSE),0) -> 22349 | K137: =IFERROR(VLOOKUP($A137,Filtro!$A$5:$AK$2953,9,FALSE),0) -> 40528 | L137: =IFERROR(VLOOKUP($A137,Filtro!$A$5:$AK$2953,10,FALSE),0) -> 0 | M137: =IFERROR(VLOOKUP($A137,Filtro!$A$5:$AK$2953,11,FALSE),0) -> 0 | N137: =IFERROR(VLOOKUP($A137,Filtro!$A$5:$AK$2953,12,FALSE),0) -> 0 | O137: =IFERROR(VLOOKUP($A137,Filtro!$A$5:$AK$2953,13,FALSE),0) -> 0 | P137: =IFERROR(VLOOKUP($A137,Filtro!$A$5:$AK$2953,14,FALSE),0) -> 0 | Q137: =IFERROR(VLOOKUP($A137,Filtro!$A$5:$AK$2953,15,FALSE),0) -> 24 | R137: =IFERROR(VLOOKUP($A137,Filtro!$A$5:$AK$2953,16,FALSE),0) -> 0 | S137: =IFERROR(VLOOKUP($A137,Filtro!$A$5:$AK$2953,17,FALSE),0) -> 0 | T137: =IFERROR(VLOOKUP($A137,Filtro!$A$5:$AK$2953,18,FALSE),0) -> 5,788,134,280
B138: III | C138: ULTRASONOGRAFIA | D138: =SUM(D139:D141) -> 77497 | E138: 77107 | F138: 77084 | G138: 23 | H138: 390 | I138: 8804 | J138: 51623 | K138: 17140 | L138: 1581 | M138: 0 | N138: 38 | O138: 34 | P138: 0 | Q138: 557 | R138: 0 | S138: =SUM(S139:S142) -> 0 | T138: =SUM(T139:T141) -> 1,413,945,420
A139: 17011004 | C139: Ecotomografias ( Sin Ecografía Obstetr. Y Abdominal ) | D139: =IFERROR(VLOOKUP($A139,Filtro!$A$5:$AK$2953,2,FALSE),0) -> 56162 | E139: =IFERROR(VLOOKUP($A139,Filtro!$A$5:$AK$2953,3,FALSE),0) -> 55869 | F139: =IFERROR(VLOOKUP($A139,Filtro!$A$5:$AK$2953,4,FALSE),0) -> 55850 | G139: =IFERROR(VLOOKUP($A139,Filtro!$A$5:$AK$2953,5,FALSE),0) -> 19 | H139: =IFERROR(VLOOKUP($A139,Filtro!$A$5:$AK$2953,6,FALSE),0) -> 293 | I139: =IFERROR(VLOOKUP($A139,Filtro!$A$5:$AK$2953,7,FALSE),0) -> 6493 | J139: =IFERROR(VLOOKUP($A139,Filtro!$A$5:$AK$2953,8,FALSE),0) -> 39605 | K139: =IFERROR(VLOOKUP($A139,Filtro!$A$5:$AK$2953,9,FALSE),0) -> 10139 | L139: =IFERROR(VLOOKUP($A139,Filtro!$A$5:$AK$2953,10,FALSE),0) -> 1254 | M139: =IFERROR(VLOOKUP($A139,Filtro!$A$5:$AK$2953,11,FALSE),0) -> 0 | N139: =IFERROR(VLOOKUP($A139,Filtro!$A$5:$AK$2953,12,FALSE),0) -> 38 | O139: =IFERROR(VLOOKUP($A139,Filtro!$A$5:$AK$2953,13,FALSE),0) -> 0 | P139: =IFERROR(VLOOKUP($A139,Filtro!$A$5:$AK$2953,14,FALSE),0) -> 0 | Q139: =IFERROR(VLOOKUP($A139,Filtro!$A$5:$AK$2953,15,FALSE),0) -> 313 | R139: =IFERROR(VLOOKUP($A139,Filtro!$A$5:$AK$2953,16,FALSE),0) -> 0 | S139: =IFERROR(VLOOKUP($A139,Filtro!$A$5:$AK$2953,17,FALSE),0) -> 0 | T139: =IFERROR(VLOOKUP($A139,Filtro!$A$5:$AK$2953,18,FALSE),0) -> 1,118,659,510
A140: 17011005 | C140: Ecografías Obstétricas | D140: =IFERROR(VLOOKUP($A140,Filtro!$A$5:$AK$2953,2,FALSE),0) -> 13188 | E140: =IFERROR(VLOOKUP($A140,Filtro!$A$5:$AK$2953,3,FALSE),0) -> 13115 | F140: =IFERROR(VLOOKUP($A140,Filtro!$A$5:$AK$2953,4,FALSE),0) -> 13115 | G140: =IFERROR(VLOOKUP($A140,Filtro!$A$5:$AK$2953,5,FALSE),0) -> 0 | H140: =IFERROR(VLOOKUP($A140,Filtro!$A$5:$AK$2953,6,FALSE),0) -> 73 | I140: =IFERROR(VLOOKUP($A140,Filtro!$A$5:$AK$2953,7,FALSE),0) -> 797 | J140: =IFERROR(VLOOKUP($A140,Filtro!$A$5:$AK$2953,8,FALSE),0) -> 7222 | K140: =IFERROR(VLOOKUP($A140,Filtro!$A$5:$AK$2953,9,FALSE),0) -> 5168 | L140: =IFERROR(VLOOKUP($A140,Filtro!$A$5:$AK$2953,10,FALSE),0) -> 0 | M140: =IFERROR(VLOOKUP($A140,Filtro!$A$5:$AK$2953,11,FALSE),0) -> 0 | N140: =IFERROR(VLOOKUP($A140,Filtro!$A$5:$AK$2953,12,FALSE),0) -> 0 | O140: =IFERROR(VLOOKUP($A140,Filtro!$A$5:$AK$2953,13,FALSE),0) -> 0 | P140: =IFERROR(VLOOKUP($A140,Filtro!$A$5:$AK$2953,14,FALSE),0) -> 0 | Q140: =IFERROR(VLOOKUP($A140,Filtro!$A$5:$AK$2953,15,FALSE),0) -> 0 | R140: =IFERROR(VLOOKUP($A140,Filtro!$A$5:$AK$2953,16,FALSE),0) -> 0 | S140: =IFERROR(VLOOKUP($A140,Filtro!$A$5:$AK$2953,17,FALSE),0) -> 0 | T140: =IFERROR(VLOOKUP($A140,Filtro!$A$5:$AK$2953,18,FALSE),0) -> 90,362,350
A141: 17181000 | C141: Ecotomografias abdominal | D141: =IFERROR(VLOOKUP($A141,Filtro!$A$5:$AK$2953,2,FALSE),0) -> 8147 | E141: =IFERROR(VLOOKUP($A141,Filtro!$A$5:$AK$2953,3,FALSE),0) -> 8123 | F141: =IFERROR(VLOOKUP($A141,Filtro!$A$5:$AK$2953,4,FALSE),0) -> 8119 | G141: =IFERROR(VLOOKUP($A141,Filtro!$A$5:$AK$2953,5,FALSE),0) -> 4 | H141: =IFERROR(VLOOKUP($A141,Filtro!$A$5:$AK$2953,6,FALSE),0) -> 24 | I141: =IFERROR(VLOOKUP($A141,Filtro!$A$5:$AK$2953,7,FALSE),0) -> 1514 | J141: =IFERROR(VLOOKUP($A141,Filtro!$A$5:$AK$2953,8,FALSE),0) -> 4796 | K141: =IFERROR(VLOOKUP($A141,Filtro!$A$5:$AK$2953,9,FALSE),0) -> 1833 | L141: =IFERROR(VLOOKUP($A141,Filtro!$A$5:$AK$2953,10,FALSE),0) -> 327 | M141: =IFERROR(VLOOKUP($A141,Filtro!$A$5:$AK$2953,11,FALSE),0) -> 0 | N141: =IFERROR(VLOOKUP($A141,Filtro!$A$5:$AK$2953,12,FALSE),0) -> 0 | O141: =IFERROR(VLOOKUP($A141,Filtro!$A$5:$AK$2953,13,FALSE),0) -> 34 | P141: =IFERROR(VLOOKUP($A141,Filtro!$A$5:$AK$2953,14,FALSE),0) -> 0 | Q141: =IFERROR(VLOOKUP($A141,Filtro!$A$5:$AK$2953,15,FALSE),0) -> 244 | R141: =IFERROR(VLOOKUP($A141,Filtro!$A$5:$AK$2953,16,FALSE),0) -> 0 | S141: =IFERROR(VLOOKUP($A141,Filtro!$A$5:$AK$2953,17,FALSE),0) -> 0 | T141: =IFERROR(VLOOKUP($A141,Filtro!$A$5:$AK$2953,18,FALSE),0) -> 204,923,560
A142: 17019999 | B142: IV | C142: RESONANCIA MAGNÉTICA | D142: =IFERROR(VLOOKUP($A142,Filtro!$A$5:$AK$2953,2,FALSE),0) -> 7719 | E142: =IFERROR(VLOOKUP($A142,Filtro!$A$5:$AK$2953,3,FALSE),0) -> 7719 | F142: =IFERROR(VLOOKUP($A142,Filtro!$A$5:$AK$2953,4,FALSE),0) -> 7719 | G142: =IFERROR(VLOOKUP($A142,Filtro!$A$5:$AK$2953,5,FALSE),0) -> 0 | H142: =IFERROR(VLOOKUP($A142,Filtro!$A$5:$AK$2953,6,FALSE),0) -> 0 | I142: =IFERROR(VLOOKUP($A142,Filtro!$A$5:$AK$2953,7,FALSE),0) -> 2055 | J142: =IFERROR(VLOOKUP($A142,Filtro!$A$5:$AK$2953,8,FALSE),0) -> 5285 | K142: =IFERROR(VLOOKUP($A142,Filtro!$A$5:$AK$2953,9,FALSE),0) -> 377 | L142: =IFERROR(VLOOKUP($A142,Filtro!$A$5:$AK$2953,10,FALSE),0) -> 0 | M142: =IFERROR(VLOOKUP($A142,Filtro!$A$5:$AK$2953,11,FALSE),0) -> 0 | N142: =IFERROR(VLOOKUP($A142,Filtro!$A$5:$AK$2953,12,FALSE),0) -> 0 | O142: =IFERROR(VLOOKUP($A142,Filtro!$A$5:$AK$2953,13,FALSE),0) -> 0 | P142: =IFERROR(VLOOKUP($A142,Filtro!$A$5:$AK$2953,14,FALSE),0) -> 0 | Q142: =IFERROR(VLOOKUP($A142,Filtro!$A$5:$AK$2953,15,FALSE),0) -> 781 | R142: =IFERROR(VLOOKUP($A142,Filtro!$A$5:$AK$2953,16,FALSE),0) -> 0 | S142: =IFERROR(VLOOKUP($A142,Filtro!$A$5:$AK$2953,17,FALSE),0) -> 0 | T142: =IFERROR(VLOOKUP($A142,Filtro!$A$5:$AK$2953,18,FALSE),0) -> 1,449,496,410
A143: 17200110 | C143: OTROS EXÁMENES DE IMÁGENES | D143: =IFERROR(VLOOKUP($A143,Filtro!$A$5:$AK$2953,2,FALSE),0) -> 532 | E143: =IFERROR(VLOOKUP($A143,Filtro!$A$5:$AK$2953,3,FALSE),0) -> 532 | F143: =IFERROR(VLOOKUP($A143,Filtro!$A$5:$AK$2953,4,FALSE),0) -> 532 | G143: =IFERROR(VLOOKUP($A143,Filtro!$A$5:$AK$2953,5,FALSE),0) -> 0 | H143: =IFERROR(VLOOKUP($A143,Filtro!$A$5:$AK$2953,6,FALSE),0) -> 0 | I143: =IFERROR(VLOOKUP($A143,Filtro!$A$5:$AK$2953,7,FALSE),0) -> 59 | J143: =IFERROR(VLOOKUP($A143,Filtro!$A$5:$AK$2953,8,FALSE),0) -> 473 | K143: =IFERROR(VLOOKUP($A143,Filtro!$A$5:$AK$2953,9,FALSE),0) -> 0 | L143: =IFERROR(VLOOKUP($A143,Filtro!$A$5:$AK$2953,10,FALSE),0) -> 0 | M143: =IFERROR(VLOOKUP($A143,Filtro!$A$5:$AK$2953,11,FALSE),0) -> 0 | N143: =IFERROR(VLOOKUP($A143,Filtro!$A$5:$AK$2953,12,FALSE),0) -> 0 | O143: =IFERROR(VLOOKUP($A143,Filtro!$A$5:$AK$2953,13,FALSE),0) -> 0 | P143: =IFERROR(VLOOKUP($A143,Filtro!$A$5:$AK$2953,14,FALSE),0) -> 0 | Q143: =IFERROR(VLOOKUP($A143,Filtro!$A$5:$AK$2953,15,FALSE),0) -> 0 | R143: =IFERROR(VLOOKUP($A143,Filtro!$A$5:$AK$2953,16,FALSE),0) -> 0 | T143: =IFERROR(VLOOKUP($A143,Filtro!$A$5:$AK$2953,18,FALSE),0) -> 0
A144: 17200120 | B144: TOMA DE MUESTRAS | D144: =IFERROR(VLOOKUP($A144,Filtro!$A$5:$AK$2953,2,FALSE),0) -> 146480 | E144: =IFERROR(VLOOKUP($A144,Filtro!$A$5:$AK$2953,3,FALSE),0) -> 146292 | F144: =IFERROR(VLOOKUP($A144,Filtro!$A$5:$AK$2953,4,FALSE),0) -> 146155 | G144: =IFERROR(VLOOKUP($A144,Filtro!$A$5:$AK$2953,5,FALSE),0) -> 137 | H144: =IFERROR(VLOOKUP($A144,Filtro!$A$5:$AK$2953,6,FALSE),0) -> 188 | I144: =IFERROR(VLOOKUP($A144,Filtro!$A$5:$AK$2953,7,FALSE),0) -> 10649 | J144: =IFERROR(VLOOKUP($A144,Filtro!$A$5:$AK$2953,8,FALSE),0) -> 130285 | K144: =IFERROR(VLOOKUP($A144,Filtro!$A$5:$AK$2953,9,FALSE),0) -> 5475 | L144: =IFERROR(VLOOKUP($A144,Filtro!$A$5:$AK$2953,10,FALSE),0) -> 0 | M144: =IFERROR(VLOOKUP($A144,Filtro!$A$5:$AK$2953,11,FALSE),0) -> 0 | N144: =IFERROR(VLOOKUP($A144,Filtro!$A$5:$AK$2953,12,FALSE),0) -> 0 | O144: =IFERROR(VLOOKUP($A144,Filtro!$A$5:$AK$2953,13,FALSE),0) -> 0 | P144: =IFERROR(VLOOKUP($A144,Filtro!$A$5:$AK$2953,14,FALSE),0) -> 0 | Q144: =IFERROR(VLOOKUP($A144,Filtro!$A$5:$AK$2953,15,FALSE),0) -> 0 | R144: =IFERROR(VLOOKUP($A144,Filtro!$A$5:$AK$2953,16,FALSE),0) -> 0 | T144: =IFERROR(VLOOKUP($A144,Filtro!$A$5:$AK$2953,18,FALSE),0) -> 0
A145: 99999991 | B145: EXAMENES ANATOMIA PATOLOGICA | D145: =IFERROR(VLOOKUP($A145,Filtro!$A$5:$AK$2953,2,FALSE),0) -> 103868 | E145: =IFERROR(VLOOKUP($A145,Filtro!$A$5:$AK$2953,3,FALSE),0) -> 103859 | F145: =IFERROR(VLOOKUP($A145,Filtro!$A$5:$AK$2953,4,FALSE),0) -> 103859 | G145: =IFERROR(VLOOKUP($A145,Filtro!$A$5:$AK$2953,5,FALSE),0) -> 0 | H145: =IFERROR(VLOOKUP($A145,Filtro!$A$5:$AK$2953,6,FALSE),0) -> 9 | I145: =IFERROR(VLOOKUP($A145,Filtro!$A$5:$AK$2953,7,FALSE),0) -> 15513 | J145: =IFERROR(VLOOKUP($A145,Filtro!$A$5:$AK$2953,8,FALSE),0) -> 88489 | K145: =IFERROR(VLOOKUP($A145,Filtro!$A$5:$AK$2953,9,FALSE),0) -> 37 | L145: =IFERROR(VLOOKUP($A145,Filtro!$A$5:$AK$2953,10,FALSE),0) -> 0 | M145: =IFERROR(VLOOKUP($A145,Filtro!$A$5:$AK$2953,11,FALSE),0) -> 0 | N145: =IFERROR(VLOOKUP($A145,Filtro!$A$5:$AK$2953,12,FALSE),0) -> 0 | O145: =IFERROR(VLOOKUP($A145,Filtro!$A$5:$AK$2953,13,FALSE),0) -> 0 | P145: =IFERROR(VLOOKUP($A145,Filtro!$A$5:$AK$2953,14,FALSE),0) -> 0 | Q145: =IFERROR(VLOOKUP($A145,Filtro!$A$5:$AK$2953,15,FALSE),0) -> 1963 | R145: =IFERROR(VLOOKUP($A145,Filtro!$A$5:$AK$2953,16,FALSE),0) -> 0 | T145: =IFERROR(VLOOKUP($A145,Filtro!$A$5:$AK$2953,18,FALSE),0) -> 1,620,203,650
B146: SECCION J: MEDICINA NUCLEAR Y RADIOTERAPIA
B147: TIPO DE PROCEDIMIENTO | D147: TOTAL | E147: PROCEDIMIENTOS | I147: PROCEDENCIA | L147: PRODUCCION INTRA HOSPITAL | O147: OPERATIVO | P147: COMPRAS REALIZADAS | R147: VENTAS DE SERVICIOS | S147: PAGO POR PRESTACIONES ($)
E148: TOTAL BENEFICIARIOS | F148: BENEFICIARIOS | H148: NO BENEFICIARIOS | I148: ATENCION CERRADA | J148: ATENCION ABIERTA | K148: EMERGENCIA | L148: POR HONORARIOS | M148: POR CONVENIOS | N148: POR CONSULTORES DE LLAMADA | P148: AL SISTEMA | Q148: EXTRA-SISTEMA
F149: MAI | G149: MLE
A150: 17400370 | B150: MEDICINA NUCLEAR | D150: =IFERROR(VLOOKUP($A150,Filtro!$A$5:$AK$2953,2,FALSE),0) -> 3 | E150: =IFERROR(VLOOKUP($A150,Filtro!$A$5:$AK$2953,3,FALSE),0) -> 3 | F150: =IFERROR(VLOOKUP($A150,Filtro!$A$5:$AK$2953,4,FALSE),0) -> 3 | G150: =IFERROR(VLOOKUP($A150,Filtro!$A$5:$AK$2953,5,FALSE),0) -> 0 | H150: =IFERROR(VLOOKUP($A150,Filtro!$A$5:$AK$2953,6,FALSE),0) -> 0 | I150: =IFERROR(VLOOKUP($A150,Filtro!$A$5:$AK$2953,7,FALSE),0) -> 0 | J150: =IFERROR(VLOOKUP($A150,Filtro!$A$5:$AK$2953,8,FALSE),0) -> 3 | K150: =IFERROR(VLOOKUP($A150,Filtro!$A$5:$AK$2953,9,FALSE),0) -> 0 | L150: =IFERROR(VLOOKUP($A150,Filtro!$A$5:$AK$2953,10,FALSE),0) -> 0 | M150: =IFERROR(VLOOKUP($A150,Filtro!$A$5:$AK$2953,11,FALSE),0) -> 0 | N150: =IFERROR(VLOOKUP($A150,Filtro!$A$5:$AK$2953,12,FALSE),0) -> 0 | O150: =IFERROR(VLOOKUP($A150,Filtro!$A$5:$AK$2953,13,FALSE),0) -> 0 | P150: =IFERROR(VLOOKUP($A150,Filtro!$A$5:$AK$2953,14,FALSE),0) -> 0 | Q150: =IFERROR(VLOOKUP($A150,Filtro!$A$5:$AK$2953,15,FALSE),0) -> 190 | R150: =IFERROR(VLOOKUP($A150,Filtro!$A$5:$AK$2953,16,FALSE),0) -> 0 | S150: =IFERROR(VLOOKUP($A150,Filtro!$A$5:$AK$2953,17,FALSE),0) -> 315,480
A151: 17020301 | B151: BRAQUITERAPIA | D151: =IFERROR(VLOOKUP($A151,Filtro!$A$5:$AK$2953,2,FALSE),0) -> 0 | E151: =IFERROR(VLOOKUP($A151,Filtro!$A$5:$AK$2953,3,FALSE),0) -> 0 | F151: =IFERROR(VLOOKUP($A151,Filtro!$A$5:$AK$2953,4,FALSE),0) -> 0 | G151: =IFERROR(VLOOKUP($A151,Filtro!$A$5:$AK$2953,5,FALSE),0) -> 0 | H151: =IFERROR(VLOOKUP($A151,Filtro!$A$5:$AK$2953,6,FALSE),0) -> 0 | I151: =IFERROR(VLOOKUP($A151,Filtro!$A$5:$AK$2953,7,FALSE),0) -> 0 | J151: =IFERROR(VLOOKUP($A151,Filtro!$A$5:$AK$2953,8,FALSE),0) -> 0 | K151: =IFERROR(VLOOKUP($A151,Filtro!$A$5:$AK$2953,9,FALSE),0) -> 0 | L151: =IFERROR(VLOOKUP($A151,Filtro!$A$5:$AK$2953,10,FALSE),0) -> 0 | M151: =IFERROR(VLOOKUP($A151,Filtro!$A$5:$AK$2953,11,FALSE),0) -> 0 | N151: =IFERROR(VLOOKUP($A151,Filtro!$A$5:$AK$2953,12,FALSE),0) -> 0 | O151: =IFERROR(VLOOKUP($A151,Filtro!$A$5:$AK$2953,13,FALSE),0) -> 0 | P151: =IFERROR(VLOOKUP($A151,Filtro!$A$5:$AK$2953,14,FALSE),0) -> 0 | Q151: =IFERROR(VLOOKUP($A151,Filtro!$A$5:$AK$2953,15,FALSE),0) -> 0 | R151: =IFERROR(VLOOKUP($A151,Filtro!$A$5:$AK$2953,16,FALSE),0) -> 0 | S151: =IFERROR(VLOOKUP($A151,Filtro!$A$5:$AK$2953,17,FALSE),0) -> 0
A152: 99200140 | B152: RADIOTERAPIA | D152: =IFERROR(VLOOKUP($A152,Filtro!$A$5:$AK$2953,2,FALSE),0) -> 0 | E152: =IFERROR(VLOOKUP($A152,Filtro!$A$5:$AK$2953,3,FALSE),0) -> 0 | F152: =IFERROR(VLOOKUP($A152,Filtro!$A$5:$AK$2953,4,FALSE),0) -> 0 | G152: =IFERROR(VLOOKUP($A152,Filtro!$A$5:$AK$2953,5,FALSE),0) -> 0 | H152: =IFERROR(VLOOKUP($A152,Filtro!$A$5:$AK$2953,6,FALSE),0) -> 0 | I152: =IFERROR(VLOOKUP($A152,Filtro!$A$5:$AK$2953,7,FALSE),0) -> 0 | J152: =IFERROR(VLOOKUP($A152,Filtro!$A$5:$AK$2953,8,FALSE),0) -> 0 | K152: =IFERROR(VLOOKUP($A152,Filtro!$A$5:$AK$2953,9,FALSE),0) -> 0 | L152: =IFERROR(VLOOKUP($A152,Filtro!$A$5:$AK$2953,10,FALSE),0) -> 0 | M152: =IFERROR(VLOOKUP($A152,Filtro!$A$5:$AK$2953,11,FALSE),0) -> 0 | N152: =IFERROR(VLOOKUP($A152,Filtro!$A$5:$AK$2953,12,FALSE),0) -> 0 | O152: =IFERROR(VLOOKUP($A152,Filtro!$A$5:$AK$2953,13,FALSE),0) -> 0 | P152: =IFERROR(VLOOKUP($A152,Filtro!$A$5:$AK$2953,14,FALSE),0) -> 0 | Q152: =IFERROR(VLOOKUP($A152,Filtro!$A$5:$AK$2953,15,FALSE),0) -> 0 | R152: =IFERROR(VLOOKUP($A152,Filtro!$A$5:$AK$2953,16,FALSE),0) -> 0 | S152: =IFERROR(VLOOKUP($A152,Filtro!$A$5:$AK$2953,17,FALSE),0) -> 0
A153: 17400381 | B153: QUIMIOTERAPIA | D153: =IFERROR(VLOOKUP($A153,Filtro!$A$5:$AK$2953,2,FALSE),0) -> 6974 | E153: =IFERROR(VLOOKUP($A153,Filtro!$A$5:$AK$2953,3,FALSE),0) -> 6914 | F153: =IFERROR(VLOOKUP($A153,Filtro!$A$5:$AK$2953,4,FALSE),0) -> 6914 | G153: =IFERROR(VLOOKUP($A153,Filtro!$A$5:$AK$2953,5,FALSE),0) -> 0 | H153: =IFERROR(VLOOKUP($A153,Filtro!$A$5:$AK$2953,6,FALSE),0) -> 60 | I153: =IFERROR(VLOOKUP($A153,Filtro!$A$5:$AK$2953,7,FALSE),0) -> 20 | J153: =IFERROR(VLOOKUP($A153,Filtro!$A$5:$AK$2953,8,FALSE),0) -> 6954 | K153: =IFERROR(VLOOKUP($A153,Filtro!$A$5:$AK$2953,9,FALSE),0) -> 0 | L153: =IFERROR(VLOOKUP($A153,Filtro!$A$5:$AK$2953,10,FALSE),0) -> 0 | M153: =IFERROR(VLOOKUP($A153,Filtro!$A$5:$AK$2953,11,FALSE),0) -> 0 | N153: =IFERROR(VLOOKUP($A153,Filtro!$A$5:$AK$2953,12,FALSE),0) -> 0 | O153: =IFERROR(VLOOKUP($A153,Filtro!$A$5:$AK$2953,13,FALSE),0) -> 0 | P153: =IFERROR(VLOOKUP($A153,Filtro!$A$5:$AK$2953,14,FALSE),0) -> 0 | Q153: =IFERROR(VLOOKUP($A153,Filtro!$A$5:$AK$2953,15,FALSE),0) -> 0 | R153: =IFERROR(VLOOKUP($A153,Filtro!$A$5:$AK$2953,16,FALSE),0) -> 0 | S153: =IFERROR(VLOOKUP($A153,Filtro!$A$5:$AK$2953,17,FALSE),0) -> 3,746,637,590
A154: 99200150 | B154: RADIOCIRUGÍA | D154: =IFERROR(VLOOKUP($A154,Filtro!$A$5:$AK$2953,2,FALSE),0) -> 0 | E154: =IFERROR(VLOOKUP($A154,Filtro!$A$5:$AK$2953,3,FALSE),0) -> 0 | F154: =IFERROR(VLOOKUP($A154,Filtro!$A$5:$AK$2953,4,FALSE),0) -> 0 | G154: =IFERROR(VLOOKUP($A154,Filtro!$A$5:$AK$2953,5,FALSE),0) -> 0 | H154: =IFERROR(VLOOKUP($A154,Filtro!$A$5:$AK$2953,6,FALSE),0) -> 0 | I154: =IFERROR(VLOOKUP($A154,Filtro!$A$5:$AK$2953,7,FALSE),0) -> 0 | J154: =IFERROR(VLOOKUP($A154,Filtro!$A$5:$AK$2953,8,FALSE),0) -> 0 | K154: =IFERROR(VLOOKUP($A154,Filtro!$A$5:$AK$2953,9,FALSE),0) -> 0 | L154: =IFERROR(VLOOKUP($A154,Filtro!$A$5:$AK$2953,10,FALSE),0) -> 0 | M154: =IFERROR(VLOOKUP($A154,Filtro!$A$5:$AK$2953,11,FALSE),0) -> 0 | N154: =IFERROR(VLOOKUP($A154,Filtro!$A$5:$AK$2953,12,FALSE),0) -> 0 | O154: =IFERROR(VLOOKUP($A154,Filtro!$A$5:$AK$2953,13,FALSE),0) -> 0 | P154: =IFERROR(VLOOKUP($A154,Filtro!$A$5:$AK$2953,14,FALSE),0) -> 0 | Q154: =IFERROR(VLOOKUP($A154,Filtro!$A$5:$AK$2953,15,FALSE),0) -> 0 | R154: =IFERROR(VLOOKUP($A154,Filtro!$A$5:$AK$2953,16,FALSE),0) -> 0 | S154: =IFERROR(VLOOKUP($A154,Filtro!$A$5:$AK$2953,17,FALSE),0) -> 0
B155: TOTAL | D155: =SUM(D150+D151+D152+D153+D154) -> 6977 | E155: 6917 | F155: 6917 | G155: 0 | H155: 60 | I155: 20 | J155: 6957 | K155: 0 | L155: 0 | M155: 0 | N155: 0 | O155: 0 | P155: 0 | Q155: 190 | R155: 0 | S155: 3746953070
B156: SECCION K: HEMODIALISIS
B157: HEMODIALISIS | D157: TOTAL | E157: PROCEDIMIENTOS | I157: PROCEDENCIA | L157: PRODUCCION INTRA HOSPITAL | O157: OPERATIVO | P157: COMPRAS REALIZADAS | R157: VENTAS DE SERVICIOS | S157: PAGO POR PRESTACIONES ($)
E158: TOTAL BENEFI-CIARIOS | F158: BENEFICIARIOS | H158: NO BENEFI-CIARIOS | I158: ATENCION CERRADA | J158: ATENCION ABIERTA | K158: EMERGENCIA | L158: POR HONORARIOS | M158: POR CONVENIOS | N158: POR CONSULTORES DE LLAMADA | P158: AL SISTEMA | Q158: EXTRA-SISTEMA
F159: MAI | G159: MLE
A160: 17040100 | B160: 1901023 | C160: Hemodiálisis con insumos incluidos | D160: =IFERROR(VLOOKUP($A160,Filtro!$A$5:$AK$2953,2,FALSE),0) -> 0 | E160: =IFERROR(VLOOKUP($A160,Filtro!$A$5:$AK$2953,3,FALSE),0) -> 0 | F160: =IFERROR(VLOOKUP($A160,Filtro!$A$5:$AK$2953,4,FALSE),0) -> 0 | G160: =IFERROR(VLOOKUP($A160,Filtro!$A$5:$AK$2953,5,FALSE),0) -> 0 | H160: =IFERROR(VLOOKUP($A160,Filtro!$A$5:$AK$2953,6,FALSE),0) -> 0 | I160: =IFERROR(VLOOKUP($A160,Filtro!$A$5:$AK$2953,7,FALSE),0) -> 0 | J160: =IFERROR(VLOOKUP($A160,Filtro!$A$5:$AK$2953,8,FALSE),0) -> 0 | K160: =IFERROR(VLOOKUP($A160,Filtro!$A$5:$AK$2953,9,FALSE),0) -> 0 | L160: =IFERROR(VLOOKUP($A160,Filtro!$A$5:$AK$2953,10,FALSE),0) -> 0 | M160: =IFERROR(VLOOKUP($A160,Filtro!$A$5:$AK$2953,11,FALSE),0) -> 0 | N160: =IFERROR(VLOOKUP($A160,Filtro!$A$5:$AK$2953,12,FALSE),0) -> 0 | O160: =IFERROR(VLOOKUP($A160,Filtro!$A$5:$AK$2953,13,FALSE),0) -> 0 | P160: =IFERROR(VLOOKUP($A160,Filtro!$A$5:$AK$2953,14,FALSE),0) -> 0 | Q160: =IFERROR(VLOOKUP($A160,Filtro!$A$5:$AK$2953,15,FALSE),0) -> 0 | R160: =IFERROR(VLOOKUP($A160,Filtro!$A$5:$AK$2953,16,FALSE),0) -> 0 | S160: =IFERROR(VLOOKUP($A160,Filtro!$A$5:$AK$2953,17,FALSE),0) -> 0
A161: 17200130 | B161: 1901024 | C161: Hemodiálisis sin insumos | D161: =IFERROR(VLOOKUP($A161,Filtro!$A$5:$AK$2953,2,FALSE),0) -> 0 | E161: =IFERROR(VLOOKUP($A161,Filtro!$A$5:$AK$2953,3,FALSE),0) -> 0 | F161: =IFERROR(VLOOKUP($A161,Filtro!$A$5:$AK$2953,4,FALSE),0) -> 0 | G161: =IFERROR(VLOOKUP($A161,Filtro!$A$5:$AK$2953,5,FALSE),0) -> 0 | H161: =IFERROR(VLOOKUP($A161,Filtro!$A$5:$AK$2953,6,FALSE),0) -> 0 | I161: =IFERROR(VLOOKUP($A161,Filtro!$A$5:$AK$2953,7,FALSE),0) -> 0 | J161: =IFERROR(VLOOKUP($A161,Filtro!$A$5:$AK$2953,8,FALSE),0) -> 0 | K161: =IFERROR(VLOOKUP($A161,Filtro!$A$5:$AK$2953,9,FALSE),0) -> 0 | L161: =IFERROR(VLOOKUP($A161,Filtro!$A$5:$AK$2953,10,FALSE),0) -> 0 | M161: =IFERROR(VLOOKUP($A161,Filtro!$A$5:$AK$2953,11,FALSE),0) -> 0 | N161: =IFERROR(VLOOKUP($A161,Filtro!$A$5:$AK$2953,12,FALSE),0) -> 0 | O161: =IFERROR(VLOOKUP($A161,Filtro!$A$5:$AK$2953,13,FALSE),0) -> 0 | P161: =IFERROR(VLOOKUP($A161,Filtro!$A$5:$AK$2953,14,FALSE),0) -> 0 | Q161: =IFERROR(VLOOKUP($A161,Filtro!$A$5:$AK$2953,15,FALSE),0) -> 0 | R161: =IFERROR(VLOOKUP($A161,Filtro!$A$5:$AK$2953,16,FALSE),0) -> 0 | S161: =IFERROR(VLOOKUP($A161,Filtro!$A$5:$AK$2953,17,FALSE),0) -> 0
A162: 17040200 | B162: 1901025 | C162: Peritoneodiálisis (incluye insumos) | D162: =IFERROR(VLOOKUP($A162,Filtro!$A$5:$AK$2953,2,FALSE),0) -> 605 | E162: =IFERROR(VLOOKUP($A162,Filtro!$A$5:$AK$2953,3,FALSE),0) -> 605 | F162: =IFERROR(VLOOKUP($A162,Filtro!$A$5:$AK$2953,4,FALSE),0) -> 605 | G162: =IFERROR(VLOOKUP($A162,Filtro!$A$5:$AK$2953,5,FALSE),0) -> 0 | H162: =IFERROR(VLOOKUP($A162,Filtro!$A$5:$AK$2953,6,FALSE),0) -> 0 | I162: =IFERROR(VLOOKUP($A162,Filtro!$A$5:$AK$2953,7,FALSE),0) -> 151 | J162: =IFERROR(VLOOKUP($A162,Filtro!$A$5:$AK$2953,8,FALSE),0) -> 454 | K162: =IFERROR(VLOOKUP($A162,Filtro!$A$5:$AK$2953,9,FALSE),0) -> 0 | L162: =IFERROR(VLOOKUP($A162,Filtro!$A$5:$AK$2953,10,FALSE),0) -> 0 | M162: =IFERROR(VLOOKUP($A162,Filtro!$A$5:$AK$2953,11,FALSE),0) -> 0 | N162: =IFERROR(VLOOKUP($A162,Filtro!$A$5:$AK$2953,12,FALSE),0) -> 0 | O162: =IFERROR(VLOOKUP($A162,Filtro!$A$5:$AK$2953,13,FALSE),0) -> 0 | P162: =IFERROR(VLOOKUP($A162,Filtro!$A$5:$AK$2953,14,FALSE),0) -> 0 | Q162: =IFERROR(VLOOKUP($A162,Filtro!$A$5:$AK$2953,15,FALSE),0) -> 0 | R162: =IFERROR(VLOOKUP($A162,Filtro!$A$5:$AK$2953,16,FALSE),0) -> 0 | S162: =IFERROR(VLOOKUP($A162,Filtro!$A$5:$AK$2953,17,FALSE),0) -> 22,064,350
A163: 17200140 | B163: 1901026 | C163: Peritoneodiálisis continua en paciente crónico (adulto o niños) (tratamiento mensual) | D163: =IFERROR(VLOOKUP($A163,Filtro!$A$5:$AK$2953,2,FALSE),0) -> 261 | E163: =IFERROR(VLOOKUP($A163,Filtro!$A$5:$AK$2953,3,FALSE),0) -> 261 | F163: =IFERROR(VLOOKUP($A163,Filtro!$A$5:$AK$2953,4,FALSE),0) -> 261 | G163: =IFERROR(VLOOKUP($A163,Filtro!$A$5:$AK$2953,5,FALSE),0) -> 0 | H163: =IFERROR(VLOOKUP($A163,Filtro!$A$5:$AK$2953,6,FALSE),0) -> 0 | I163: =IFERROR(VLOOKUP($A163,Filtro!$A$5:$AK$2953,7,FALSE),0) -> 73 | J163: =IFERROR(VLOOKUP($A163,Filtro!$A$5:$AK$2953,8,FALSE),0) -> 188 | K163: =IFERROR(VLOOKUP($A163,Filtro!$A$5:$AK$2953,9,FALSE),0) -> 0 | L163: =IFERROR(VLOOKUP($A163,Filtro!$A$5:$AK$2953,10,FALSE),0) -> 0 | M163: =IFERROR(VLOOKUP($A163,Filtro!$A$5:$AK$2953,11,FALSE),0) -> 0 | N163: =IFERROR(VLOOKUP($A163,Filtro!$A$5:$AK$2953,12,FALSE),0) -> 0 | O163: =IFERROR(VLOOKUP($A163,Filtro!$A$5:$AK$2953,13,FALSE),0) -> 0 | P163: =IFERROR(VLOOKUP($A163,Filtro!$A$5:$AK$2953,14,FALSE),0) -> 0 | Q163: =IFERROR(VLOOKUP($A163,Filtro!$A$5:$AK$2953,15,FALSE),0) -> 0 | R163: =IFERROR(VLOOKUP($A163,Filtro!$A$5:$AK$2953,16,FALSE),0) -> 0 | S163: =IFERROR(VLOOKUP($A163,Filtro!$A$5:$AK$2953,17,FALSE),0) -> 285,748,020
A164: 17190440 | B164: 1901126 | C164: Instalación de cateter para peritoneodiális | D164: =IFERROR(VLOOKUP($A164,Filtro!$A$5:$AK$2953,2,FALSE),0) -> 7 | E164: =IFERROR(VLOOKUP($A164,Filtro!$A$5:$AK$2953,3,FALSE),0) -> 7 | F164: =IFERROR(VLOOKUP($A164,Filtro!$A$5:$AK$2953,4,FALSE),0) -> 7 | G164: =IFERROR(VLOOKUP($A164,Filtro!$A$5:$AK$2953,5,FALSE),0) -> 0 | H164: =IFERROR(VLOOKUP($A164,Filtro!$A$5:$AK$2953,6,FALSE),0) -> 0 | I164: =IFERROR(VLOOKUP($A164,Filtro!$A$5:$AK$2953,7,FALSE),0) -> 7 | J164: =IFERROR(VLOOKUP($A164,Filtro!$A$5:$AK$2953,8,FALSE),0) -> 0 | K164: =IFERROR(VLOOKUP($A164,Filtro!$A$5:$AK$2953,9,FALSE),0) -> 0 | L164: =IFERROR(VLOOKUP($A164,Filtro!$A$5:$AK$2953,10,FALSE),0) -> 0 | M164: =IFERROR(VLOOKUP($A164,Filtro!$A$5:$AK$2953,11,FALSE),0) -> 0 | N164: =IFERROR(VLOOKUP($A164,Filtro!$A$5:$AK$2953,12,FALSE),0) -> 0 | O164: =IFERROR(VLOOKUP($A164,Filtro!$A$5:$AK$2953,13,FALSE),0) -> 0 | P164: =IFERROR(VLOOKUP($A164,Filtro!$A$5:$AK$2953,14,FALSE),0) -> 0 | Q164: =IFERROR(VLOOKUP($A164,Filtro!$A$5:$AK$2953,15,FALSE),0) -> 0 | R164: =IFERROR(VLOOKUP($A164,Filtro!$A$5:$AK$2953,16,FALSE),0) -> 0 | S164: =IFERROR(VLOOKUP($A164,Filtro!$A$5:$AK$2953,17,FALSE),0) -> 3,480,960
A165: 17040400 | B165: 1901027 | C165: Hemodiálisis, tratamiento mensual (con insumos incluidos) | D165: =IFERROR(VLOOKUP($A165,Filtro!$A$5:$AK$2953,2,FALSE),0) -> 0 | E165: =IFERROR(VLOOKUP($A165,Filtro!$A$5:$AK$2953,3,FALSE),0) -> 0 | F165: =IFERROR(VLOOKUP($A165,Filtro!$A$5:$AK$2953,4,FALSE),0) -> 0 | G165: =IFERROR(VLOOKUP($A165,Filtro!$A$5:$AK$2953,5,FALSE),0) -> 0 | H165: =IFERROR(VLOOKUP($A165,Filtro!$A$5:$AK$2953,6,FALSE),0) -> 0 | I165: =IFERROR(VLOOKUP($A165,Filtro!$A$5:$AK$2953,7,FALSE),0) -> 0 | J165: =IFERROR(VLOOKUP($A165,Filtro!$A$5:$AK$2953,8,FALSE),0) -> 0 | K165: =IFERROR(VLOOKUP($A165,Filtro!$A$5:$AK$2953,9,FALSE),0) -> 0 | L165: =IFERROR(VLOOKUP($A165,Filtro!$A$5:$AK$2953,10,FALSE),0) -> 0 | M165: =IFERROR(VLOOKUP($A165,Filtro!$A$5:$AK$2953,11,FALSE),0) -> 0 | N165: =IFERROR(VLOOKUP($A165,Filtro!$A$5:$AK$2953,12,FALSE),0) -> 0 | O165: =IFERROR(VLOOKUP($A165,Filtro!$A$5:$AK$2953,13,FALSE),0) -> 0 | P165: =IFERROR(VLOOKUP($A165,Filtro!$A$5:$AK$2953,14,FALSE),0) -> 0 | Q165: =IFERROR(VLOOKUP($A165,Filtro!$A$5:$AK$2953,15,FALSE),0) -> 0 | R165: =IFERROR(VLOOKUP($A165,Filtro!$A$5:$AK$2953,16,FALSE),0) -> 0 | S165: =IFERROR(VLOOKUP($A165,Filtro!$A$5:$AK$2953,17,FALSE),0) -> 0
A166: 17040500 | B166: 1901028 | C166: Hemodiálisis con bicarbonato con insumos (por sesion) | D166: =IFERROR(VLOOKUP($A166,Filtro!$A$5:$AK$2953,2,FALSE),0) -> 14696 | E166: =IFERROR(VLOOKUP($A166,Filtro!$A$5:$AK$2953,3,FALSE),0) -> 14654 | F166: =IFERROR(VLOOKUP($A166,Filtro!$A$5:$AK$2953,4,FALSE),0) -> 14653 | G166: =IFERROR(VLOOKUP($A166,Filtro!$A$5:$AK$2953,5,FALSE),0) -> 1 | H166: =IFERROR(VLOOKUP($A166,Filtro!$A$5:$AK$2953,6,FALSE),0) -> 42 | I166: =IFERROR(VLOOKUP($A166,Filtro!$A$5:$AK$2953,7,FALSE),0) -> 3116 | J166: =IFERROR(VLOOKUP($A166,Filtro!$A$5:$AK$2953,8,FALSE),0) -> 11389 | K166: =IFERROR(VLOOKUP($A166,Filtro!$A$5:$AK$2953,9,FALSE),0) -> 32 | L166: =IFERROR(VLOOKUP($A166,Filtro!$A$5:$AK$2953,10,FALSE),0) -> 0 | M166: =IFERROR(VLOOKUP($A166,Filtro!$A$5:$AK$2953,11,FALSE),0) -> 0 | N166: =IFERROR(VLOOKUP($A166,Filtro!$A$5:$AK$2953,12,FALSE),0) -> 0 | O166: =IFERROR(VLOOKUP($A166,Filtro!$A$5:$AK$2953,13,FALSE),0) -> 0 | P166: =IFERROR(VLOOKUP($A166,Filtro!$A$5:$AK$2953,14,FALSE),0) -> 0 | Q166: =IFERROR(VLOOKUP($A166,Filtro!$A$5:$AK$2953,15,FALSE),0) -> 27 | R166: =IFERROR(VLOOKUP($A166,Filtro!$A$5:$AK$2953,16,FALSE),0) -> 0 | S166: =IFERROR(VLOOKUP($A166,Filtro!$A$5:$AK$2953,17,FALSE),0) -> 1,004,609,680
A167: 17200150 | B167: 1901029 | C167: Hemodiálisis con bicarbonato con insumos (tratamiento mensual) | D167: =IFERROR(VLOOKUP($A167,Filtro!$A$5:$AK$2953,2,FALSE),0) -> 1831 | E167: =IFERROR(VLOOKUP($A167,Filtro!$A$5:$AK$2953,3,FALSE),0) -> 1816 | F167: =IFERROR(VLOOKUP($A167,Filtro!$A$5:$AK$2953,4,FALSE),0) -> 1816 | G167: =IFERROR(VLOOKUP($A167,Filtro!$A$5:$AK$2953,5,FALSE),0) -> 0 | H167: =IFERROR(VLOOKUP($A167,Filtro!$A$5:$AK$2953,6,FALSE),0) -> 15 | I167: =IFERROR(VLOOKUP($A167,Filtro!$A$5:$AK$2953,7,FALSE),0) -> 769 | J167: =IFERROR(VLOOKUP($A167,Filtro!$A$5:$AK$2953,8,FALSE),0) -> 1075 | K167: =IFERROR(VLOOKUP($A167,Filtro!$A$5:$AK$2953,9,FALSE),0) -> 0 | L167: =IFERROR(VLOOKUP($A167,Filtro!$A$5:$AK$2953,10,FALSE),0) -> 0 | M167: =IFERROR(VLOOKUP($A167,Filtro!$A$5:$AK$2953,11,FALSE),0) -> 0 | N167: =IFERROR(VLOOKUP($A167,Filtro!$A$5:$AK$2953,12,FALSE),0) -> 0 | O167: =IFERROR(VLOOKUP($A167,Filtro!$A$5:$AK$2953,13,FALSE),0) -> 0 | P167: =IFERROR(VLOOKUP($A167,Filtro!$A$5:$AK$2953,14,FALSE),0) -> 0 | Q167: =IFERROR(VLOOKUP($A167,Filtro!$A$5:$AK$2953,15,FALSE),0) -> 1 | R167: =IFERROR(VLOOKUP($A167,Filtro!$A$5:$AK$2953,16,FALSE),0) -> 0 | S167: =IFERROR(VLOOKUP($A167,Filtro!$A$5:$AK$2953,17,FALSE),0) -> 1,522,625,200
A168: 17400382 | B168: 1901031 | C168: Instalación de catéter de peritoneodiálisis laparoscopia | D168: =IFERROR(VLOOKUP($A168,Filtro!$A$5:$AK$2953,2,FALSE),0) -> 15 | E168: =IFERROR(VLOOKUP($A168,Filtro!$A$5:$AK$2953,3,FALSE),0) -> 14 | F168: =IFERROR(VLOOKUP($A168,Filtro!$A$5:$AK$2953,4,FALSE),0) -> 14 | G168: =IFERROR(VLOOKUP($A168,Filtro!$A$5:$AK$2953,5,FALSE),0) -> 0 | H168: =IFERROR(VLOOKUP($A168,Filtro!$A$5:$AK$2953,6,FALSE),0) -> 1 | I168: =IFERROR(VLOOKUP($A168,Filtro!$A$5:$AK$2953,7,FALSE),0) -> 12 | J168: =IFERROR(VLOOKUP($A168,Filtro!$A$5:$AK$2953,8,FALSE),0) -> 3 | K168: =IFERROR(VLOOKUP($A168,Filtro!$A$5:$AK$2953,9,FALSE),0) -> 0 | L168: =IFERROR(VLOOKUP($A168,Filtro!$A$5:$AK$2953,10,FALSE),0) -> 0 | M168: =IFERROR(VLOOKUP($A168,Filtro!$A$5:$AK$2953,11,FALSE),0) -> 0 | N168: =IFERROR(VLOOKUP($A168,Filtro!$A$5:$AK$2953,12,FALSE),0) -> 0 | O168: =IFERROR(VLOOKUP($A168,Filtro!$A$5:$AK$2953,13,FALSE),0) -> 0 | P168: =IFERROR(VLOOKUP($A168,Filtro!$A$5:$AK$2953,14,FALSE),0) -> 0 | Q168: =IFERROR(VLOOKUP($A168,Filtro!$A$5:$AK$2953,15,FALSE),0) -> 0 | R168: =IFERROR(VLOOKUP($A168,Filtro!$A$5:$AK$2953,16,FALSE),0) -> 0 | S168: =IFERROR(VLOOKUP($A168,Filtro!$A$5:$AK$2953,17,FALSE),0) -> 8,688,540
A169: 17400383 | B169: 1901032 | C169: Retiro de catéter de peritoneodiálisis | D169: =IFERROR(VLOOKUP($A169,Filtro!$A$5:$AK$2953,2,FALSE),0) -> 5 | E169: =IFERROR(VLOOKUP($A169,Filtro!$A$5:$AK$2953,3,FALSE),0) -> 5 | F169: =IFERROR(VLOOKUP($A169,Filtro!$A$5:$AK$2953,4,FALSE),0) -> 5 | G169: =IFERROR(VLOOKUP($A169,Filtro!$A$5:$AK$2953,5,FALSE),0) -> 0 | H169: =IFERROR(VLOOKUP($A169,Filtro!$A$5:$AK$2953,6,FALSE),0) -> 0 | I169: =IFERROR(VLOOKUP($A169,Filtro!$A$5:$AK$2953,7,FALSE),0) -> 3 | J169: =IFERROR(VLOOKUP($A169,Filtro!$A$5:$AK$2953,8,FALSE),0) -> 2 | K169: =IFERROR(VLOOKUP($A169,Filtro!$A$5:$AK$2953,9,FALSE),0) -> 0 | L169: =IFERROR(VLOOKUP($A169,Filtro!$A$5:$AK$2953,10,FALSE),0) -> 0 | M169: =IFERROR(VLOOKUP($A169,Filtro!$A$5:$AK$2953,11,FALSE),0) -> 0 | N169: =IFERROR(VLOOKUP($A169,Filtro!$A$5:$AK$2953,12,FALSE),0) -> 0 | O169: =IFERROR(VLOOKUP($A169,Filtro!$A$5:$AK$2953,13,FALSE),0) -> 0 | P169: =IFERROR(VLOOKUP($A169,Filtro!$A$5:$AK$2953,14,FALSE),0) -> 0 | Q169: =IFERROR(VLOOKUP($A169,Filtro!$A$5:$AK$2953,15,FALSE),0) -> 0 | R169: =IFERROR(VLOOKUP($A169,Filtro!$A$5:$AK$2953,16,FALSE),0) -> 0 | S169: =IFERROR(VLOOKUP($A169,Filtro!$A$5:$AK$2953,17,FALSE),0) -> 829,400
A170: 17400384 | B170: 1901033 | C170: Revisión de catéter de peritoneodiálisis laparoscopia | D170: =IFERROR(VLOOKUP($A170,Filtro!$A$5:$AK$2953,2,FALSE),0) -> 5 | E170: =IFERROR(VLOOKUP($A170,Filtro!$A$5:$AK$2953,3,FALSE),0) -> 5 | F170: =IFERROR(VLOOKUP($A170,Filtro!$A$5:$AK$2953,4,FALSE),0) -> 5 | G170: =IFERROR(VLOOKUP($A170,Filtro!$A$5:$AK$2953,5,FALSE),0) -> 0 | H170: =IFERROR(VLOOKUP($A170,Filtro!$A$5:$AK$2953,6,FALSE),0) -> 0 | I170: =IFERROR(VLOOKUP($A170,Filtro!$A$5:$AK$2953,7,FALSE),0) -> 4 | J170: =IFERROR(VLOOKUP($A170,Filtro!$A$5:$AK$2953,8,FALSE),0) -> 0 | K170: =IFERROR(VLOOKUP($A170,Filtro!$A$5:$AK$2953,9,FALSE),0) -> 1 | L170: =IFERROR(VLOOKUP($A170,Filtro!$A$5:$AK$2953,10,FALSE),0) -> 0 | M170: =IFERROR(VLOOKUP($A170,Filtro!$A$5:$AK$2953,11,FALSE),0) -> 0 | N170: =IFERROR(VLOOKUP($A170,Filtro!$A$5:$AK$2953,12,FALSE),0) -> 0 | O170: =IFERROR(VLOOKUP($A170,Filtro!$A$5:$AK$2953,13,FALSE),0) -> 0 | P170: =IFERROR(VLOOKUP($A170,Filtro!$A$5:$AK$2953,14,FALSE),0) -> 0 | Q170: =IFERROR(VLOOKUP($A170,Filtro!$A$5:$AK$2953,15,FALSE),0) -> 0 | R170: =IFERROR(VLOOKUP($A170,Filtro!$A$5:$AK$2953,16,FALSE),0) -> 0 | S170: =IFERROR(VLOOKUP($A170,Filtro!$A$5:$AK$2953,17,FALSE),0) -> 1,690,200
B171: TOTAL | D171: =SUM(D160:D170) -> 17425 | E171: 17367 | F171: 17366 | G171: 1 | H171: 58 | I171: 4135 | J171: 13111 | K171: 33 | L171: 0 | M171: 0 | N171: 0 | O171: 0 | P171: 0 | Q171: 28 | R171: 0 | S171: 2849736350
B172: SECCION L: INTERVENCIONES QUIRURGICAS
B173: TIPO DE INTERVENCION QUIRURGICA | D173: TOTAL PRODUCCIÓN | E173: TOTAL BENEFICIARIOS | F173: INTERVENCIONES QUIRÚRGICAS | L173: CIRUGÍAS MENORES | M173: PRODUCCION INTRA HOSPITAL | P173: OPERATIVO | Q173: COMPRAS REALIZADAS | S173: VENTAS DE SERVICIOS | T173: INTERVENCIONES 100% | U173: INTERVENCIONES 50% | V173: INTERVENCIONES 75% | W173: PAGO POR PRESTACIONES ($)
F174: PRINCIPAL | I174: SECUNDARIA
F175: MAI | G175: MLE | H175: NO BENEFI-CIARIOS | I175: MAI | J175: MLE | K175: NO BENEFI-CIARIOS | M175: POR HONORARIOS | N175: POR CONVENIOS | O175: POR CONSULTORES DE LLAMADA | Q175: AL SISTEMA | R175: EXTRA-SISTEMA
A176: 17050100 | B176: I | C176: NEUROCIRUGIA | D176: =IFERROR(VLOOKUP($A176,Filtro!$A$5:$AK$2953,2,FALSE),0) -> 1,241 | E176: =IFERROR(VLOOKUP($A176,Filtro!$A$5:$AK$2953,3,FALSE),0) -> 1,024 | F176: =IFERROR(VLOOKUP($A176,Filtro!$A$5:$AK$2953,4,FALSE),0) -> 985 | G176: =IFERROR(VLOOKUP($A176,Filtro!$A$5:$AK$2953,5,FALSE),0) -> 39 | H176: =IFERROR(VLOOKUP($A176,Filtro!$A$5:$AK$2953,6,FALSE),0) -> 39 | I176: =IFERROR(VLOOKUP($A176,Filtro!$A$5:$AK$2953,7,FALSE),0) -> 172 | J176: =IFERROR(VLOOKUP($A176,Filtro!$A$5:$AK$2953,8,FALSE),0) -> 1 | K176: =IFERROR(VLOOKUP($A176,Filtro!$A$5:$AK$2953,9,FALSE),0) -> 5 | L176: =IFERROR(VLOOKUP($A176,Filtro!$A$5:$AK$2953,10,FALSE),0) -> 0 | M176: =IFERROR(VLOOKUP($A176,Filtro!$A$5:$AK$2953,11,FALSE),0) -> 0 | N176: =IFERROR(VLOOKUP($A176,Filtro!$A$5:$AK$2953,12,FALSE),0) -> 0 | O176: =IFERROR(VLOOKUP($A176,Filtro!$A$5:$AK$2953,13,FALSE),0) -> 0 | P176: =IFERROR(VLOOKUP($A176,Filtro!$A$5:$AK$2953,14,FALSE),0) -> 0 | Q176: =IFERROR(VLOOKUP($A176,Filtro!$A$5:$AK$2953,15,FALSE),0) -> 0 | R176: =IFERROR(VLOOKUP($A176,Filtro!$A$5:$AK$2953,16,FALSE),0) -> 0 | S176: =IFERROR(VLOOKUP($A176,Filtro!$A$5:$AK$2953,17,FALSE),0) -> 0 | T176: =IFERROR(VLOOKUP($A176,Filtro!$A$5:$AK$2953,18,FALSE),0) -> 985 | U176: =IFERROR(VLOOKUP($A176,Filtro!$A$5:$AK$2953,19,FALSE),0) -> 172 | W176: =IFERROR(VLOOKUP($A176,Filtro!$A$5:$AK$2953,21,FALSE),0) -> 544,424,705
A177: 17050200 | B177: II | C177: CIRUGIA OFTALMOLOGICA | D177: =IFERROR(VLOOKUP($A177,Filtro!$A$5:$AK$2953,2,FALSE),0) -> 7,529 | E177: =IFERROR(VLOOKUP($A177,Filtro!$A$5:$AK$2953,3,FALSE),0) -> 6,407 | F177: =IFERROR(VLOOKUP($A177,Filtro!$A$5:$AK$2953,4,FALSE),0) -> 6,407 | G177: =IFERROR(VLOOKUP($A177,Filtro!$A$5:$AK$2953,5,FALSE),0) -> 0 | H177: =IFERROR(VLOOKUP($A177,Filtro!$A$5:$AK$2953,6,FALSE),0) -> 13 | I177: =IFERROR(VLOOKUP($A177,Filtro!$A$5:$AK$2953,7,FALSE),0) -> 1,105 | J177: =IFERROR(VLOOKUP($A177,Filtro!$A$5:$AK$2953,8,FALSE),0) -> 0 | K177: =IFERROR(VLOOKUP($A177,Filtro!$A$5:$AK$2953,9,FALSE),0) -> 4 | L177: =IFERROR(VLOOKUP($A177,Filtro!$A$5:$AK$2953,10,FALSE),0) -> 1,525 | M177: =IFERROR(VLOOKUP($A177,Filtro!$A$5:$AK$2953,11,FALSE),0) -> 614 | N177: =IFERROR(VLOOKUP($A177,Filtro!$A$5:$AK$2953,12,FALSE),0) -> 0 | O177: =IFERROR(VLOOKUP($A177,Filtro!$A$5:$AK$2953,13,FALSE),0) -> 15 | P177: =IFERROR(VLOOKUP($A177,Filtro!$A$5:$AK$2953,14,FALSE),0) -> 0 | Q177: =IFERROR(VLOOKUP($A177,Filtro!$A$5:$AK$2953,15,FALSE),0) -> 0 | R177: =IFERROR(VLOOKUP($A177,Filtro!$A$5:$AK$2953,16,FALSE),0) -> 0 | S177: =IFERROR(VLOOKUP($A177,Filtro!$A$5:$AK$2953,17,FALSE),0) -> 0 | T177: =IFERROR(VLOOKUP($A177,Filtro!$A$5:$AK$2953,18,FALSE),0) -> 6,407 | U177: =IFERROR(VLOOKUP($A177,Filtro!$A$5:$AK$2953,19,FALSE),0) -> 1,105 | W177: =IFERROR(VLOOKUP($A177,Filtro!$A$5:$AK$2953,21,FALSE),0) -> 3,613,324,270
A178: 17050300 | B178: III | C178: CIRUGIA OTORRINOLOGICA | D178: =IFERROR(VLOOKUP($A178,Filtro!$A$5:$AK$2953,2,FALSE),0) -> 2,318 | E178: =IFERROR(VLOOKUP($A178,Filtro!$A$5:$AK$2953,3,FALSE),0) -> 1,872 | F178: =IFERROR(VLOOKUP($A178,Filtro!$A$5:$AK$2953,4,FALSE),0) -> 1,871 | G178: =IFERROR(VLOOKUP($A178,Filtro!$A$5:$AK$2953,5,FALSE),0) -> 1 | H178: =IFERROR(VLOOKUP($A178,Filtro!$A$5:$AK$2953,6,FALSE),0) -> 13 | I178: =IFERROR(VLOOKUP($A178,Filtro!$A$5:$AK$2953,7,FALSE),0) -> 430 | J178: =IFERROR(VLOOKUP($A178,Filtro!$A$5:$AK$2953,8,FALSE),0) -> 0 | K178: =IFERROR(VLOOKUP($A178,Filtro!$A$5:$AK$2953,9,FALSE),0) -> 3 | L178: =IFERROR(VLOOKUP($A178,Filtro!$A$5:$AK$2953,10,FALSE),0) -> 676 | M178: =IFERROR(VLOOKUP($A178,Filtro!$A$5:$AK$2953,11,FALSE),0) -> 180 | N178: =IFERROR(VLOOKUP($A178,Filtro!$A$5:$AK$2953,12,FALSE),0) -> 0 | O178: =IFERROR(VLOOKUP($A178,Filtro!$A$5:$AK$2953,13,FALSE),0) -> 6 | P178: =IFERROR(VLOOKUP($A178,Filtro!$A$5:$AK$2953,14,FALSE),0) -> 0 | Q178: =IFERROR(VLOOKUP($A178,Filtro!$A$5:$AK$2953,15,FALSE),0) -> 0 | R178: =IFERROR(VLOOKUP($A178,Filtro!$A$5:$AK$2953,16,FALSE),0) -> 0 | S178: =IFERROR(VLOOKUP($A178,Filtro!$A$5:$AK$2953,17,FALSE),0) -> 0 | T178: =IFERROR(VLOOKUP($A178,Filtro!$A$5:$AK$2953,18,FALSE),0) -> 1,871 | U178: =IFERROR(VLOOKUP($A178,Filtro!$A$5:$AK$2953,19,FALSE),0) -> 430 | W178: =IFERROR(VLOOKUP($A178,Filtro!$A$5:$AK$2953,21,FALSE),0) -> 315,837,890
A179: 17050400 | B179: IV | C179: CIRUGIA DE CABEZA Y CUELLO | D179: =IFERROR(VLOOKUP($A179,Filtro!$A$5:$AK$2953,2,FALSE),0) -> 507 | E179: =IFERROR(VLOOKUP($A179,Filtro!$A$5:$AK$2953,3,FALSE),0) -> 381 | F179: =IFERROR(VLOOKUP($A179,Filtro!$A$5:$AK$2953,4,FALSE),0) -> 374 | G179: =IFERROR(VLOOKUP($A179,Filtro!$A$5:$AK$2953,5,FALSE),0) -> 7 | H179: =IFERROR(VLOOKUP($A179,Filtro!$A$5:$AK$2953,6,FALSE),0) -> 6 | I179: =IFERROR(VLOOKUP($A179,Filtro!$A$5:$AK$2953,7,FALSE),0) -> 118 | J179: =IFERROR(VLOOKUP($A179,Filtro!$A$5:$AK$2953,8,FALSE),0) -> 0 | K179: =IFERROR(VLOOKUP($A179,Filtro!$A$5:$AK$2953,9,FALSE),0) -> 2 | L179: =IFERROR(VLOOKUP($A179,Filtro!$A$5:$AK$2953,10,FALSE),0) -> 141 | M179: =IFERROR(VLOOKUP($A179,Filtro!$A$5:$AK$2953,11,FALSE),0) -> 3 | N179: =IFERROR(VLOOKUP($A179,Filtro!$A$5:$AK$2953,12,FALSE),0) -> 0 | O179: =IFERROR(VLOOKUP($A179,Filtro!$A$5:$AK$2953,13,FALSE),0) -> 2 | P179: =IFERROR(VLOOKUP($A179,Filtro!$A$5:$AK$2953,14,FALSE),0) -> 0 | Q179: =IFERROR(VLOOKUP($A179,Filtro!$A$5:$AK$2953,15,FALSE),0) -> 0 | R179: =IFERROR(VLOOKUP($A179,Filtro!$A$5:$AK$2953,16,FALSE),0) -> 0 | S179: =IFERROR(VLOOKUP($A179,Filtro!$A$5:$AK$2953,17,FALSE),0) -> 0 | T179: =IFERROR(VLOOKUP($A179,Filtro!$A$5:$AK$2953,18,FALSE),0) -> 374 | U179: =IFERROR(VLOOKUP($A179,Filtro!$A$5:$AK$2953,19,FALSE),0) -> 118 | W179: =IFERROR(VLOOKUP($A179,Filtro!$A$5:$AK$2953,21,FALSE),0) -> 101,735,435
A180: 17050500 | B180: V | C180: CIRUGIA PLASTICA Y REPARADORA | D180: =IFERROR(VLOOKUP($A180,Filtro!$A$5:$AK$2953,2,FALSE),0) -> 1,347 | E180: =IFERROR(VLOOKUP($A180,Filtro!$A$5:$AK$2953,3,FALSE),0) -> 1,096 | F180: =IFERROR(VLOOKUP($A180,Filtro!$A$5:$AK$2953,4,FALSE),0) -> 1,086 | G180: =IFERROR(VLOOKUP($A180,Filtro!$A$5:$AK$2953,5,FALSE),0) -> 10 | H180: =IFERROR(VLOOKUP($A180,Filtro!$A$5:$AK$2953,6,FALSE),0) -> 21 | I180: =IFERROR(VLOOKUP($A180,Filtro!$A$5:$AK$2953,7,FALSE),0) -> 225 | J180: =IFERROR(VLOOKUP($A180,Filtro!$A$5:$AK$2953,8,FALSE),0) -> 2 | K180: =IFERROR(VLOOKUP($A180,Filtro!$A$5:$AK$2953,9,FALSE),0) -> 3 | L180: =IFERROR(VLOOKUP($A180,Filtro!$A$5:$AK$2953,10,FALSE),0) -> 790 | M180: =IFERROR(VLOOKUP($A180,Filtro!$A$5:$AK$2953,11,FALSE),0) -> 10 | N180: =IFERROR(VLOOKUP($A180,Filtro!$A$5:$AK$2953,12,FALSE),0) -> 0 | O180: =IFERROR(VLOOKUP($A180,Filtro!$A$5:$AK$2953,13,FALSE),0) -> 4 | P180: =IFERROR(VLOOKUP($A180,Filtro!$A$5:$AK$2953,14,FALSE),0) -> 0 | Q180: =IFERROR(VLOOKUP($A180,Filtro!$A$5:$AK$2953,15,FALSE),0) -> 0 | R180: =IFERROR(VLOOKUP($A180,Filtro!$A$5:$AK$2953,16,FALSE),0) -> 0 | S180: =IFERROR(VLOOKUP($A180,Filtro!$A$5:$AK$2953,17,FALSE),0) -> 0 | T180: =IFERROR(VLOOKUP($A180,Filtro!$A$5:$AK$2953,18,FALSE),0) -> 1,086 | U180: =IFERROR(VLOOKUP($A180,Filtro!$A$5:$AK$2953,19,FALSE),0) -> 225 | W180: =IFERROR(VLOOKUP($A180,Filtro!$A$5:$AK$2953,21,FALSE),0) -> 139,992,805
A181: 17050600 | B181: VI | C181: DERMATOLOGÍA Y TEGUMENTOS | D181: =IFERROR(VLOOKUP($A181,Filtro!$A$5:$AK$2953,2,FALSE),0) -> 3,958 | E181: =IFERROR(VLOOKUP($A181,Filtro!$A$5:$AK$2953,3,FALSE),0) -> 3,706 | F181: =IFERROR(VLOOKUP($A181,Filtro!$A$5:$AK$2953,4,FALSE),0) -> 3,696 | G181: =IFERROR(VLOOKUP($A181,Filtro!$A$5:$AK$2953,5,FALSE),0) -> 10 | H181: =IFERROR(VLOOKUP($A181,Filtro!$A$5:$AK$2953,6,FALSE),0) -> 24 | I181: =IFERROR(VLOOKUP($A181,Filtro!$A$5:$AK$2953,7,FALSE),0) -> 214 | J181: =IFERROR(VLOOKUP($A181,Filtro!$A$5:$AK$2953,8,FALSE),0) -> 9 | K181: =IFERROR(VLOOKUP($A181,Filtro!$A$5:$AK$2953,9,FALSE),0) -> 5 | L181: =IFERROR(VLOOKUP($A181,Filtro!$A$5:$AK$2953,10,FALSE),0) -> 3,866 | M181: =IFERROR(VLOOKUP($A181,Filtro!$A$5:$AK$2953,11,FALSE),0) -> 5 | N181: =IFERROR(VLOOKUP($A181,Filtro!$A$5:$AK$2953,12,FALSE),0) -> 0 | O181: =IFERROR(VLOOKUP($A181,Filtro!$A$5:$AK$2953,13,FALSE),0) -> 5 | P181: =IFERROR(VLOOKUP($A181,Filtro!$A$5:$AK$2953,14,FALSE),0) -> 0 | Q181: =IFERROR(VLOOKUP($A181,Filtro!$A$5:$AK$2953,15,FALSE),0) -> 0 | R181: =IFERROR(VLOOKUP($A181,Filtro!$A$5:$AK$2953,16,FALSE),0) -> 0 | S181: =IFERROR(VLOOKUP($A181,Filtro!$A$5:$AK$2953,17,FALSE),0) -> 0 | T181: =IFERROR(VLOOKUP($A181,Filtro!$A$5:$AK$2953,18,FALSE),0) -> 3,696 | U181: =IFERROR(VLOOKUP($A181,Filtro!$A$5:$AK$2953,19,FALSE),0) -> 214 | W181: =IFERROR(VLOOKUP($A181,Filtro!$A$5:$AK$2953,21,FALSE),0) -> 218,037,275
A182: 17050700 | B182: VII | C182: CIRUGIA CARDIOVASCULAR | D182: =IFERROR(VLOOKUP($A182,Filtro!$A$5:$AK$2953,2,FALSE),0) -> 2,203 | E182: =IFERROR(VLOOKUP($A182,Filtro!$A$5:$AK$2953,3,FALSE),0) -> 1,826 | F182: =IFERROR(VLOOKUP($A182,Filtro!$A$5:$AK$2953,4,FALSE),0) -> 1,770 | G182: =IFERROR(VLOOKUP($A182,Filtro!$A$5:$AK$2953,5,FALSE),0) -> 56 | H182: =IFERROR(VLOOKUP($A182,Filtro!$A$5:$AK$2953,6,FALSE),0) -> 32 | I182: =IFERROR(VLOOKUP($A182,Filtro!$A$5:$AK$2953,7,FALSE),0) -> 291 | J182: =IFERROR(VLOOKUP($A182,Filtro!$A$5:$AK$2953,8,FALSE),0) -> 48 | K182: =IFERROR(VLOOKUP($A182,Filtro!$A$5:$AK$2953,9,FALSE),0) -> 6 | L182: =IFERROR(VLOOKUP($A182,Filtro!$A$5:$AK$2953,10,FALSE),0) -> 86 | M182: =IFERROR(VLOOKUP($A182,Filtro!$A$5:$AK$2953,11,FALSE),0) -> 19 | N182: =IFERROR(VLOOKUP($A182,Filtro!$A$5:$AK$2953,12,FALSE),0) -> 0 | O182: =IFERROR(VLOOKUP($A182,Filtro!$A$5:$AK$2953,13,FALSE),0) -> 52 | P182: =IFERROR(VLOOKUP($A182,Filtro!$A$5:$AK$2953,14,FALSE),0) -> 8 | Q182: =IFERROR(VLOOKUP($A182,Filtro!$A$5:$AK$2953,15,FALSE),0) -> 0 | R182: =IFERROR(VLOOKUP($A182,Filtro!$A$5:$AK$2953,16,FALSE),0) -> 0 | S182: =IFERROR(VLOOKUP($A182,Filtro!$A$5:$AK$2953,17,FALSE),0) -> 0 | T182: =IFERROR(VLOOKUP($A182,Filtro!$A$5:$AK$2953,18,FALSE),0) -> 1,770 | U182: =IFERROR(VLOOKUP($A182,Filtro!$A$5:$AK$2953,19,FALSE),0) -> 291 | W182: =IFERROR(VLOOKUP($A182,Filtro!$A$5:$AK$2953,21,FALSE),0) -> 1,284,128,935
A183: 17050800 | B183: VIII | C183: CIRUGIA DE TORAX | D183: =IFERROR(VLOOKUP($A183,Filtro!$A$5:$AK$2953,2,FALSE),0) -> 442 | E183: =IFERROR(VLOOKUP($A183,Filtro!$A$5:$AK$2953,3,FALSE),0) -> 364 | F183: =IFERROR(VLOOKUP($A183,Filtro!$A$5:$AK$2953,4,FALSE),0) -> 363 | G183: =IFERROR(VLOOKUP($A183,Filtro!$A$5:$AK$2953,5,FALSE),0) -> 1 | H183: =IFERROR(VLOOKUP($A183,Filtro!$A$5:$AK$2953,6,FALSE),0) -> 7 | I183: =IFERROR(VLOOKUP($A183,Filtro!$A$5:$AK$2953,7,FALSE),0) -> 69 | J183: =IFERROR(VLOOKUP($A183,Filtro!$A$5:$AK$2953,8,FALSE),0) -> 0 | K183: =IFERROR(VLOOKUP($A183,Filtro!$A$5:$AK$2953,9,FALSE),0) -> 2 | L183: =IFERROR(VLOOKUP($A183,Filtro!$A$5:$AK$2953,10,FALSE),0) -> 55 | M183: =IFERROR(VLOOKUP($A183,Filtro!$A$5:$AK$2953,11,FALSE),0) -> 3 | N183: =IFERROR(VLOOKUP($A183,Filtro!$A$5:$AK$2953,12,FALSE),0) -> 0 | O183: =IFERROR(VLOOKUP($A183,Filtro!$A$5:$AK$2953,13,FALSE),0) -> 11 | P183: =IFERROR(VLOOKUP($A183,Filtro!$A$5:$AK$2953,14,FALSE),0) -> 0 | Q183: =IFERROR(VLOOKUP($A183,Filtro!$A$5:$AK$2953,15,FALSE),0) -> 0 | R183: =IFERROR(VLOOKUP($A183,Filtro!$A$5:$AK$2953,16,FALSE),0) -> 0 | S183: =IFERROR(VLOOKUP($A183,Filtro!$A$5:$AK$2953,17,FALSE),0) -> 0 | T183: =IFERROR(VLOOKUP($A183,Filtro!$A$5:$AK$2953,18,FALSE),0) -> 363 | U183: =IFERROR(VLOOKUP($A183,Filtro!$A$5:$AK$2953,19,FALSE),0) -> 69 | W183: =IFERROR(VLOOKUP($A183,Filtro!$A$5:$AK$2953,21,FALSE),0) -> 138,714,525
A184: 17050900 | B184: IX | C184: CIRUGIA ABDOMINAL | D184: =IFERROR(VLOOKUP($A184,Filtro!$A$5:$AK$2953,2,FALSE),0) -> 7,041 | E184: =IFERROR(VLOOKUP($A184,Filtro!$A$5:$AK$2953,3,FALSE),0) -> 5,998 | F184: =IFERROR(VLOOKUP($A184,Filtro!$A$5:$AK$2953,4,FALSE),0) -> 5,743 | G184: =IFERROR(VLOOKUP($A184,Filtro!$A$5:$AK$2953,5,FALSE),0) -> 255 | H184: =IFERROR(VLOOKUP($A184,Filtro!$A$5:$AK$2953,6,FALSE),0) -> 149 | I184: =IFERROR(VLOOKUP($A184,Filtro!$A$5:$AK$2953,7,FALSE),0) -> 849 | J184: =IFERROR(VLOOKUP($A184,Filtro!$A$5:$AK$2953,8,FALSE),0) -> 9 | K184: =IFERROR(VLOOKUP($A184,Filtro!$A$5:$AK$2953,9,FALSE),0) -> 36 | L184: =IFERROR(VLOOKUP($A184,Filtro!$A$5:$AK$2953,10,FALSE),0) -> 0 | M184: =IFERROR(VLOOKUP($A184,Filtro!$A$5:$AK$2953,11,FALSE),0) -> 393 | N184: =IFERROR(VLOOKUP($A184,Filtro!$A$5:$AK$2953,12,FALSE),0) -> 2 | O184: =IFERROR(VLOOKUP($A184,Filtro!$A$5:$AK$2953,13,FALSE),0) -> 94 | P184: =IFERROR(VLOOKUP($A184,Filtro!$A$5:$AK$2953,14,FALSE),0) -> 0 | Q184: =IFERROR(VLOOKUP($A184,Filtro!$A$5:$AK$2953,15,FALSE),0) -> 0 | R184: =IFERROR(VLOOKUP($A184,Filtro!$A$5:$AK$2953,16,FALSE),0) -> 0 | S184: =IFERROR(VLOOKUP($A184,Filtro!$A$5:$AK$2953,17,FALSE),0) -> 0 | T184: =IFERROR(VLOOKUP($A184,Filtro!$A$5:$AK$2953,18,FALSE),0) -> 5,743 | U184: =IFERROR(VLOOKUP($A184,Filtro!$A$5:$AK$2953,19,FALSE),0) -> 849 | W184: =IFERROR(VLOOKUP($A184,Filtro!$A$5:$AK$2953,21,FALSE),0) -> 2,119,712,215
A185: 17051000 | B185: X | C185: CIRUGIA PROCTOLOGICA | D185: =IFERROR(VLOOKUP($A185,Filtro!$A$5:$AK$2953,2,FALSE),0) -> 586 | E185: =IFERROR(VLOOKUP($A185,Filtro!$A$5:$AK$2953,3,FALSE),0) -> 526 | F185: =IFERROR(VLOOKUP($A185,Filtro!$A$5:$AK$2953,4,FALSE),0) -> 464 | G185: =IFERROR(VLOOKUP($A185,Filtro!$A$5:$AK$2953,5,FALSE),0) -> 62 | H185: =IFERROR(VLOOKUP($A185,Filtro!$A$5:$AK$2953,6,FALSE),0) -> 15 | I185: =IFERROR(VLOOKUP($A185,Filtro!$A$5:$AK$2953,7,FALSE),0) -> 42 | J185: =IFERROR(VLOOKUP($A185,Filtro!$A$5:$AK$2953,8,FALSE),0) -> 0 | K185: =IFERROR(VLOOKUP($A185,Filtro!$A$5:$AK$2953,9,FALSE),0) -> 3 | L185: =IFERROR(VLOOKUP($A185,Filtro!$A$5:$AK$2953,10,FALSE),0) -> 119 | M185: =IFERROR(VLOOKUP($A185,Filtro!$A$5:$AK$2953,11,FALSE),0) -> 0 | N185: =IFERROR(VLOOKUP($A185,Filtro!$A$5:$AK$2953,12,FALSE),0) -> 0 | O185: =IFERROR(VLOOKUP($A185,Filtro!$A$5:$AK$2953,13,FALSE),0) -> 3 | P185: =IFERROR(VLOOKUP($A185,Filtro!$A$5:$AK$2953,14,FALSE),0) -> 0 | Q185: =IFERROR(VLOOKUP($A185,Filtro!$A$5:$AK$2953,15,FALSE),0) -> 0 | R185: =IFERROR(VLOOKUP($A185,Filtro!$A$5:$AK$2953,16,FALSE),0) -> 0 | S185: =IFERROR(VLOOKUP($A185,Filtro!$A$5:$AK$2953,17,FALSE),0) -> 0 | T185: =IFERROR(VLOOKUP($A185,Filtro!$A$5:$AK$2953,18,FALSE),0) -> 464 | U185: =IFERROR(VLOOKUP($A185,Filtro!$A$5:$AK$2953,19,FALSE),0) -> 42 | W185: =IFERROR(VLOOKUP($A185,Filtro!$A$5:$AK$2953,21,FALSE),0) -> 90,045,990
A186: 17051100 | B186: XI | C186: CIRUGIA UROLOGICA Y SUPRARRENAL | D186: =IFERROR(VLOOKUP($A186,Filtro!$A$5:$AK$2953,2,FALSE),0) -> 3,816 | E186: =IFERROR(VLOOKUP($A186,Filtro!$A$5:$AK$2953,3,FALSE),0) -> 2,605 | F186: =IFERROR(VLOOKUP($A186,Filtro!$A$5:$AK$2953,4,FALSE),0) -> 2,452 | G186: =IFERROR(VLOOKUP($A186,Filtro!$A$5:$AK$2953,5,FALSE),0) -> 153 | H186: =IFERROR(VLOOKUP($A186,Filtro!$A$5:$AK$2953,6,FALSE),0) -> 54 | I186: =IFERROR(VLOOKUP($A186,Filtro!$A$5:$AK$2953,7,FALSE),0) -> 1,107 | J186: =IFERROR(VLOOKUP($A186,Filtro!$A$5:$AK$2953,8,FALSE),0) -> 30 | K186: =IFERROR(VLOOKUP($A186,Filtro!$A$5:$AK$2953,9,FALSE),0) -> 20 | L186: =IFERROR(VLOOKUP($A186,Filtro!$A$5:$AK$2953,10,FALSE),0) -> 27 | M186: =IFERROR(VLOOKUP($A186,Filtro!$A$5:$AK$2953,11,FALSE),0) -> 397 | N186: =IFERROR(VLOOKUP($A186,Filtro!$A$5:$AK$2953,12,FALSE),0) -> 0 | O186: =IFERROR(VLOOKUP($A186,Filtro!$A$5:$AK$2953,13,FALSE),0) -> 356 | P186: =IFERROR(VLOOKUP($A186,Filtro!$A$5:$AK$2953,14,FALSE),0) -> 0 | Q186: =IFERROR(VLOOKUP($A186,Filtro!$A$5:$AK$2953,15,FALSE),0) -> 0 | R186: =IFERROR(VLOOKUP($A186,Filtro!$A$5:$AK$2953,16,FALSE),0) -> 0 | S186: =IFERROR(VLOOKUP($A186,Filtro!$A$5:$AK$2953,17,FALSE),0) -> 0 | T186: =IFERROR(VLOOKUP($A186,Filtro!$A$5:$AK$2953,18,FALSE),0) -> 2,452 | U186: =IFERROR(VLOOKUP($A186,Filtro!$A$5:$AK$2953,19,FALSE),0) -> 1,107 | W186: =IFERROR(VLOOKUP($A186,Filtro!$A$5:$AK$2953,21,FALSE),0) -> 922,856,890
A187: 17051200 | B187: XII | C187: CIRUGIA DE LA MAMA | D187: =IFERROR(VLOOKUP($A187,Filtro!$A$5:$AK$2953,2,FALSE),0) -> 565 | E187: =IFERROR(VLOOKUP($A187,Filtro!$A$5:$AK$2953,3,FALSE),0) -> 447 | F187: =IFERROR(VLOOKUP($A187,Filtro!$A$5:$AK$2953,4,FALSE),0) -> 442 | G187: =IFERROR(VLOOKUP($A187,Filtro!$A$5:$AK$2953,5,FALSE),0) -> 5 | H187: =IFERROR(VLOOKUP($A187,Filtro!$A$5:$AK$2953,6,FALSE),0) -> 7 | I187: =IFERROR(VLOOKUP($A187,Filtro!$A$5:$AK$2953,7,FALSE),0) -> 109 | J187: =IFERROR(VLOOKUP($A187,Filtro!$A$5:$AK$2953,8,FALSE),0) -> 0 | K187: =IFERROR(VLOOKUP($A187,Filtro!$A$5:$AK$2953,9,FALSE),0) -> 2 | L187: =IFERROR(VLOOKUP($A187,Filtro!$A$5:$AK$2953,10,FALSE),0) -> 48 | M187: =IFERROR(VLOOKUP($A187,Filtro!$A$5:$AK$2953,11,FALSE),0) -> 0 | N187: =IFERROR(VLOOKUP($A187,Filtro!$A$5:$AK$2953,12,FALSE),0) -> 0 | O187: =IFERROR(VLOOKUP($A187,Filtro!$A$5:$AK$2953,13,FALSE),0) -> 1 | P187: =IFERROR(VLOOKUP($A187,Filtro!$A$5:$AK$2953,14,FALSE),0) -> 0 | Q187: =IFERROR(VLOOKUP($A187,Filtro!$A$5:$AK$2953,15,FALSE),0) -> 0 | R187: =IFERROR(VLOOKUP($A187,Filtro!$A$5:$AK$2953,16,FALSE),0) -> 0 | S187: =IFERROR(VLOOKUP($A187,Filtro!$A$5:$AK$2953,17,FALSE),0) -> 0 | T187: =IFERROR(VLOOKUP($A187,Filtro!$A$5:$AK$2953,18,FALSE),0) -> 442 | U187: =IFERROR(VLOOKUP($A187,Filtro!$A$5:$AK$2953,19,FALSE),0) -> 109 | W187: =IFERROR(VLOOKUP($A187,Filtro!$A$5:$AK$2953,21,FALSE),0) -> 131,829,645
A188: 17051300 | B188: XIII | C188: CIRUGIA GINECOLOGICA | D188: =IFERROR(VLOOKUP($A188,Filtro!$A$5:$AK$2953,2,FALSE),0) -> 2,919 | E188: =IFERROR(VLOOKUP($A188,Filtro!$A$5:$AK$2953,3,FALSE),0) -> 2,303 | F188: =IFERROR(VLOOKUP($A188,Filtro!$A$5:$AK$2953,4,FALSE),0) -> 2,230 | G188: =IFERROR(VLOOKUP($A188,Filtro!$A$5:$AK$2953,5,FALSE),0) -> 73 | H188: =IFERROR(VLOOKUP($A188,Filtro!$A$5:$AK$2953,6,FALSE),0) -> 33 | I188: =IFERROR(VLOOKUP($A188,Filtro!$A$5:$AK$2953,7,FALSE),0) -> 564 | J188: =IFERROR(VLOOKUP($A188,Filtro!$A$5:$AK$2953,8,FALSE),0) -> 16 | K188: =IFERROR(VLOOKUP($A188,Filtro!$A$5:$AK$2953,9,FALSE),0) -> 3 | L188: =IFERROR(VLOOKUP($A188,Filtro!$A$5:$AK$2953,10,FALSE),0) -> 184 | M188: =IFERROR(VLOOKUP($A188,Filtro!$A$5:$AK$2953,11,FALSE),0) -> 0 | N188: =IFERROR(VLOOKUP($A188,Filtro!$A$5:$AK$2953,12,FALSE),0) -> 0 | O188: =IFERROR(VLOOKUP($A188,Filtro!$A$5:$AK$2953,13,FALSE),0) -> 0 | P188: =IFERROR(VLOOKUP($A188,Filtro!$A$5:$AK$2953,14,FALSE),0) -> 0 | Q188: =IFERROR(VLOOKUP($A188,Filtro!$A$5:$AK$2953,15,FALSE),0) -> 0 | R188: =IFERROR(VLOOKUP($A188,Filtro!$A$5:$AK$2953,16,FALSE),0) -> 0 | S188: =IFERROR(VLOOKUP($A188,Filtro!$A$5:$AK$2953,17,FALSE),0) -> 0 | T188: =IFERROR(VLOOKUP($A188,Filtro!$A$5:$AK$2953,18,FALSE),0) -> 2,230 | U188: =IFERROR(VLOOKUP($A188,Filtro!$A$5:$AK$2953,19,FALSE),0) -> 564 | W188: =IFERROR(VLOOKUP($A188,Filtro!$A$5:$AK$2953,21,FALSE),0) -> 624,241,415
A189: 17051400 | B189: XIV | C189: CIRUGIA OBSTETRICA | D189: =IFERROR(VLOOKUP($A189,Filtro!$A$5:$AK$2953,2,FALSE),0) -> 2,684 | E189: =IFERROR(VLOOKUP($A189,Filtro!$A$5:$AK$2953,3,FALSE),0) -> 2,595 | F189: =IFERROR(VLOOKUP($A189,Filtro!$A$5:$AK$2953,4,FALSE),0) -> 1,754 | G189: =IFERROR(VLOOKUP($A189,Filtro!$A$5:$AK$2953,5,FALSE),0) -> 841 | H189: =IFERROR(VLOOKUP($A189,Filtro!$A$5:$AK$2953,6,FALSE),0) -> 55 | I189: =IFERROR(VLOOKUP($A189,Filtro!$A$5:$AK$2953,7,FALSE),0) -> 11 | J189: =IFERROR(VLOOKUP($A189,Filtro!$A$5:$AK$2953,8,FALSE),0) -> 21 | K189: =IFERROR(VLOOKUP($A189,Filtro!$A$5:$AK$2953,9,FALSE),0) -> 2 | L189: =IFERROR(VLOOKUP($A189,Filtro!$A$5:$AK$2953,10,FALSE),0) -> 0 | M189: =IFERROR(VLOOKUP($A189,Filtro!$A$5:$AK$2953,11,FALSE),0) -> 0 | N189: =IFERROR(VLOOKUP($A189,Filtro!$A$5:$AK$2953,12,FALSE),0) -> 0 | O189: =IFERROR(VLOOKUP($A189,Filtro!$A$5:$AK$2953,13,FALSE),0) -> 0 | P189: =IFERROR(VLOOKUP($A189,Filtro!$A$5:$AK$2953,14,FALSE),0) -> 0 | Q189: =IFERROR(VLOOKUP($A189,Filtro!$A$5:$AK$2953,15,FALSE),0) -> 0 | R189: =IFERROR(VLOOKUP($A189,Filtro!$A$5:$AK$2953,16,FALSE),0) -> 0 | S189: =IFERROR(VLOOKUP($A189,Filtro!$A$5:$AK$2953,17,FALSE),0) -> 0 | T189: =IFERROR(VLOOKUP($A189,Filtro!$A$5:$AK$2953,18,FALSE),0) -> 1,754 | U189: =IFERROR(VLOOKUP($A189,Filtro!$A$5:$AK$2953,19,FALSE),0) -> 11 | W189: =IFERROR(VLOOKUP($A189,Filtro!$A$5:$AK$2953,21,FALSE),0) -> 309,807,480
